Workbook

Sheet Introduction
C4: Joint Monitoring Programme for Water Supply, Sanitation and Hygiene
C6: Estimates on household water, sanitation and hygiene by wealth quintile and sub-national region in
C7: =+Water!B5 -> South Africa
C9: Updated May 2021
C11: Follow the links below to find the following information:
C13: JMP Estimates
C14: WASH status and trends by wealth quintile (customized quintiles made without water and sanitation assets)
C15: Water
C16: Sanitation
C17: Hygiene
C19: Data inputs
C20: customized wealth quintiles and subnational data:
C21: =IF(INDIRECT(CONCATENATE("Water","!B105"))=0,"",INDIRECT(CONCATENATE("Water","!B105"))) -> WHS03
C22: =IF(INDIRECT(CONCATENATE("Water","!B106"))=0,"",INDIRECT(CONCATENATE("Water","!B106"))) -> DHS16
C23: =IF(INDIRECT(CONCATENATE("Water","!B107"))=0,"",INDIRECT(CONCATENATE("Water","!B107"))) -> 
C24: =IF(INDIRECT(CONCATENATE("Water","!B108"))=0,"",INDIRECT(CONCATENATE("Water","!B108"))) -> 
C25: =IF(INDIRECT(CONCATENATE("Water","!B109"))=0,"",INDIRECT(CONCATENATE("Water","!B109"))) -> 
C26: =IF(INDIRECT(CONCATENATE("Water","!B110"))=0,"",INDIRECT(CONCATENATE("Water","!B110"))) -> 
C27: =IF(INDIRECT(CONCATENATE("Water","!B111"))=0,"",INDIRECT(CONCATENATE("Water","!B111"))) -> 
C28: =IF(INDIRECT(CONCATENATE("Water","!B112"))=0,"",INDIRECT(CONCATENATE("Water","!B112"))) -> 
C29: =IF(INDIRECT(CONCATENATE("Water","!B113"))=0,"",INDIRECT(CONCATENATE("Water","!B113"))) -> 
C30: =IF(INDIRECT(CONCATENATE("Water","!B114"))=0,"",INDIRECT(CONCATENATE("Water","!B114"))) -> 
C31: =IF(INDIRECT(CONCATENATE("Water","!B115"))=0,"",INDIRECT(CONCATENATE("Water","!B115"))) -> 
C32: =IF(INDIRECT(CONCATENATE("Water","!B116"))=0,"",INDIRECT(CONCATENATE("Water","!B116"))) -> 
L55: =+IF(ISNUMBER(M48), "", "Insufficient data to estimate safely managed sanitation services at national level") -> Insufficient data to estimate safely managed sanitation services at national level

Sheet Water
A1: BGD
B4: Summary of trends in use of drinking water by wealth quintile (%)
B5: =IF(ISERROR(INDIRECT(CONCATENATE($B105,"!A2"))),"",INDIRECT(CONCATENATE($B105,"!A2"))) -> South Africa
B7: =B118 -> National use of drinking water sources, 2000–2020 | J7: =B218 -> Urban use of drinking water sources, 2000–2020 | R7: =B318 -> Rural use of drinking water sources, 2000–2020
B31: =IF(ISERROR(INDIRECT(CONCATENATE($B105,"!A2"))),"",INDIRECT(CONCATENATE($B105,"!A2"))) -> South Africa | F31: Poorest | J31: Poor | N31: Middle | R31: Rich | V31: Richest
F32: Basic | G32: Limited | H32: Unimproved | I32: Surface water | J32: Basic | K32: Limited | L32: Unimproved | M32: Surface water | N32: Basic | O32: Limited | P32: Unimproved | Q32: Surface water | R32: Basic | S32: Limited | T32: Unimproved | U32: Surface water | V32: Basic | W32: Limited | X32: Unimproved | Y32: Surface water
B33: NATIONAL | D33: Estimate | E33: =C99 -> 2000 | F33: =E99 -> 67.51157338 | G33: =F99 -> 10.76018812 | H33: 10.74662532 | I33: 10.98161318 | J33: =J99 -> 82.45746906 | K33: =K99 -> 4.314517532 | L33: 12.13833986 | M33: 1.089673549 | N33: =O99 -> 83.52386253 | O33: =P99 -> 3.435230914 | P33: 11.11248127 | Q33: 1.928425286 | R33: =T99 -> 89.33900226 | S33: =U99 -> 4.458817907 | T33: 6.202179837 | U33: 0 | V33: =Y99 -> 95.5111865 | W33: =Z99 -> 0.0759966965 | X33: 4.412816799 | Y33: 0
E34: =C100 -> 2020 | F34: =E100 -> 65.11123576 | G34: 10.37761543 | H34: 11.45290953 | I34: 13.05823928 | J34: =J100 -> 90.21742357 | K34: 4.720550608 | L34: 2.02802261 | M34: 3.034003214 | N34: =O100 -> 95.00334553 | O34: 3.907367543 | P34: 0 | Q34: 1.08928693 | R34: =T100 -> 95.13759355 | S34: 4.748219648 | T34: 0 | U34: 0.1141868002 | V34: =Y100 -> 99.92049489 | W34: 0.07950511141 | X34: 0 | Y34: 0
B36: URBAN | D36: Estimate | E36: =C199 -> 2000 | F36: =E199 -> 87.64369783 | G36: =F199 -> 5.165669637 | H36: 7.190632531 | I36: 0 | J36: =J199 -> 85.17065992 | K36: =K199 -> 2.921998226 | L36: 11.90734185 | M36: 0 | N36: =O199 -> 86.26643435 | O36: =P199 -> 0.07553287328 | P36: 13.65803277 | Q36: 0 | R36: =T199 -> 94.72346539 | S36: =U199 -> 0 | T36: 5.276534614 | U36: 0 | V36: =Y199 -> 96.63907351 | W36: =Z199 -> 0.09160211689 | X36: 3.269324369 | Y36: 0
E37: =C200 -> 2020 | F37: =E200 -> 93.5355774 | G37: 5.512933663 | H37: 0 | I37: 0.9514889395 | J37: =J200 -> 96.68304001 | K37: 3.316959991 | L37: 0 | M37: 0 | N37: =O200 -> 99.88886685 | O37: 0.08746035672 | P37: 0 | Q37: 0.02367279224 | R37: =T200 -> 100 | S37: 0 | T37: 0 | U37: 0 | V37: =Y200 -> 99.90530189 | W37: 0.09469810512 | X37: 0 | Y37: 0
B39: RURAL | D39: Estimate | E39: =C299 -> 2000 | F39: =E299 -> 52.93807424 | G39: =F299 -> 11.67614713 | H39: 13.872906 | I39: 21.51287263 | J39: =J299 -> 69.76861744 | K39: =K299 -> 11.1659627 | L39: 16.30663582 | M39: 2.758784035 | N39: =O299 -> 78.36281185 | O39: =P299 -> 6.941962173 | P39: 12.79226835 | Q39: 1.902957629 | R39: =T299 -> 80.16047633 | S39: =U299 -> 5.936598284 | T39: 8.680203159 | U39: 5.222722227 | V39: =Y299 -> 88.543582 | W39: =Z299 -> 8.014899664 | X39: 3.441518331 | Y39: 0
E40: =C300 -> 2020 | F40: =E300 -> 42.95355051 | G40: 9.473936908 | H40: 21.84129111 | I40: 25.73122147 | J40: =J300 -> 68.62931668 | K40: 10.98362585 | L40: 9.841618842 | M40: 10.54543863 | N40: =O300 -> 81.62502839 | O40: 7.230953639 | P40: 5.083920822 | Q40: 6.060097146 | R40: =T300 -> 88.16232145 | S40: 6.52920629 | T40: 1.944370406 | U40: 3.364101856 | V40: =Y300 -> 89.75493029 | W40: 8.124550016 | X40: 1.33296989 | Y40: 0.7875498049
A97: NATIONAL | D97: Poorest | I97: Poor | N97: Middle | S97: Rich | X97: Richest
D98: Improved | E98: Basic | F98: Limited | G98: Unimproved | H98: Surface water | I98: Improved | J98: Basic | K98: Limited | L98: Unimproved | M98: Surface water | N98: Improved | O98: Basic | P98: Limited | Q98: Unimproved | R98: Surface water | S98: Improved | T98: Basic | U98: Limited | V98: Unimproved | W98: Surface water | X98: Improved | Y98: Basic | Z98: Limited | AA98: Unimproved | AB98: Surface water
A99: Forecast period: | C99: =MinBase(C105:C116) -> 2000 | D99: =IF((D101+H101)>100,D101*100/(D101+H101),D101) -> 78.2717615 | E99: =D99*AVERAGEIF(E105:E116,">0")/100 -> 67.51157338 | F99: =D99*(100-AVERAGEIF(E105:E116,">0"))/100 -> 10.76018812 | G99: =100-(E99+F99+H99) -> 10.74662532 | H99: =IF((D101+H101)>100,H101*100/(D101+H101),H101) -> 10.98161318 | I99: =IF((I101+M101)>100,I101*100/(I101+M101),I101) -> 86.77198659 | J99: =I99*AVERAGEIF(J105:J116,">0")/100 -> 82.45746906 | K99: =I99*(100-AVERAGEIF(J105:J116,">0"))/100 -> 4.314517532 | L99: =100-(J99+K99+M99) -> 12.13833986 | M99: =IF((I101+M101)>100,M101*100/(I101+M101),M101) -> 1.089673549 | N99: =IF((N101+R101)>100,N101*100/(N101+R101),N101) -> 86.95909344 | O99: =N99*AVERAGEIF(O105:O116,">0")/100 -> 83.52386253 | P99: =N99*(100-AVERAGEIF(O105:O116,">0"))/100 -> 3.435230914 | Q99: =100-(O99+P99+R99) -> 11.11248127 | R99: =IF((N101+R101)>100,R101*100/(N101+R101),R101) -> 1.928425286 | S99: =IF((S101+W101)>100,S101*100/(S101+W101),S101) -> 93.79782016 | T99: =S99*AVERAGEIF(T105:T116,">0")/100 -> 89.33900226 | U99: =S99*(100-AVERAGEIF(T105:T116,">0"))/100 -> 4.458817907 | V99: =100-(T99+U99+W99) -> 6.202179837 | W99: =IF((S101+W101)>100,W101*100/(S101+W101),W101) -> 0 | X99: =IF((X101+AB101)>100,X101*100/(X101+AB101),X101) -> 95.5871832 | Y99: =X99*AVERAGEIF(Y105:Y116,">0")/100 -> 95.5111865 | Z99: =X99*(100-AVERAGEIF(Y105:Y116,">0"))/100 -> 0.0759966965 | AA99: =100-(Y99+Z99+AB99) -> 4.412816799 | AB99: =IF((X101+AB101)>100,AB101*100/(X101+AB101),AB101) -> 0
C100: =MaxTarget(C105:C116) -> 2020 | D100: =IF((D102+H102)>100,D102*100/(D102+H102),D102) -> 75.48885119 | E100: =D100*AVERAGEIF(E105:E116,">0")/100 -> 65.11123576 | F100: =D100*(100-AVERAGEIF(E105:E116,">0"))/100 -> 10.37761543 | G100: =100-(E100+F100+H100) -> 11.45290953 | H100: =IF((D102+H102)>100,H102*100/(D102+H102),H102) -> 13.05823928 | I100: =IF((I102+M102)>100,I102*100/(I102+M102),I102) -> 94.93797418 | J100: =I100*AVERAGEIF(J105:J116,">0")/100 -> 90.21742357 | K100: =I100*(100-AVERAGEIF(J105:J116,">0"))/100 -> 4.720550608 | L100: =100-(J100+K100+M100) -> 2.02802261 | M100: =IF((I102+M102)>100,M102*100/(I102+M102),M102) -> 3.034003214 | N100: =IF((N102+R102)>100,N102*100/(N102+R102),N102) -> 98.91071307 | O100: =N100*AVERAGEIF(O105:O116,">0")/100 -> 95.00334553 | P100: =N100*(100-AVERAGEIF(O105:O116,">0"))/100 -> 3.907367543 | Q100: =100-(O100+P100+R100) -> 0 | R100: =IF((N102+R102)>100,R102*100/(N102+R102),R102) -> 1.08928693 | S100: =IF((S102+W102)>100,S102*100/(S102+W102),S102) -> 99.8858132 | T100: =S100*AVERAGEIF(T105:T116,">0")/100 -> 95.13759355 | U100: =S100*(100-AVERAGEIF(T105:T116,">0"))/100 -> 4.748219648 | V100: =100-(T100+U100+W100) -> 0 | W100: =IF((S102+W102)>100,W102*100/(S102+W102),W102) -> 0.1141868002 | X100: =IF((X102+AB102)>100,X102*100/(X102+AB102),X102) -> 100 | Y100: =X100*AVERAGEIF(Y105:Y116,">0")/100 -> 99.92049489 | Z100: =X100*(100-AVERAGEIF(Y105:Y116,">0"))/100 -> 0.07950511141 | AA100: =100-(Y100+Z100+AB100) -> 0 | AB100: =IF((X102+AB102)>100,AB102*100/(X102+AB102),AB102) -> 0
A101: Regression period: | C101: =MinRegYear(C99,C105:C116) -> 2001 | D101: =IF(MAX(C105:C116)-MIN(C105:C116)<5,AVERAGEIF(C105:C116,">0",D105:D116), IF(FORECAST($C101,D$105:D$116,$C$105:$C$116)<0,0, IF(FORECAST($C101,D$105:D$116,$C$105:$C$116)>100,100, FORECAST($C101,D$105:D$116,$C$105:$C$116)))) -> 78.2717615 | H101: =IF(MAX(C105:C116)-MIN(C105:C116)<5,AVERAGEIF(C105:C116,">0",H105:H116), IF(FORECAST($C101,H$105:H$116,$C$105:$C$116)<0,0, IF(FORECAST($C101,H$105:H$116,$C$105:$C$116)>100,100, FORECAST($C101,H$105:H$116,$C$105:$C$116)))) -> 10.98161318 | I101: =IF(MAX(C105:C116)-MIN(C105:C116)<5,AVERAGEIF(C105:C116,">0",I105:I116), IF(FORECAST($C101,I$105:I$116,$C$105:$C$116)<0,0, IF(FORECAST($C101,I$105:I$116,$C$105:$C$116)>100,100, FORECAST($C101,I$105:I$116,$C$105:$C$116)))) -> 86.77198659 | M101: =IF(MAX(C105:C116)-MIN(C105:C116)<5,AVERAGEIF(C105:C116,">0",M105:M116), IF(FORECAST($C101,M$105:M$116,$C$105:$C$116)<0,0, IF(FORECAST($C101,M$105:M$116,$C$105:$C$116)>100,100, FORECAST($C101,M$105:M$116,$C$105:$C$116)))) -> 1.089673549 | N101: =IF(MAX(C105:C116)-MIN(C105:C116)<5,AVERAGEIF(C105:C116,">0",N105:N116), IF(FORECAST($C101,N$105:N$116,$C$105:$C$116)<0,0, IF(FORECAST($C101,N$105:N$116,$C$105:$C$116)>100,100, FORECAST($C101,N$105:N$116,$C$105:$C$116)))) -> 86.95909344 | R101: =IF(MAX(C105:C116)-MIN(C105:C116)<5,AVERAGEIF(C105:C116,">0",R105:R116), IF(FORECAST($C101,R$105:R$116,$C$105:$C$116)<0,0, IF(FORECAST($C101,R$105:R$116,$C$105:$C$116)>100,100, FORECAST($C101,R$105:R$116,$C$105:$C$116)))) -> 1.928425286 | S101: =IF(MAX(C105:C116)-MIN(C105:C116)<5,AVERAGEIF(C105:C116,">0",S105:S116), IF(FORECAST($C101,S$105:S$116,$C$105:$C$116)<0,0, IF(FORECAST($C101,S$105:S$116,$C$105:$C$116)>100,100, FORECAST($C101,S$105:S$116,$C$105:$C$116)))) -> 93.79782016 | W101: =IF(MAX(C105:C116)-MIN(C105:C116)<5,AVERAGEIF(C105:C116,">0",W105:W116), IF(FORECAST($C101,W$105:W$116,$C$105:$C$116)<0,0, IF(FORECAST($C101,W$105:W$116,$C$105:$C$116)>100,100, FORECAST($C101,W$105:W$116,$C$105:$C$116)))) -> 0 | X101: =IF(MAX(C105:C116)-MIN(C105:C116)<5,AVERAGEIF(C105:C116,">0",X105:X116), IF(FORECAST($C101,X$105:X$116,$C$105:$C$116)<0,0, IF(FORECAST($C101,X$105:X$116,$C$105:$C$116)>100,100, FORECAST($C101,X$105:X$116,$C$105:$C$116)))) -> 95.5871832 | AB101: =IF(MAX(C105:C116)-MIN(C105:C116)<5,AVERAGEIF(C105:C116,">0",AB105:AB116), IF(FORECAST($C101,AB$105:AB$116,$C$105:$C$116)<0,0, IF(FORECAST($C101,AB$105:AB$116,$C$105:$C$116)>100,100, FORECAST($C101,AB$105:AB$116,$C$105:$C$116)))) -> 0
C102: =MaxRegYear(C100,C105:C116) -> 2018 | D102: =IF(MAX(C105:C116)-MIN(C105:C116)<5,AVERAGEIF(C105:C116,">0",D105:D116), IF(FORECAST($C102,D$105:D$116,$C$105:$C$116)<0,0, IF(FORECAST($C102,D$105:D$116,$C$105:$C$116)>100,100, FORECAST($C102,D$105:D$116,$C$105:$C$116)))) -> 75.48885119 | H102: =IF(MAX(C105:C116)-MIN(C105:C116)<5,AVERAGEIF(C105:C116,">0",H105:H116), IF(FORECAST($C102,H$105:H$116,$C$105:$C$116)<0,0, IF(FORECAST($C102,H$105:H$116,$C$105:$C$116)>100,100, FORECAST($C102,H$105:H$116,$C$105:$C$116)))) -> 13.05823928 | I102: =IF(MAX(C105:C116)-MIN(C105:C116)<5,AVERAGEIF(C105:C116,">0",I105:I116), IF(FORECAST($C102,I$105:I$116,$C$105:$C$116)<0,0, IF(FORECAST($C102,I$105:I$116,$C$105:$C$116)>100,100, FORECAST($C102,I$105:I$116,$C$105:$C$116)))) -> 94.93797418 | M102: =IF(MAX(C105:C116)-MIN(C105:C116)<5,AVERAGEIF(C105:C116,">0",M105:M116), IF(FORECAST($C102,M$105:M$116,$C$105:$C$116)<0,0, IF(FORECAST($C102,M$105:M$116,$C$105:$C$116)>100,100, FORECAST($C102,M$105:M$116,$C$105:$C$116)))) -> 3.034003214 | N102: =IF(MAX(C105:C116)-MIN(C105:C116)<5,AVERAGEIF(C105:C116,">0",N105:N116), IF(FORECAST($C102,N$105:N$116,$C$105:$C$116)<0,0, IF(FORECAST($C102,N$105:N$116,$C$105:$C$116)>100,100, FORECAST($C102,N$105:N$116,$C$105:$C$116)))) -> 99.16279679 | R102: =IF(MAX(C105:C116)-MIN(C105:C116)<5,AVERAGEIF(C105:C116,">0",R105:R116), IF(FORECAST($C102,R$105:R$116,$C$105:$C$116)<0,0, IF(FORECAST($C102,R$105:R$116,$C$105:$C$116)>100,100, FORECAST($C102,R$105:R$116,$C$105:$C$116)))) -> 1.092063085 | S102: =IF(MAX(C105:C116)-MIN(C105:C116)<5,AVERAGEIF(C105:C116,">0",S105:S116), IF(FORECAST($C102,S$105:S$116,$C$105:$C$116)<0,0, IF(FORECAST($C102,S$105:S$116,$C$105:$C$116)>100,100, FORECAST($C102,S$105:S$116,$C$105:$C$116)))) -> 100 | W102: =IF(MAX(C105:C116)-MIN(C105:C116)<5,AVERAGEIF(C105:C116,">0",W105:W116), IF(FORECAST($C102,W$105:W$116,$C$105:$C$116)<0,0, IF(FORECAST($C102,W$105:W$116,$C$105:$C$116)>100,100, FORECAST($C102,W$105:W$116,$C$105:$C$116)))) -> 0.1143173355 | X102: =IF(MAX(C105:C116)-MIN(C105:C116)<5,AVERAGEIF(C105:C116,">0",X105:X116), IF(FORECAST($C102,X$105:X$116,$C$105:$C$116)<0,0, IF(FORECAST($C102,X$105:X$116,$C$105:$C$116)>100,100, FORECAST($C102,X$105:X$116,$C$105:$C$116)))) -> 100 | AB102: =IF(MAX(C105:C116)-MIN(C105:C116)<5,AVERAGEIF(C105:C116,">0",AB105:AB116), IF(FORECAST($C102,AB$105:AB$116,$C$105:$C$116)<0,0, IF(FORECAST($C102,AB$105:AB$116,$C$105:$C$116)>100,100, FORECAST($C102,AB$105:AB$116,$C$105:$C$116)))) -> 0
B104: Survey | C104: Year | D104: Improved | E104: Basic | H104: Surface water | I104: Improved | J104: Basic | M104: Surface water | N104: Improved | O104: Basic | R104: Surface water | S104: Improved | T104: Basic | W104: Surface water | X104: Improved | Y104: Basic | AB104: Surface water
B105: WHS03 | C105: 2003 | D105: =IF(ISERROR(INDIRECT(CONCATENATE($B105,"!C16"))),"",INDIRECT(CONCATENATE($B105,"!C16"))) -> 77.94436029 | E105: =IF(ISERROR(INDIRECT(CONCATENATE($B105,"!C23"))),"",INDIRECT(CONCATENATE($B105,"!C23"))) -> 82.84892635 | H105: =IF(ISERROR(INDIRECT(CONCATENATE($B105,"!C21"))),"",INDIRECT(CONCATENATE($B105,"!C21"))) -> 11.22592213 | I105: =IF(ISERROR(INDIRECT(CONCATENATE($B105,"!D16"))),"",INDIRECT(CONCATENATE($B105,"!D16"))) -> 87.73269101 | J105: =IF(ISERROR(INDIRECT(CONCATENATE($B105,"!D23"))),"",INDIRECT(CONCATENATE($B105,"!D23"))) -> 94.43538669 | M105: =IF(ISERROR(INDIRECT(CONCATENATE($B105,"!D21"))),"",INDIRECT(CONCATENATE($B105,"!D21"))) -> 1.318418215 | N105: =IF(ISERROR(INDIRECT(CONCATENATE($B105,"!E16"))),"",INDIRECT(CONCATENATE($B105,"!E16"))) -> 88.39482325 | O105: =IF(ISERROR(INDIRECT(CONCATENATE($B105,"!E23"))),"",INDIRECT(CONCATENATE($B105,"!E23"))) -> 93.71313841 | R105: =IF(ISERROR(INDIRECT(CONCATENATE($B105,"!E21"))),"",INDIRECT(CONCATENATE($B105,"!E21"))) -> 1.830029733 | S105: =IF(ISERROR(INDIRECT(CONCATENATE($B105,"!F16"))),"",INDIRECT(CONCATENATE($B105,"!F16"))) -> 94.5768225 | T105: =IF(ISERROR(INDIRECT(CONCATENATE($B105,"!F23"))),"",INDIRECT(CONCATENATE($B105,"!F23"))) -> 90.81912165 | W105: =IF(ISERROR(INDIRECT(CONCATENATE($B105,"!F21"))),"",INDIRECT(CONCATENATE($B105,"!F21"))) -> 0 | X105: =IF(ISERROR(INDIRECT(CONCATENATE($B105,"!G16"))),"",INDIRECT(CONCATENATE($B105,"!G16"))) -> 96.16820928 | Y105: =IF(ISERROR(INDIRECT(CONCATENATE($B105,"!G23"))),"",INDIRECT(CONCATENATE($B105,"!G23"))) -> 100 | AB105: =IF(ISERROR(INDIRECT(CONCATENATE($B105,"!G221"))),"",INDIRECT(CONCATENATE($B105,"!G21"))) -> 0
B106: DHS16 | C106: 2016 | D106: 75.8162524 | E106: 89.65664166 | H106: 12.81393033 | I106: 93.97726975 | J106: 95.62011923 | M106: 2.805258547 | N106: 97.72706699 | O106: 98.38606415 | R106: 1.190458638 | S106: 99.64033765 | T106: 99.67358298 | W106: 0.09907502408 | X106: 99.94487881 | Y106: 99.84098978 | AB106: 0
D111: =IF(ISERROR(INDIRECT(CONCATENATE($B111,"!C16"))),"",INDIRECT(CONCATENATE($B111,"!C16"))) ->  | E111: =IF(ISERROR(INDIRECT(CONCATENATE($B111,"!C23"))),"",INDIRECT(CONCATENATE($B111,"!C23"))) ->  | H111: =IF(ISERROR(INDIRECT(CONCATENATE($B111,"!C21"))),"",INDIRECT(CONCATENATE($B111,"!C21"))) ->  | I111: =IF(ISERROR(INDIRECT(CONCATENATE($B111,"!D16"))),"",INDIRECT(CONCATENATE($B111,"!D16"))) ->  | J111: =IF(ISERROR(INDIRECT(CONCATENATE($B111,"!D23"))),"",INDIRECT(CONCATENATE($B111,"!D23"))) ->  | M111: =IF(ISERROR(INDIRECT(CONCATENATE($B111,"!D21"))),"",INDIRECT(CONCATENATE($B111,"!D21"))) ->  | N111: =IF(ISERROR(INDIRECT(CONCATENATE($B111,"!E16"))),"",INDIRECT(CONCATENATE($B111,"!E16"))) ->  | O111: =IF(ISERROR(INDIRECT(CONCATENATE($B111,"!E23"))),"",INDIRECT(CONCATENATE($B111,"!E23"))) ->  | R111: =IF(ISERROR(INDIRECT(CONCATENATE($B111,"!E21"))),"",INDIRECT(CONCATENATE($B111,"!E21"))) ->  | S111: =IF(ISERROR(INDIRECT(CONCATENATE($B111,"!F16"))),"",INDIRECT(CONCATENATE($B111,"!F16"))) ->  | T111: =IF(ISERROR(INDIRECT(CONCATENATE($B111,"!F23"))),"",INDIRECT(CONCATENATE($B111,"!F23"))) ->  | W111: =IF(ISERROR(INDIRECT(CONCATENATE($B111,"!F21"))),"",INDIRECT(CONCATENATE($B111,"!F21"))) ->  | X111: =IF(ISERROR(INDIRECT(CONCATENATE($B111,"!G16"))),"",INDIRECT(CONCATENATE($B111,"!G16"))) ->  | Y111: =IF(ISERROR(INDIRECT(CONCATENATE($B111,"!G23"))),"",INDIRECT(CONCATENATE($B111,"!G23"))) ->  | AB111: =IF(ISERROR(INDIRECT(CONCATENATE($B111,"!G221"))),"",INDIRECT(CONCATENATE($B111,"!G21"))) -> 
D112: =IF(ISERROR(INDIRECT(CONCATENATE($B112,"!C16"))),"",INDIRECT(CONCATENATE($B112,"!C16"))) ->  | E112: =IF(ISERROR(INDIRECT(CONCATENATE($B112,"!C23"))),"",INDIRECT(CONCATENATE($B112,"!C23"))) ->  | H112: =IF(ISERROR(INDIRECT(CONCATENATE($B112,"!C21"))),"",INDIRECT(CONCATENATE($B112,"!C21"))) ->  | I112: =IF(ISERROR(INDIRECT(CONCATENATE($B112,"!D16"))),"",INDIRECT(CONCATENATE($B112,"!D16"))) ->  | J112: =IF(ISERROR(INDIRECT(CONCATENATE($B112,"!D23"))),"",INDIRECT(CONCATENATE($B112,"!D23"))) ->  | M112: =IF(ISERROR(INDIRECT(CONCATENATE($B112,"!D21"))),"",INDIRECT(CONCATENATE($B112,"!D21"))) ->  | N112: =IF(ISERROR(INDIRECT(CONCATENATE($B112,"!E16"))),"",INDIRECT(CONCATENATE($B112,"!E16"))) ->  | O112: =IF(ISERROR(INDIRECT(CONCATENATE($B112,"!E23"))),"",INDIRECT(CONCATENATE($B112,"!E23"))) ->  | R112: =IF(ISERROR(INDIRECT(CONCATENATE($B112,"!E21"))),"",INDIRECT(CONCATENATE($B112,"!E21"))) ->  | S112: =IF(ISERROR(INDIRECT(CONCATENATE($B112,"!F16"))),"",INDIRECT(CONCATENATE($B112,"!F16"))) ->  | T112: =IF(ISERROR(INDIRECT(CONCATENATE($B112,"!F23"))),"",INDIRECT(CONCATENATE($B112,"!F23"))) ->  | W112: =IF(ISERROR(INDIRECT(CONCATENATE($B112,"!F21"))),"",INDIRECT(CONCATENATE($B112,"!F21"))) ->  | X112: =IF(ISERROR(INDIRECT(CONCATENATE($B112,"!G16"))),"",INDIRECT(CONCATENATE($B112,"!G16"))) ->  | Y112: =IF(ISERROR(INDIRECT(CONCATENATE($B112,"!G23"))),"",INDIRECT(CONCATENATE($B112,"!G23"))) ->  | AB112: =IF(ISERROR(INDIRECT(CONCATENATE($B112,"!G221"))),"",INDIRECT(CONCATENATE($B112,"!G21"))) -> 
B118: =CONCATENATE("National use of drinking water sources, ",C99,"–",C100) -> National use of drinking water sources, 2000–2020 | S118: Data points used for regression
E153: =IF(ISERROR(INDIRECT(CONCATENATE($B153,"!M18"))),"",INDIRECT(CONCATENATE($B153,"!M18"))) ->  | F153: =IF(ISERROR(INDIRECT(CONCATENATE($B153,"!M19"))),"",INDIRECT(CONCATENATE($B153,"!M19"))) ->  | G153: =IF(ISERROR(INDIRECT(CONCATENATE($B153,"!M20"))),"",INDIRECT(CONCATENATE($B153,"!M20"))) ->  | H153: =IF(ISERROR(INDIRECT(CONCATENATE($B153,"!M21"))),"",INDIRECT(CONCATENATE($B153,"!M21"))) ->  | J153: =IF(ISERROR(INDIRECT(CONCATENATE($B153,"!N18"))),"",INDIRECT(CONCATENATE($B153,"!N18"))) ->  | K153: =IF(ISERROR(INDIRECT(CONCATENATE($B153,"!N19"))),"",INDIRECT(CONCATENATE($B153,"!N19"))) ->  | L153: =IF(ISERROR(INDIRECT(CONCATENATE($B153,"!N20"))),"",INDIRECT(CONCATENATE($B153,"!N20"))) ->  | M153: =IF(ISERROR(INDIRECT(CONCATENATE($B153,"!N21"))),"",INDIRECT(CONCATENATE($B153,"!N21"))) ->  | O153: =IF(ISERROR(INDIRECT(CONCATENATE($B153,"!O18"))),"",INDIRECT(CONCATENATE($B153,"!O18"))) ->  | P153: =IF(ISERROR(INDIRECT(CONCATENATE($B153,"!O19"))),"",INDIRECT(CONCATENATE($B153,"!O19"))) ->  | Q153: =IF(ISERROR(INDIRECT(CONCATENATE($B153,"!O20"))),"",INDIRECT(CONCATENATE($B153,"!O20"))) ->  | R153: =IF(ISERROR(INDIRECT(CONCATENATE($B153,"!O21"))),"",INDIRECT(CONCATENATE($B153,"!O21"))) ->  | T153: =IF(ISERROR(INDIRECT(CONCATENATE($B153,"!P18"))),"",INDIRECT(CONCATENATE($B153,"!P18"))) ->  | U153: =IF(ISERROR(INDIRECT(CONCATENATE($B153,"!P19"))),"",INDIRECT(CONCATENATE($B153,"!P19"))) ->  | V153: =IF(ISERROR(INDIRECT(CONCATENATE($B153,"!P20"))),"",INDIRECT(CONCATENATE($B153,"!P20"))) ->  | W153: =IF(ISERROR(INDIRECT(CONCATENATE($B153,"!P21"))),"",INDIRECT(CONCATENATE($B153,"!P21"))) ->  | Y153: =IF(ISERROR(INDIRECT(CONCATENATE($B153,"!Q18"))),"",INDIRECT(CONCATENATE($B153,"!Q18"))) ->  | Z153: =IF(ISERROR(INDIRECT(CONCATENATE($B153,"!Q19"))),"",INDIRECT(CONCATENATE($B153,"!Q19"))) ->  | AA153: =IF(ISERROR(INDIRECT(CONCATENATE($B153,"!Q20"))),"",INDIRECT(CONCATENATE($B153,"!Q20"))) ->  | AB153: =IF(ISERROR(INDIRECT(CONCATENATE($B153,"!Q21"))),"",INDIRECT(CONCATENATE($B153,"!Q1"))) -> 
A197: URBAN | D197: Poorest | I197: Poor | N197: Middle | S197: Rich | X197: Richest
D198: Improved | E198: Basic | F198: Limited | G198: Unimproved | H198: Surface water | I198: Improved | J198: Basic | K198: Limited | L198: Unimproved | M198: Surface water | N198: Improved | O198: Basic | P198: Limited | Q198: Unimproved | R198: Surface water | S198: Improved | T198: Basic | U198: Limited | V198: Unimproved | W198: Surface water | X198: Improved | Y198: Basic | Z198: Limited | AA198: Unimproved | AB198: Surface water
A199: Forecast period: | C199: =MinBase(C205:C216) -> 2000 | D199: =IF((D201+H201)>100,D201*100/(D201+H201),D201) -> 92.80936747 | E199: =D199*AVERAGEIF(E205:E216,">0")/100 -> 87.64369783 | F199: =D199*(100-AVERAGEIF(E205:E216,">0"))/100 -> 5.165669637 | G199: =100-(E199+F199+H199) -> 7.190632531 | H199: =IF((D201+H201)>100,H201*100/(D201+H201),H201) -> 0 | I199: =IF((I201+M201)>100,I201*100/(I201+M201),I201) -> 88.09265815 | J199: =I199*AVERAGEIF(J205:J216,">0")/100 -> 85.17065992 | K199: =I199*(100-AVERAGEIF(J205:J216,">0"))/100 -> 2.921998226 | L199: =100-(J199+K199+M199) -> 11.90734185 | M199: =IF((I201+M201)>100,M201*100/(I201+M201),M201) -> 0 | N199: =IF((N201+R201)>100,N201*100/(N201+R201),N201) -> 86.34196723 | O199: =N199*AVERAGEIF(O205:O216,">0")/100 -> 86.26643435 | P199: =N199*(100-AVERAGEIF(O205:O216,">0"))/100 -> 0.07553287328 | Q199: =100-(O199+P199+R199) -> 13.65803277 | R199: =IF((N201+R201)>100,R201*100/(N201+R201),R201) -> 0 | S199: =IF((S201+W201)>100,S201*100/(S201+W201),S201) -> 94.72346539 | T199: =S199*AVERAGEIF(T205:T216,">0")/100 -> 94.72346539 | U199: =S199*(100-AVERAGEIF(T205:T216,">0"))/100 -> 0 | V199: =100-(T199+U199+W199) -> 5.276534614 | W199: =IF((S201+W201)>100,W201*100/(S201+W201),W201) -> 0 | X199: =IF((X201+AB201)>100,X201*100/(X201+AB201),X201) -> 96.73067563 | Y199: =X199*AVERAGEIF(Y205:Y216,">0")/100 -> 96.63907351 | Z199: =X199*(100-AVERAGEIF(Y205:Y216,">0"))/100 -> 0.09160211689 | AA199: =100-(Y199+Z199+AB199) -> 3.269324369 | AB199: =IF((X201+AB201)>100,AB201*100/(X201+AB201),AB201) -> 0
C200: =MaxTarget(C205:C216) -> 2020 | D200: =IF((D202+H202)>100,D202*100/(D202+H202),D202) -> 99.04851106 | E200: =D200*AVERAGEIF(E205:E216,">0")/100 -> 93.5355774 | F200: =D200*(100-AVERAGEIF(E205:E216,">0"))/100 -> 5.512933663 | G200: =100-(E200+F200+H200) -> 0 | H200: =IF((D202+H202)>100,H202*100/(D202+H202),H202) -> 0.9514889395 | I200: =IF((I202+M202)>100,I202*100/(I202+M202),I202) -> 100 | J200: =I200*AVERAGEIF(J205:J216,">0")/100 -> 96.68304001 | K200: =I200*(100-AVERAGEIF(J205:J216,">0"))/100 -> 3.316959991 | L200: =100-(J200+K200+M200) -> 0 | M200: =IF((I202+M202)>100,M202*100/(I202+M202),M202) -> 0 | N200: =IF((N202+R202)>100,N202*100/(N202+R202),N202) -> 99.97632721 | O200: =N200*AVERAGEIF(O205:O216,">0")/100 -> 99.88886685 | P200: =N200*(100-AVERAGEIF(O205:O216,">0"))/100 -> 0.08746035672 | Q200: =100-(O200+P200+R200) -> 0 | R200: =IF((N202+R202)>100,R202*100/(N202+R202),R202) -> 0.02367279224 | S200: =IF((S202+W202)>100,S202*100/(S202+W202),S202) -> 100 | T200: =S200*AVERAGEIF(T205:T216,">0")/100 -> 100 | U200: =S200*(100-AVERAGEIF(T205:T216,">0"))/100 -> 0 | V200: =100-(T200+U200+W200) -> 0 | W200: =IF((S202+W202)>100,W202*100/(S202+W202),W202) -> 0 | X200: =IF((X202+AB202)>100,X202*100/(X202+AB202),X202) -> 100 | Y200: =X200*AVERAGEIF(Y205:Y216,">0")/100 -> 99.90530189 | Z200: =X200*(100-AVERAGEIF(Y205:Y216,">0"))/100 -> 0.09469810512 | AA200: =100-(Y200+Z200+AB200) -> 0 | AB200: =IF((X202+AB202)>100,AB202*100/(X202+AB202),AB202) -> 0
A201: Regression period: | C201: =MinRegYear(C199,C205:C216) -> 2001 | D201: =IF(MAX(C205:C216)-MIN(C205:C216)<5,AVERAGEIF(C205:C216,">0",D205:D216), IF(FORECAST($C201,D$205:D$216,$C$205:$C$216)<0,0, IF(FORECAST($C201,D$205:D$216,$C$205:$C$216)>100,100, FORECAST($C201,D$205:D$216,$C$205:$C$216)))) -> 92.80936747 | H201: =IF(MAX(C205:C216)-MIN(C205:C216)<5,AVERAGEIF(C205:C216,">0",H205:H216), IF(FORECAST($C201,H$205:H$216,$C$205:$C$216)<0,0, IF(FORECAST($C201,H$205:H$216,$C$205:$C$216)>100,100, FORECAST($C201,H$205:H$216,$C$205:$C$216)))) -> 0 | I201: =IF(MAX(C205:C216)-MIN(C205:C216)<5,AVERAGEIF(C205:C216,">0",I205:I216), IF(FORECAST($C201,I$205:I$216,$C$205:$C$216)<0,0, IF(FORECAST($C201,I$205:I$216,$C$205:$C$216)>100,100, FORECAST($C201,I$205:I$216,$C$205:$C$216)))) -> 88.09265815 | M201: =IF(MAX(C205:C216)-MIN(C205:C216)<5,AVERAGEIF(C205:C216,">0",M205:M216), IF(FORECAST($C201,M$205:M$216,$C$205:$C$216)<0,0, IF(FORECAST($C201,M$205:M$216,$C$205:$C$216)>100,100, FORECAST($C201,M$205:M$216,$C$205:$C$216)))) -> 0 | N201: =IF(MAX(C205:C216)-MIN(C205:C216)<5,AVERAGEIF(C205:C216,">0",N205:N216), IF(FORECAST($C201,N$205:N$216,$C$205:$C$216)<0,0, IF(FORECAST($C201,N$205:N$216,$C$205:$C$216)>100,100, FORECAST($C201,N$205:N$216,$C$205:$C$216)))) -> 86.34196723 | R201: =IF(MAX(C205:C216)-MIN(C205:C216)<5,AVERAGEIF(C205:C216,">0",R205:R216), IF(FORECAST($C201,R$205:R$216,$C$205:$C$216)<0,0, IF(FORECAST($C201,R$205:R$216,$C$205:$C$216)>100,100, FORECAST($C201,R$205:R$216,$C$205:$C$216)))) -> 0 | S201: =IF(MAX(C205:C216)-MIN(C205:C216)<5,AVERAGEIF(C205:C216,">0",S205:S216), IF(FORECAST($C201,S$205:S$216,$C$205:$C$216)<0,0, IF(FORECAST($C201,S$205:S$216,$C$205:$C$216)>100,100, FORECAST($C201,S$205:S$216,$C$205:$C$216)))) -> 94.72346539 | W201: =IF(MAX(C205:C216)-MIN(C205:C216)<5,AVERAGEIF(C205:C216,">0",W205:W216), IF(FORECAST($C201,W$205:W$216,$C$205:$C$216)<0,0, IF(FORECAST($C201,W$205:W$216,$C$205:$C$216)>100,100, FORECAST($C201,W$205:W$216,$C$205:$C$216)))) -> 0 | X201: =IF(MAX(C205:C216)-MIN(C205:C216)<5,AVERAGEIF(C205:C216,">0",X205:X216), IF(FORECAST($C201,X$205:X$216,$C$205:$C$216)<0,0, IF(FORECAST($C201,X$205:X$216,$C$205:$C$216)>100,100, FORECAST($C201,X$205:X$216,$C$205:$C$216)))) -> 96.73067563 | AB201: =IF(MAX(C205:C216)-MIN(C205:C216)<5,AVERAGEIF(C205:C216,">0",AB205:AB216), IF(FORECAST($C201,AB$205:AB$216,$C$205:$C$216)<0,0, IF(FORECAST($C201,AB$205:AB$216,$C$205:$C$216)>100,100, FORECAST($C201,AB$205:AB$216,$C$205:$C$216)))) -> 0
C202: =MaxRegYear(C200,C205:C216) -> 2018 | D202: =IF(MAX(C205:C216)-MIN(C205:C216)<5,AVERAGEIF(C205:C216,">0",D205:D216), IF(FORECAST($C202,D$205:D$216,$C$205:$C$216)<0,0, IF(FORECAST($C202,D$205:D$216,$C$205:$C$216)>100,100, FORECAST($C202,D$205:D$216,$C$205:$C$216)))) -> 99.5831011 | H202: =IF(MAX(C205:C216)-MIN(C205:C216)<5,AVERAGEIF(C205:C216,">0",H205:H216), IF(FORECAST($C202,H$205:H$216,$C$205:$C$216)<0,0, IF(FORECAST($C202,H$205:H$216,$C$205:$C$216)>100,100, FORECAST($C202,H$205:H$216,$C$205:$C$216)))) -> 0.9566243676 | I202: =IF(MAX(C205:C216)-MIN(C205:C216)<5,AVERAGEIF(C205:C216,">0",I205:I216), IF(FORECAST($C202,I$205:I$216,$C$205:$C$216)<0,0, IF(FORECAST($C202,I$205:I$216,$C$205:$C$216)>100,100, FORECAST($C202,I$205:I$216,$C$205:$C$216)))) -> 100 | M202: =IF(MAX(C205:C216)-MIN(C205:C216)<5,AVERAGEIF(C205:C216,">0",M205:M216), IF(FORECAST($C202,M$205:M$216,$C$205:$C$216)<0,0, IF(FORECAST($C202,M$205:M$216,$C$205:$C$216)>100,100, FORECAST($C202,M$205:M$216,$C$205:$C$216)))) -> 0 | N202: =IF(MAX(C205:C216)-MIN(C205:C216)<5,AVERAGEIF(C205:C216,">0",N205:N216), IF(FORECAST($C202,N$205:N$216,$C$205:$C$216)<0,0, IF(FORECAST($C202,N$205:N$216,$C$205:$C$216)>100,100, FORECAST($C202,N$205:N$216,$C$205:$C$216)))) -> 100 | R202: =IF(MAX(C205:C216)-MIN(C205:C216)<5,AVERAGEIF(C205:C216,">0",R205:R216), IF(FORECAST($C202,R$205:R$216,$C$205:$C$216)<0,0, IF(FORECAST($C202,R$205:R$216,$C$205:$C$216)>100,100, FORECAST($C202,R$205:R$216,$C$205:$C$216)))) -> 0.02367839758 | S202: =IF(MAX(C205:C216)-MIN(C205:C216)<5,AVERAGEIF(C205:C216,">0",S205:S216), IF(FORECAST($C202,S$205:S$216,$C$205:$C$216)<0,0, IF(FORECAST($C202,S$205:S$216,$C$205:$C$216)>100,100, FORECAST($C202,S$205:S$216,$C$205:$C$216)))) -> 100 | W202: =IF(MAX(C205:C216)-MIN(C205:C216)<5,AVERAGEIF(C205:C216,">0",W205:W216), IF(FORECAST($C202,W$205:W$216,$C$205:$C$216)<0,0, IF(FORECAST($C202,W$205:W$216,$C$205:$C$216)>100,100, FORECAST($C202,W$205:W$216,$C$205:$C$216)))) -> 0 | X202: =IF(MAX(C205:C216)-MIN(C205:C216)<5,AVERAGEIF(C205:C216,">0",X205:X216), IF(FORECAST($C202,X$205:X$216,$C$205:$C$216)<0,0, IF(FORECAST($C202,X$205:X$216,$C$205:$C$216)>100,100, FORECAST($C202,X$205:X$216,$C$205:$C$216)))) -> 100 | AB202: =IF(MAX(C205:C216)-MIN(C205:C216)<5,AVERAGEIF(C205:C216,">0",AB205:AB216), IF(FORECAST($C202,AB$205:AB$216,$C$205:$C$216)<0,0, IF(FORECAST($C202,AB$205:AB$216,$C$205:$C$216)>100,100, FORECAST($C202,AB$205:AB$216,$C$205:$C$216)))) -> 0
B204: Survey | C204: Year | D204: Improved | E204: Basic | H204: Surface water | I204: Improved | J204: Basic | M204: Surface water | N204: Improved | O204: Basic | R204: Surface water | S204: Improved | T204: Basic | W204: Surface water | X204: Improved | Y204: Basic | AB204: Surface water
B205: WHS03 | C205: 2003 | D205: =IF(ISERROR(INDIRECT(CONCATENATE($B205,"!H16"))),"",INDIRECT(CONCATENATE($B205,"!H16"))) -> 93.60627731 | E205: =IF(ISERROR(INDIRECT(CONCATENATE($B205,"!H23"))),"",INDIRECT(CONCATENATE($B205,"!H23"))) -> 92.09294443 | H205: =IF(ISERROR(INDIRECT(CONCATENATE($B205,"!H21"))),"",INDIRECT(CONCATENATE($B205,"!H21"))) -> 0 | I205: =IF(ISERROR(INDIRECT(CONCATENATE($B205,"!I16"))),"",INDIRECT(CONCATENATE($B205,"!I16"))) -> 89.60238792 | J205: =IF(ISERROR(INDIRECT(CONCATENATE($B205,"!I23"))),"",INDIRECT(CONCATENATE($B205,"!I23"))) -> 93.47183332 | M205: =IF(ISERROR(INDIRECT(CONCATENATE($B205,"!I21"))),"",INDIRECT(CONCATENATE($B205,"!I21"))) -> 0 | N205: =IF(ISERROR(INDIRECT(CONCATENATE($B205,"!J16"))),"",INDIRECT(CONCATENATE($B205,"!J16"))) -> 88.15925556 | O205: =IF(ISERROR(INDIRECT(CONCATENATE($B205,"!J23"))),"",INDIRECT(CONCATENATE($B205,"!J23"))) -> 100 | R205: =IF(ISERROR(INDIRECT(CONCATENATE($B205,"!J21"))),"",INDIRECT(CONCATENATE($B205,"!J21"))) -> 0 | S205: =IF(ISERROR(INDIRECT(CONCATENATE($B205,"!K16"))),"",INDIRECT(CONCATENATE($B205,"!K16"))) -> 95.41766498 | T205: =IF(ISERROR(INDIRECT(CONCATENATE($B205,"!K23"))),"",INDIRECT(CONCATENATE($B205,"!K23"))) -> 100 | W205: =IF(ISERROR(INDIRECT(CONCATENATE($B205,"!K21"))),"",INDIRECT(CONCATENATE($B205,"!K21"))) -> 0 | X205: =IF(ISERROR(INDIRECT(CONCATENATE($B205,"!L16"))),"",INDIRECT(CONCATENATE($B205,"!L16"))) -> 97.16658555 | Y205: =IF(ISERROR(INDIRECT(CONCATENATE($B205,"!L23"))),"",INDIRECT(CONCATENATE($B205,"!L23"))) -> 100 | AB205: =IF(ISERROR(INDIRECT(CONCATENATE($B205,"!L221"))),"",INDIRECT(CONCATENATE($B205,"!L21"))) -> 0
B206: DHS16 | C206: 2016 | D206: 98.78619126 | E206: 96.77527054 | H206: 0.8290744519 | I206: 99.41563144 | J206: 99.8942467 | M206: 0 | N206: 99.97162976 | O206: 99.82503787 | R206: 0.0205212779 | S206: 99.92996231 | T206: 100 | W206: 0 | X206: 100 | Y206: 99.81060379 | AB206: 0
B218: =CONCATENATE("Urban use of drinking water sources, ",C199,"–",C200) -> Urban use of drinking water sources, 2000–2020 | S218: Data points used for regression
E253: =IF(ISERROR(INDIRECT(CONCATENATE($B253,"!M18"))),"",INDIRECT(CONCATENATE($B253,"!M18"))) ->  | F253: =IF(ISERROR(INDIRECT(CONCATENATE($B253,"!M19"))),"",INDIRECT(CONCATENATE($B253,"!M19"))) ->  | G253: =IF(ISERROR(INDIRECT(CONCATENATE($B253,"!M20"))),"",INDIRECT(CONCATENATE($B253,"!M20"))) ->  | H253: =IF(ISERROR(INDIRECT(CONCATENATE($B253,"!M21"))),"",INDIRECT(CONCATENATE($B253,"!M21"))) ->  | J253: =IF(ISERROR(INDIRECT(CONCATENATE($B253,"!N18"))),"",INDIRECT(CONCATENATE($B253,"!N18"))) ->  | K253: =IF(ISERROR(INDIRECT(CONCATENATE($B253,"!N19"))),"",INDIRECT(CONCATENATE($B253,"!N19"))) ->  | L253: =IF(ISERROR(INDIRECT(CONCATENATE($B253,"!N20"))),"",INDIRECT(CONCATENATE($B253,"!N20"))) ->  | M253: =IF(ISERROR(INDIRECT(CONCATENATE($B253,"!N21"))),"",INDIRECT(CONCATENATE($B253,"!N21"))) ->  | O253: =IF(ISERROR(INDIRECT(CONCATENATE($B253,"!O18"))),"",INDIRECT(CONCATENATE($B253,"!O18"))) ->  | P253: =IF(ISERROR(INDIRECT(CONCATENATE($B253,"!O19"))),"",INDIRECT(CONCATENATE($B253,"!O19"))) ->  | Q253: =IF(ISERROR(INDIRECT(CONCATENATE($B253,"!O20"))),"",INDIRECT(CONCATENATE($B253,"!O20"))) ->  | R253: =IF(ISERROR(INDIRECT(CONCATENATE($B253,"!O21"))),"",INDIRECT(CONCATENATE($B253,"!O21"))) ->  | T253: =IF(ISERROR(INDIRECT(CONCATENATE($B253,"!P18"))),"",INDIRECT(CONCATENATE($B253,"!P18"))) ->  | U253: =IF(ISERROR(INDIRECT(CONCATENATE($B253,"!P19"))),"",INDIRECT(CONCATENATE($B253,"!P19"))) ->  | V253: =IF(ISERROR(INDIRECT(CONCATENATE($B253,"!P20"))),"",INDIRECT(CONCATENATE($B253,"!P20"))) ->  | W253: =IF(ISERROR(INDIRECT(CONCATENATE($B253,"!P21"))),"",INDIRECT(CONCATENATE($B253,"!P21"))) ->  | Y253: =IF(ISERROR(INDIRECT(CONCATENATE($B253,"!Q18"))),"",INDIRECT(CONCATENATE($B253,"!Q18"))) ->  | Z253: =IF(ISERROR(INDIRECT(CONCATENATE($B253,"!Q19"))),"",INDIRECT(CONCATENATE($B253,"!Q19"))) ->  | AA253: =IF(ISERROR(INDIRECT(CONCATENATE($B253,"!Q20"))),"",INDIRECT(CONCATENATE($B253,"!Q20"))) ->  | AB253: =IF(ISERROR(INDIRECT(CONCATENATE($B253,"!Q21"))),"",INDIRECT(CONCATENATE($B253,"!Q1"))) -> 
E254: =IF(ISERROR(INDIRECT(CONCATENATE($B254,"!M18"))),"",INDIRECT(CONCATENATE($B254,"!M18"))) ->  | F254: =IF(ISERROR(INDIRECT(CONCATENATE($B254,"!M19"))),"",INDIRECT(CONCATENATE($B254,"!M19"))) ->  | G254: =IF(ISERROR(INDIRECT(CONCATENATE($B254,"!M20"))),"",INDIRECT(CONCATENATE($B254,"!M20"))) ->  | H254: =IF(ISERROR(INDIRECT(CONCATENATE($B254,"!M21"))),"",INDIRECT(CONCATENATE($B254,"!M21"))) ->  | J254: =IF(ISERROR(INDIRECT(CONCATENATE($B254,"!N18"))),"",INDIRECT(CONCATENATE($B254,"!N18"))) ->  | K254: =IF(ISERROR(INDIRECT(CONCATENATE($B254,"!N19"))),"",INDIRECT(CONCATENATE($B254,"!N19"))) ->  | L254: =IF(ISERROR(INDIRECT(CONCATENATE($B254,"!N20"))),"",INDIRECT(CONCATENATE($B254,"!N20"))) ->  | M254: =IF(ISERROR(INDIRECT(CONCATENATE($B254,"!N21"))),"",INDIRECT(CONCATENATE($B254,"!N21"))) ->  | O254: =IF(ISERROR(INDIRECT(CONCATENATE($B254,"!O18"))),"",INDIRECT(CONCATENATE($B254,"!O18"))) ->  | P254: =IF(ISERROR(INDIRECT(CONCATENATE($B254,"!O19"))),"",INDIRECT(CONCATENATE($B254,"!O19"))) ->  | Q254: =IF(ISERROR(INDIRECT(CONCATENATE($B254,"!O20"))),"",INDIRECT(CONCATENATE($B254,"!O20"))) ->  | R254: =IF(ISERROR(INDIRECT(CONCATENATE($B254,"!O21"))),"",INDIRECT(CONCATENATE($B254,"!O21"))) ->  | T254: =IF(ISERROR(INDIRECT(CONCATENATE($B254,"!P18"))),"",INDIRECT(CONCATENATE($B254,"!P18"))) ->  | U254: =IF(ISERROR(INDIRECT(CONCATENATE($B254,"!P19"))),"",INDIRECT(CONCATENATE($B254,"!P19"))) ->  | V254: =IF(ISERROR(INDIRECT(CONCATENATE($B254,"!P20"))),"",INDIRECT(CONCATENATE($B254,"!P20"))) ->  | W254: =IF(ISERROR(INDIRECT(CONCATENATE($B254,"!P21"))),"",INDIRECT(CONCATENATE($B254,"!P21"))) ->  | Y254: =IF(ISERROR(INDIRECT(CONCATENATE($B254,"!Q18"))),"",INDIRECT(CONCATENATE($B254,"!Q18"))) ->  | Z254: =IF(ISERROR(INDIRECT(CONCATENATE($B254,"!Q19"))),"",INDIRECT(CONCATENATE($B254,"!Q19"))) ->  | AA254: =IF(ISERROR(INDIRECT(CONCATENATE($B254,"!Q20"))),"",INDIRECT(CONCATENATE($B254,"!Q20"))) ->  | AB254: =IF(ISERROR(INDIRECT(CONCATENATE($B254,"!Q21"))),"",INDIRECT(CONCATENATE($B254,"!Q1"))) -> 
E255: =IF(ISERROR(INDIRECT(CONCATENATE($B255,"!M18"))),"",INDIRECT(CONCATENATE($B255,"!M18"))) ->  | F255: =IF(ISERROR(INDIRECT(CONCATENATE($B255,"!M19"))),"",INDIRECT(CONCATENATE($B255,"!M19"))) ->  | G255: =IF(ISERROR(INDIRECT(CONCATENATE($B255,"!M20"))),"",INDIRECT(CONCATENATE($B255,"!M20"))) ->  | H255: =IF(ISERROR(INDIRECT(CONCATENATE($B255,"!M21"))),"",INDIRECT(CONCATENATE($B255,"!M21"))) ->  | J255: =IF(ISERROR(INDIRECT(CONCATENATE($B255,"!N18"))),"",INDIRECT(CONCATENATE($B255,"!N18"))) ->  | K255: =IF(ISERROR(INDIRECT(CONCATENATE($B255,"!N19"))),"",INDIRECT(CONCATENATE($B255,"!N19"))) ->  | L255: =IF(ISERROR(INDIRECT(CONCATENATE($B255,"!N20"))),"",INDIRECT(CONCATENATE($B255,"!N20"))) ->  | M255: =IF(ISERROR(INDIRECT(CONCATENATE($B255,"!N21"))),"",INDIRECT(CONCATENATE($B255,"!N21"))) ->  | O255: =IF(ISERROR(INDIRECT(CONCATENATE($B255,"!O18"))),"",INDIRECT(CONCATENATE($B255,"!O18"))) ->  | P255: =IF(ISERROR(INDIRECT(CONCATENATE($B255,"!O19"))),"",INDIRECT(CONCATENATE($B255,"!O19"))) ->  | Q255: =IF(ISERROR(INDIRECT(CONCATENATE($B255,"!O20"))),"",INDIRECT(CONCATENATE($B255,"!O20"))) ->  | R255: =IF(ISERROR(INDIRECT(CONCATENATE($B255,"!O21"))),"",INDIRECT(CONCATENATE($B255,"!O21"))) ->  | T255: =IF(ISERROR(INDIRECT(CONCATENATE($B255,"!P18"))),"",INDIRECT(CONCATENATE($B255,"!P18"))) ->  | U255: =IF(ISERROR(INDIRECT(CONCATENATE($B255,"!P19"))),"",INDIRECT(CONCATENATE($B255,"!P19"))) ->  | V255: =IF(ISERROR(INDIRECT(CONCATENATE($B255,"!P20"))),"",INDIRECT(CONCATENATE($B255,"!P20"))) ->  | W255: =IF(ISERROR(INDIRECT(CONCATENATE($B255,"!P21"))),"",INDIRECT(CONCATENATE($B255,"!P21"))) ->  | Y255: =IF(ISERROR(INDIRECT(CONCATENATE($B255,"!Q18"))),"",INDIRECT(CONCATENATE($B255,"!Q18"))) ->  | Z255: =IF(ISERROR(INDIRECT(CONCATENATE($B255,"!Q19"))),"",INDIRECT(CONCATENATE($B255,"!Q19"))) ->  | AA255: =IF(ISERROR(INDIRECT(CONCATENATE($B255,"!Q20"))),"",INDIRECT(CONCATENATE($B255,"!Q20"))) ->  | AB255: =IF(ISERROR(INDIRECT(CONCATENATE($B255,"!Q21"))),"",INDIRECT(CONCATENATE($B255,"!Q1"))) -> 
E256: =IF(ISERROR(INDIRECT(CONCATENATE($B256,"!M18"))),"",INDIRECT(CONCATENATE($B256,"!M18"))) ->  | F256: =IF(ISERROR(INDIRECT(CONCATENATE($B256,"!M19"))),"",INDIRECT(CONCATENATE($B256,"!M19"))) ->  | G256: =IF(ISERROR(INDIRECT(CONCATENATE($B256,"!M20"))),"",INDIRECT(CONCATENATE($B256,"!M20"))) ->  | H256: =IF(ISERROR(INDIRECT(CONCATENATE($B256,"!M21"))),"",INDIRECT(CONCATENATE($B256,"!M21"))) ->  | J256: =IF(ISERROR(INDIRECT(CONCATENATE($B256,"!N18"))),"",INDIRECT(CONCATENATE($B256,"!N18"))) ->  | K256: =IF(ISERROR(INDIRECT(CONCATENATE($B256,"!N19"))),"",INDIRECT(CONCATENATE($B256,"!N19"))) ->  | L256: =IF(ISERROR(INDIRECT(CONCATENATE($B256,"!N20"))),"",INDIRECT(CONCATENATE($B256,"!N20"))) ->  | M256: =IF(ISERROR(INDIRECT(CONCATENATE($B256,"!N21"))),"",INDIRECT(CONCATENATE($B256,"!N21"))) ->  | O256: =IF(ISERROR(INDIRECT(CONCATENATE($B256,"!O18"))),"",INDIRECT(CONCATENATE($B256,"!O18"))) ->  | P256: =IF(ISERROR(INDIRECT(CONCATENATE($B256,"!O19"))),"",INDIRECT(CONCATENATE($B256,"!O19"))) ->  | Q256: =IF(ISERROR(INDIRECT(CONCATENATE($B256,"!O20"))),"",INDIRECT(CONCATENATE($B256,"!O20"))) ->  | R256: =IF(ISERROR(INDIRECT(CONCATENATE($B256,"!O21"))),"",INDIRECT(CONCATENATE($B256,"!O21"))) ->  | T256: =IF(ISERROR(INDIRECT(CONCATENATE($B256,"!P18"))),"",INDIRECT(CONCATENATE($B256,"!P18"))) ->  | U256: =IF(ISERROR(INDIRECT(CONCATENATE($B256,"!P19"))),"",INDIRECT(CONCATENATE($B256,"!P19"))) ->  | V256: =IF(ISERROR(INDIRECT(CONCATENATE($B256,"!P20"))),"",INDIRECT(CONCATENATE($B256,"!P20"))) ->  | W256: =IF(ISERROR(INDIRECT(CONCATENATE($B256,"!P21"))),"",INDIRECT(CONCATENATE($B256,"!P21"))) ->  | Y256: =IF(ISERROR(INDIRECT(CONCATENATE($B256,"!Q18"))),"",INDIRECT(CONCATENATE($B256,"!Q18"))) ->  | Z256: =IF(ISERROR(INDIRECT(CONCATENATE($B256,"!Q19"))),"",INDIRECT(CONCATENATE($B256,"!Q19"))) ->  | AA256: =IF(ISERROR(INDIRECT(CONCATENATE($B256,"!Q20"))),"",INDIRECT(CONCATENATE($B256,"!Q20"))) ->  | AB256: =IF(ISERROR(INDIRECT(CONCATENATE($B256,"!Q21"))),"",INDIRECT(CONCATENATE($B256,"!Q1"))) -> 
E257: =IF(ISERROR(INDIRECT(CONCATENATE($B257,"!M18"))),"",INDIRECT(CONCATENATE($B257,"!M18"))) ->  | F257: =IF(ISERROR(INDIRECT(CONCATENATE($B257,"!M19"))),"",INDIRECT(CONCATENATE($B257,"!M19"))) ->  | G257: =IF(ISERROR(INDIRECT(CONCATENATE($B257,"!M20"))),"",INDIRECT(CONCATENATE($B257,"!M20"))) ->  | H257: =IF(ISERROR(INDIRECT(CONCATENATE($B257,"!M21"))),"",INDIRECT(CONCATENATE($B257,"!M21"))) ->  | J257: =IF(ISERROR(INDIRECT(CONCATENATE($B257,"!N18"))),"",INDIRECT(CONCATENATE($B257,"!N18"))) ->  | K257: =IF(ISERROR(INDIRECT(CONCATENATE($B257,"!N19"))),"",INDIRECT(CONCATENATE($B257,"!N19"))) ->  | L257: =IF(ISERROR(INDIRECT(CONCATENATE($B257,"!N20"))),"",INDIRECT(CONCATENATE($B257,"!N20"))) ->  | M257: =IF(ISERROR(INDIRECT(CONCATENATE($B257,"!N21"))),"",INDIRECT(CONCATENATE($B257,"!N21"))) ->  | O257: =IF(ISERROR(INDIRECT(CONCATENATE($B257,"!O18"))),"",INDIRECT(CONCATENATE($B257,"!O18"))) ->  | P257: =IF(ISERROR(INDIRECT(CONCATENATE($B257,"!O19"))),"",INDIRECT(CONCATENATE($B257,"!O19"))) ->  | Q257: =IF(ISERROR(INDIRECT(CONCATENATE($B257,"!O20"))),"",INDIRECT(CONCATENATE($B257,"!O20"))) ->  | R257: =IF(ISERROR(INDIRECT(CONCATENATE($B257,"!O21"))),"",INDIRECT(CONCATENATE($B257,"!O21"))) ->  | T257: =IF(ISERROR(INDIRECT(CONCATENATE($B257,"!P18"))),"",INDIRECT(CONCATENATE($B257,"!P18"))) ->  | U257: =IF(ISERROR(INDIRECT(CONCATENATE($B257,"!P19"))),"",INDIRECT(CONCATENATE($B257,"!P19"))) ->  | V257: =IF(ISERROR(INDIRECT(CONCATENATE($B257,"!P20"))),"",INDIRECT(CONCATENATE($B257,"!P20"))) ->  | W257: =IF(ISERROR(INDIRECT(CONCATENATE($B257,"!P21"))),"",INDIRECT(CONCATENATE($B257,"!P21"))) ->  | Y257: =IF(ISERROR(INDIRECT(CONCATENATE($B257,"!Q18"))),"",INDIRECT(CONCATENATE($B257,"!Q18"))) ->  | Z257: =IF(ISERROR(INDIRECT(CONCATENATE($B257,"!Q19"))),"",INDIRECT(CONCATENATE($B257,"!Q19"))) ->  | AA257: =IF(ISERROR(INDIRECT(CONCATENATE($B257,"!Q20"))),"",INDIRECT(CONCATENATE($B257,"!Q20"))) ->  | AB257: =IF(ISERROR(INDIRECT(CONCATENATE($B257,"!Q21"))),"",INDIRECT(CONCATENATE($B257,"!Q1"))) -> 
A297: RURAL | D297: Poorest | I297: Poor | N297: Middle | S297: Rich | X297: Richest
D298: Improved | E298: Basic | F298: Limited | G298: Unimproved | H298: Surface water | I298: Improved | J298: Basic | K298: Limited | L298: Unimproved | M298: Surface water | N298: Improved | O298: Basic | P298: Limited | Q298: Unimproved | R298: Surface water | S298: Improved | T298: Basic | U298: Limited | V298: Unimproved | W298: Surface water | X298: Improved | Y298: Basic | Z298: Limited | AA298: Unimproved | AB298: Surface water
A299: Forecast period: | C299: 2000 | D299: =IF((D301+H301)>100,D301*100/(D301+H301),D301) -> 64.61422137 | E299: =D299*AVERAGEIF(E305:E316,">0")/100 -> 52.93807424 | F299: =D299*(100-AVERAGEIF(E305:E316,">0"))/100 -> 11.67614713 | G299: =100-(E299+F299+H299) -> 13.872906 | H299: =IF((D301+H301)>100,H301*100/(D301+H301),H301) -> 21.51287263 | I299: =IF((I301+M301)>100,I301*100/(I301+M301),I301) -> 80.93458015 | J299: =I299*AVERAGEIF(J305:J316,">0")/100 -> 69.76861744 | K299: =I299*(100-AVERAGEIF(J305:J316,">0"))/100 -> 11.1659627 | L299: =100-(J299+K299+M299) -> 16.30663582 | M299: =IF((I301+M301)>100,M301*100/(I301+M301),M301) -> 2.758784035 | N299: =IF((N301+R301)>100,N301*100/(N301+R301),N301) -> 85.30477402 | O299: =N299*AVERAGEIF(O305:O316,">0")/100 -> 78.36281185 | P299: =N299*(100-AVERAGEIF(O305:O316,">0"))/100 -> 6.941962173 | Q299: =100-(O299+P299+R299) -> 12.79226835 | R299: =IF((N301+R301)>100,R301*100/(N301+R301),R301) -> 1.902957629 | S299: =IF((S301+W301)>100,S301*100/(S301+W301),S301) -> 86.09707461 | T299: =S299*AVERAGEIF(T305:T316,">0")/100 -> 80.16047633 | U299: =S299*(100-AVERAGEIF(T305:T316,">0"))/100 -> 5.936598284 | V299: =100-(T299+U299+W299) -> 8.680203159 | W299: =IF((S301+W301)>100,W301*100/(S301+W301),W301) -> 5.222722227 | X299: =IF((X301+AB301)>100,X301*100/(X301+AB301),X301) -> 96.55848167 | Y299: =X299*AVERAGEIF(Y305:Y316,">0")/100 -> 88.543582 | Z299: =X299*(100-AVERAGEIF(Y305:Y316,">0"))/100 -> 8.014899664 | AA299: =100-(Y299+Z299+AB299) -> 3.441518331 | AB299: =IF((X301+AB301)>100,AB301*100/(X301+AB301),AB301) -> 0
C300: 2020 | D300: =IF((D302+H302)>100,D302*100/(D302+H302),D302) -> 52.42748742 | E300: =D300*AVERAGEIF(E305:E316,">0")/100 -> 42.95355051 | F300: =D300*(100-AVERAGEIF(E305:E316,">0"))/100 -> 9.473936908 | G300: =100-(E300+F300+H300) -> 21.84129111 | H300: =IF((D302+H302)>100,H302*100/(D302+H302),H302) -> 25.73122147 | I300: =IF((I302+M302)>100,I302*100/(I302+M302),I302) -> 79.61294253 | J300: =I300*AVERAGEIF(J305:J316,">0")/100 -> 68.62931668 | K300: =I300*(100-AVERAGEIF(J305:J316,">0"))/100 -> 10.98362585 | L300: =100-(J300+K300+M300) -> 9.841618842 | M300: =IF((I302+M302)>100,M302*100/(I302+M302),M302) -> 10.54543863 | N300: =IF((N302+R302)>100,N302*100/(N302+R302),N302) -> 88.85598203 | O300: =N300*AVERAGEIF(O305:O316,">0")/100 -> 81.62502839 | P300: =N300*(100-AVERAGEIF(O305:O316,">0"))/100 -> 7.230953639 | Q300: =100-(O300+P300+R300) -> 5.083920822 | R300: =IF((N302+R302)>100,R302*100/(N302+R302),R302) -> 6.060097146 | S300: =IF((S302+W302)>100,S302*100/(S302+W302),S302) -> 94.69152774 | T300: =S300*AVERAGEIF(T305:T316,">0")/100 -> 88.16232145 | U300: =S300*(100-AVERAGEIF(T305:T316,">0"))/100 -> 6.52920629 | V300: =100-(T300+U300+W300) -> 1.944370406 | W300: =IF((S302+W302)>100,W302*100/(S302+W302),W302) -> 3.364101856 | X300: =IF((X302+AB302)>100,X302*100/(X302+AB302),X302) -> 97.8794803 | Y300: =X300*AVERAGEIF(Y305:Y316,">0")/100 -> 89.75493029 | Z300: =X300*(100-AVERAGEIF(Y305:Y316,">0"))/100 -> 8.124550016 | AA300: =100-(Y300+Z300+AB300) -> 1.33296989 | AB300: =IF((X302+AB302)>100,AB302*100/(X302+AB302),AB302) -> 0.7875498049
A301: Regression period: | C301: =MinRegYear(C299,C305:C316) -> 2001 | D301: =IF(MAX(C305:C316)-MIN(C305:C316)<5,AVERAGEIF(C305:C316,">0",D305:D316), IF(FORECAST($C301,D$305:D$316,$C$305:$C$316)<0,0, IF(FORECAST($C301,D$305:D$316,$C$305:$C$316)>100,100, FORECAST($C301,D$305:D$316,$C$305:$C$316)))) -> 64.61422137 | H301: =IF(MAX(C305:C316)-MIN(C305:C316)<5,AVERAGEIF(C305:C316,">0",H305:H316), IF(FORECAST($C301,H$305:H$316,$C$305:$C$316)<0,0, IF(FORECAST($C301,H$305:H$316,$C$305:$C$316)>100,100, FORECAST($C301,H$305:H$316,$C$305:$C$316)))) -> 21.51287263 | I301: =IF(MAX(C305:C316)-MIN(C305:C316)<5,AVERAGEIF(C305:C316,">0",I305:I316), IF(FORECAST($C301,I$305:I$316,$C$305:$C$316)<0,0, IF(FORECAST($C301,I$305:I$316,$C$305:$C$316)>100,100, FORECAST($C301,I$305:I$316,$C$305:$C$316)))) -> 80.93458015 | M301: =IF(MAX(C305:C316)-MIN(C305:C316)<5,AVERAGEIF(C305:C316,">0",M305:M316), IF(FORECAST($C301,M$305:M$316,$C$305:$C$316)<0,0, IF(FORECAST($C301,M$305:M$316,$C$305:$C$316)>100,100, FORECAST($C301,M$305:M$316,$C$305:$C$316)))) -> 2.758784035 | N301: =IF(MAX(C305:C316)-MIN(C305:C316)<5,AVERAGEIF(C305:C316,">0",N305:N316), IF(FORECAST($C301,N$305:N$316,$C$305:$C$316)<0,0, IF(FORECAST($C301,N$305:N$316,$C$305:$C$316)>100,100, FORECAST($C301,N$305:N$316,$C$305:$C$316)))) -> 85.30477402 | R301: =IF(MAX(C305:C316)-MIN(C305:C316)<5,AVERAGEIF(C305:C316,">0",R305:R316), IF(FORECAST($C301,R$305:R$316,$C$305:$C$316)<0,0, IF(FORECAST($C301,R$305:R$316,$C$305:$C$316)>100,100, FORECAST($C301,R$305:R$316,$C$305:$C$316)))) -> 1.902957629 | S301: =IF(MAX(C305:C316)-MIN(C305:C316)<5,AVERAGEIF(C305:C316,">0",S305:S316), IF(FORECAST($C301,S$305:S$316,$C$305:$C$316)<0,0, IF(FORECAST($C301,S$305:S$316,$C$305:$C$316)>100,100, FORECAST($C301,S$305:S$316,$C$305:$C$316)))) -> 86.09707461 | W301: =IF(MAX(C305:C316)-MIN(C305:C316)<5,AVERAGEIF(C305:C316,">0",W305:W316), IF(FORECAST($C301,W$305:W$316,$C$305:$C$316)<0,0, IF(FORECAST($C301,W$305:W$316,$C$305:$C$316)>100,100, FORECAST($C301,W$305:W$316,$C$305:$C$316)))) -> 5.222722227 | X301: =IF(MAX(C305:C316)-MIN(C305:C316)<5,AVERAGEIF(C305:C316,">0",X305:X316), IF(FORECAST($C301,X$305:X$316,$C$305:$C$316)<0,0, IF(FORECAST($C301,X$305:X$316,$C$305:$C$316)>100,100, FORECAST($C301,X$305:X$316,$C$305:$C$316)))) -> 96.55848167 | AB301: =IF(MAX(C305:C316)-MIN(C305:C316)<5,AVERAGEIF(C305:C316,">0",AB305:AB316), IF(FORECAST($C301,AB$305:AB$316,$C$305:$C$316)<0,0, IF(FORECAST($C301,AB$305:AB$316,$C$305:$C$316)>100,100, FORECAST($C301,AB$305:AB$316,$C$305:$C$316)))) -> 0
C302: =MaxRegYear(C300,C305:C316) -> 2018 | D302: =IF(MAX(C305:C316)-MIN(C305:C316)<5,AVERAGEIF(C305:C316,">0",D305:D316), IF(FORECAST($C302,D$305:D$316,$C$305:$C$316)<0,0, IF(FORECAST($C302,D$305:D$316,$C$305:$C$316)>100,100, FORECAST($C302,D$305:D$316,$C$305:$C$316)))) -> 52.42748742 | H302: =IF(MAX(C305:C316)-MIN(C305:C316)<5,AVERAGEIF(C305:C316,">0",H305:H316), IF(FORECAST($C302,H$305:H$316,$C$305:$C$316)<0,0, IF(FORECAST($C302,H$305:H$316,$C$305:$C$316)>100,100, FORECAST($C302,H$305:H$316,$C$305:$C$316)))) -> 25.73122147 | I302: =IF(MAX(C305:C316)-MIN(C305:C316)<5,AVERAGEIF(C305:C316,">0",I305:I316), IF(FORECAST($C302,I$305:I$316,$C$305:$C$316)<0,0, IF(FORECAST($C302,I$305:I$316,$C$305:$C$316)>100,100, FORECAST($C302,I$305:I$316,$C$305:$C$316)))) -> 79.61294253 | M302: =IF(MAX(C305:C316)-MIN(C305:C316)<5,AVERAGEIF(C305:C316,">0",M305:M316), IF(FORECAST($C302,M$305:M$316,$C$305:$C$316)<0,0, IF(FORECAST($C302,M$305:M$316,$C$305:$C$316)>100,100, FORECAST($C302,M$305:M$316,$C$305:$C$316)))) -> 10.54543863 | N302: =IF(MAX(C305:C316)-MIN(C305:C316)<5,AVERAGEIF(C305:C316,">0",N305:N316), IF(FORECAST($C302,N$305:N$316,$C$305:$C$316)<0,0, IF(FORECAST($C302,N$305:N$316,$C$305:$C$316)>100,100, FORECAST($C302,N$305:N$316,$C$305:$C$316)))) -> 88.85598203 | R302: =IF(MAX(C305:C316)-MIN(C305:C316)<5,AVERAGEIF(C305:C316,">0",R305:R316), IF(FORECAST($C302,R$305:R$316,$C$305:$C$316)<0,0, IF(FORECAST($C302,R$305:R$316,$C$305:$C$316)>100,100, FORECAST($C302,R$305:R$316,$C$305:$C$316)))) -> 6.060097146 | S302: =IF(MAX(C305:C316)-MIN(C305:C316)<5,AVERAGEIF(C305:C316,">0",S305:S316), IF(FORECAST($C302,S$305:S$316,$C$305:$C$316)<0,0, IF(FORECAST($C302,S$305:S$316,$C$305:$C$316)>100,100, FORECAST($C302,S$305:S$316,$C$305:$C$316)))) -> 94.69152774 | W302: =IF(MAX(C305:C316)-MIN(C305:C316)<5,AVERAGEIF(C305:C316,">0",W305:W316), IF(FORECAST($C302,W$305:W$316,$C$305:$C$316)<0,0, IF(FORECAST($C302,W$305:W$316,$C$305:$C$316)>100,100, FORECAST($C302,W$305:W$316,$C$305:$C$316)))) -> 3.364101856 | X302: =IF(MAX(C305:C316)-MIN(C305:C316)<5,AVERAGEIF(C305:C316,">0",X305:X316), IF(FORECAST($C302,X$305:X$316,$C$305:$C$316)<0,0, IF(FORECAST($C302,X$305:X$316,$C$305:$C$316)>100,100, FORECAST($C302,X$305:X$316,$C$305:$C$316)))) -> 97.8794803 | AB302: =IF(MAX(C305:C316)-MIN(C305:C316)<5,AVERAGEIF(C305:C316,">0",AB305:AB316), IF(FORECAST($C302,AB$305:AB$316,$C$305:$C$316)<0,0, IF(FORECAST($C302,AB$305:AB$316,$C$305:$C$316)>100,100, FORECAST($C302,AB$305:AB$316,$C$305:$C$316)))) -> 0.7875498049
B304: Survey | C304: Year | D304: Improved | E304: Basic | H304: Surface water | I304: Improved | J304: Basic | M304: Surface water | N304: Improved | O304: Basic | R304: Surface water | S304: Improved | T304: Basic | W304: Surface water | X304: Improved | Y304: Basic | AB304: Surface water
B305: WHS03 | C305: 2003 | D305: =IF(ISERROR(INDIRECT(CONCATENATE($B305,"!M16"))),"",INDIRECT(CONCATENATE($B305,"!M16"))) -> 63.18048796 | E305: =IF(ISERROR(INDIRECT(CONCATENATE($B305,"!M23"))),"",INDIRECT(CONCATENATE($B305,"!M23"))) -> 79.54724363 | H305: =IF(ISERROR(INDIRECT(CONCATENATE($B305,"!M21"))),"",INDIRECT(CONCATENATE($B305,"!M21"))) -> 22.00914896 | I305: =IF(ISERROR(INDIRECT(CONCATENATE($B305,"!N16"))),"",INDIRECT(CONCATENATE($B305,"!N16"))) -> 80.77909337 | J305: =IF(ISERROR(INDIRECT(CONCATENATE($B305,"!N23"))),"",INDIRECT(CONCATENATE($B305,"!N23"))) -> 84.57340406 | M305: =IF(ISERROR(INDIRECT(CONCATENATE($B305,"!N21"))),"",INDIRECT(CONCATENATE($B305,"!N21"))) -> 3.674861046 | N305: =IF(ISERROR(INDIRECT(CONCATENATE($B305,"!O16"))),"",INDIRECT(CONCATENATE($B305,"!O16"))) -> 85.7225632 | O305: =IF(ISERROR(INDIRECT(CONCATENATE($B305,"!O23"))),"",INDIRECT(CONCATENATE($B305,"!O23"))) -> 91.92612453 | R305: =IF(ISERROR(INDIRECT(CONCATENATE($B305,"!O21"))),"",INDIRECT(CONCATENATE($B305,"!O21"))) -> 2.392032866 | S305: =IF(ISERROR(INDIRECT(CONCATENATE($B305,"!P16"))),"",INDIRECT(CONCATENATE($B305,"!P16"))) -> 87.10818675 | T305: =IF(ISERROR(INDIRECT(CONCATENATE($B305,"!P23"))),"",INDIRECT(CONCATENATE($B305,"!P23"))) -> 91.45477158 | W305: =IF(ISERROR(INDIRECT(CONCATENATE($B305,"!P21"))),"",INDIRECT(CONCATENATE($B305,"!P21"))) -> 5.004061007 | X305: =IF(ISERROR(INDIRECT(CONCATENATE($B305,"!Q16"))),"",INDIRECT(CONCATENATE($B305,"!Q16"))) -> 96.71389327 | Y305: =IF(ISERROR(INDIRECT(CONCATENATE($B305,"!Q23"))),"",INDIRECT(CONCATENATE($B305,"!Q23"))) -> 85.05494745 | AB305: =IF(ISERROR(INDIRECT(CONCATENATE($B305,"!Q221"))),"",INDIRECT(CONCATENATE($B305,"!Q21"))) -> 0
B306: DHS16 | C306: 2016 | D306: 53.86122083 | E306: 84.31165034 | H306: 25.23494513 | I306: 79.76842931 | J306: 87.83403246 | M306: 9.629361615 | N306: 88.43819286 | O306: 91.7982045 | R306: 5.571021908 | S306: 93.68041561 | T306: 94.75475223 | W306: 3.582763076 | X306: 97.7240687 | Y306: 98.34392228 | AB306: 0.6825431642
B318: =CONCATENATE("Rural use of drinking water sources, ",C299,"–",C300) -> Rural use of drinking water sources, 2000–2020 | S318: Data points used for regression

Sheet Sanitation
B4: Summary of trends in use of sanitation facilities by wealth quintile (%)
B5: =IF(ISERROR(INDIRECT(CONCATENATE($B105,"!A2"))),"",INDIRECT(CONCATENATE($B105,"!A2"))) -> South Africa
B7: =B118 -> National use of sanitation facilities, 2000–2020 | J7: =B218 -> Urban use of sanitation facilities, 2000–2020 | R7: =B318 -> Rural use of sanitation facilities, 2000–2020
B31: =IF(ISERROR(INDIRECT(CONCATENATE($B105,"!A2"))),"",INDIRECT(CONCATENATE($B105,"!A2"))) -> South Africa | F31: Poorest | J31: Poor | N31: Middle | R31: Rich | V31: Richest
F32: Basic | G32: Limited | H32: Unimproved | I32: Open defecation | J32: Basic | K32: Limited | L32: Unimproved | M32: Open defecation | N32: Basic | O32: Limited | P32: Unimproved | Q32: Open defecation | R32: Basic | S32: Limited | T32: Unimproved | U32: Open defecation | V32: Basic | W32: Limited | X32: Unimproved | Y32: Open defecation
B33: NATIONAL | D33: Estimate | E33: =C99 -> 2000 | F33: =E99 -> 32.5371403 | G33: =F99 -> 14.1824837 | H33: 29.98515826 | I33: 23.29521774 | J33: =J99 -> 55.15572217 | K33: =K99 -> 27.17758592 | L33: 14.23339005 | M33: 3.433301866 | N33: =O99 -> 58.7403847 | O33: =P99 -> 34.78125504 | P33: 5.468854519 | Q33: 1.009505743 | R33: =T99 -> 83.53618605 | S33: =U99 -> 12.43264164 | T33: 4.031172302 | U33: 0 | V33: =Y99 -> 93.73919523 | W33: =Z99 -> 5.094818086 | X33: 1.165986687 | Y33: 0
E34: =C100 -> 2020 | F34: =E100 -> 55.2399818 | G34: 24.07833431 | H34: 15.08691093 | I34: 5.594772953 | J34: =J100 -> 55.65619404 | K34: 27.42418984 | L34: 14.63460758 | M34: 2.285008539 | N34: =O100 -> 55.3403377 | O34: 32.76802508 | P34: 11.08313191 | Q34: 0.8085053126 | R34: =T100 -> 82.9737905 | S34: 12.34894064 | T34: 4.370871222 | U34: 0.3063976331 | V34: =Y100 -> 94.63720176 | W34: 5.14362563 | X34: 0.219172609 | Y34: 0
B36: URBAN | D36: Estimate | E36: =C199 -> 2000 | F36: =E199 -> 45.15655318 | G36: =F199 -> 47.8836062 | H36: 6.432348478 | I36: 0.5274921454 | J36: =J199 -> 53.01423497 | K36: =K199 -> 44.9398882 | L36: 1.716663593 | M36: 0.3292132442 | N36: =O199 -> 79.14149766 | O36: =P199 -> 18.92077203 | P36: 1.470926383 | Q36: 0.4668039227 | R36: =T199 -> 91.63107263 | S36: =U199 -> 8.212613731 | T36: 0.1563136353 | U36: 0 | V36: =Y199 -> 94.94184395 | W36: =Z199 -> 3.808926404 | X36: 1.249229642 | Y36: 0
E37: =C200 -> 2020 | F37: =E200 -> 36.61164749 | G37: 38.82266443 | H37: 20.84631548 | I37: 3.719372604 | J37: =J200 -> 51.05293299 | K37: 43.27730282 | L37: 5.622398373 | M37: 0.04736581899 | N37: =O200 -> 79.43228134 | O37: 18.9902912 | P37: 1.479652633 | Q37: 0.09777482615 | R37: =T200 -> 91.08807234 | S37: 8.16394627 | T37: 0.7479813886 | U37: 0 | V37: =Y200 -> 96.14288943 | W37: 3.857110572 | X37: 0 | Y37: 0
B39: RURAL | D39: Estimate | E39: =C299 -> 2000 | F39: =E299 -> 29.38650118 | G39: =F299 -> 7.543062459 | H39: 29.07736328 | I39: 33.99307308 | J39: =J299 -> 29.26604827 | K39: =K299 -> 6.103099719 | L39: 39.8696951 | M39: 24.76115691 | N39: =O299 -> 51.61729183 | O39: =P299 -> 12.95501649 | P39: 25.64963738 | Q39: 9.778054302 | R39: =T299 -> 61.8455291 | S39: =U299 -> 14.49814193 | T39: 22.51540955 | U39: 1.140919424 | V39: =Y299 -> 76.87712208 | W39: =Z299 -> 12.30094333 | X39: 9.7580104 | Y39: 1.063924189
E40: =C300 -> 2020 | F40: =E300 -> 65.17376085 | G40: 16.72910109 | H40: 10.02913394 | I40: 8.06800413 | J40: =J300 -> 68.91195744 | K40: 14.37080074 | L40: 13.84345925 | M40: 2.873782564 | N40: =O300 -> 65.65080372 | O40: 16.47717683 | P40: 15.76125682 | Q40: 2.110762626 | R40: =T300 -> 63.09008097 | S40: 14.78989608 | T40: 17.98176569 | U40: 4.138257263 | V40: =Y300 -> 68.82112454 | W40: 11.01192045 | X40: 19.14004179 | Y40: 1.026913225
A97: NATIONAL | D97: Poorest | I97: Poor | N97: Middle | S97: Rich | X97: Richest
D98: Improved | E98: Basic | F98: Limited | G98: Unimproved | H98: Open defecation | I98: Improved | J98: Basic | K98: Limited | L98: Unimproved | M98: Open defecation | N98: Improved | O98: Basic | P98: Limited | Q98: Unimproved | R98: Open defecation | S98: Improved | T98: Basic | U98: Limited | V98: Unimproved | W98: Open defecation | X98: Improved | Y98: Basic | Z98: Limited | AA98: Unimproved | AB98: Open defecation
A99: Forecast period: | C99: 2000 | D99: =IF((D101+H101)>100,D101*100/(D101+H101),D101) -> 46.719624 | E99: =D99*AVERAGEIF(E105:E116,">0")/100 -> 32.5371403 | F99: =D99*(100-AVERAGEIF(E105:E116,">0"))/100 -> 14.1824837 | G99: =100-(E99+F99+H99) -> 29.98515826 | H99: =IF((D101+H101)>100,H101*100/(D101+H101),H101) -> 23.29521774 | I99: =IF((I101+M101)>100,I101*100/(I101+M101),I101) -> 82.33330809 | J99: =I99*AVERAGEIF(J105:J116,">0")/100 -> 55.15572217 | K99: =I99*(100-AVERAGEIF(J105:J116,">0"))/100 -> 27.17758592 | L99: =100-(J99+K99+M99) -> 14.23339005 | M99: =IF((I101+M101)>100,M101*100/(I101+M101),M101) -> 3.433301866 | N99: =IF((N101+R101)>100,N101*100/(N101+R101),N101) -> 93.52163974 | O99: =N99*AVERAGEIF(O105:O116,">0")/100 -> 58.7403847 | P99: =N99*(100-AVERAGEIF(O105:O116,">0"))/100 -> 34.78125504 | Q99: =100-(O99+P99+R99) -> 5.468854519 | R99: =IF((N101+R101)>100,R101*100/(N101+R101),R101) -> 1.009505743 | S99: =IF((S101+W101)>100,S101*100/(S101+W101),S101) -> 95.9688277 | T99: =S99*AVERAGEIF(T105:T116,">0")/100 -> 83.53618605 | U99: =S99*(100-AVERAGEIF(T105:T116,">0"))/100 -> 12.43264164 | V99: =100-(T99+U99+W99) -> 4.031172302 | W99: =IF((S101+W101)>100,W101*100/(S101+W101),W101) -> 0 | X99: =IF((X101+AB101)>100,X101*100/(X101+AB101),X101) -> 98.83401331 | Y99: =X99*AVERAGEIF(Y105:Y116,">0")/100 -> 93.73919523 | Z99: =X99*(100-AVERAGEIF(Y105:Y116,">0"))/100 -> 5.094818086 | AA99: =100-(Y99+Z99+AB99) -> 1.165986687 | AB99: =IF((X101+AB101)>100,AB101*100/(X101+AB101),AB101) -> 0
C100: 2020 | D100: =IF((D102+H102)>100,D102*100/(D102+H102),D102) -> 79.31831611 | E100: =D100*AVERAGEIF(E105:E116,">0")/100 -> 55.2399818 | F100: =D100*(100-AVERAGEIF(E105:E116,">0"))/100 -> 24.07833431 | G100: =100-(E100+F100+H100) -> 15.08691093 | H100: =IF((D102+H102)>100,H102*100/(D102+H102),H102) -> 5.594772953 | I100: =IF((I102+M102)>100,I102*100/(I102+M102),I102) -> 83.08038388 | J100: =I100*AVERAGEIF(J105:J116,">0")/100 -> 55.65619404 | K100: =I100*(100-AVERAGEIF(J105:J116,">0"))/100 -> 27.42418984 | L100: =100-(J100+K100+M100) -> 14.63460758 | M100: =IF((I102+M102)>100,M102*100/(I102+M102),M102) -> 2.285008539 | N100: =IF((N102+R102)>100,N102*100/(N102+R102),N102) -> 88.10836278 | O100: =N100*AVERAGEIF(O105:O116,">0")/100 -> 55.3403377 | P100: =N100*(100-AVERAGEIF(O105:O116,">0"))/100 -> 32.76802508 | Q100: =100-(O100+P100+R100) -> 11.08313191 | R100: =IF((N102+R102)>100,R102*100/(N102+R102),R102) -> 0.8085053126 | S100: =IF((S102+W102)>100,S102*100/(S102+W102),S102) -> 95.32273115 | T100: =S100*AVERAGEIF(T105:T116,">0")/100 -> 82.9737905 | U100: =S100*(100-AVERAGEIF(T105:T116,">0"))/100 -> 12.34894064 | V100: =100-(T100+U100+W100) -> 4.370871222 | W100: =IF((S102+W102)>100,W102*100/(S102+W102),W102) -> 0.3063976331 | X100: =IF((X102+AB102)>100,X102*100/(X102+AB102),X102) -> 99.78082739 | Y100: =X100*AVERAGEIF(Y105:Y116,">0")/100 -> 94.63720176 | Z100: =X100*(100-AVERAGEIF(Y105:Y116,">0"))/100 -> 5.14362563 | AA100: =100-(Y100+Z100+AB100) -> 0.219172609 | AB100: =IF((X102+AB102)>100,AB102*100/(X102+AB102),AB102) -> 0
A101: Regression period: | C101: =MinRegYear(C99,C105:C116) -> 2001 | D101: =IF(MAX(C105:C116)-MIN(C105:C116)<5,AVERAGEIF(C105:C116,">0",D105:D116), IF(FORECAST($C101,D$105:D$116,$C$105:$C$116)<0,0, IF(FORECAST($C101,D$105:D$116,$C$105:$C$116)>100,100, FORECAST($C101,D$105:D$116,$C$105:$C$116)))) -> 46.719624 | H101: =IF(MAX(C105:C116)-MIN(C105:C116)<5,AVERAGEIF(C105:C116,">0",H105:H116), IF(FORECAST($C101,H$105:H$116,$C$105:$C$116)<0,0, IF(FORECAST($C101,H$105:H$116,$C$105:$C$116)>100,100, FORECAST($C101,H$105:H$116,$C$105:$C$116)))) -> 23.29521774 | I101: =IF(MAX(C105:C116)-MIN(C105:C116)<5,AVERAGEIF(C105:C116,">0",I105:I116), IF(FORECAST($C101,I$105:I$116,$C$105:$C$116)<0,0, IF(FORECAST($C101,I$105:I$116,$C$105:$C$116)>100,100, FORECAST($C101,I$105:I$116,$C$105:$C$116)))) -> 82.33330809 | M101: =IF(MAX(C105:C116)-MIN(C105:C116)<5,AVERAGEIF(C105:C116,">0",M105:M116), IF(FORECAST($C101,M$105:M$116,$C$105:$C$116)<0,0, IF(FORECAST($C101,M$105:M$116,$C$105:$C$116)>100,100, FORECAST($C101,M$105:M$116,$C$105:$C$116)))) -> 3.433301866 | N101: =IF(MAX(C105:C116)-MIN(C105:C116)<5,AVERAGEIF(C105:C116,">0",N105:N116), IF(FORECAST($C101,N$105:N$116,$C$105:$C$116)<0,0, IF(FORECAST($C101,N$105:N$116,$C$105:$C$116)>100,100, FORECAST($C101,N$105:N$116,$C$105:$C$116)))) -> 93.52163974 | R101: =IF(MAX(C105:C116)-MIN(C105:C116)<5,AVERAGEIF(C105:C116,">0",R105:R116), IF(FORECAST($C101,R$105:R$116,$C$105:$C$116)<0,0, IF(FORECAST($C101,R$105:R$116,$C$105:$C$116)>100,100, FORECAST($C101,R$105:R$116,$C$105:$C$116)))) -> 1.009505743 | S101: =IF(MAX(C105:C116)-MIN(C105:C116)<5,AVERAGEIF(C105:C116,">0",S105:S116), IF(FORECAST($C101,S$105:S$116,$C$105:$C$116)<0,0, IF(FORECAST($C101,S$105:S$116,$C$105:$C$116)>100,100, FORECAST($C101,S$105:S$116,$C$105:$C$116)))) -> 95.9688277 | W101: =IF(MAX(C105:C116)-MIN(C105:C116)<5,AVERAGEIF(C105:C116,">0",W105:W116), IF(FORECAST($C101,W$105:W$116,$C$105:$C$116)<0,0, IF(FORECAST($C101,W$105:W$116,$C$105:$C$116)>100,100, FORECAST($C101,W$105:W$116,$C$105:$C$116)))) -> 0 | X101: =IF(MAX(C105:C116)-MIN(C105:C116)<5,AVERAGEIF(C105:C116,">0",X105:X116), IF(FORECAST($C101,X$105:X$116,$C$105:$C$116)<0,0, IF(FORECAST($C101,X$105:X$116,$C$105:$C$116)>100,100, FORECAST($C101,X$105:X$116,$C$105:$C$116)))) -> 98.83401331 | AB101: =IF(MAX(C105:C116)-MIN(C105:C116)<5,AVERAGEIF(C105:C116,">0",AB105:AB116), IF(FORECAST($C101,AB$105:AB$116,$C$105:$C$116)<0,0, IF(FORECAST($C101,AB$105:AB$116,$C$105:$C$116)>100,100, FORECAST($C101,AB$105:AB$116,$C$105:$C$116)))) -> 0
C102: =MaxRegYear(C100,C105:C116) -> 2018 | D102: =IF(MAX(C105:C116)-MIN(C105:C116)<5,AVERAGEIF(C105:C116,">0",D105:D116), IF(FORECAST($C102,D$105:D$116,$C$105:$C$116)<0,0, IF(FORECAST($C102,D$105:D$116,$C$105:$C$116)>100,100, FORECAST($C102,D$105:D$116,$C$105:$C$116)))) -> 79.31831611 | H102: =IF(MAX(C105:C116)-MIN(C105:C116)<5,AVERAGEIF(C105:C116,">0",H105:H116), IF(FORECAST($C102,H$105:H$116,$C$105:$C$116)<0,0, IF(FORECAST($C102,H$105:H$116,$C$105:$C$116)>100,100, FORECAST($C102,H$105:H$116,$C$105:$C$116)))) -> 5.594772953 | I102: =IF(MAX(C105:C116)-MIN(C105:C116)<5,AVERAGEIF(C105:C116,">0",I105:I116), IF(FORECAST($C102,I$105:I$116,$C$105:$C$116)<0,0, IF(FORECAST($C102,I$105:I$116,$C$105:$C$116)>100,100, FORECAST($C102,I$105:I$116,$C$105:$C$116)))) -> 83.08038388 | M102: =IF(MAX(C105:C116)-MIN(C105:C116)<5,AVERAGEIF(C105:C116,">0",M105:M116), IF(FORECAST($C102,M$105:M$116,$C$105:$C$116)<0,0, IF(FORECAST($C102,M$105:M$116,$C$105:$C$116)>100,100, FORECAST($C102,M$105:M$116,$C$105:$C$116)))) -> 2.285008539 | N102: =IF(MAX(C105:C116)-MIN(C105:C116)<5,AVERAGEIF(C105:C116,">0",N105:N116), IF(FORECAST($C102,N$105:N$116,$C$105:$C$116)<0,0, IF(FORECAST($C102,N$105:N$116,$C$105:$C$116)>100,100, FORECAST($C102,N$105:N$116,$C$105:$C$116)))) -> 88.10836278 | R102: =IF(MAX(C105:C116)-MIN(C105:C116)<5,AVERAGEIF(C105:C116,">0",R105:R116), IF(FORECAST($C102,R$105:R$116,$C$105:$C$116)<0,0, IF(FORECAST($C102,R$105:R$116,$C$105:$C$116)>100,100, FORECAST($C102,R$105:R$116,$C$105:$C$116)))) -> 0.8085053126 | S102: =IF(MAX(C105:C116)-MIN(C105:C116)<5,AVERAGEIF(C105:C116,">0",S105:S116), IF(FORECAST($C102,S$105:S$116,$C$105:$C$116)<0,0, IF(FORECAST($C102,S$105:S$116,$C$105:$C$116)>100,100, FORECAST($C102,S$105:S$116,$C$105:$C$116)))) -> 95.32273115 | W102: =IF(MAX(C105:C116)-MIN(C105:C116)<5,AVERAGEIF(C105:C116,">0",W105:W116), IF(FORECAST($C102,W$105:W$116,$C$105:$C$116)<0,0, IF(FORECAST($C102,W$105:W$116,$C$105:$C$116)>100,100, FORECAST($C102,W$105:W$116,$C$105:$C$116)))) -> 0.3063976331 | X102: =IF(MAX(C105:C116)-MIN(C105:C116)<5,AVERAGEIF(C105:C116,">0",X105:X116), IF(FORECAST($C102,X$105:X$116,$C$105:$C$116)<0,0, IF(FORECAST($C102,X$105:X$116,$C$105:$C$116)>100,100, FORECAST($C102,X$105:X$116,$C$105:$C$116)))) -> 99.78082739 | AB102: =IF(MAX(C105:C116)-MIN(C105:C116)<5,AVERAGEIF(C105:C116,">0",AB105:AB116), IF(FORECAST($C102,AB$105:AB$116,$C$105:$C$116)<0,0, IF(FORECAST($C102,AB$105:AB$116,$C$105:$C$116)>100,100, FORECAST($C102,AB$105:AB$116,$C$105:$C$116)))) -> 0
B104: Survey | C104: Year | D104: Improved | E104: Not shared | H104: Open defecation | I104: Improved | J104: Not shared | M104: Open defecation | N104: Improved | O104: Not shared | R104: Open defecation | S104: Improved | T104: Not shared | W104: Open defecation | X104: Improved | Y104: Not shared | AB104: Open defecation
B105: WHS03 | C105: 2003 | D105: =IF(ISERROR(INDIRECT(CONCATENATE($B105,"!C122"))),"",INDIRECT(CONCATENATE($B105,"!C122"))) -> 50.55476425 | E105: =IF(ISERROR(INDIRECT(CONCATENATE($B105,"!C129"))),"",INDIRECT(CONCATENATE($B105,"!C129"))) -> 61.67295692 | H105: =IF(ISERROR(INDIRECT(CONCATENATE($B105,"!C127"))),"",INDIRECT(CONCATENATE($B105,"!C127"))) -> 21.21281247 | I105: =IF(ISERROR(INDIRECT(CONCATENATE($B105,"!D122"))),"",INDIRECT(CONCATENATE($B105,"!D122"))) -> 82.42119936 | J105: =IF(ISERROR(INDIRECT(CONCATENATE($B105,"!D129"))),"",INDIRECT(CONCATENATE($B105,"!D129"))) -> 65.51711623 | M105: =IF(ISERROR(INDIRECT(CONCATENATE($B105,"!D127"))),"",INDIRECT(CONCATENATE($B105,"!D127"))) -> 3.298208534 | N105: =IF(ISERROR(INDIRECT(CONCATENATE($B105,"!E122"))),"",INDIRECT(CONCATENATE($B105,"!E122"))) -> 92.88478362 | O105: =IF(ISERROR(INDIRECT(CONCATENATE($B105,"!E129"))),"",INDIRECT(CONCATENATE($B105,"!E129"))) -> 48.17612073 | R105: =IF(ISERROR(INDIRECT(CONCATENATE($B105,"!E127"))),"",INDIRECT(CONCATENATE($B105,"!E127"))) -> 0.9858586338 | S105: =IF(ISERROR(INDIRECT(CONCATENATE($B105,"!F122"))),"",INDIRECT(CONCATENATE($B105,"!F122"))) -> 95.89281634 | T105: =IF(ISERROR(INDIRECT(CONCATENATE($B105,"!F129"))),"",INDIRECT(CONCATENATE($B105,"!F129"))) -> 83.7764913 | W105: =IF(ISERROR(INDIRECT(CONCATENATE($B105,"!F127"))),"",INDIRECT(CONCATENATE($B105,"!F127"))) -> 0 | X105: =IF(ISERROR(INDIRECT(CONCATENATE($B105,"!G122"))),"",INDIRECT(CONCATENATE($B105,"!G122"))) -> 98.9454032 | Y105: =IF(ISERROR(INDIRECT(CONCATENATE($B105,"!G129"))),"",INDIRECT(CONCATENATE($B105,"!G129"))) -> 92.60377764 | AB105: =IF(ISERROR(INDIRECT(CONCATENATE($B105,"!G2127"))),"",INDIRECT(CONCATENATE($B105,"!G127"))) -> 0
B106: DHS16 | C106: 2016 | D106: 75.48317586 | E106: 77.61386738 | H106: 7.677178222 | I106: 82.99249261 | J106: 68.46443619 | M106: 2.420101871 | N106: 88.74521889 | O106: 77.44268763 | R106: 0.8321524221 | S106: 95.3987425 | T106: 90.31375874 | W106: 0.2655446154 | X106: 99.6694375 | Y106: 97.08637474 | AB106: 0
B118: =CONCATENATE("National use of sanitation facilities, ",C99,"–",C100) -> National use of sanitation facilities, 2000–2020 | S118: Data points used for regression
A197: URBAN | D197: Poorest | I197: Poor | N197: Middle | S197: Rich | X197: Richest
D198: Improved | E198: Basic | F198: Limited | G198: Unimproved | H198: Open defecation | I198: Improved | J198: Basic | K198: Limited | L198: Unimproved | M198: Open defecation | N198: Improved | O198: Basic | P198: Limited | Q198: Unimproved | R198: Open defecation | S198: Improved | T198: Basic | U198: Limited | V198: Unimproved | W198: Open defecation | X198: Improved | Y198: Basic | Z198: Limited | AA198: Unimproved | AB198: Open defecation
A199: Forecast period: | C199: =MinBase(C205:C216) -> 2000 | D199: =IF((D201+H201)>100,D201*100/(D201+H201),D201) -> 93.04015938 | E199: =D199*AVERAGEIF(E205:E216,">0")/100 -> 45.15655318 | F199: =D199*(100-AVERAGEIF(E205:E216,">0"))/100 -> 47.8836062 | G199: =100-(E199+F199+H199) -> 6.432348478 | H199: =IF((D201+H201)>100,H201*100/(D201+H201),H201) -> 0.5274921454 | I199: =IF((I201+M201)>100,I201*100/(I201+M201),I201) -> 97.95412316 | J199: =I199*AVERAGEIF(J205:J216,">0")/100 -> 53.01423497 | K199: =I199*(100-AVERAGEIF(J205:J216,">0"))/100 -> 44.9398882 | L199: =100-(J199+K199+M199) -> 1.716663593 | M199: =IF((I201+M201)>100,M201*100/(I201+M201),M201) -> 0.3292132442 | N199: =IF((N201+R201)>100,N201*100/(N201+R201),N201) -> 98.06226969 | O199: =N199*AVERAGEIF(O205:O216,">0")/100 -> 79.14149766 | P199: =N199*(100-AVERAGEIF(O205:O216,">0"))/100 -> 18.92077203 | Q199: =100-(O199+P199+R199) -> 1.470926383 | R199: =IF((N201+R201)>100,R201*100/(N201+R201),R201) -> 0.4668039227 | S199: =IF((S201+W201)>100,S201*100/(S201+W201),S201) -> 99.84368636 | T199: =S199*AVERAGEIF(T205:T216,">0")/100 -> 91.63107263 | U199: =S199*(100-AVERAGEIF(T205:T216,">0"))/100 -> 8.212613731 | V199: =100-(T199+U199+W199) -> 0.1563136353 | W199: =IF((S201+W201)>100,W201*100/(S201+W201),W201) -> 0 | X199: =IF((X201+AB201)>100,X201*100/(X201+AB201),X201) -> 98.75077036 | Y199: =X199*AVERAGEIF(Y205:Y216,">0")/100 -> 94.94184395 | Z199: =X199*(100-AVERAGEIF(Y205:Y216,">0"))/100 -> 3.808926404 | AA199: =100-(Y199+Z199+AB199) -> 1.249229642 | AB199: =IF((X201+AB201)>100,AB201*100/(X201+AB201),AB201) -> 0
C200: =MaxTarget(C205:C216) -> 2020 | D200: =IF((D202+H202)>100,D202*100/(D202+H202),D202) -> 75.43431192 | E200: =D200*AVERAGEIF(E205:E216,">0")/100 -> 36.61164749 | F200: =D200*(100-AVERAGEIF(E205:E216,">0"))/100 -> 38.82266443 | G200: =100-(E200+F200+H200) -> 20.84631548 | H200: =IF((D202+H202)>100,H202*100/(D202+H202),H202) -> 3.719372604 | I200: =IF((I202+M202)>100,I202*100/(I202+M202),I202) -> 94.33023581 | J200: =I200*AVERAGEIF(J205:J216,">0")/100 -> 51.05293299 | K200: =I200*(100-AVERAGEIF(J205:J216,">0"))/100 -> 43.27730282 | L200: =100-(J200+K200+M200) -> 5.622398373 | M200: =IF((I202+M202)>100,M202*100/(I202+M202),M202) -> 0.04736581899 | N200: =IF((N202+R202)>100,N202*100/(N202+R202),N202) -> 98.42257254 | O200: =N200*AVERAGEIF(O205:O216,">0")/100 -> 79.43228134 | P200: =N200*(100-AVERAGEIF(O205:O216,">0"))/100 -> 18.9902912 | Q200: =100-(O200+P200+R200) -> 1.479652633 | R200: =IF((N202+R202)>100,R202*100/(N202+R202),R202) -> 0.09777482615 | S200: =IF((S202+W202)>100,S202*100/(S202+W202),S202) -> 99.25201861 | T200: =S200*AVERAGEIF(T205:T216,">0")/100 -> 91.08807234 | U200: =S200*(100-AVERAGEIF(T205:T216,">0"))/100 -> 8.16394627 | V200: =100-(T200+U200+W200) -> 0.7479813886 | W200: =IF((S202+W202)>100,W202*100/(S202+W202),W202) -> 0 | X200: =IF((X202+AB202)>100,X202*100/(X202+AB202),X202) -> 100 | Y200: =X200*AVERAGEIF(Y205:Y216,">0")/100 -> 96.14288943 | Z200: =X200*(100-AVERAGEIF(Y205:Y216,">0"))/100 -> 3.857110572 | AA200: =100-(Y200+Z200+AB200) -> 0 | AB200: =IF((X202+AB202)>100,AB202*100/(X202+AB202),AB202) -> 0
A201: Regression period: | C201: =MinRegYear(C199,C205:C216) -> 2001 | D201: =IF(MAX(C205:C216)-MIN(C205:C216)<5,AVERAGEIF(C205:C216,">0",D205:D216), IF(FORECAST($C201,D$205:D$216,$C$205:$C$216)<0,0, IF(FORECAST($C201,D$205:D$216,$C$205:$C$216)>100,100, FORECAST($C201,D$205:D$216,$C$205:$C$216)))) -> 93.04015938 | H201: =IF(MAX(C205:C216)-MIN(C205:C216)<5,AVERAGEIF(C205:C216,">0",H205:H216), IF(FORECAST($C201,H$205:H$216,$C$205:$C$216)<0,0, IF(FORECAST($C201,H$205:H$216,$C$205:$C$216)>100,100, FORECAST($C201,H$205:H$216,$C$205:$C$216)))) -> 0.5274921454 | I201: =IF(MAX(C205:C216)-MIN(C205:C216)<5,AVERAGEIF(C205:C216,">0",I205:I216), IF(FORECAST($C201,I$205:I$216,$C$205:$C$216)<0,0, IF(FORECAST($C201,I$205:I$216,$C$205:$C$216)>100,100, FORECAST($C201,I$205:I$216,$C$205:$C$216)))) -> 97.95412316 | M201: =IF(MAX(C205:C216)-MIN(C205:C216)<5,AVERAGEIF(C205:C216,">0",M205:M216), IF(FORECAST($C201,M$205:M$216,$C$205:$C$216)<0,0, IF(FORECAST($C201,M$205:M$216,$C$205:$C$216)>100,100, FORECAST($C201,M$205:M$216,$C$205:$C$216)))) -> 0.3292132442 | N201: =IF(MAX(C205:C216)-MIN(C205:C216)<5,AVERAGEIF(C205:C216,">0",N205:N216), IF(FORECAST($C201,N$205:N$216,$C$205:$C$216)<0,0, IF(FORECAST($C201,N$205:N$216,$C$205:$C$216)>100,100, FORECAST($C201,N$205:N$216,$C$205:$C$216)))) -> 98.06226969 | R201: =IF(MAX(C205:C216)-MIN(C205:C216)<5,AVERAGEIF(C205:C216,">0",R205:R216), IF(FORECAST($C201,R$205:R$216,$C$205:$C$216)<0,0, IF(FORECAST($C201,R$205:R$216,$C$205:$C$216)>100,100, FORECAST($C201,R$205:R$216,$C$205:$C$216)))) -> 0.4668039227 | S201: =IF(MAX(C205:C216)-MIN(C205:C216)<5,AVERAGEIF(C205:C216,">0",S205:S216), IF(FORECAST($C201,S$205:S$216,$C$205:$C$216)<0,0, IF(FORECAST($C201,S$205:S$216,$C$205:$C$216)>100,100, FORECAST($C201,S$205:S$216,$C$205:$C$216)))) -> 99.84368636 | W201: =IF(MAX(C205:C216)-MIN(C205:C216)<5,AVERAGEIF(C205:C216,">0",W205:W216), IF(FORECAST($C201,W$205:W$216,$C$205:$C$216)<0,0, IF(FORECAST($C201,W$205:W$216,$C$205:$C$216)>100,100, FORECAST($C201,W$205:W$216,$C$205:$C$216)))) -> 0 | X201: =IF(MAX(C205:C216)-MIN(C205:C216)<5,AVERAGEIF(C205:C216,">0",X205:X216), IF(FORECAST($C201,X$205:X$216,$C$205:$C$216)<0,0, IF(FORECAST($C201,X$205:X$216,$C$205:$C$216)>100,100, FORECAST($C201,X$205:X$216,$C$205:$C$216)))) -> 98.75077036 | AB201: =IF(MAX(C205:C216)-MIN(C205:C216)<5,AVERAGEIF(C205:C216,">0",AB205:AB216), IF(FORECAST($C201,AB$205:AB$216,$C$205:$C$216)<0,0, IF(FORECAST($C201,AB$205:AB$216,$C$205:$C$216)>100,100, FORECAST($C201,AB$205:AB$216,$C$205:$C$216)))) -> 0
C202: =MaxRegYear(C200,C205:C216) -> 2018 | D202: =IF(MAX(C205:C216)-MIN(C205:C216)<5,AVERAGEIF(C205:C216,">0",D205:D216), IF(FORECAST($C202,D$205:D$216,$C$205:$C$216)<0,0, IF(FORECAST($C202,D$205:D$216,$C$205:$C$216)>100,100, FORECAST($C202,D$205:D$216,$C$205:$C$216)))) -> 75.43431192 | H202: =IF(MAX(C205:C216)-MIN(C205:C216)<5,AVERAGEIF(C205:C216,">0",H205:H216), IF(FORECAST($C202,H$205:H$216,$C$205:$C$216)<0,0, IF(FORECAST($C202,H$205:H$216,$C$205:$C$216)>100,100, FORECAST($C202,H$205:H$216,$C$205:$C$216)))) -> 3.719372604 | I202: =IF(MAX(C205:C216)-MIN(C205:C216)<5,AVERAGEIF(C205:C216,">0",I205:I216), IF(FORECAST($C202,I$205:I$216,$C$205:$C$216)<0,0, IF(FORECAST($C202,I$205:I$216,$C$205:$C$216)>100,100, FORECAST($C202,I$205:I$216,$C$205:$C$216)))) -> 94.33023581 | M202: =IF(MAX(C205:C216)-MIN(C205:C216)<5,AVERAGEIF(C205:C216,">0",M205:M216), IF(FORECAST($C202,M$205:M$216,$C$205:$C$216)<0,0, IF(FORECAST($C202,M$205:M$216,$C$205:$C$216)>100,100, FORECAST($C202,M$205:M$216,$C$205:$C$216)))) -> 0.04736581899 | N202: =IF(MAX(C205:C216)-MIN(C205:C216)<5,AVERAGEIF(C205:C216,">0",N205:N216), IF(FORECAST($C202,N$205:N$216,$C$205:$C$216)<0,0, IF(FORECAST($C202,N$205:N$216,$C$205:$C$216)>100,100, FORECAST($C202,N$205:N$216,$C$205:$C$216)))) -> 98.42257254 | R202: =IF(MAX(C205:C216)-MIN(C205:C216)<5,AVERAGEIF(C205:C216,">0",R205:R216), IF(FORECAST($C202,R$205:R$216,$C$205:$C$216)<0,0, IF(FORECAST($C202,R$205:R$216,$C$205:$C$216)>100,100, FORECAST($C202,R$205:R$216,$C$205:$C$216)))) -> 0.09777482615 | S202: =IF(MAX(C205:C216)-MIN(C205:C216)<5,AVERAGEIF(C205:C216,">0",S205:S216), IF(FORECAST($C202,S$205:S$216,$C$205:$C$216)<0,0, IF(FORECAST($C202,S$205:S$216,$C$205:$C$216)>100,100, FORECAST($C202,S$205:S$216,$C$205:$C$216)))) -> 99.25201861 | W202: =IF(MAX(C205:C216)-MIN(C205:C216)<5,AVERAGEIF(C205:C216,">0",W205:W216), IF(FORECAST($C202,W$205:W$216,$C$205:$C$216)<0,0, IF(FORECAST($C202,W$205:W$216,$C$205:$C$216)>100,100, FORECAST($C202,W$205:W$216,$C$205:$C$216)))) -> 0 | X202: =IF(MAX(C205:C216)-MIN(C205:C216)<5,AVERAGEIF(C205:C216,">0",X205:X216), IF(FORECAST($C202,X$205:X$216,$C$205:$C$216)<0,0, IF(FORECAST($C202,X$205:X$216,$C$205:$C$216)>100,100, FORECAST($C202,X$205:X$216,$C$205:$C$216)))) -> 100 | AB202: =IF(MAX(C205:C216)-MIN(C205:C216)<5,AVERAGEIF(C205:C216,">0",AB205:AB216), IF(FORECAST($C202,AB$205:AB$216,$C$205:$C$216)<0,0, IF(FORECAST($C202,AB$205:AB$216,$C$205:$C$216)>100,100, FORECAST($C202,AB$205:AB$216,$C$205:$C$216)))) -> 0
B204: Survey | C204: Year | D204: Improved | E204: Not shared | H204: Open defecation | I204: Improved | J204: Not shared | M204: Open defecation | N204: Improved | O204: Not shared | R204: Open defecation | S204: Improved | T204: Not shared | W204: Open defecation | X204: Improved | Y204: Not shared | AB204: Open defecation
B205: WHS03 | C205: 2003 | D205: =IF(ISERROR(INDIRECT(CONCATENATE($B205,"!H122"))),"",INDIRECT(CONCATENATE($B205,"!H122"))) -> 90.96888321 | E205: =IF(ISERROR(INDIRECT(CONCATENATE($B205,"!H129"))),"",INDIRECT(CONCATENATE($B205,"!H129"))) -> 55.37425236 | H205: =IF(ISERROR(INDIRECT(CONCATENATE($B205,"!H127"))),"",INDIRECT(CONCATENATE($B205,"!H127"))) -> 0.9030074935 | I205: =IF(ISERROR(INDIRECT(CONCATENATE($B205,"!I122"))),"",INDIRECT(CONCATENATE($B205,"!I122"))) -> 97.52778347 | J205: =IF(ISERROR(INDIRECT(CONCATENATE($B205,"!I129"))),"",INDIRECT(CONCATENATE($B205,"!I129"))) -> 41.69290212 | M205: =IF(ISERROR(INDIRECT(CONCATENATE($B205,"!I127"))),"",INDIRECT(CONCATENATE($B205,"!I127"))) -> 0.2960547236 | N205: =IF(ISERROR(INDIRECT(CONCATENATE($B205,"!J122"))),"",INDIRECT(CONCATENATE($B205,"!J122"))) -> 98.10465826 | O205: =IF(ISERROR(INDIRECT(CONCATENATE($B205,"!J129"))),"",INDIRECT(CONCATENATE($B205,"!J129"))) -> 74.59041387 | R205: =IF(ISERROR(INDIRECT(CONCATENATE($B205,"!J127"))),"",INDIRECT(CONCATENATE($B205,"!J127"))) -> 0.4233887349 | S205: =IF(ISERROR(INDIRECT(CONCATENATE($B205,"!K122"))),"",INDIRECT(CONCATENATE($B205,"!K122"))) -> 99.77407839 | T205: =IF(ISERROR(INDIRECT(CONCATENATE($B205,"!K129"))),"",INDIRECT(CONCATENATE($B205,"!K129"))) -> 88.09727124 | W205: =IF(ISERROR(INDIRECT(CONCATENATE($B205,"!K127"))),"",INDIRECT(CONCATENATE($B205,"!K127"))) -> 0 | X205: =IF(ISERROR(INDIRECT(CONCATENATE($B205,"!L122"))),"",INDIRECT(CONCATENATE($B205,"!L122"))) -> 98.91415844 | Y205: =IF(ISERROR(INDIRECT(CONCATENATE($B205,"!L129"))),"",INDIRECT(CONCATENATE($B205,"!L129"))) -> 94.43305936 | AB205: =IF(ISERROR(INDIRECT(CONCATENATE($B205,"!L2127"))),"",INDIRECT(CONCATENATE($B205,"!L127"))) -> 0
B206: DHS16 | C206: 2016 | D206: 77.50558809 | E206: 41.69469825 | H206: 3.343857256 | I206: 94.7565755 | J206: 66.55008603 | M206: 0.08052433961 | N206: 98.38018397 | O206: 86.82028549 | R206: 0.141190014 | S206: 99.32162658 | T206: 95.45178623 | W206: 0 | X206: 99.97618096 | Y206: 97.8527195 | AB206: 0
B218: =CONCATENATE("Urban use of sanitation facilities, ",C199,"–",C200) -> Urban use of sanitation facilities, 2000–2020 | S218: Data points used for regression
A297: RURAL | D297: Poorest | I297: Poor | N297: Middle | S297: Rich | X297: Richest
D298: Improved | E298: Basic | F298: Limited | G298: Unimproved | H298: Open defecation | I298: Improved | J298: Basic | K298: Limited | L298: Unimproved | M298: Open defecation | N298: Improved | O298: Basic | P298: Limited | Q298: Unimproved | R298: Open defecation | S298: Improved | T298: Basic | U298: Limited | V298: Unimproved | W298: Open defecation | X298: Improved | Y298: Basic | Z298: Limited | AA298: Unimproved | AB298: Open defecation
A299: Forecast period: | C299: =MinBase(C305:C316) -> 2000 | D299: =IF((D301+H301)>100,D301*100/(D301+H301),D301) -> 36.92956364 | E299: =D299*AVERAGEIF(E305:E316,">0")/100 -> 29.38650118 | F299: =D299*(100-AVERAGEIF(E305:E316,">0"))/100 -> 7.543062459 | G299: =100-(E299+F299+H299) -> 29.07736328 | H299: =IF((D301+H301)>100,H301*100/(D301+H301),H301) -> 33.99307308 | I299: =IF((I301+M301)>100,I301*100/(I301+M301),I301) -> 35.36914798 | J299: =I299*AVERAGEIF(J305:J316,">0")/100 -> 29.26604827 | K299: =I299*(100-AVERAGEIF(J305:J316,">0"))/100 -> 6.103099719 | L299: =100-(J299+K299+M299) -> 39.8696951 | M299: =IF((I301+M301)>100,M301*100/(I301+M301),M301) -> 24.76115691 | N299: =IF((N301+R301)>100,N301*100/(N301+R301),N301) -> 64.57230832 | O299: =N299*AVERAGEIF(O305:O316,">0")/100 -> 51.61729183 | P299: =N299*(100-AVERAGEIF(O305:O316,">0"))/100 -> 12.95501649 | Q299: =100-(O299+P299+R299) -> 25.64963738 | R299: =IF((N301+R301)>100,R301*100/(N301+R301),R301) -> 9.778054302 | S299: =IF((S301+W301)>100,S301*100/(S301+W301),S301) -> 76.34367102 | T299: =S299*AVERAGEIF(T305:T316,">0")/100 -> 61.8455291 | U299: =S299*(100-AVERAGEIF(T305:T316,">0"))/100 -> 14.49814193 | V299: =100-(T299+U299+W299) -> 22.51540955 | W299: =IF((S301+W301)>100,W301*100/(S301+W301),W301) -> 1.140919424 | X299: =IF((X301+AB301)>100,X301*100/(X301+AB301),X301) -> 89.17806541 | Y299: =X299*AVERAGEIF(Y305:Y316,">0")/100 -> 76.87712208 | Z299: =X299*(100-AVERAGEIF(Y305:Y316,">0"))/100 -> 12.30094333 | AA299: =100-(Y299+Z299+AB299) -> 9.7580104 | AB299: =IF((X301+AB301)>100,AB301*100/(X301+AB301),AB301) -> 1.063924189
C300: =MaxTarget(C305:C316) -> 2020 | D300: =IF((D302+H302)>100,D302*100/(D302+H302),D302) -> 81.90286193 | E300: =D300*AVERAGEIF(E305:E316,">0")/100 -> 65.17376085 | F300: =D300*(100-AVERAGEIF(E305:E316,">0"))/100 -> 16.72910109 | G300: =100-(E300+F300+H300) -> 10.02913394 | H300: =IF((D302+H302)>100,H302*100/(D302+H302),H302) -> 8.06800413 | I300: =IF((I302+M302)>100,I302*100/(I302+M302),I302) -> 83.28275818 | J300: =I300*AVERAGEIF(J305:J316,">0")/100 -> 68.91195744 | K300: =I300*(100-AVERAGEIF(J305:J316,">0"))/100 -> 14.37080074 | L300: =100-(J300+K300+M300) -> 13.84345925 | M300: =IF((I302+M302)>100,M302*100/(I302+M302),M302) -> 2.873782564 | N300: =IF((N302+R302)>100,N302*100/(N302+R302),N302) -> 82.12798055 | O300: =N300*AVERAGEIF(O305:O316,">0")/100 -> 65.65080372 | P300: =N300*(100-AVERAGEIF(O305:O316,">0"))/100 -> 16.47717683 | Q300: =100-(O300+P300+R300) -> 15.76125682 | R300: =IF((N302+R302)>100,R302*100/(N302+R302),R302) -> 2.110762626 | S300: =IF((S302+W302)>100,S302*100/(S302+W302),S302) -> 77.87997705 | T300: =S300*AVERAGEIF(T305:T316,">0")/100 -> 63.09008097 | U300: =S300*(100-AVERAGEIF(T305:T316,">0"))/100 -> 14.78989608 | V300: =100-(T300+U300+W300) -> 17.98176569 | W300: =IF((S302+W302)>100,W302*100/(S302+W302),W302) -> 4.138257263 | X300: =IF((X302+AB302)>100,X302*100/(X302+AB302),X302) -> 79.83304499 | Y300: =X300*AVERAGEIF(Y305:Y316,">0")/100 -> 68.82112454 | Z300: =X300*(100-AVERAGEIF(Y305:Y316,">0"))/100 -> 11.01192045 | AA300: =100-(Y300+Z300+AB300) -> 19.14004179 | AB300: =IF((X302+AB302)>100,AB302*100/(X302+AB302),AB302) -> 1.026913225
A301: Regression period: | C301: =MinRegYear(C299,C305:C316) -> 2001 | D301: =IF(MAX(C305:C316)-MIN(C305:C316)<5,AVERAGEIF(C305:C316,">0",D305:D316), IF(FORECAST($C301,D$305:D$316,$C$305:$C$316)<0,0, IF(FORECAST($C301,D$305:D$316,$C$305:$C$316)>100,100, FORECAST($C301,D$305:D$316,$C$305:$C$316)))) -> 36.92956364 | H301: =IF(MAX(C305:C316)-MIN(C305:C316)<5,AVERAGEIF(C305:C316,">0",H305:H316), IF(FORECAST($C301,H$305:H$316,$C$305:$C$316)<0,0, IF(FORECAST($C301,H$305:H$316,$C$305:$C$316)>100,100, FORECAST($C301,H$305:H$316,$C$305:$C$316)))) -> 33.99307308 | I301: =IF(MAX(C305:C316)-MIN(C305:C316)<5,AVERAGEIF(C305:C316,">0",I305:I316), IF(FORECAST($C301,I$305:I$316,$C$305:$C$316)<0,0, IF(FORECAST($C301,I$305:I$316,$C$305:$C$316)>100,100, FORECAST($C301,I$305:I$316,$C$305:$C$316)))) -> 35.36914798 | M301: =IF(MAX(C305:C316)-MIN(C305:C316)<5,AVERAGEIF(C305:C316,">0",M305:M316), IF(FORECAST($C301,M$305:M$316,$C$305:$C$316)<0,0, IF(FORECAST($C301,M$305:M$316,$C$305:$C$316)>100,100, FORECAST($C301,M$305:M$316,$C$305:$C$316)))) -> 24.76115691 | N301: =IF(MAX(C305:C316)-MIN(C305:C316)<5,AVERAGEIF(C305:C316,">0",N305:N316), IF(FORECAST($C301,N$305:N$316,$C$305:$C$316)<0,0, IF(FORECAST($C301,N$305:N$316,$C$305:$C$316)>100,100, FORECAST($C301,N$305:N$316,$C$305:$C$316)))) -> 64.57230832 | R301: =IF(MAX(C305:C316)-MIN(C305:C316)<5,AVERAGEIF(C305:C316,">0",R305:R316), IF(FORECAST($C301,R$305:R$316,$C$305:$C$316)<0,0, IF(FORECAST($C301,R$305:R$316,$C$305:$C$316)>100,100, FORECAST($C301,R$305:R$316,$C$305:$C$316)))) -> 9.778054302 | S301: =IF(MAX(C305:C316)-MIN(C305:C316)<5,AVERAGEIF(C305:C316,">0",S305:S316), IF(FORECAST($C301,S$305:S$316,$C$305:$C$316)<0,0, IF(FORECAST($C301,S$305:S$316,$C$305:$C$316)>100,100, FORECAST($C301,S$305:S$316,$C$305:$C$316)))) -> 76.34367102 | W301: =IF(MAX(C305:C316)-MIN(C305:C316)<5,AVERAGEIF(C305:C316,">0",W305:W316), IF(FORECAST($C301,W$305:W$316,$C$305:$C$316)<0,0, IF(FORECAST($C301,W$305:W$316,$C$305:$C$316)>100,100, FORECAST($C301,W$305:W$316,$C$305:$C$316)))) -> 1.140919424 | X301: =IF(MAX(C305:C316)-MIN(C305:C316)<5,AVERAGEIF(C305:C316,">0",X305:X316), IF(FORECAST($C301,X$305:X$316,$C$305:$C$316)<0,0, IF(FORECAST($C301,X$305:X$316,$C$305:$C$316)>100,100, FORECAST($C301,X$305:X$316,$C$305:$C$316)))) -> 89.17806541 | AB301: =IF(MAX(C305:C316)-MIN(C305:C316)<5,AVERAGEIF(C305:C316,">0",AB305:AB316), IF(FORECAST($C301,AB$305:AB$316,$C$305:$C$316)<0,0, IF(FORECAST($C301,AB$305:AB$316,$C$305:$C$316)>100,100, FORECAST($C301,AB$305:AB$316,$C$305:$C$316)))) -> 1.063924189
C302: =MaxRegYear(C300,C305:C316) -> 2018 | D302: =IF(MAX(C305:C316)-MIN(C305:C316)<5,AVERAGEIF(C305:C316,">0",D305:D316), IF(FORECAST($C302,D$305:D$316,$C$305:$C$316)<0,0, IF(FORECAST($C302,D$305:D$316,$C$305:$C$316)>100,100, FORECAST($C302,D$305:D$316,$C$305:$C$316)))) -> 81.90286193 | H302: =IF(MAX(C305:C316)-MIN(C305:C316)<5,AVERAGEIF(C305:C316,">0",H305:H316), IF(FORECAST($C302,H$305:H$316,$C$305:$C$316)<0,0, IF(FORECAST($C302,H$305:H$316,$C$305:$C$316)>100,100, FORECAST($C302,H$305:H$316,$C$305:$C$316)))) -> 8.06800413 | I302: =IF(MAX(C305:C316)-MIN(C305:C316)<5,AVERAGEIF(C305:C316,">0",I305:I316), IF(FORECAST($C302,I$305:I$316,$C$305:$C$316)<0,0, IF(FORECAST($C302,I$305:I$316,$C$305:$C$316)>100,100, FORECAST($C302,I$305:I$316,$C$305:$C$316)))) -> 83.28275818 | M302: =IF(MAX(C305:C316)-MIN(C305:C316)<5,AVERAGEIF(C305:C316,">0",M305:M316), IF(FORECAST($C302,M$305:M$316,$C$305:$C$316)<0,0, IF(FORECAST($C302,M$305:M$316,$C$305:$C$316)>100,100, FORECAST($C302,M$305:M$316,$C$305:$C$316)))) -> 2.873782564 | N302: =IF(MAX(C305:C316)-MIN(C305:C316)<5,AVERAGEIF(C305:C316,">0",N305:N316), IF(FORECAST($C302,N$305:N$316,$C$305:$C$316)<0,0, IF(FORECAST($C302,N$305:N$316,$C$305:$C$316)>100,100, FORECAST($C302,N$305:N$316,$C$305:$C$316)))) -> 82.12798055 | R302: =IF(MAX(C305:C316)-MIN(C305:C316)<5,AVERAGEIF(C305:C316,">0",R305:R316), IF(FORECAST($C302,R$305:R$316,$C$305:$C$316)<0,0, IF(FORECAST($C302,R$305:R$316,$C$305:$C$316)>100,100, FORECAST($C302,R$305:R$316,$C$305:$C$316)))) -> 2.110762626 | S302: =IF(MAX(C305:C316)-MIN(C305:C316)<5,AVERAGEIF(C305:C316,">0",S305:S316), IF(FORECAST($C302,S$305:S$316,$C$305:$C$316)<0,0, IF(FORECAST($C302,S$305:S$316,$C$305:$C$316)>100,100, FORECAST($C302,S$305:S$316,$C$305:$C$316)))) -> 77.87997705 | W302: =IF(MAX(C305:C316)-MIN(C305:C316)<5,AVERAGEIF(C305:C316,">0",W305:W316), IF(FORECAST($C302,W$305:W$316,$C$305:$C$316)<0,0, IF(FORECAST($C302,W$305:W$316,$C$305:$C$316)>100,100, FORECAST($C302,W$305:W$316,$C$305:$C$316)))) -> 4.138257263 | X302: =IF(MAX(C305:C316)-MIN(C305:C316)<5,AVERAGEIF(C305:C316,">0",X305:X316), IF(FORECAST($C302,X$305:X$316,$C$305:$C$316)<0,0, IF(FORECAST($C302,X$305:X$316,$C$305:$C$316)>100,100, FORECAST($C302,X$305:X$316,$C$305:$C$316)))) -> 79.83304499 | AB302: =IF(MAX(C305:C316)-MIN(C305:C316)<5,AVERAGEIF(C305:C316,">0",AB305:AB316), IF(FORECAST($C302,AB$305:AB$316,$C$305:$C$316)<0,0, IF(FORECAST($C302,AB$305:AB$316,$C$305:$C$316)>100,100, FORECAST($C302,AB$305:AB$316,$C$305:$C$316)))) -> 1.026913225
B304: Survey | C304: Year | D304: Improved | E304: Not shared | H304: Open defecation | I304: Improved | J304: Not shared | M304: Open defecation | N304: Improved | O304: Not shared | R304: Open defecation | S304: Improved | T304: Not shared | W304: Open defecation | X304: Improved | Y304: Not shared | AB304: Open defecation
B305: WHS03 | C305: 2003 | D305: =IF(ISERROR(INDIRECT(CONCATENATE($B305,"!M122"))),"",INDIRECT(CONCATENATE($B305,"!M122"))) -> 42.22053991 | E305: =IF(ISERROR(INDIRECT(CONCATENATE($B305,"!M129"))),"",INDIRECT(CONCATENATE($B305,"!M129"))) -> 64.29022779 | H305: =IF(ISERROR(INDIRECT(CONCATENATE($B305,"!M127"))),"",INDIRECT(CONCATENATE($B305,"!M127"))) -> 30.94306497 | I305: =IF(ISERROR(INDIRECT(CONCATENATE($B305,"!N122"))),"",INDIRECT(CONCATENATE($B305,"!N122"))) -> 41.0060433 | J305: =IF(ISERROR(INDIRECT(CONCATENATE($B305,"!N129"))),"",INDIRECT(CONCATENATE($B305,"!N129"))) -> 68.33374987 | M305: =IF(ISERROR(INDIRECT(CONCATENATE($B305,"!N127"))),"",INDIRECT(CONCATENATE($B305,"!N127"))) -> 22.18617169 | N305: =IF(ISERROR(INDIRECT(CONCATENATE($B305,"!O122"))),"",INDIRECT(CONCATENATE($B305,"!O122"))) -> 66.63768153 | O305: =IF(ISERROR(INDIRECT(CONCATENATE($B305,"!O129"))),"",INDIRECT(CONCATENATE($B305,"!O129"))) -> 68.21488547 | R305: =IF(ISERROR(INDIRECT(CONCATENATE($B305,"!O127"))),"",INDIRECT(CONCATENATE($B305,"!O127"))) -> 8.876019988 | S305: =IF(ISERROR(INDIRECT(CONCATENATE($B305,"!P122"))),"",INDIRECT(CONCATENATE($B305,"!P122"))) -> 76.52441291 | T305: =IF(ISERROR(INDIRECT(CONCATENATE($B305,"!P129"))),"",INDIRECT(CONCATENATE($B305,"!P129"))) -> 74.15767515 | W305: =IF(ISERROR(INDIRECT(CONCATENATE($B305,"!P127"))),"",INDIRECT(CONCATENATE($B305,"!P127"))) -> 1.493547405 | X305: =IF(ISERROR(INDIRECT(CONCATENATE($B305,"!Q122"))),"",INDIRECT(CONCATENATE($B305,"!Q122"))) -> 88.07865124 | Y305: =IF(ISERROR(INDIRECT(CONCATENATE($B305,"!Q129"))),"",INDIRECT(CONCATENATE($B305,"!Q129"))) -> 77.46560286 | AB305: =IF(ISERROR(INDIRECT(CONCATENATE($B305,"!Q2127"))),"",INDIRECT(CONCATENATE($B305,"!Q127"))) -> 1.059569958
B306: DHS16 | C306: 2016 | D306: 76.61188566 | E306: 94.85869401 | H306: 11.11801224 | I306: 77.64586286 | J306: 97.15538364 | M306: 5.448767781 | N306: 80.06260735 | O306: 91.65950394 | R306: 3.012796941 | S306: 77.69923516 | T306: 87.86107053 | W306: 3.785629282 | X306: 80.93245916 | Y306: 94.94702289 | AB306: 1.031267456
B318: =CONCATENATE("Rural use of sanitation facilities, ",C299,"–",C300) -> Rural use of sanitation facilities, 2000–2020 | S318: Data points used for regression

Sheet Hygiene
B4: Access to hygiene facilities by wealth quintile (%)
B5: =IF(ISERROR(INDIRECT(CONCATENATE($E$32,"!A2"))),"",INDIRECT(CONCATENATE($E$32,"!A2"))) -> South Africa
B7: =CONCATENATE("National ",IF(ISERROR(INDIRECT(CONCATENATE($E$32,"!A2"))),"",INDIRECT(CONCATENATE($E$32,"!A210")))) -> National Access to hygiene facilities | K7: =CONCATENATE("Urban ",IF(ISERROR(INDIRECT(CONCATENATE($E$32,"!A2"))),"",INDIRECT(CONCATENATE($E$32,"!A210")))) -> Urban Access to hygiene facilities | S7: =CONCATENATE("Rural ",IF(ISERROR(INDIRECT(CONCATENATE($E$32,"!A2"))),"",INDIRECT(CONCATENATE($E$32,"!A210")))) -> Rural Access to hygiene facilities
E32: =INDEX(B88:B100,A88) -> DHS16 | G32: =IF(ISERROR(INDIRECT(CONCATENATE($E$32,"!A2"))),"",INDIRECT(CONCATENATE($E$32,"!A2"))) -> South Africa | K32: Poorest | N32: Poor | Q32: Middle | T32: Rich | W32: Richest
K33: Basic | L33: Limited | M33: No facility | N33: Basic | O33: Limited | P33: No facility | Q33: Basic | R33: Limited | S33: No facility | T33: Basic | U33: Limited | V33: No facility | W33: Basic | X33: Limited | Y33: No facility
B34: >>> Select Survey : | G34: NATIONAL | J34: =IF(ISERROR(INDIRECT(CONCATENATE(#REF!,"!A2"))),"",INDIRECT(CONCATENATE(#REF!,"!A210"))) ->  | K34: =IF(ISERROR(INDIRECT(CONCATENATE($E$32,"!C222"))),"",INDIRECT(CONCATENATE($E$32,"!C222"))) -> 4.343950332 | L34: =IF(ISERROR(INDIRECT(CONCATENATE($E$32,"!C223"))),"",INDIRECT(CONCATENATE($E$32,"!C223"))) -> 67.22311192 | M34: =IF(ISERROR(INDIRECT(CONCATENATE($E$32,"!C224"))),"",INDIRECT(CONCATENATE($E$32,"!C224"))) -> 28.43293775 | N34: =IF(ISERROR(INDIRECT(CONCATENATE($E$32,"!D222"))),"",INDIRECT(CONCATENATE($E$32,"!D222"))) -> 9.740770519 | O34: =IF(ISERROR(INDIRECT(CONCATENATE($E$32,"!D223"))),"",INDIRECT(CONCATENATE($E$32,"!D223"))) -> 73.3783537 | P34: =IF(ISERROR(INDIRECT(CONCATENATE($E$32,"!D224"))),"",INDIRECT(CONCATENATE($E$32,"!D224"))) -> 16.88087579 | Q34: =IF(ISERROR(INDIRECT(CONCATENATE($E$32,"!E222"))),"",INDIRECT(CONCATENATE($E$32,"!E222"))) -> 21.93905579 | R34: =IF(ISERROR(INDIRECT(CONCATENATE($E$32,"!E223"))),"",INDIRECT(CONCATENATE($E$32,"!E223"))) -> 67.68149266 | S34: =IF(ISERROR(INDIRECT(CONCATENATE($E$32,"!E224"))),"",INDIRECT(CONCATENATE($E$32,"!E224"))) -> 10.37945155 | T34: =IF(ISERROR(INDIRECT(CONCATENATE($E$32,"!F222"))),"",INDIRECT(CONCATENATE($E$32,"!F222"))) -> 50.53708058 | U34: =IF(ISERROR(INDIRECT(CONCATENATE($E$32,"!F223"))),"",INDIRECT(CONCATENATE($E$32,"!F223"))) -> 44.83600711 | V34: =IF(ISERROR(INDIRECT(CONCATENATE($E$32,"!F224"))),"",INDIRECT(CONCATENATE($E$32,"!F224"))) -> 4.626912306 | W34: =IF(ISERROR(INDIRECT(CONCATENATE($E$32,"!G222"))),"",INDIRECT(CONCATENATE($E$32,"!G222"))) -> 79.81592802 | X34: =IF(ISERROR(INDIRECT(CONCATENATE($E$32,"!G223"))),"",INDIRECT(CONCATENATE($E$32,"!G223"))) -> 17.72639407 | Y34: =IF(ISERROR(INDIRECT(CONCATENATE($E$32,"!G224"))),"",INDIRECT(CONCATENATE($E$32,"!G224"))) -> 2.457677917
G37: URBAN | J37: =IF(ISERROR(INDIRECT(CONCATENATE(#REF!,"!A2"))),"",INDIRECT(CONCATENATE(#REF!,"!A210"))) ->  | K37: =IF(ISERROR(INDIRECT(CONCATENATE($E$32,"!H222"))),"",INDIRECT(CONCATENATE($E$32,"!H222"))) -> 7.28488203 | L37: =IF(ISERROR(INDIRECT(CONCATENATE($E$32,"!H223"))),"",INDIRECT(CONCATENATE($E$32,"!H223"))) -> 66.07432609 | M37: =IF(ISERROR(INDIRECT(CONCATENATE($E$32,"!H224"))),"",INDIRECT(CONCATENATE($E$32,"!H224"))) -> 26.64079188 | N37: =IF(ISERROR(INDIRECT(CONCATENATE($E$32,"!I222"))),"",INDIRECT(CONCATENATE($E$32,"!I222"))) -> 27.71170504 | O37: =IF(ISERROR(INDIRECT(CONCATENATE($E$32,"!I223"))),"",INDIRECT(CONCATENATE($E$32,"!I223"))) -> 61.3629343 | P37: =IF(ISERROR(INDIRECT(CONCATENATE($E$32,"!I224"))),"",INDIRECT(CONCATENATE($E$32,"!I224"))) -> 10.92536066 | Q37: =IF(ISERROR(INDIRECT(CONCATENATE($E$32,"!J222"))),"",INDIRECT(CONCATENATE($E$32,"!J222"))) -> 44.68719343 | R37: =IF(ISERROR(INDIRECT(CONCATENATE($E$32,"!J223"))),"",INDIRECT(CONCATENATE($E$32,"!J223"))) -> 48.89721815 | S37: =IF(ISERROR(INDIRECT(CONCATENATE($E$32,"!J224"))),"",INDIRECT(CONCATENATE($E$32,"!J224"))) -> 6.41558842 | T37: =IF(ISERROR(INDIRECT(CONCATENATE($E$32,"!K222"))),"",INDIRECT(CONCATENATE($E$32,"!K222"))) -> 70.5551851 | U37: =IF(ISERROR(INDIRECT(CONCATENATE($E$32,"!K223"))),"",INDIRECT(CONCATENATE($E$32,"!K223"))) -> 26.81720058 | V37: =IF(ISERROR(INDIRECT(CONCATENATE($E$32,"!K224"))),"",INDIRECT(CONCATENATE($E$32,"!K224"))) -> 2.627614325 | W37: =IF(ISERROR(INDIRECT(CONCATENATE($E$32,"!L222"))),"",INDIRECT(CONCATENATE($E$32,"!L222"))) -> 84.26280228 | X37: =IF(ISERROR(INDIRECT(CONCATENATE($E$32,"!L223"))),"",INDIRECT(CONCATENATE($E$32,"!L223"))) -> 13.58356304 | Y37: =IF(ISERROR(INDIRECT(CONCATENATE($E$32,"!L224"))),"",INDIRECT(CONCATENATE($E$32,"!L224"))) -> 2.153634681
G40: RURAL | J40: =IF(ISERROR(INDIRECT(CONCATENATE(#REF!,"!A2"))),"",INDIRECT(CONCATENATE(#REF!,"!A210"))) ->  | K40: =IF(ISERROR(INDIRECT(CONCATENATE($E$32,"!M222"))),"",INDIRECT(CONCATENATE($E$32,"!M222"))) -> 4.653189564 | L40: =IF(ISERROR(INDIRECT(CONCATENATE($E$32,"!M223"))),"",INDIRECT(CONCATENATE($E$32,"!M223"))) -> 61.80317324 | M40: =IF(ISERROR(INDIRECT(CONCATENATE($E$32,"!M224"))),"",INDIRECT(CONCATENATE($E$32,"!M224"))) -> 33.5436372 | N40: =IF(ISERROR(INDIRECT(CONCATENATE($E$32,"!N222"))),"",INDIRECT(CONCATENATE($E$32,"!N222"))) -> 4.009345344 | O40: =IF(ISERROR(INDIRECT(CONCATENATE($E$32,"!N223"))),"",INDIRECT(CONCATENATE($E$32,"!N223"))) -> 76.12711397 | P40: =IF(ISERROR(INDIRECT(CONCATENATE($E$32,"!N224"))),"",INDIRECT(CONCATENATE($E$32,"!N224"))) -> 19.86354069 | Q40: =IF(ISERROR(INDIRECT(CONCATENATE($E$32,"!O222"))),"",INDIRECT(CONCATENATE($E$32,"!O222"))) -> 3.88107311 | R40: =IF(ISERROR(INDIRECT(CONCATENATE($E$32,"!O223"))),"",INDIRECT(CONCATENATE($E$32,"!O223"))) -> 82.59627581 | S40: =IF(ISERROR(INDIRECT(CONCATENATE($E$32,"!O224"))),"",INDIRECT(CONCATENATE($E$32,"!O224"))) -> 13.52265108 | T40: =IF(ISERROR(INDIRECT(CONCATENATE($E$32,"!P222"))),"",INDIRECT(CONCATENATE($E$32,"!P222"))) -> 7.894257243 | U40: =IF(ISERROR(INDIRECT(CONCATENATE($E$32,"!P223"))),"",INDIRECT(CONCATENATE($E$32,"!P223"))) -> 80.81921983 | V40: =IF(ISERROR(INDIRECT(CONCATENATE($E$32,"!P224"))),"",INDIRECT(CONCATENATE($E$32,"!P224"))) -> 11.28652292 | W40: =IF(ISERROR(INDIRECT(CONCATENATE($E$32,"!Q222"))),"",INDIRECT(CONCATENATE($E$32,"!Q222"))) -> 28.33077477 | X40: =IF(ISERROR(INDIRECT(CONCATENATE($E$32,"!Q223"))),"",INDIRECT(CONCATENATE($E$32,"!Q223"))) -> 63.01289522 | Y40: =IF(ISERROR(INDIRECT(CONCATENATE($E$32,"!Q224"))),"",INDIRECT(CONCATENATE($E$32,"!Q224"))) -> 8.656330014
A88: 2 | B88: WHS03
B89: DHS16
B90: Template

Sheet WHS03
A2: =A1026 -> South Africa
A3: =A1034 -> 2003
A4: Use of drinking water sources
A5: by wealth quintile and sub-national region
A6: Notes:
A7: WHO/UNICEF JMP customised wealth index excludes water,
A8: sanitation and hygiene assets.
A9: Survey used for analysis: | B9: =A1025 -> WHS03
A10: =B1028 -> 
A11: =B1027 -> 
A14: Use of drinking water sources | C14: NATIONAL wealth index quintile | H14: URBAN wealth index quintile | M14: RURAL wealth index quintile | BA14: Raw numbers of respondents: | BB14: Use of drinking water sources | BC14: NATIONAL wealth index quintile | BH14: URBAN wealth index quintile | BM14: RURAL wealth index quintile
A15: Weighted percentage (used in graphs) | C15: Poorest | D15: Poor | E15: Middle | F15: Rich | G15: Richest | H15: Poorest | I15: Poor | J15: Middle | K15: Rich | L15: Richest | M15: Poorest | N15: Poor | O15: Middle | P15: Rich | Q15: Richest | BA15: Water data, raw numbers (weighted) | BC15: Poorest | BD15: Poor | BE15: Middle | BF15: Rich | BG15: Richest | BH15: Poorest | BI15: Poor | BJ15: Middle | BK15: Rich | BL15: Richest | BM15: Poorest | BN15: Poor | BO15: Middle | BP15: Rich | BQ15: Richest
A16: Water | B16: Improved | C16: 77.94436029 | D16: 87.73269101 | E16: 88.39482325 | F16: 94.5768225 | G16: 96.16820928 | H16: 93.60627731 | I16: 89.60238792 | J16: 88.15925556 | K16: 95.41766498 | L16: 97.16658555 | M16: 63.18048796 | N16: 80.77909337 | O16: 85.7225632 | P16: 87.10818675 | Q16: 96.71389327 | BA16: Water | BB16: Improved | BC16: N/A | BD16: N/A | BE16: N/A | BF16: N/A | BG16: N/A | BH16: N/A | BI16: N/A | BJ16: N/A | BK16: N/A | BL16: N/A | BM16: N/A | BN16: N/A | BO16: N/A | BP16: N/A | BQ16: N/A
B17: Not Improved | C17: 22.05563971 | D17: 12.26730899 | E17: 11.60517675 | F17: 5.423177505 | G17: 3.831790718 | H17: 6.393722693 | I17: 10.39761208 | J17: 11.84074444 | K17: 4.582335023 | L17: 2.833414453 | M17: 36.81951204 | N17: 19.22090663 | O17: 14.2774368 | P17: 12.89181325 | Q17: 3.286106727 | BB17: Not Improved | BC17: N/A | BD17: N/A | BE17: N/A | BF17: N/A | BG17: N/A | BH17: N/A | BI17: N/A | BJ17: N/A | BK17: N/A | BL17: N/A | BM17: N/A | BN17: N/A | BO17: N/A | BP17: N/A | BQ17: N/A
A18: Water ladder | B18: Basic | C18: =C16*C23/100 -> 64.57606565 | D18: =D16*D23/100 -> 82.85070601 | E18: =E16*E23/100 -> 82.83756306 | F18: 85.89383947 | G18: 96.16820928 | H18: 86.20477694 | I18: 83.75299468 | J18: 88.15925556 | K18: 95.41766498 | L18: 97.16658555 | M18: 50.25833669 | N18: 68.31762903 | O18: 78.8014302 | P18: 79.66459322 | Q18: 82.2599511 | BA18: Water ladder | BB18: Basic | BC18: N/A | BD18: N/A | BE18: N/A | BF18: N/A | BG18: N/A | BH18: N/A | BI18: N/A | BJ18: N/A | BK18: N/A | BL18: N/A | BM18: N/A | BN18: N/A | BO18: N/A | BP18: N/A | BQ18: N/A
B19: Limited | C19: =C16*C22/100 -> 13.36829464 | D19: =D16*D22/100 -> 4.881984998 | E19: =E16*E22/100 -> 5.557260192 | F19: 8.682983024 | G19: 0 | H19: 7.401500368 | I19: 5.849393237 | J19: 0 | K19: 0 | L19: 0 | M19: 12.92215127 | N19: 12.46146434 | O19: 6.921133006 | P19: 7.443593526 | Q19: 14.45394217 | BB19: Limited | BC19: N/A | BD19: N/A | BE19: N/A | BF19: N/A | BG19: N/A | BH19: N/A | BI19: N/A | BJ19: N/A | BK19: N/A | BL19: N/A | BM19: N/A | BN19: N/A | BO19: N/A | BP19: N/A | BQ19: N/A
B20: Unimproved | C20: =100-C18-C19-C21 -> 10.82971758 | D20: =100-D18-D19-D21 -> 10.94889077 | E20: =100-E18-E19-E21 -> 9.775147019 | F20: 5.423177505 | G20: 3.831790718 | H20: 6.393722693 | I20: 10.39761208 | J20: 11.84074444 | K20: 4.582335023 | L20: 2.833414453 | M20: 14.81036308 | N20: 15.54604559 | O20: 11.88540393 | P20: 7.887752247 | Q20: 3.286106727 | BB20: Unimproved | BC20: N/A | BD20: N/A | BE20: N/A | BF20: N/A | BG20: N/A | BH20: N/A | BI20: N/A | BJ20: N/A | BK20: N/A | BL20: N/A | BM20: N/A | BN20: N/A | BO20: N/A | BP20: N/A | BQ20: N/A
B21: Surface water | C21: 11.22592213 | D21: 1.318418215 | E21: 1.830029733 | F21: 0 | G21: 0 | H21: 0 | I21: 0 | J21: 0 | K21: 0 | L21: 0 | M21: 22.00914896 | N21: 3.674861046 | O21: 2.392032866 | P21: 5.004061007 | Q21: 0 | BB21: Surface water | BC21: N/A | BD21: N/A | BE21: N/A | BF21: N/A | BG21: N/A | BH21: N/A | BI21: N/A | BJ21: N/A | BK21: N/A | BL21: N/A | BM21: N/A | BN21: N/A | BO21: N/A | BP21: N/A | BQ21: N/A
A22: Improved water point at more than 30 minutes | B22: Yes | C22: 17.15107365 | D22: 5.564613306 | E22: 6.286861592 | F22: 9.180878354 | G22: 0 | H22: 7.907055574 | I22: 6.528166685 | J22: 0 | K22: 0 | L22: 0 | M22: 20.45275637 | N22: 15.42659594 | O22: 8.073875474 | P22: 8.545228416 | Q22: 14.94505255 | BA22: Improved water point at more than 30 minutes | BB22: Yes | BC22: N/A | BD22: N/A | BE22: N/A | BF22: N/A | BG22: N/A | BH22: N/A | BI22: N/A | BJ22: N/A | BK22: N/A | BL22: N/A | BM22: N/A | BN22: N/A | BO22: N/A | BP22: N/A | BQ22: N/A
B23: No | C23: 82.84892635 | D23: 94.43538669 | E23: 93.71313841 | F23: 90.81912165 | G23: 100 | H23: 92.09294443 | I23: 93.47183332 | J23: 100 | K23: 100 | L23: 100 | M23: 79.54724363 | N23: 84.57340406 | O23: 91.92612453 | P23: 91.45477158 | Q23: 85.05494745 | BB23: No | BC23: N/A | BD23: N/A | BE23: N/A | BF23: N/A | BG23: N/A | BH23: N/A | BI23: N/A | BJ23: N/A | BK23: N/A | BL23: N/A | BM23: N/A | BN23: N/A | BO23: N/A | BP23: N/A | BQ23: N/A
A24: Manually calculated ratios | B24: Improved wells
B25: Improved springs
B26: Other
C27: NATIONAL wealth index quintile | H27: URBAN wealth index quintile | M27: RURAL wealth index quintile | BA27: Raw numbers of respondents: | BB27: Use of drinking water sources | BC27: NATIONAL wealth index quintile | BH27: URBAN wealth index quintile | BM27: RURAL wealth index quintile
A28: Percentage based on weighted population | C28: Poorest | D28: Poor | E28: Middle | F28: Rich | G28: Richest | H28: Poorest | I28: Poor | J28: Middle | K28: Rich | L28: Richest | M28: Poorest | N28: Poor | O28: Middle | P28: Rich | Q28: Richest | BA28: Water data, raw numbers (weighted) | BC28: Poorest | BD28: Poor | BE28: Middle | BF28: Rich | BG28: Richest | BH28: Poorest | BI28: Poor | BJ28: Middle | BK28: Rich | BL28: Richest | BM28: Poorest | BN28: Poor | BO28: Middle | BP28: Rich | BQ28: Richest
A29: Piped water | B29: Yes | C29: 63.21646071 | D29: 81.4267436 | E29: 85.64057055 | F29: 93.6677119 | G29: 95.97186598 | H29: 91.18292053 | I29: 89.60238792 | J29: 87.58639703 | K29: 95.41766498 | L29: 97.16658555 | M29: 44.9798617 | N29: 63.66989202 | O29: 73.69973825 | P29: 76.97754854 | Q29: 93.42054076 | BA29: Piped water | BB29: Yes | BC29: N/A | BD29: N/A | BE29: N/A | BF29: N/A | BG29: N/A | BH29: N/A | BI29: N/A | BJ29: N/A | BK29: N/A | BL29: N/A | BM29: N/A | BN29: N/A | BO29: N/A | BP29: N/A | BQ29: N/A
B30: No | C30: 36.78353929 | D30: 18.5732564 | E30: 14.35942945 | F30: 6.332288101 | G30: 4.028134019 | H30: 8.817079473 | I30: 10.39761208 | J30: 12.41360297 | K30: 4.582335023 | L30: 2.833414453 | M30: 55.0201383 | N30: 36.33010798 | O30: 26.30026175 | P30: 23.02245146 | Q30: 6.579459241 | BB30: No | BC30: N/A | BD30: N/A | BE30: N/A | BF30: N/A | BG30: N/A | BH30: N/A | BI30: N/A | BJ30: N/A | BK30: N/A | BL30: N/A | BM30: N/A | BN30: N/A | BO30: N/A | BP30: N/A | BQ30: N/A
A31: Piped water on premises | B31: Yes | C31: 25.97202451 | D31: 58.68927606 | E31: 65.40022939 | F31: 89.38376576 | G31: 95.55835178 | H31: 65.14245653 | I31: 66.8093635 | J31: 79.68233559 | K31: 95.24324584 | L31: 97.16658555 | M31: 10.72835312 | N31: 30.49692897 | O31: 36.2325399 | P31: 61.49997407 | Q31: 83.08273251 | BA31: Piped water on premises | BB31: Yes | BC31: N/A | BD31: N/A | BE31: N/A | BF31: N/A | BG31: N/A | BH31: N/A | BI31: N/A | BJ31: N/A | BK31: N/A | BL31: N/A | BM31: N/A | BN31: N/A | BO31: N/A | BP31: N/A | BQ31: N/A
B32: No | C32: 74.02797549 | D32: 41.31072394 | E32: 34.59977061 | F32: 10.61623424 | G32: 4.441648224 | H32: 34.85754347 | I32: 33.1906365 | J32: 20.31766441 | K32: 4.75675416 | L32: 2.833414453 | M32: 89.27164688 | N32: 69.50307103 | O32: 63.7674601 | P32: 38.50002593 | Q32: 16.91726749 | BB32: No | BC32: N/A | BD32: N/A | BE32: N/A | BF32: N/A | BG32: N/A | BH32: N/A | BI32: N/A | BJ32: N/A | BK32: N/A | BL32: N/A | BM32: N/A | BN32: N/A | BO32: N/A | BP32: N/A | BQ32: N/A
A33: Piped water into dwelling | B33: Yes | C33: N/A | D33: N/A | E33: N/A | F33: N/A | G33: N/A | H33: N/A | I33: N/A | J33: N/A | K33: N/A | L33: N/A | M33: N/A | N33: N/A | O33: N/A | P33: N/A | Q33: N/A | BA33: Piped water into dwelling | BB33: Yes | BC33: N/A | BD33: N/A | BE33: N/A | BF33: N/A | BG33: N/A | BH33: N/A | BI33: N/A | BJ33: N/A | BK33: N/A | BL33: N/A | BM33: N/A | BN33: N/A | BO33: N/A | BP33: N/A | BQ33: N/A
B34: No | C34: N/A | D34: N/A | E34: N/A | F34: N/A | G34: N/A | H34: N/A | I34: N/A | J34: N/A | K34: N/A | L34: N/A | M34: N/A | N34: N/A | O34: N/A | P34: N/A | Q34: N/A | BB34: No | BC34: N/A | BD34: N/A | BE34: N/A | BF34: N/A | BG34: N/A | BH34: N/A | BI34: N/A | BJ34: N/A | BK34: N/A | BL34: N/A | BM34: N/A | BN34: N/A | BO34: N/A | BP34: N/A | BQ34: N/A
A35: Water source on premises | B35: Yes | C35: N/A | D35: N/A | E35: N/A | F35: N/A | G35: N/A | H35: N/A | I35: N/A | J35: N/A | K35: N/A | L35: N/A | M35: N/A | N35: N/A | O35: N/A | P35: N/A | Q35: N/A | BA35: Water source on premises | BB35: Yes | BC35: N/A | BD35: N/A | BE35: N/A | BF35: N/A | BG35: N/A | BH35: N/A | BI35: N/A | BJ35: N/A | BK35: N/A | BL35: N/A | BM35: N/A | BN35: N/A | BO35: N/A | BP35: N/A | BQ35: N/A
B36: No | C36: N/A | D36: N/A | E36: N/A | F36: N/A | G36: N/A | H36: N/A | I36: N/A | J36: N/A | K36: N/A | L36: N/A | M36: N/A | N36: N/A | O36: N/A | P36: N/A | Q36: N/A | BB36: No | BC36: N/A | BD36: N/A | BE36: N/A | BF36: N/A | BG36: N/A | BH36: N/A | BI36: N/A | BJ36: N/A | BK36: N/A | BL36: N/A | BM36: N/A | BN36: N/A | BO36: N/A | BP36: N/A | BQ36: N/A
A37: Improved Water source on premises | B37: Yes | C37: N/A | D37: N/A | E37: N/A | F37: N/A | G37: N/A | H37: N/A | I37: N/A | J37: N/A | K37: N/A | L37: N/A | M37: N/A | N37: N/A | O37: N/A | P37: N/A | Q37: N/A | BA37: Improved water source on premises | BB37: Yes | BC37: N/A | BD37: N/A | BE37: N/A | BF37: N/A | BG37: N/A | BH37: N/A | BI37: N/A | BJ37: N/A | BK37: N/A | BL37: N/A | BM37: N/A | BN37: N/A | BO37: N/A | BP37: N/A | BQ37: N/A
B38: No | C38: N/A | D38: N/A | E38: N/A | F38: N/A | G38: N/A | H38: N/A | I38: N/A | J38: N/A | K38: N/A | L38: N/A | M38: N/A | N38: N/A | O38: N/A | P38: N/A | Q38: N/A | BB38: No | BC38: N/A | BD38: N/A | BE38: N/A | BF38: N/A | BG38: N/A | BH38: N/A | BI38: N/A | BJ38: N/A | BK38: N/A | BL38: N/A | BM38: N/A | BN38: N/A | BO38: N/A | BP38: N/A | BQ38: N/A
A39: Piped water on premises available when needed | B39: Yes | C39: N/A | D39: N/A | E39: N/A | F39: N/A | G39: N/A | H39: N/A | I39: N/A | J39: N/A | K39: N/A | L39: N/A | M39: N/A | N39: N/A | O39: N/A | P39: N/A | Q39: N/A | BA39: Piped water on premises available when needed | BB39: Yes | BC39: N/A | BD39: N/A | BE39: N/A | BF39: N/A | BG39: N/A | BH39: N/A | BI39: N/A | BJ39: N/A | BK39: N/A | BL39: N/A | BM39: N/A | BN39: N/A | BO39: N/A | BP39: N/A | BQ39: N/A
B40: No | C40: N/A | D40: N/A | E40: N/A | F40: N/A | G40: N/A | H40: N/A | I40: N/A | J40: N/A | K40: N/A | L40: N/A | M40: N/A | N40: N/A | O40: N/A | P40: N/A | Q40: N/A | BB40: No | BC40: N/A | BD40: N/A | BE40: N/A | BF40: N/A | BG40: N/A | BH40: N/A | BI40: N/A | BJ40: N/A | BK40: N/A | BL40: N/A | BM40: N/A | BN40: N/A | BO40: N/A | BP40: N/A | BQ40: N/A
A41: Water point at more than 30 minutes | B41: Yes | C41: 26.08747648 | D41: 12.01175668 | E41: 7.577056032 | F41: 9.615286009 | G41: 0.5350959338 | H41: 8.116963833 | I41: 6.528166685 | J41: 0 | K41: 0 | L41: 0 | M41: 37.9807094 | N41: 16.44306442 | O41: 17.30782521 | P41: 13.81490309 | Q41: 15.84580747 | BA41: Water point at more than 30 minutes | BB41: Yes | BC41: N/A | BD41: N/A | BE41: N/A | BF41: N/A | BG41: N/A | BH41: N/A | BI41: N/A | BJ41: N/A | BK41: N/A | BL41: N/A | BM41: N/A | BN41: N/A | BO41: N/A | BP41: N/A | BQ41: N/A
B42: No | C42: 73.91252352 | D42: 87.98824332 | E42: 92.42294397 | F42: 90.38471399 | G42: 99.46490407 | H42: 91.88303617 | I42: 93.47183332 | J42: 100 | K42: 100 | L42: 100 | M42: 62.0192906 | N42: 83.55693558 | O42: 82.69217479 | P42: 86.18509691 | Q42: 84.15419253 | BB42: No | BC42: N/A | BD42: N/A | BE42: N/A | BF42: N/A | BG42: N/A | BH42: N/A | BI42: N/A | BJ42: N/A | BK42: N/A | BL42: N/A | BM42: N/A | BN42: N/A | BO42: N/A | BP42: N/A | BQ42: N/A
A43: Water source available when needed | B43: Yes | C43: N/A | D43: N/A | E43: N/A | F43: N/A | G43: N/A | H43: N/A | I43: N/A | J43: N/A | K43: N/A | L43: N/A | M43: N/A | N43: N/A | O43: N/A | P43: N/A | Q43: N/A | BA43: Water source available when needed | BB43: Yes | BC43: N/A | BD43: N/A | BE43: N/A | BF43: N/A | BG43: N/A | BH43: N/A | BI43: N/A | BJ43: N/A | BK43: N/A | BL43: N/A | BM43: N/A | BN43: N/A | BO43: N/A | BP43: N/A | BQ43: N/A
B44: No | C44: N/A | D44: N/A | E44: N/A | F44: N/A | G44: N/A | H44: N/A | I44: N/A | J44: N/A | K44: N/A | L44: N/A | M44: N/A | N44: N/A | O44: N/A | P44: N/A | Q44: N/A | BB44: No | BC44: N/A | BD44: N/A | BE44: N/A | BF44: N/A | BG44: N/A | BH44: N/A | BI44: N/A | BJ44: N/A | BK44: N/A | BL44: N/A | BM44: N/A | BN44: N/A | BO44: N/A | BP44: N/A | BQ44: N/A
A45: Improved water source available when needed | B45: Yes | C45: N/A | D45: N/A | E45: N/A | F45: N/A | G45: N/A | H45: N/A | I45: N/A | J45: N/A | K45: N/A | L45: N/A | M45: N/A | N45: N/A | O45: N/A | P45: N/A | Q45: N/A | BA45: Improved water source available when needed | BB45: Yes | BC45: N/A | BD45: N/A | BE45: N/A | BF45: N/A | BG45: N/A | BH45: N/A | BI45: N/A | BJ45: N/A | BK45: N/A | BL45: N/A | BM45: N/A | BN45: N/A | BO45: N/A | BP45: N/A | BQ45: N/A
B46: No | C46: N/A | D46: N/A | E46: N/A | F46: N/A | G46: N/A | H46: N/A | I46: N/A | J46: N/A | K46: N/A | L46: N/A | M46: N/A | N46: N/A | O46: N/A | P46: N/A | Q46: N/A | BB46: No | BC46: N/A | BD46: N/A | BE46: N/A | BF46: N/A | BG46: N/A | BH46: N/A | BI46: N/A | BJ46: N/A | BK46: N/A | BL46: N/A | BM46: N/A | BN46: N/A | BO46: N/A | BP46: N/A | BQ46: N/A
A47: Microbiological quality at point of collection | B47: Not contaminated (No E. coli in 100 mL) | C47: N/A | D47: N/A | E47: N/A | F47: N/A | G47: N/A | H47: N/A | I47: N/A | J47: N/A | K47: N/A | L47: N/A | M47: N/A | N47: N/A | O47: N/A | P47: N/A | Q47: N/A | BA47: Microbiological quality at point of collection | BB47: Not contaminated (No E. coli in 100 mL) | BC47: N/A | BD47: N/A | BE47: N/A | BF47: N/A | BG47: N/A | BH47: N/A | BI47: N/A | BJ47: N/A | BK47: N/A | BL47: N/A | BM47: N/A | BN47: N/A | BO47: N/A | BP47: N/A | BQ47: N/A
B48: Contaminated (E. coli detected in 100 mL) | C48: N/A | D48: N/A | E48: N/A | F48: N/A | G48: N/A | H48: N/A | I48: N/A | J48: N/A | K48: N/A | L48: N/A | M48: N/A | N48: N/A | O48: N/A | P48: N/A | Q48: N/A | BB48: Contaminated (E. coli detected in 100 mL) | BC48: N/A | BD48: N/A | BE48: N/A | BF48: N/A | BG48: N/A | BH48: N/A | BI48: N/A | BJ48: N/A | BK48: N/A | BL48: N/A | BM48: N/A | BN48: N/A | BO48: N/A | BP48: N/A | BQ48: N/A
B49: Highly contaminated (>100 CFU/100 mL) | C49: N/A | D49: N/A | E49: N/A | F49: N/A | G49: N/A | H49: N/A | I49: N/A | J49: N/A | K49: N/A | L49: N/A | M49: N/A | N49: N/A | O49: N/A | P49: N/A | Q49: N/A | BB49: Highly contaminated (>100 CFU/100 mL) | BC49: N/A | BD49: N/A | BE49: N/A | BF49: N/A | BG49: N/A | BH49: N/A | BI49: N/A | BJ49: N/A | BK49: N/A | BL49: N/A | BM49: N/A | BN49: N/A | BO49: N/A | BP49: N/A | BQ49: N/A
A50: Microbiological quality of improved water sources at point of collection | B50: Not contaminated (No E. coli in 100 mL) | C50: N/A | D50: N/A | E50: N/A | F50: N/A | G50: N/A | H50: N/A | I50: N/A | J50: N/A | K50: N/A | L50: N/A | M50: N/A | N50: N/A | O50: N/A | P50: N/A | Q50: N/A | BA50: Microbiological quality of improved water sources at point of collection | BB50: Not contaminated (No E. coli in 100 mL) | BC50: N/A | BD50: N/A | BE50: N/A | BF50: N/A | BG50: N/A | BH50: N/A | BI50: N/A | BJ50: N/A | BK50: N/A | BL50: N/A | BM50: N/A | BN50: N/A | BO50: N/A | BP50: N/A | BQ50: N/A
B51: Contaminated (E. coli detected in 100 mL) | C51: N/A | D51: N/A | E51: N/A | F51: N/A | G51: N/A | H51: N/A | I51: N/A | J51: N/A | K51: N/A | L51: N/A | M51: N/A | N51: N/A | O51: N/A | P51: N/A | Q51: N/A | BB51: Contaminated (E. coli detected in 100 mL) | BC51: N/A | BD51: N/A | BE51: N/A | BF51: N/A | BG51: N/A | BH51: N/A | BI51: N/A | BJ51: N/A | BK51: N/A | BL51: N/A | BM51: N/A | BN51: N/A | BO51: N/A | BP51: N/A | BQ51: N/A
B52: Highly contaminated (>100 CFU/100 mL) | C52: N/A | D52: N/A | E52: N/A | F52: N/A | G52: N/A | H52: N/A | I52: N/A | J52: N/A | K52: N/A | L52: N/A | M52: N/A | N52: N/A | O52: N/A | P52: N/A | Q52: N/A | BB52: Highly contaminated (>100 CFU/100 mL) | BC52: N/A | BD52: N/A | BE52: N/A | BF52: N/A | BG52: N/A | BH52: N/A | BI52: N/A | BJ52: N/A | BK52: N/A | BL52: N/A | BM52: N/A | BN52: N/A | BO52: N/A | BP52: N/A | BQ52: N/A
A53: Microbiological quality of piped on premises at point of collection | B53: Not contaminated (No E. coli in 100 mL) | C53: N/A | D53: N/A | E53: N/A | F53: N/A | G53: N/A | H53: N/A | I53: N/A | J53: N/A | K53: N/A | L53: N/A | M53: N/A | N53: N/A | O53: N/A | P53: N/A | Q53: N/A | BA53: Microbiological quality of piped on premises at point of collection | BB53: Not contaminated (No E. coli in 100 mL) | BC53: N/A | BD53: N/A | BE53: N/A | BF53: N/A | BG53: N/A | BH53: N/A | BI53: N/A | BJ53: N/A | BK53: N/A | BL53: N/A | BM53: N/A | BN53: N/A | BO53: N/A | BP53: N/A | BQ53: N/A
B54: Contaminated (E. coli detected in 100 mL) | C54: N/A | D54: N/A | E54: N/A | F54: N/A | G54: N/A | H54: N/A | I54: N/A | J54: N/A | K54: N/A | L54: N/A | M54: N/A | N54: N/A | O54: N/A | P54: N/A | Q54: N/A | BB54: Contaminated (E. coli detected in 100 mL) | BC54: N/A | BD54: N/A | BE54: N/A | BF54: N/A | BG54: N/A | BH54: N/A | BI54: N/A | BJ54: N/A | BK54: N/A | BL54: N/A | BM54: N/A | BN54: N/A | BO54: N/A | BP54: N/A | BQ54: N/A
B55: Highly contaminated (>100 CFU/100 mL) | C55: N/A | D55: N/A | E55: N/A | F55: N/A | G55: N/A | H55: N/A | I55: N/A | J55: N/A | K55: N/A | L55: N/A | M55: N/A | N55: N/A | O55: N/A | P55: N/A | Q55: N/A | BB55: Highly contaminated (>100 CFU/100 mL) | BC55: N/A | BD55: N/A | BE55: N/A | BF55: N/A | BG55: N/A | BH55: N/A | BI55: N/A | BJ55: N/A | BK55: N/A | BL55: N/A | BM55: N/A | BN55: N/A | BO55: N/A | BP55: N/A | BQ55: N/A
C56: NATIONAL wealth index quintile | H56: URBAN wealth index quintile | M56: RURAL wealth index quintile | BA56: Raw numbers of respondents: | BB56: Use of drinking water sources | BC56: NATIONAL wealth index quintile | BH56: URBAN wealth index quintile | BM56: RURAL wealth index quintile
A57: Percentage based on weighted population | C57: Poorest | D57: Poor | E57: Middle | F57: Rich | G57: Richest | H57: 1 Poorest | I57: 2 Poor | J57: 3 Middle | K57: 4 Rich | L57: 5 Richest | M57: 1 Poorest | N57: 2 Poor | O57: 3 Middle | P57: 4 Rich | Q57: 5 Richest | BA57: Water data, raw numbers (weighted) | BC57: Poorest | BD57: Poor | BE57: Middle | BF57: Rich | BG57: Richest | BH57: Poorest | BI57: Poor | BJ57: Middle | BK57: Rich | BL57: Richest | BM57: Poorest | BN57: Poor | BO57: Middle | BP57: Rich | BQ57: Richest
A58: main source of drinking water | B58: Piped water through house connection or yard | C58: 27.62401046 | D58: 64.3819065 | E58: 73.14257466 | F58: 94.3595849 | G58: 99.31663679 | H58: 69.46696732 | I58: 74.56203462 | J58: 90.38453771 | K58: 99.81720456 | L58: 100 | M58: 10.88965635 | N58: 35.05752771 | O58: 39.19165061 | P58: 66.37587193 | Q58: 85.44655933
B59: Public standpipe | C59: 39.61341923 | D59: 24.94291304 | E59: 22.6364751 | F59: 4.522425024 | G59: 0.4297776105 | H59: 27.76917172 | I59: 25.43796538 | J59: 8.965662646 | K59: 0.1827954363 | L59: 0 | M59: 34.76648779 | N59: 38.13374365 | O59: 40.52714359 | P59: 16.70468185 | Q59: 10.63193421
B60: Protected tube well or bore hole | C60: 7.509492649 | D60: 3.392629618 | E60: 2.233944991 | F60: 0.5883434488 | G60: 0.2040654316 | H60: 0.7430395994 | I60: 0 | J60: 0.4331997651 | K60: 0 | L60: 0 | M60: 6.186637442 | N60: 12.47580463 | O60: 6.912638849 | P60: 7.511982883 | Q60: 2.038700363
B61: Protected dug well or protected spring | C61: 4.716196364 | D61: 0.7754143807 | E61: 0.5657200481 | F61: 0.1251761108 | G61: 0 | H61: 0 | I61: 0 | J61: 0.2165998825 | K61: 0 | L61: 0 | M61: 8.570206964 | N61: 3.202204357 | O61: 1.759539268 | P61: 1.432062282 | Q61: 0.7173118028
B62: Unprotected dug well or spring | C62: 7.517137174 | D62: 3.051361586 | E62: 0.365286971 | F62: 0.15827107 | G62: 0.04952016896 | H62: 0.1796285622 | I62: 0 | J62: 0 | K62: 0 | L62: 0 | M62: 15.26201595 | N62: 3.763441962 | O62: 5.432917312 | P62: 3.493647751 | Q62: 0.534453187
B63: Rainwater (into tank or cistern ) | C63: 0.8367496971 | D63: 2.286177754 | E63: 0.2806473006 | F63: 0.07034269655 | G63: 0 | H63: 1.841192793 | I63: 0 | J63: 0 | K63: 0 | L63: 0 | M63: 1.189884539 | N63: 0 | O63: 2.602433637 | P63: 1.989779674 | Q63: 0.1802974549
B64: Water taken directly from pond-water or stream | C64: 9.580745466 | D64: 0.7062192049 | E64: 0.7753509297 | F64: 0 | G64: 0 | H64: 0 | I64: 0 | J64: 0 | K64: 0 | L64: 0 | M64: 20.6075631 | N64: 3.377526003 | O64: 1.843559682 | P64: 2.491973634 | Q64: 0
B65: Tanker-truck, vendor | C65: 2.602248956 | D65: 0.463377915 | E65: 0 | F65: 0.1758567468 | G65: 0 | H65: 0 | I65: 0 | J65: 0 | K65: 0 | L65: 0 | M65: 2.527547872 | N65: 3.98975169 | O65: 1.730117046 | P65: 0 | Q65: 0.4507436513
A108: =A1026 -> South Africa
A109: =A1034 -> 2003
A110: Use of sanitation facilities
A111: by wealth quintile and sub-national region
A112: Notes:
A113: WHO/UNICEF JMP customised wealth index excludes water,
A114: sanitation and hygiene assets.
A115: Survey used for analysis: | B115: =A1025 -> WHS03
A116: Improved latrines based on: | B116: JMP SAGE08 Ratio
A117: =B1029 -> 
A120: Use of sanitation facilities | C120: NATIONAL wealth index quintile | H120: URBAN wealth index quintile | M120: RURAL wealth index quintile | BA120: Raw numbers of respondents: | BB120: Use of sanitation facilities | BC120: NATIONAL wealth index quintile | BH120: URBAN wealth index quintile | BM120: RURAL wealth index quintile
A121: Weighted percentage (used in graphs) | C121: Poorest | D121: Poor | E121: Middle | F121: Rich | G121: Richest | H121: Poorest | I121: Poor | J121: Middle | K121: Rich | L121: Richest | M121: Poorest | N121: Poor | O121: Middle | P121: Rich | Q121: Richest | BA121: Sanitation data, raw numbers (weighted) | BC121: Poorest | BD121: Poor | BE121: Middle | BF121: Rich | BG121: Richest | BH121: Poorest | BI121: Poor | BJ121: Middle | BK121: Rich | BL121: Richest | BM121: Poorest | BN121: Poor | BO121: Middle | BP121: Rich | BQ121: Richest
A122: Sanitation | B122: Improved | C122: =C153+C154+C155+(C156+C157)*0.64 -> 50.55476425 | D122: =D153+D154+D155+(D156+D157)*0.64 -> 82.42119936 | E122: 92.88478362 | F122: 95.89281634 | G122: 98.9454032 | H122: =H153+H154+H155+(H156+H157)*0.62 -> 90.96888321 | I122: =I153+I154+I155+(I156+I157)*0.62 -> 97.52778347 | J122: 98.10465826 | K122: 99.77407839 | L122: 98.91415844 | M122: 42.22053991 | N122: 41.0060433 | O122: 66.63768153 | P122: 76.52441291 | Q122: 88.07865124 | BA122: Sanitation | BB122: Improved | BC122: 1350325.136 | BD122: 1955158.954 | BE122: 2098003.198 | BF122: 2242191.406 | BG122: 2293624.802 | BH122: 1303654.195 | BI122: 1312267.547 | BJ122: 1304096.372 | BK122: 1410284.432 | BL122: 1432484.571 | BM122: 433217.2749 | BN122: 436912.0775 | BO122: 670487.2067 | BP122: 766266.3768 | BQ122: 869633.4442
B123: Not Improved | C123: =100-C122 -> 49.44523575 | D123: =100-D122 -> 17.57880064 | E123: 7.115216376 | F123: 4.107183661 | G123: 1.054596795 | H123: 9.031116795 | I123: 2.472216527 | J123: 1.895341736 | K123: 0.2259216063 | L123: 1.085841561 | M123: 57.77946009 | N123: 58.9939567 | O123: 33.36231847 | P123: 23.47558709 | Q123: 11.92134876 | BB123: Not Improved | BC123: 1006635.497 | BD123: 412543.6964 | BE123: 254785.0156 | BF123: 120624.105 | BG123: 66661.50134 | BH123: 166121.7206 | BI123: 148234.5803 | BJ123: 163132.1546 | BK123: 60465.33063 | BL123: 27341.8064 | BM123: 462160.8284 | BN123: 458195.4016 | BO123: 223845.6315 | BP123: 123304.4841 | BQ123: 28447.87689
A124: Sanitation ladder | B124: Basic | C124: =C122*C129/100 -> 31.17861798 | D124: =D122*D129/100 -> 53.99999298 | E124: 44.7482855 | F124: 80.33563694 | G124: 91.62718117 | H124: 50.37333896 | I124: 40.66216331 | J124: 73.17667063 | K124: 87.89824047 | L124: 93.40766595 | M124: 27.14368128 | N124: 28.02096706 | O124: 45.45681813 | P124: 56.74872553 | Q124: 68.23065818 | BA124: Sanitation ladder | BB124: Basic | BC124: 812346.1492 | BD124: 1250235.11 | BE124: 1002525.909 | BF124: 1831299.957 | BG124: 2069435.369 | BH124: 691914.4218 | BI124: 546035.1237 | BJ124: 948978.5304 | BK124: 1221878.221 | BL124: 1311397.442 | BM124: 281069.4246 | BN124: 297312.6796 | BO124: 456429.8717 | BP124: 560680.05 | BQ124: 650146.7294
B125: Limited | C125: =C122*C128/100 -> 19.37614627 | D125: =D122*D128/100 -> 28.42120638 | E125: 48.13649812 | F125: 15.5571794 | G125: 7.318222035 | H125: 40.59554425 | I125: 56.86562017 | J125: 24.92798764 | K125: 11.87583792 | L125: 5.506492488 | M125: 15.07685863 | N125: 12.98507624 | O125: 21.1808634 | P125: 19.77568738 | Q125: 19.84799307 | BB125: Limited | BC125: 510852.3057 | BD125: 674509.4307 | BE125: 1080294.234 | BF125: 357203.9922 | BG125: 165783.3569 | BH125: 572849.6162 | BI125: 761225.0142 | BJ125: 329940.9193 | BK125: 165086.6688 | BL125: 77676.35522 | BM125: 143257.032 | BN125: 134719.3384 | BO125: 214057.335 | BP125: 200706.2672 | BQ125: 189124.7736
B126: Unimproved | C126: =100-C124-C125-C127 -> 28.23242328 | D126: =100-D124-D125-D127 -> 14.28059211 | E126: 6.129357742 | F126: 4.107183661 | G126: 1.054596795 | H126: 8.128109301 | I126: 2.176161803 | J126: 1.471953001 | K126: 0.2259216063 | L126: 1.085841561 | M126: 26.83639512 | N126: 36.807785 | O126: 24.48629849 | P126: 21.98203969 | Q126: 10.8617788 | BB126: Unimproved | BC126: 521791.3246 | BD126: 340570.7125 | BE126: 233550.7896 | BF126: 120624.105 | BG126: 66661.50134 | BH126: 153552.0922 | BI126: 144305.9934 | BJ126: 157528.7254 | BK126: 60465.33063 | BL126: 27341.8064 | BM126: 191426.1204 | BN126: 269340.4296 | BO126: 149289.7972 | BP126: 110896.0032 | BQ126: 19052.1347
B127: Open defecation | C127: =C159 -> 21.21281247 | D127: =D159 -> 3.298208534 | E127: 0.9858586338 | F127: 0 | G127: 0 | H127: 0.9030074935 | I127: 0.2960547236 | J127: 0.4233887349 | K127: 0 | L127: 0 | M127: 30.94306497 | N127: 22.18617169 | O127: 8.876019988 | P127: 1.493547405 | Q127: 1.059569958 | BB127: Open defecation | BC127: 484844.172 | BD127: 71972.98389 | BE127: 21234.22601 | BF127: 0 | BG127: 0 | BH127: 12569.62842 | BI127: 3928.586914 | BJ127: 5603.429199 | BK127: 0 | BL127: 0 | BM127: 270734.708 | BN127: 188854.972 | BO127: 74555.83423 | BP127: 12408.4809 | BQ127: 9395.742188
A128: Shared among Improved Sanitation | B128: Yes | C128: 38.32704308 | D128: 34.48288377 | E128: 51.82387927 | F128: 16.2235087 | G128: 7.396222359 | H128: 44.62574764 | I128: 58.30709788 | J128: 25.40958613 | K128: 11.90272876 | L128: 5.566940644 | M128: 35.70977221 | N128: 31.66625013 | O128: 31.78511453 | P128: 25.84232485 | Q128: 22.53439714 | BA128: Shared among improved sanitation facilities | BB128: Yes | BC128: N/A | BD128: N/A | BE128: N/A | BF128: N/A | BG128: N/A | BH128: N/A | BI128: N/A | BJ128: N/A | BK128: N/A | BL128: N/A | BM128: N/A | BN128: N/A | BO128: N/A | BP128: N/A | BQ128: N/A
B129: No | C129: 61.67295692 | D129: 65.51711623 | E129: 48.17612073 | F129: 83.7764913 | G129: 92.60377764 | H129: 55.37425236 | I129: 41.69290212 | J129: 74.59041387 | K129: 88.09727124 | L129: 94.43305936 | M129: 64.29022779 | N129: 68.33374987 | O129: 68.21488547 | P129: 74.15767515 | Q129: 77.46560286 | BB129: No | BC129: N/A | BD129: N/A | BE129: N/A | BF129: N/A | BG129: N/A | BH129: N/A | BI129: N/A | BJ129: N/A | BK129: N/A | BL129: N/A | BM129: N/A | BN129: N/A | BO129: N/A | BP129: N/A | BQ129: N/A
A130: Manually calculated ratios | B130: Improved latrines
B131: Other
B132: Other
C133: NATIONAL wealth index quintile | H133: URBAN wealth index quintile | M133: RURAL wealth index quintile | BA133: Raw numbers of respondents: | BB133: Use of sanitation facilities | BC133: NATIONAL wealth index quintile | BH133: URBAN wealth index quintile | BM133: RURAL wealth index quintile
A134: Percentage based on weighted population | C134: Poorest | D134: Poor | E134: Middle | F134: Rich | G134: Richest | H134: Poorest | I134: Poor | J134: Middle | K134: Rich | L134: Richest | M134: Poorest | N134: Poor | O134: Middle | P134: Rich | Q134: Richest | BA134: Sanitation data, raw numbers (weighted) | BC134: Poorest | BD134: Poor | BE134: Middle | BF134: Rich | BG134: Richest | BH134: Poorest | BI134: Poor | BJ134: Middle | BK134: Rich | BL134: Richest | BM134: Poorest | BN134: Poor | BO134: Middle | BP134: Rich | BQ134: Richest
A135: Sanitation type | B135: Sewer connection | C135: 16.45604259 | D135: 54.82027719 | E135: 76.08703667 | F135: 84.69342229 | G135: 94.69217152 | H135: 72.9887377 | I135: 85.16370512 | J135: 87.47153804 | K135: 95.14430169 | L135: 95.97029733 | M135: 2.80100661 | N135: 9.710492729 | O135: 26.35111527 | P135: 39.98183829 | Q135: 67.75593792 | BA135: Sanitation type | BB135: Sewer connection | BC135: N/A | BD135: N/A | BE135: N/A | BF135: N/A | BG135: N/A | BH135: N/A | BI135: N/A | BJ135: N/A | BK135: N/A | BL135: N/A | BM135: N/A | BN135: N/A | BO135: N/A | BP135: N/A | BQ135: N/A
B136: Septic tank connection | C136: 0.6883255352 | D136: 1.338435625 | E136: 0.4087027096 | F136: 0.3049763216 | G136: 0.1956680727 | H136: 2.150149402 | I136: 0.4899669706 | J136: 0.167658351 | K136: 0.174419137 | L136: 0.2085113373 | M136: 0 | N136: 0 | O136: 1.530450488 | P136: 0.2949779996 | Q136: 0.6920511385 | BB136: Septic tank connection | BC136: N/A | BD136: N/A | BE136: N/A | BF136: N/A | BG136: N/A | BH136: N/A | BI136: N/A | BJ136: N/A | BK136: N/A | BL136: N/A | BM136: N/A | BN136: N/A | BO136: N/A | BP136: N/A | BQ136: N/A
B137: Improved latrines | C137: 40.14658181 | D137: 26.41749048 | E137: 12.67519347 | F137: 9.896500953 | G137: 2.287863146 | H137: 13.55859263 | I137: 4.19676513 | J137: 1.242416004 | K137: 0.5700882571 | L137: 1.948242138 | M137: 45.58271791 | N137: 39.10063752 | O137: 47.08909148 | P137: 45.86206376 | Q137: 28.38438278 | BB137: Improved latrines | BC137: N/A | BD137: N/A | BE137: N/A | BF137: N/A | BG137: N/A | BH137: N/A | BI137: N/A | BJ137: N/A | BK137: N/A | BL137: N/A | BM137: N/A | BN137: N/A | BO137: N/A | BP137: N/A | BQ137: N/A
B138: Unimproved facilities | C138: 22.13831311 | D138: 14.38401534 | E138: 9.926553874 | F138: 5.105100439 | G138: 2.824297258 | H138: 10.44731313 | I138: 9.880573998 | J138: 10.73648191 | K138: 4.111190916 | L138: 1.872949195 | M138: 21.37936137 | N138: 30.09028925 | O138: 16.69286767 | P138: 12.46623603 | Q138: 2.121426452 | BB138: Unimproved facilities | BC138: N/A | BD138: N/A | BE138: N/A | BF138: N/A | BG138: N/A | BH138: N/A | BI138: N/A | BJ138: N/A | BK138: N/A | BL138: N/A | BM138: N/A | BN138: N/A | BO138: N/A | BP138: N/A | BQ138: N/A
B139: Open defecation | C139: 20.57073696 | D139: 3.039781362 | E139: 0.9025132773 | F139: 0 | G139: 0 | H139: 0.8552071295 | I139: 0.2689887841 | J139: 0.381905688 | K139: 0 | L139: 0 | M139: 30.23691411 | N139: 21.0985805 | O139: 8.336475085 | P139: 1.39488392 | Q139: 1.046201715 | BB139: Open defecation | BC139: N/A | BD139: N/A | BE139: N/A | BF139: N/A | BG139: N/A | BH139: N/A | BI139: N/A | BJ139: N/A | BK139: N/A | BL139: N/A | BM139: N/A | BN139: N/A | BO139: N/A | BP139: N/A | BQ139: N/A
A140: Septic tank emptying practices | B140: Not emptied/treated and disposed in situ | C140: N/A | D140: N/A | E140: N/A | F140: N/A | G140: N/A | H140: N/A | I140: N/A | J140: N/A | K140: N/A | L140: N/A | M140: N/A | N140: N/A | O140: N/A | P140: N/A | Q140: N/A | BA140: Septic tank emptying practices | BB140: Not emptied/treated and disposed in situ | BC140: N/A | BD140: N/A | BE140: N/A | BF140: N/A | BG140: N/A | BH140: N/A | BI140: N/A | BJ140: N/A | BK140: N/A | BL140: N/A | BM140: N/A | BN140: N/A | BO140: N/A | BP140: N/A | BQ140: N/A
B141: Emptied and buried on site | C141: N/A | D141: N/A | E141: N/A | F141: N/A | G141: N/A | H141: N/A | I141: N/A | J141: N/A | K141: N/A | L141: N/A | M141: N/A | N141: N/A | O141: N/A | P141: N/A | Q141: N/A | BB141: Emptied and buried on site | BC141: N/A | BD141: N/A | BE141: N/A | BF141: N/A | BG141: N/A | BH141: N/A | BI141: N/A | BJ141: N/A | BK141: N/A | BL141: N/A | BM141: N/A | BN141: N/A | BO141: N/A | BP141: N/A | BQ141: N/A
B142: Emptied and discharged locally | C142: N/A | D142: N/A | E142: N/A | F142: N/A | G142: N/A | H142: N/A | I142: N/A | J142: N/A | K142: N/A | L142: N/A | M142: N/A | N142: N/A | O142: N/A | P142: N/A | Q142: N/A | BB142: Emptied and discharged locally | BC142: N/A | BD142: N/A | BE142: N/A | BF142: N/A | BG142: N/A | BH142: N/A | BI142: N/A | BJ142: N/A | BK142: N/A | BL142: N/A | BM142: N/A | BN142: N/A | BO142: N/A | BP142: N/A | BQ142: N/A
B143: Emptied and removed offsite | C143: N/A | D143: N/A | E143: N/A | F143: N/A | G143: N/A | H143: N/A | I143: N/A | J143: N/A | K143: N/A | L143: N/A | M143: N/A | N143: N/A | O143: N/A | P143: N/A | Q143: N/A | BB143: Emptied and removed offsite | BC143: N/A | BD143: N/A | BE143: N/A | BF143: N/A | BG143: N/A | BH143: N/A | BI143: N/A | BJ143: N/A | BK143: N/A | BL143: N/A | BM143: N/A | BN143: N/A | BO143: N/A | BP143: N/A | BQ143: N/A
A144: Latrine emptying practices | B144: Not emptied/treated and disposed in situ | C144: N/A | D144: N/A | E144: N/A | F144: N/A | G144: N/A | H144: N/A | I144: N/A | J144: N/A | K144: N/A | L144: N/A | M144: N/A | N144: N/A | O144: N/A | P144: N/A | Q144: N/A | BA144: Latrine emptying practices | BB144: Not emptied/treated and disposed in situ | BC144: N/A | BD144: N/A | BE144: N/A | BF144: N/A | BG144: N/A | BH144: N/A | BI144: N/A | BJ144: N/A | BK144: N/A | BL144: N/A | BM144: N/A | BN144: N/A | BO144: N/A | BP144: N/A | BQ144: N/A
B145: Emptied and buried on site | C145: N/A | D145: N/A | E145: N/A | F145: N/A | G145: N/A | H145: N/A | I145: N/A | J145: N/A | K145: N/A | L145: N/A | M145: N/A | N145: N/A | O145: N/A | P145: N/A | Q145: N/A | BB145: Emptied and buried on site | BC145: N/A | BD145: N/A | BE145: N/A | BF145: N/A | BG145: N/A | BH145: N/A | BI145: N/A | BJ145: N/A | BK145: N/A | BL145: N/A | BM145: N/A | BN145: N/A | BO145: N/A | BP145: N/A | BQ145: N/A
B146: Emptied and discharged locally | C146: N/A | D146: N/A | E146: N/A | F146: N/A | G146: N/A | H146: N/A | I146: N/A | J146: N/A | K146: N/A | L146: N/A | M146: N/A | N146: N/A | O146: N/A | P146: N/A | Q146: N/A | BB146: Emptied and discharged locally | BC146: N/A | BD146: N/A | BE146: N/A | BF146: N/A | BG146: N/A | BH146: N/A | BI146: N/A | BJ146: N/A | BK146: N/A | BL146: N/A | BM146: N/A | BN146: N/A | BO146: N/A | BP146: N/A | BQ146: N/A
B147: Emptied and removed offsite | C147: N/A | D147: N/A | E147: N/A | F147: N/A | G147: N/A | H147: N/A | I147: N/A | J147: N/A | K147: N/A | L147: N/A | M147: N/A | N147: N/A | O147: N/A | P147: N/A | Q147: N/A | BB147: Emptied and removed offsite | BC147: N/A | BD147: N/A | BE147: N/A | BF147: N/A | BG147: N/A | BH147: N/A | BI147: N/A | BJ147: N/A | BK147: N/A | BL147: N/A | BM147: N/A | BN147: N/A | BO147: N/A | BP147: N/A | BQ147: N/A
A148: Shared among improved sanitation facilities | B148: Yes | C148: 25.89535354 | D148: 29.61441871 | E148: 46.18476989 | F148: 15.11772673 | G148: 7.023866413 | H148: 40.44920715 | I148: 52.28506899 | J148: 22.48735717 | K148: 11.22466058 | L148: 5.320931064 | M148: 21.5535606 | N148: 19.23029245 | O148: 25.87581356 | P148: 23.00461198 | Q148: 21.05875817 | BA148: Shared among improved sanitation facilities | BB148: Yes | BC148: N/A | BD148: N/A | BE148: N/A | BF148: N/A | BG148: N/A | BH148: N/A | BI148: N/A | BJ148: N/A | BK148: N/A | BL148: N/A | BM148: N/A | BN148: N/A | BO148: N/A | BP148: N/A | BQ148: N/A
B149: No | C149: 41.66882951 | D149: 56.26708385 | E149: 42.93393474 | F149: 78.06634962 | G149: 87.94172646 | H149: 50.19175528 | I149: 37.38680783 | J149: 66.01214478 | K149: 83.07859385 | L149: 90.25995268 | M149: 38.80403696 | N149: 41.49774568 | O149: 55.53277641 | P149: 66.01451501 | Q149: 72.39285732 | BB149: No | BC149: N/A | BD149: N/A | BE149: N/A | BF149: N/A | BG149: N/A | BH149: N/A | BI149: N/A | BJ149: N/A | BK149: N/A | BL149: N/A | BM149: N/A | BN149: N/A | BO149: N/A | BP149: N/A | BQ149: N/A
B150: DK/missing | C150: 32.43581694 | D150: 14.11849744 | E150: 10.88129537 | F150: 6.815923647 | G150: 5.034407128 | H150: 9.359037566 | I150: 10.32812318 | J150: 11.50049805 | K150: 5.696745572 | L150: 4.41911626 | M150: 39.64240245 | N150: 39.27196186 | O150: 18.59141003 | P150: 10.98087301 | Q150: 6.548384511 | BB150: DK/missing | BC150: N/A | BD150: N/A | BE150: N/A | BF150: N/A | BG150: N/A | BH150: N/A | BI150: N/A | BJ150: N/A | BK150: N/A | BL150: N/A | BM150: N/A | BN150: N/A | BO150: N/A | BP150: N/A | BQ150: N/A
A151: Shared among all sanitation facilities | B151: Yes | C151: 62.2931781 | D151: 66.35311062 | E151: 49.18963716 | F151: 84.9792408 | G151: 92.57143099 | H151: 53.9503616 | I151: 42.34887761 | J151: 74.8741738 | K151: 88.260514 | L151: 94.43305936 | M151: 64.23873859 | N151: 73.27902799 | O151: 71.79831995 | P151: 77.89907083 | Q151: 79.21300489 | BA151: Shared among all sanitation facilities | BB151: Yes | BC151: N/A | BD151: N/A | BE151: N/A | BF151: N/A | BG151: N/A | BH151: N/A | BI151: N/A | BJ151: N/A | BK151: N/A | BL151: N/A | BM151: N/A | BN151: N/A | BO151: N/A | BP151: N/A | BQ151: N/A
B152: No | C152: 37.7068219 | D152: 33.64688938 | E152: 50.81036284 | F152: 15.0207592 | G152: 7.428569009 | H152: 46.0496384 | I152: 57.65112239 | J152: 25.1258262 | K152: 11.739486 | L152: 5.566940644 | M152: 35.76126141 | N152: 26.72097201 | O152: 28.20168005 | P152: 22.10092917 | Q152: 20.78699511 | BB152: No | BC152: N/A | BD152: N/A | BE152: N/A | BF152: N/A | BG152: N/A | BH152: N/A | BI152: N/A | BJ152: N/A | BK152: N/A | BL152: N/A | BM152: N/A | BN152: N/A | BO152: N/A | BP152: N/A | BQ152: N/A
A153: What type of toilet facilities | B153: Flush to piped sewage system | C153: 16.96968592 | D153: 59.48082592 | E153: 83.11352743 | F153: 88.79855527 | G153: 97.24082624 | H153: 77.06832042 | I153: 93.73296831 | J153: 96.97279981 | K153: 99.22357218 | L153: 97.47552144 | M153: 2.86642113 | N153: 10.21104993 | O153: 28.05658548 | P153: 42.8098496 | Q153: 68.62171534 | BA153: What type of toilet facilities | BB153: 1 Flush to piped sewage system | BC153: 387862.4454 | BD153: 1297981.156 | BE153: 1790166.831 | BF153: 2001149.319 | BG153: 2235006.355 | BH153: 1072770.888 | BI153: 1243817.725 | BJ153: 1283407.359 | BK153: 1399334.591 | BL153: 1400999.715 | BM153: 25079.59985 | BN153: 86919.34668 | BO153: 235666.6771 | BP153: 355666.7831 | BQ153: 608503.4223
B154: Flush to septic tank | C154: 0.709810277 | D154: 1.4522228 | E154: 0.4464456148 | F154: 0.319758678 | G154: 0.2009345097 | H154: 2.270328385 | I154: 0.5392679718 | J154: 0.185869599 | K154: 0.1818972815 | L154: 0.2117816856 | M154: 0 | N154: 0 | O154: 1.629502756 | P154: 0.3158425009 | Q154: 0.7008940867 | BB154: 2 Flush to septic tank | BC154: 16223.56189 | BD154: 31690.17578 | BE154: 9615.90918 | BF154: 7206.027832 | BG154: 4618.326721 | BH154: 31602.37805 | BI154: 7155.978027 | BJ154: 2459.931152 | BK154: 2565.269043 | BL154: 3043.903503 | BM154: 0 | BN154: 0 | BO154: 13687.32129 | BP154: 2624.03833 | BQ154: 6215.182007
B155: Pour flush latrine | C155: 0.9833457105 | D155: 1.159568104 | E155: 0.4873134348 | F155: 0.2165466791 | G155: 0 | H155: 1.005528608 | I155: 0 | J155: 0 | K155: 0 | L155: 0 | M155: 0.9664802743 | N155: 0.4415145592 | O155: 1.98676718 | P155: 1.376994874 | Q155: 0.9942048997 | BB155: 3 Pour flush latrine | BC155: 22475.54102 | BD155: 25303.91138 | BE155: 10496.15356 | BF155: 4880.05957 | BG155: 0 | BH155: 13996.69556 | BI155: 0 | BJ155: 0 | BK155: 0 | BL155: 0 | BM155: 8456.167969 | BN155: 3758.296875 | BO155: 16688.23242 | BP155: 11440.15552 | BQ155: 8816.117188
B156: Covered dry latrine (with privacy) | C156: 40.4163335 | D156: 27.50380671 | E156: 13.35840965 | F156: 10.15964268 | G156: 2.349441343 | H156: 13.31089875 | I156: 4.619048131 | J156: 1.377368698 | K156: 0.5945305428 | L156: 1.978798895 | M156: 45.68077337 | N156: 40.67468553 | O156: 48.14997682 | P156: 47.72900264 | Q156: 27.75287019 | BB156: 4 Covered dry latrine (with privacy) | BC156: 923763.5876 | BD156: 600183.7109 | BE156: 287724.3043 | BF156: 228956 | BG156: 54000.12048 | BH156: 185284.2335 | BI156: 61293.84399 | BJ156: 18229.08203 | BK156: 8384.571686 | BL156: 28440.95264 | BM156: 399681.5071 | BN156: 346234.434 | BO156: 404444.9759 | BP156: 396535.3999 | BQ156: 246098.7227
B157: Uncovered dry latrine (without privacy) | C157: 9.41479515 | D157: 4.259603494 | E157: 0.4501796418 | F157: 0.08716312144 | G157: 0 | H157: 3.825723494 | I157: 0.6318344307 | J157: 0.1484197787 | K157: 0 | L157: 0 | M157: 14.29991179 | N157: 6.75262512 | O157: 6.482563978 | P157: 2.304944131 | Q157: 0 | BB157: 5 Uncovered dry latrine (without privacy) | BC157: 215186.391 | BD157: 92952.39233 | BE157: 9696.335693 | BF157: 1964.293457 | BG157: 0 | BH157: 53253.07166 | BI157: 8384.316406 | BJ157: 1964.293457 | BK157: 0 | BL157: 0 | BM157: 125116.3208 | BN157: 57480.25598 | BO157: 54451.54089 | BP157: 19149.61328 | BQ157: 0
B158: Bucket latrine (where fresh excreta are manually removed) | C158: 0.8848147354 | D158: 0.4030806433 | E158: 0.3758229406 | F158: 0 | G158: 0.208797912 | H158: 1.383599287 | I158: 0.1808264294 | J158: 0.1329225749 | K158: 0 | L158: 0.3338979813 | M158: 0 | N158: 1.146592418 | O158: 0 | P158: 0.473763766 | Q158: 0 | BB158: 6 Bucket latrine (where fresh excreta are manually removed) | BC158: 20223.49786 | BD158: 8795.961914 | BE158: 8094.780518 | BF158: 0 | BG158: 4799.061035 | BH158: 19259.34064 | BI158: 2399.530518 | BJ158: 1759.192383 | BK158: 0 | BL158: 4799.061035 | BM158: 0 | BN158: 9760.119141 | BO158: 0 | BP158: 3936.057617 | BQ158: 0
B159: No facilities (open defecation) | C159: 21.21281247 | D159: 3.298208534 | E159: 0.9858586338 | F159: 0 | G159: 0 | H159: 0.9030074935 | I159: 0.2960547236 | J159: 0.4233887349 | K159: 0 | L159: 0 | M159: 30.94306497 | N159: 22.18617169 | O159: 8.876019988 | P159: 1.493547405 | Q159: 1.059569958 | BB159: 7 No facilities (open defecation) | BC159: 484844.172 | BD159: 71972.98389 | BE159: 21234.22601 | BF159: 0 | BG159: 0 | BH159: 12569.62842 | BI159: 3928.586914 | BJ159: 5603.429199 | BK159: 0 | BL159: 0 | BM159: 270734.708 | BN159: 188854.972 | BO159: 74555.83423 | BP159: 12408.4809 | BQ159: 9395.742188
B160: Other | C160: 9.408402226 | D160: 2.442683795 | E160: 0.7824426578 | F160: 0.4183335738 | G160: 0 | H160: 0.2325935605 | I160: 0 | J160: 0.7592308048 | K160: 0 | L160: 0 | M160: 5.243348463 | N160: 18.58736075 | O160: 4.8185838 | P160: 3.496055082 | Q160: 0.8707455301 | BB160: 8 Other | BC160: 215040.2731 | BD160: 53303.85864 | BE160: 16852.88708 | BF160: 9427.495117 | BG160: 0 | BH160: 3237.641602 | BI160: 0 | BJ160: 10048.20325 | BK160: 0 | BL160: 0 | BM160: 45876.39966 | BN160: 158220.8749 | BO160: 40474.61987 | BP160: 29045.43408 | BQ160: 7721.340576
BB161: Total | BC161: 2285619.47 | BD161: 2182184.151 | BE161: 2153881.427 | BF161: 2253583.195 | BG161: 2298423.863 | BH161: 1391973.877 | BI161: 1326979.981 | BJ161: 1323471.49 | BK161: 1410284.432 | BL161: 1437283.632 | BM161: 874944.7034 | BN161: 851228.2996 | BO161: 839969.2017 | BP161: 830805.9627 | BQ161: 886750.527
A208: =A1026 -> South Africa
A209: =A1034 -> 2003
A210: Access to hygiene facilities
A211: by wealth quintile and sub-national region
A212: Notes:
A213: WHO/UNICEF JMP customised wealth index excludes water,
A214: sanitation and hygiene assets.
A215: Survey used for analysis: | B215: =A1025 -> WHS03
A220: Access to handwashing | C220: NATIONAL wealth index quintile | H220: URBAN wealth index quintile | M220: RURAL wealth index quintile | BA220: Raw numbers of respondents: | BB220: Access to handwashing | BC220: NATIONAL wealth index quintile | BH220: URBAN wealth index quintile | BM220: RURAL wealth index quintile
A221: Weighted percentage (used in graphs) | C221: Poorest | D221: Poor | E221: Middle | F221: Rich | G221: Richest | H221: Poorest | I221: Poor | J221: Middle | K221: Rich | L221: Richest | M221: Poorest | N221: Poor | O221: Middle | P221: Rich | Q221: Richest | BA221: Hygiene data, raw numbers (weighted) | BC221: Poorest | BD221: Poor | BE221: Middle | BF221: Rich | BG221: Richest | BH221: Poorest | BI221: Poor | BJ221: Middle | BK221: Rich | BL221: Richest | BM221: Poorest | BN221: Poor | BO221: Middle | BP221: Rich | BQ221: Richest
A222: Hygiene ladder | B222: Basic | C222: N/A | D222: N/A | E222: N/A | F222: N/A | G222: N/A | H222: N/A | I222: N/A | J222: N/A | K222: N/A | L222: N/A | M222: N/A | N222: N/A | O222: N/A | P222: N/A | Q222: N/A | BA222: Hygiene ladder | BB222: Basic | BC222: N/A | BD222: N/A | BE222: N/A | BF222: N/A | BG222: N/A | BH222: N/A | BI222: N/A | BJ222: N/A | BK222: N/A | BL222: N/A | BM222: N/A | BN222: N/A | BO222: N/A | BP222: N/A | BQ222: N/A
B223: Limited | C223: N/A | D223: N/A | E223: N/A | F223: N/A | G223: N/A | H223: N/A | I223: N/A | J223: N/A | K223: N/A | L223: N/A | M223: N/A | N223: N/A | O223: N/A | P223: N/A | Q223: N/A | BB223: Limited | BC223: N/A | BD223: N/A | BE223: N/A | BF223: N/A | BG223: N/A | BH223: N/A | BI223: N/A | BJ223: N/A | BK223: N/A | BL223: N/A | BM223: N/A | BN223: N/A | BO223: N/A | BP223: N/A | BQ223: N/A
B224: No facility | C224: N/A | D224: N/A | E224: N/A | F224: N/A | G224: N/A | H224: N/A | I224: N/A | J224: N/A | K224: N/A | L224: N/A | M224: N/A | N224: N/A | O224: N/A | P224: N/A | Q224: N/A | BB224: No facility | BC224: N/A | BD224: N/A | BE224: N/A | BF224: N/A | BG224: N/A | BH224: N/A | BI224: N/A | BJ224: N/A | BK224: N/A | BL224: N/A | BM224: N/A | BN224: N/A | BO224: N/A | BP224: N/A | BQ224: N/A
BA225: Observed handwashing place | BB225: Fixed | BC225: N/A | BD225: N/A | BE225: N/A | BF225: N/A | BG225: N/A | BH225: N/A | BI225: N/A | BJ225: N/A | BK225: N/A | BL225: N/A | BM225: N/A | BN225: N/A | BO225: N/A | BP225: N/A | BQ225: N/A
BB226: Mobile | BC226: N/A | BD226: N/A | BE226: N/A | BF226: N/A | BG226: N/A | BH226: N/A | BI226: N/A | BJ226: N/A | BK226: N/A | BL226: N/A | BM226: N/A | BN226: N/A | BO226: N/A | BP226: N/A | BQ226: N/A
BA227: Water / Soap | BB227: Water and soap | BC227: N/A | BD227: N/A | BE227: N/A | BF227: N/A | BG227: N/A | BH227: N/A | BI227: N/A | BJ227: N/A | BK227: N/A | BL227: N/A | BM227: N/A | BN227: N/A | BO227: N/A | BP227: N/A | BQ227: N/A
BB228: Water only | BC228: N/A | BD228: N/A | BE228: N/A | BF228: N/A | BG228: N/A | BH228: N/A | BI228: N/A | BJ228: N/A | BK228: N/A | BL228: N/A | BM228: N/A | BN228: N/A | BO228: N/A | BP228: N/A | BQ228: N/A
BB229: Soap only | BC229: N/A | BD229: N/A | BE229: N/A | BF229: N/A | BG229: N/A | BH229: N/A | BI229: N/A | BJ229: N/A | BK229: N/A | BL229: N/A | BM229: N/A | BN229: N/A | BO229: N/A | BP229: N/A | BQ229: N/A
BB230: Neither | BC230: N/A | BD230: N/A | BE230: N/A | BF230: N/A | BG230: N/A | BH230: N/A | BI230: N/A | BJ230: N/A | BK230: N/A | BL230: N/A | BM230: N/A | BN230: N/A | BO230: N/A | BP230: N/A | BQ230: N/A
BA259: Raw numbers of respondents: | BB259: Menstrual health and hygiene | BC259: NATIONAL wealth index quintile | BH259: URBAN wealth index quintile | BM259: RURAL wealth index quintile
BA260: MHH data, raw numbers (weighted) | BC260: Poorest | BD260: Poor | BE260: Middle | BF260: Rich | BG260: Richest | BH260: Poorest | BI260: Poor | BJ260: Middle | BK260: Rich | BL260: Richest | BM260: Poorest | BN260: Poor | BO260: Middle | BP260: Rich | BQ260: Richest
BA261: Private place to wash and change | BB261: Yes | BC261: N/A | BD261: N/A | BE261: N/A | BF261: N/A | BG261: N/A | BH261: N/A | BI261: N/A | BJ261: N/A | BK261: N/A | BL261: N/A | BM261: N/A | BN261: N/A | BO261: N/A | BP261: N/A | BQ261: N/A
BB262: No | BC262: N/A | BD262: N/A | BE262: N/A | BF262: N/A | BG262: N/A | BH262: N/A | BI262: N/A | BJ262: N/A | BK262: N/A | BL262: N/A | BM262: N/A | BN262: N/A | BO262: N/A | BP262: N/A | BQ262: N/A
BB263: DK/not sure/missing | BC263: N/A | BD263: N/A | BE263: N/A | BF263: N/A | BG263: N/A | BH263: N/A | BI263: N/A | BJ263: N/A | BK263: N/A | BL263: N/A | BM263: N/A | BN263: N/A | BO263: N/A | BP263: N/A | BQ263: N/A
BA264: Use of menstrual materials | BB264: Materials reusable | BC264: N/A | BD264: N/A | BE264: N/A | BF264: N/A | BG264: N/A | BH264: N/A | BI264: N/A | BJ264: N/A | BK264: N/A | BL264: N/A | BM264: N/A | BN264: N/A | BO264: N/A | BP264: N/A | BQ264: N/A
BB265: Materials not reusable | BC265: N/A | BD265: N/A | BE265: N/A | BF265: N/A | BG265: N/A | BH265: N/A | BI265: N/A | BJ265: N/A | BK265: N/A | BL265: N/A | BM265: N/A | BN265: N/A | BO265: N/A | BP265: N/A | BQ265: N/A
BB266: No materials used | BC266: N/A | BD266: N/A | BE266: N/A | BF266: N/A | BG266: N/A | BH266: N/A | BI266: N/A | BJ266: N/A | BK266: N/A | BL266: N/A | BM266: N/A | BN266: N/A | BO266: N/A | BP266: N/A | BQ266: N/A
BB267: DK/not sure/missing | BC267: N/A | BD267: N/A | BE267: N/A | BF267: N/A | BG267: N/A | BH267: N/A | BI267: N/A | BJ267: N/A | BK267: N/A | BL267: N/A | BM267: N/A | BN267: N/A | BO267: N/A | BP267: N/A | BQ267: N/A
BA268: Use of menstrual materials with private place to wash and change | BB268: Materials reusable | BC268: N/A | BD268: N/A | BE268: N/A | BF268: N/A | BG268: N/A | BH268: N/A | BI268: N/A | BJ268: N/A | BK268: N/A | BL268: N/A | BM268: N/A | BN268: N/A | BO268: N/A | BP268: N/A | BQ268: N/A
BB269: Materials not reusable | BC269: N/A | BD269: N/A | BE269: N/A | BF269: N/A | BG269: N/A | BH269: N/A | BI269: N/A | BJ269: N/A | BK269: N/A | BL269: N/A | BM269: N/A | BN269: N/A | BO269: N/A | BP269: N/A | BQ269: N/A
BB270: No materials used | BC270: N/A | BD270: N/A | BE270: N/A | BF270: N/A | BG270: N/A | BH270: N/A | BI270: N/A | BJ270: N/A | BK270: N/A | BL270: N/A | BM270: N/A | BN270: N/A | BO270: N/A | BP270: N/A | BQ270: N/A
BA271: Awareness of menstruation before menarche | BB271: Yes | BC271: N/A | BD271: N/A | BE271: N/A | BF271: N/A | BG271: N/A | BH271: N/A | BI271: N/A | BJ271: N/A | BK271: N/A | BL271: N/A | BM271: N/A | BN271: N/A | BO271: N/A | BP271: N/A | BQ271: N/A
BB272: No | BC272: N/A | BD272: N/A | BE272: N/A | BF272: N/A | BG272: N/A | BH272: N/A | BI272: N/A | BJ272: N/A | BK272: N/A | BL272: N/A | BM272: N/A | BN272: N/A | BO272: N/A | BP272: N/A | BQ272: N/A
BB273: DK/not sure/missing | BC273: N/A | BD273: N/A | BE273: N/A | BF273: N/A | BG273: N/A | BH273: N/A | BI273: N/A | BJ273: N/A | BK273: N/A | BL273: N/A | BM273: N/A | BN273: N/A | BO273: N/A | BP273: N/A | BQ273: N/A
BA274: Participation in (all) activities during menstruation | BB274: Yes | BC274: N/A | BD274: N/A | BE274: N/A | BF274: N/A | BG274: N/A | BH274: N/A | BI274: N/A | BJ274: N/A | BK274: N/A | BL274: N/A | BM274: N/A | BN274: N/A | BO274: N/A | BP274: N/A | BQ274: N/A
BB275: No | BC275: N/A | BD275: N/A | BE275: N/A | BF275: N/A | BG275: N/A | BH275: N/A | BI275: N/A | BJ275: N/A | BK275: N/A | BL275: N/A | BM275: N/A | BN275: N/A | BO275: N/A | BP275: N/A | BQ275: N/A
BB276: DK/not sure/missing/no such activity | BC276: N/A | BD276: N/A | BE276: N/A | BF276: N/A | BG276: N/A | BH276: N/A | BI276: N/A | BJ276: N/A | BK276: N/A | BL276: N/A | BM276: N/A | BN276: N/A | BO276: N/A | BP276: N/A | BQ276: N/A
BA277: Participation in specific activities during menstruation | BB277: Did not go to school (amongst those usually attending school) | BC277: N/A | BD277: N/A | BE277: N/A | BF277: N/A | BG277: N/A | BH277: N/A | BI277: N/A | BJ277: N/A | BK277: N/A | BL277: N/A | BM277: N/A | BN277: N/A | BO277: N/A | BP277: N/A | BQ277: N/A
BB278: Did not go to work (amongst those who usually work) | BC278: N/A | BD278: N/A | BE278: N/A | BF278: N/A | BG278: N/A | BH278: N/A | BI278: N/A | BJ278: N/A | BK278: N/A | BL278: N/A | BM278: N/A | BN278: N/A | BO278: N/A | BP278: N/A | BQ278: N/A
BB279: Did not participate in social activities | BC279: N/A | BD279: N/A | BE279: N/A | BF279: N/A | BG279: N/A | BH279: N/A | BI279: N/A | BJ279: N/A | BK279: N/A | BL279: N/A | BM279: N/A | BN279: N/A | BO279: N/A | BP279: N/A | BQ279: N/A
BB280: Did not cook food | BC280: N/A | BD280: N/A | BE280: N/A | BF280: N/A | BG280: N/A | BH280: N/A | BI280: N/A | BJ280: N/A | BK280: N/A | BL280: N/A | BM280: N/A | BN280: N/A | BO280: N/A | BP280: N/A | BQ280: N/A
BB281: Did not eat with others | BC281: N/A | BD281: N/A | BE281: N/A | BF281: N/A | BG281: N/A | BH281: N/A | BI281: N/A | BJ281: N/A | BK281: N/A | BL281: N/A | BM281: N/A | BN281: N/A | BO281: N/A | BP281: N/A | BQ281: N/A
BB282: Did not bathe in regular place | BC282: N/A | BD282: N/A | BE282: N/A | BF282: N/A | BG282: N/A | BH282: N/A | BI282: N/A | BJ282: N/A | BK282: N/A | BL282: N/A | BM282: N/A | BN282: N/A | BO282: N/A | BP282: N/A | BQ282: N/A
BB283: Did not participate in other activities | BC283: N/A | BD283: N/A | BE283: N/A | BF283: N/A | BG283: N/A | BH283: N/A | BI283: N/A | BJ283: N/A | BK283: N/A | BL283: N/A | BM283: N/A | BN283: N/A | BO283: N/A | BP283: N/A | BQ283: N/A
BB284: DK/not sure/missing/no such activity | BC284: N/A | BD284: N/A | BE284: N/A | BF284: N/A | BG284: N/A | BH284: N/A | BI284: N/A | BJ284: N/A | BK284: N/A | BL284: N/A | BM284: N/A | BN284: N/A | BO284: N/A | BP284: N/A | BQ284: N/A
BA339: Raw numbers of respondents: | BB339: Basic water, sanitation and hygiene | BC339: NATIONAL wealth index quintile | BH339: URBAN wealth index quintile | BM339: RURAL wealth index quintile
BA340: WatSan data, raw numbers (weighted) | BC340: Poorest | BD340: Poor | BE340: Middle | BF340: Rich | BG340: Richest | BH340: Poorest | BI340: Poor | BJ340: Middle | BK340: Rich | BL340: Richest | BM340: Poorest | BN340: Poor | BO340: Middle | BP340: Rich | BQ340: Richest
BA341: Use of Basic Water Sanitation and Hygiene | BB341: Yes | BC341: N/A | BD341: N/A | BE341: N/A | BF341: N/A | BG341: N/A | BH341: N/A | BI341: N/A | BJ341: N/A | BK341: N/A | BL341: N/A | BM341: N/A | BN341: N/A | BO341: N/A | BP341: N/A | BQ341: N/A
BB342: No | BC342: N/A | BD342: N/A | BE342: N/A | BF342: N/A | BG342: N/A | BH342: N/A | BI342: N/A | BJ342: N/A | BK342: N/A | BL342: N/A | BM342: N/A | BN342: N/A | BO342: N/A | BP342: N/A | BQ342: N/A
BA343: Use of Basic Water and Sanitation | BB343: Yes | BC343: N/A | BD343: N/A | BE343: N/A | BF343: N/A | BG343: N/A | BH343: N/A | BI343: N/A | BJ343: N/A | BK343: N/A | BL343: N/A | BM343: N/A | BN343: N/A | BO343: N/A | BP343: N/A | BQ343: N/A
BB344: No | BC344: N/A | BD344: N/A | BE344: N/A | BF344: N/A | BG344: N/A | BH344: N/A | BI344: N/A | BJ344: N/A | BK344: N/A | BL344: N/A | BM344: N/A | BN344: N/A | BO344: N/A | BP344: N/A | BQ344: N/A
BA345: Use of Basic Water and Hygiene | BB345: Yes | BC345: N/A | BD345: N/A | BE345: N/A | BF345: N/A | BG345: N/A | BH345: N/A | BI345: N/A | BJ345: N/A | BK345: N/A | BL345: N/A | BM345: N/A | BN345: N/A | BO345: N/A | BP345: N/A | BQ345: N/A
BB346: No | BC346: N/A | BD346: N/A | BE346: N/A | BF346: N/A | BG346: N/A | BH346: N/A | BI346: N/A | BJ346: N/A | BK346: N/A | BL346: N/A | BM346: N/A | BN346: N/A | BO346: N/A | BP346: N/A | BQ346: N/A
BA347: Use of Basic Sanitation and Hygiene | BB347: Yes | BC347: N/A | BD347: N/A | BE347: N/A | BF347: N/A | BG347: N/A | BH347: N/A | BI347: N/A | BJ347: N/A | BK347: N/A | BL347: N/A | BM347: N/A | BN347: N/A | BO347: N/A | BP347: N/A | BQ347: N/A
BB348: No | BC348: N/A | BD348: N/A | BE348: N/A | BF348: N/A | BG348: N/A | BH348: N/A | BI348: N/A | BJ348: N/A | BK348: N/A | BL348: N/A | BM348: N/A | BN348: N/A | BO348: N/A | BP348: N/A | BQ348: N/A
BA349: Use of Basic Water | BB349: Yes | BC349: N/A | BD349: N/A | BE349: N/A | BF349: N/A | BG349: N/A | BH349: N/A | BI349: N/A | BJ349: N/A | BK349: N/A | BL349: N/A | BM349: N/A | BN349: N/A | BO349: N/A | BP349: N/A | BQ349: N/A
BB350: No | BC350: N/A | BD350: N/A | BE350: N/A | BF350: N/A | BG350: N/A | BH350: N/A | BI350: N/A | BJ350: N/A | BK350: N/A | BL350: N/A | BM350: N/A | BN350: N/A | BO350: N/A | BP350: N/A | BQ350: N/A
BA351: Use of Basic Sanitation | BB351: Yes | BC351: N/A | BD351: N/A | BE351: N/A | BF351: N/A | BG351: N/A | BH351: N/A | BI351: N/A | BJ351: N/A | BK351: N/A | BL351: N/A | BM351: N/A | BN351: N/A | BO351: N/A | BP351: N/A | BQ351: N/A
BB352: No | BC352: N/A | BD352: N/A | BE352: N/A | BF352: N/A | BG352: N/A | BH352: N/A | BI352: N/A | BJ352: N/A | BK352: N/A | BL352: N/A | BM352: N/A | BN352: N/A | BO352: N/A | BP352: N/A | BQ352: N/A
BA353: Access to Basic Hygiene | BB353: Yes | BC353: N/A | BD353: N/A | BE353: N/A | BF353: N/A | BG353: N/A | BH353: N/A | BI353: N/A | BJ353: N/A | BK353: N/A | BL353: N/A | BM353: N/A | BN353: N/A | BO353: N/A | BP353: N/A | BQ353: N/A
BB354: No | BC354: N/A | BD354: N/A | BE354: N/A | BF354: N/A | BG354: N/A | BH354: N/A | BI354: N/A | BJ354: N/A | BK354: N/A | BL354: N/A | BM354: N/A | BN354: N/A | BO354: N/A | BP354: N/A | BQ354: N/A
C399: INITIAL (national) Wealth Index | H399: URBAN Wealth Index | M399: RURAL Wealth Index
C400: Matrice des composantes | H400: Matrice des composantes | M400: Matrice des composantes
E401: Composante | J401: Composante | O401: Composante
B402: Note: The INITIAL (national) Wealth Index is based on the first component of the Principal Component Analysis (PCA) which has been obtained at national level. The final national-level (NATIONAL) Wealth Index is based on the URBAN and RURAL specific wealth indexes. Regression procedures are used to establish the relationships between the two sets of scores (urban and rural) and the initial (national) wealth factors. This allows best use of the available information for each area and a better precision of the FINAL (NATIONAL) Wealth Index. For dependency reasons, all WASH variables (contained in the generic MICS and DHS scripts) have been excluded from the sets of asset variables used in the PCAs. The PCA can extracts as many components as there are asset variables in the input. Only the first of the components is used to represent the Wealth Index. The scores represent the weights of the asset variables on the Wealth Index (correlations between the variables and the component). The communalities are the proportion of each variable's variance that can be explained by the component. Proportion of explained variance is the part of the model's total variance that is explained by the component. For more information on the procedure used: The DHS Wealth Index, DHS Comparative Reports No. 6, Shea Oscar Rutstein, Kiersten Johnson, ORC Macro International Inc., 2004. The DHS Wealth Index: Approaches for Rural and Urban Areas, Shea O. Rutstein, ORC Macro International Inc., 2008. MICS Methodological Paper No. 4, Review of options for reporting water, sanitation and hygiene coverage by wealth quintile, UNICEF, 2016. | E402: 1 | J402: 1 | O402: 1
C403: electrfu Uses electricity fuel | E403: -0.7245519761 | H403: q0708 Has Clothes washing machine | J403: 0.6854637617 | M403: electrfu Uses electricity fuel | O403: -0.744648702
C404: q0710 Has Vacuum cleaner | E404: 0.6826749381 | H404: q0710 Has Vacuum cleaner | J404: 0.6627202222 | M404: q0710 Has Vacuum cleaner | O404: 0.68880473
C405: q0704 Has Video | E405: 0.6629146874 | H405: bike Has Bicycle | J405: 0.6539444995 | M405: q0713 Has Cellular phone | O405: 0.6365645468
C406: q0713 Has Cellular phone | E406: 0.6526598995 | H406: q0713 Has Cellular phone | J406: 0.6486602771 | M406: electrhe Uses electricity heating | O406: -0.6312464095
C407: q0708 Has Clothes washing machine | E407: 0.6373837604 | H407: electrfu Uses electricity fuel | J407: -0.5845063606 | M407: q0704 Has Video | O407: 0.6286924628
C408: bike Has Bicycle | E408: 0.5793525555 | H408: q0704 Has Video | J408: 0.5768691655 | M408: woodfu Uses wood fuel | O408: 0.5534197227
C409: woodfu Uses wood fuel | E409: 0.5643977754 | H409: q0711 Has Refrigerator | J409: 0.5668701056 | M409: q0708 Has Clothes washing machine | O409: 0.5479303944
C410: electrhe Uses electricity heating | E410: -0.5532839646 | H410: q0712 Has Telephone | J410: 0.5561850224 | M410: earthfl Has hearth floor | O410: 0.5152419323
C411: q0711 Has Refrigerator | E411: 0.5405990648 | H411: q0714 Has Computer | J411: 0.555371052 | M411: cementwl Has cement, brick, stone or wood wall | O411: -0.5102697134
C412: q0712 Has Telephone | E412: 0.5168376491 | H412: electrhe Uses electricity heating | J412: -0.4592826728 | M412: mudwl Has mud brick wall | O412: 0.5091387363
C413: mudwl Has mud brick wall | E413: 0.5055026818 | H413: q0705 Has Stereo | J413: 0.4552988118 | M413: q0712 Has Telephone | O413: 0.4919593782
C414: earthfl Has hearth floor | E414: 0.5024907179 | H414: q0706 Has DVD | J414: 0.428748836 | M414: bike Has Bicycle | O414: 0.4886838536
C415: q0714 Has Computer | E415: 0.4898142418 | H415: livingki Uses living or sleeping room as kitchen | J415: 0.3869090654 | M415: hardfl Has hard floor | O415: -0.468735745
C416: openst Uses open fire without chimney | E416: 0.4801304513 | H416: q0709 Has Dish washing machine | J416: 0.3635261313 | M416: q0711 Has Refrigerator | O416: 0.447317085
C417: woodhe Uses wood heating | E417: 0.4590356228 | H417: earthfl Has hearth floor | J417: 0.3545314752 | M417: openst Uses open fire without chimney | O417: 0.4448223297
C418: hardfl Has hard floor | E418: -0.4136875333 | H418: kerozefu Uses kerozene fuel | J418: 0.3316814149 | M418: woodhe Uses wood heating | O418: 0.431502781
C419: cementwl Has cement, brick, stone or wood wall | E419: -0.3840991359 | H419: heatho Heats house | J419: -0.3167886943 | M419: q0705 Has Stereo | O419: 0.3686658271
C420: q0705 Has Stereo | E420: 0.3815256483 | H420: TV Has TV | J420: 0.309126864 | M420: q0714 Has Computer | O420: 0.356447131
C421: openhhe Uses open fire without chimney | E421: 0.3476758764 | H421: mudwl Has mud brick wall | J421: 0.3089146921 | M421: openhhe Uses open fire without chimney | O421: 0.3228005901
C422: q0709 Has Dish washing machine | E422: 0.342384972 | H422: openst Uses open fire without chimney | J422: 0.3009031692 | M422: TV Has TV | O422: 0.3226564226
C423: livingki Uses living or sleeping room as kitchen | E423: 0.3422272201 | H423: woodfu Uses wood fuel | J423: 0.2832872726 | M423: q0709 Has Dish washing machine | O423: 0.3222890273
... 200 more rows

Sheet DHS16
A2: =A1026 -> South Africa
A3: =A1034 -> 2016
A4: Use of drinking water sources
A5: by wealth quintile and sub-national region
A6: Notes:
A7: WHO/UNICEF JMP customised wealth index excludes water,
A8: sanitation and hygiene assets.
A9: Survey used for analysis: | B9: =A1025 -> DHS16
A10: =B1028 -> 
A11: =B1027 -> 
A14: Use of drinking water sources | C14: NATIONAL wealth index quintile | H14: URBAN wealth index quintile | M14: RURAL wealth index quintile | R14: SUB-REGIONS: | BA14: Raw numbers of respondents: | BB14: Use of drinking water sources | BC14: NATIONAL wealth index quintile | BH14: URBAN wealth index quintile | BM14: RURAL wealth index quintile | BR14: SUB-REGIONS:
A15: Weighted percentage (used in graphs) | C15: Poorest | D15: Poor | E15: Middle | F15: Rich | G15: Richest | H15: 1 Poorest | I15: 2 Poor | J15: 3 Middle | K15: 4 Rich | L15: 5 Richest | M15: 1 Poorest | N15: 2 Poor | O15: 3 Middle | P15: 4 Rich | Q15: 5 Richest | R15: 2 Eastern Cape | S15: 4 Free State | T15: 7 Gauteng | U15: 5 Kwazulu-Natal | V15: 9 Limpopo | W15: 8 Mpumalanga | X15: 6 North West | Y15: 3 Northern Cape | Z15: 1 Western Cape | BA15: Water data, raw numbers (weighted) | BC15: Poorest | BD15: Poor | BE15: Middle | BF15: Rich | BG15: Richest | BH15: Poorest | BI15: Poor | BJ15: Middle | BK15: Rich | BL15: Richest | BM15: Poorest | BN15: Poor | BO15: Middle | BP15: Rich | BQ15: Richest | BR15: 2 Eastern Cape | BS15: 4 Free State | BT15: 7 Gauteng | BU15: 5 Kwazulu-Natal | BV15: 9 Limpopo | BW15: 8 Mpumalanga | BX15: 6 North West | BY15: 3 Northern Cape | BZ15: 1 Western Cape
A16: Water | B16: 1 Improved | C16: 75.8162524 | D16: 93.97726975 | E16: 97.72706699 | F16: 99.64033765 | G16: 99.94487881 | H16: 98.78619126 | I16: 99.41563144 | J16: 99.97162976 | K16: 99.92996231 | L16: 100 | M16: 53.86122083 | N16: 79.76842931 | O16: 88.43819286 | P16: 93.68041561 | Q16: 97.7240687 | R16: 73.77837122 | S16: 99.91748811 | T16: 100 | U16: 89.36762185 | V16: 92.67805192 | W16: 95.31446635 | X16: 99.90176945 | Y16: 99.49672903 | Z16: 99.40101605 | BA16: Water | BB16: Improved | BC16: N/A | BD16: N/A | BE16: N/A | BF16: N/A | BG16: N/A | BH16: N/A | BI16: N/A | BJ16: N/A | BK16: N/A | BL16: N/A | BM16: N/A | BN16: N/A | BO16: N/A | BP16: N/A | BQ16: N/A | BR16: N/A | BS16: N/A | BT16: N/A | BU16: N/A | BV16: N/A | BW16: N/A | BX16: N/A | BY16: N/A | BZ16: N/A
B17: 2 Not Improved | C17: 24.1837476 | D17: 6.022730246 | E17: 2.272933013 | F17: 0.3596623458 | G17: 0.0551211939 | H17: 1.213808743 | I17: 0.5843685606 | J17: 0.02837024432 | K17: 0.07003768544 | L17: 0 | M17: 46.13877917 | N17: 20.23157069 | O17: 11.56180714 | P17: 6.319584394 | Q17: 2.275931299 | R17: 26.22162878 | S17: 0.08251188769 | T17: 0 | U17: 10.63237815 | V17: 7.321948075 | W17: 4.685533651 | X17: 0.0982305531 | Y17: 0.5032709696 | Z17: 0.5989839476 | BB17: Not Improved | BC17: N/A | BD17: N/A | BE17: N/A | BF17: N/A | BG17: N/A | BH17: N/A | BI17: N/A | BJ17: N/A | BK17: N/A | BL17: N/A | BM17: N/A | BN17: N/A | BO17: N/A | BP17: N/A | BQ17: N/A | BR17: N/A | BS17: N/A | BT17: N/A | BU17: N/A | BV17: N/A | BW17: N/A | BX17: N/A | BY17: N/A | BZ17: N/A
A18: Water ladder | B18: 1 Basic | C18: 67.97430574 | D18: 89.86117739 | E18: 96.14981482 | F18: 99.31509464 | G18: 99.78595623 | H18: 95.60060385 | I18: 99.31049613 | J18: 99.79671726 | K18: 99.92996231 | L18: 99.81060379 | M18: 45.41128417 | N18: 70.06382809 | O18: 81.18467313 | P18: 88.7666457 | Q18: 96.10568217 | R18: 71.28404894 | S18: 98.87701198 | T18: 99.49768033 | U18: 86.77634811 | V18: 81.1718197 | W18: 90.92602959 | X18: 96.69945928 | Y18: 98.11402212 | Z18: 99.40101605 | BA18: Water ladder | BB18: Basic | BC18: N/A | BD18: N/A | BE18: N/A | BF18: N/A | BG18: N/A | BH18: N/A | BI18: N/A | BJ18: N/A | BK18: N/A | BL18: N/A | BM18: N/A | BN18: N/A | BO18: N/A | BP18: N/A | BQ18: N/A | BR18: N/A | BS18: N/A | BT18: N/A | BU18: N/A | BV18: N/A | BW18: N/A | BX18: N/A | BY18: N/A | BZ18: N/A
B19: 2 Limited | C19: 7.841946666 | D19: 4.116092365 | E19: 1.577252168 | F19: 0.3252430184 | G19: 0.1589225745 | H19: 3.185587407 | I19: 0.1051353077 | J19: 0.1749124947 | K19: 0 | L19: 0.1893962102 | M19: 8.449936655 | N19: 9.704601219 | O19: 7.253519724 | P19: 4.913769908 | Q19: 1.618386533 | R19: 2.494322273 | S19: 1.040476136 | T19: 0.5023196728 | U19: 2.591273735 | V19: 11.50623222 | W19: 4.388436762 | X19: 3.202310166 | Y19: 1.382706905 | Z19: 0 | BB19: Limited | BC19: N/A | BD19: N/A | BE19: N/A | BF19: N/A | BG19: N/A | BH19: N/A | BI19: N/A | BJ19: N/A | BK19: N/A | BL19: N/A | BM19: N/A | BN19: N/A | BO19: N/A | BP19: N/A | BQ19: N/A | BR19: N/A | BS19: N/A | BT19: N/A | BU19: N/A | BV19: N/A | BW19: N/A | BX19: N/A | BY19: N/A | BZ19: N/A
B20: 3 Other unimproved | C20: 11.36981727 | D20: 3.217471698 | E20: 1.082474374 | F20: 0.2605873217 | G20: 0.0551211939 | H20: 0.3847342907 | I20: 0.5843685606 | J20: 0.007848966417 | K20: 0.07003768544 | L20: 0 | M20: 20.90383404 | N20: 10.60220907 | O20: 5.990785236 | P20: 2.736821318 | Q20: 1.593388135 | R20: 13.08345398 | S20: 0.08251188769 | T20: 0 | U20: 5.035174909 | V20: 2.689511009 | W20: 2.719309755 | X20: 0.0982305531 | Y20: 0.1291504177 | Z20: 0.5989839476 | BB20: Unimproved | BC20: N/A | BD20: N/A | BE20: N/A | BF20: N/A | BG20: N/A | BH20: N/A | BI20: N/A | BJ20: N/A | BK20: N/A | BL20: N/A | BM20: N/A | BN20: N/A | BO20: N/A | BP20: N/A | BQ20: N/A | BR20: N/A | BS20: N/A | BT20: N/A | BU20: N/A | BV20: N/A | BW20: N/A | BX20: N/A | BY20: N/A | BZ20: N/A
B21: 4 Surface water | C21: 12.81393033 | D21: 2.805258547 | E21: 1.190458638 | F21: 0.09907502408 | G21: 0 | H21: 0.8290744519 | I21: 0 | J21: 0.0205212779 | K21: 0 | L21: 0 | M21: 25.23494513 | N21: 9.629361615 | O21: 5.571021908 | P21: 3.582763076 | Q21: 0.6825431642 | R21: 13.1381748 | S21: 0 | T21: 0 | U21: 5.597203242 | V21: 4.632437066 | W21: 1.966223896 | X21: 0 | Y21: 0.374120552 | Z21: 0 | BB21: Surface water | BC21: N/A | BD21: N/A | BE21: N/A | BF21: N/A | BG21: N/A | BH21: N/A | BI21: N/A | BJ21: N/A | BK21: N/A | BL21: N/A | BM21: N/A | BN21: N/A | BO21: N/A | BP21: N/A | BQ21: N/A | BR21: N/A | BS21: N/A | BT21: N/A | BU21: N/A | BV21: N/A | BW21: N/A | BX21: N/A | BY21: N/A | BZ21: N/A
A22: Improved water point at more than 30 minutes | B22: 1 Yes | C22: 10.34335834 | D22: 4.379880768 | E22: 1.613935849 | F22: 0.3264170175 | G22: 0.1590102228 | H22: 3.224729455 | I22: 0.1057532968 | J22: 0.1749621319 | K22: 0 | L22: 0.1893962102 | M22: 15.68834966 | N22: 12.16596754 | O22: 8.201795502 | P22: 5.245247767 | Q22: 1.656077724 | R22: 3.380831309 | S22: 1.041335361 | T22: 0.5023196728 | U22: 2.899566623 | V22: 12.41527199 | W22: 4.604166535 | X22: 3.205458906 | Y22: 1.389700866 | Z22: 0 | BA22: Improved water point at more than 30 minutes | BB22: Yes | BC22: N/A | BD22: N/A | BE22: N/A | BF22: N/A | BG22: N/A | BH22: N/A | BI22: N/A | BJ22: N/A | BK22: N/A | BL22: N/A | BM22: N/A | BN22: N/A | BO22: N/A | BP22: N/A | BQ22: N/A | BR22: N/A | BS22: N/A | BT22: N/A | BU22: N/A | BV22: N/A | BW22: N/A | BX22: N/A | BY22: N/A | BZ22: N/A
B23: 2 No | C23: 89.65664166 | D23: 95.62011923 | E23: 98.38606415 | F23: 99.67358298 | G23: 99.84098978 | H23: 96.77527054 | I23: 99.8942467 | J23: 99.82503787 | K23: 100 | L23: 99.81060379 | M23: 84.31165034 | N23: 87.83403246 | O23: 91.7982045 | P23: 94.75475223 | Q23: 98.34392228 | R23: 96.61916869 | S23: 98.95866464 | T23: 99.49768033 | U23: 97.10043338 | V23: 87.58472801 | W23: 95.39583347 | X23: 96.79454109 | Y23: 98.61029913 | Z23: 100 | BB23: No | BC23: N/A | BD23: N/A | BE23: N/A | BF23: N/A | BG23: N/A | BH23: N/A | BI23: N/A | BJ23: N/A | BK23: N/A | BL23: N/A | BM23: N/A | BN23: N/A | BO23: N/A | BP23: N/A | BQ23: N/A | BR23: N/A | BS23: N/A | BT23: N/A | BU23: N/A | BV23: N/A | BW23: N/A | BX23: N/A | BY23: N/A | BZ23: N/A
A24: Manually calculated ratios | B24: Improved wells
B25: Improved springs
B26: Other
C27: NATIONAL wealth index quintile | H27: URBAN wealth index quintile | M27: RURAL wealth index quintile | R27: SUB-REGIONS: | BA27: Raw numbers of respondents: | BB27: Use of drinking water sources | BC27: NATIONAL wealth index quintile | BH27: URBAN wealth index quintile | BM27: RURAL wealth index quintile | BR27: SUB-REGIONS:
A28: Percentage based on weighted population | C28: Poorest | D28: Poor | E28: Middle | F28: Rich | G28: Richest | H28: 1 Poorest | I28: 2 Poor | J28: 3 Middle | K28: 4 Rich | L28: 5 Richest | M28: 1 Poorest | N28: 2 Poor | O28: 3 Middle | P28: 4 Rich | Q28: 5 Richest | R28: 2 Eastern Cape | S28: 4 Free State | T28: 7 Gauteng | U28: 5 Kwazulu-Natal | V28: 9 Limpopo | W28: 8 Mpumalanga | X28: 6 North West | Y28: 3 Northern Cape | Z28: 1 Western Cape | BA28: Water data, raw numbers (weighted) | BC28: Poorest | BD28: Poor | BE28: Middle | BF28: Rich | BG28: Richest | BH28: Poorest | BI28: Poor | BJ28: Middle | BK28: Rich | BL28: Richest | BM28: Poorest | BN28: Poor | BO28: Middle | BP28: Rich | BQ28: Richest | BR28: 2 Eastern Cape | BS28: 4 Free State | BT28: 7 Gauteng | BU28: 5 Kwazulu-Natal | BV28: 9 Limpopo | BW28: 8 Mpumalanga | BX28: 6 North West | BY28: 3 Northern Cape | BZ28: 1 Western Cape
A29: Piped water | B29: 1 Yes | C29: 62.91068654 | D29: 84.8037188 | E29: 90.18410017 | F29: 95.7794685 | G29: 98.76615868 | H29: 94.85726427 | I29: 98.18923285 | J29: 99.08843385 | K29: 99.36366624 | L29: 99.64081053 | M29: 38.64250292 | N29: 63.81747073 | O29: 70.89417889 | P29: 78.65449694 | Q29: 78.89156942 | R29: 65.1336648 | S29: 96.49890517 | T29: 98.70579417 | U29: 83.29882837 | V29: 68.93133217 | W29: 83.4405234 | X29: 90.34849384 | Y29: 97.62056489 | Z29: 99.19506906 | BA29: Piped water | BB29: Yes | BC29: N/A | BD29: N/A | BE29: N/A | BF29: N/A | BG29: N/A | BH29: N/A | BI29: N/A | BJ29: N/A | BK29: N/A | BL29: N/A | BM29: N/A | BN29: N/A | BO29: N/A | BP29: N/A | BQ29: N/A | BR29: N/A | BS29: N/A | BT29: N/A | BU29: N/A | BV29: N/A | BW29: N/A | BX29: N/A | BY29: N/A | BZ29: N/A
B30: 2 No | C30: 37.08931346 | D30: 15.1962812 | E30: 9.815899828 | F30: 4.220531504 | G30: 1.233841323 | H30: 5.142735726 | I30: 1.810767155 | J30: 0.911566153 | K30: 0.63633376 | L30: 0.3591894731 | M30: 61.35749708 | N30: 36.18252927 | O30: 29.10582111 | P30: 21.34550306 | Q30: 21.10843058 | R30: 34.8663352 | S30: 3.501094827 | T30: 1.294205832 | U30: 16.70117163 | V30: 31.06866783 | W30: 16.5594766 | X30: 9.651506163 | Y30: 2.379435106 | Z30: 0.8049309429 | BB30: No | BC30: N/A | BD30: N/A | BE30: N/A | BF30: N/A | BG30: N/A | BH30: N/A | BI30: N/A | BJ30: N/A | BK30: N/A | BL30: N/A | BM30: N/A | BN30: N/A | BO30: N/A | BP30: N/A | BQ30: N/A | BR30: N/A | BS30: N/A | BT30: N/A | BU30: N/A | BV30: N/A | BW30: N/A | BX30: N/A | BY30: N/A | BZ30: N/A
A31: Piped water on premises | B31: Yes | C31: 25.19267904 | D31: 57.47489087 | E31: 76.60011397 | F31: 91.90563984 | G31: 98.5689445 | H31: 62.31945765 | I31: 89.00418442 | J31: 97.61301551 | K31: 99.23499485 | L31: 99.53518338 | M31: 7.77834763 | N31: 27.42594935 | O31: 33.91752399 | P31: 49.46935837 | Q31: 61.71458199 | R31: 43.55116024 | S31: 92.15042301 | T31: 88.88543748 | U31: 66.87154764 | V31: 34.78478534 | W31: 67.90059577 | X31: 61.53386375 | Y31: 73.03285821 | Z31: 92.96302982 | BA31: Piped water on premises | BB31: Yes | BC31: N/A | BD31: N/A | BE31: N/A | BF31: N/A | BG31: N/A | BH31: N/A | BI31: N/A | BJ31: N/A | BK31: N/A | BL31: N/A | BM31: N/A | BN31: N/A | BO31: N/A | BP31: N/A | BQ31: N/A | BR31: N/A | BS31: N/A | BT31: N/A | BU31: N/A | BV31: N/A | BW31: N/A | BX31: N/A | BY31: N/A | BZ31: N/A
B32: No | C32: 74.80732096 | D32: 42.52510913 | E32: 23.39988603 | F32: 8.094360164 | G32: 1.431055499 | H32: 37.68054235 | I32: 10.99581558 | J32: 2.386984486 | K32: 0.7650051452 | L32: 0.4648166207 | M32: 92.22165237 | N32: 72.57405065 | O32: 66.08247601 | P32: 50.53064163 | Q32: 38.28541801 | R32: 56.44883976 | S32: 7.849576993 | T32: 11.11456252 | U32: 33.12845236 | V32: 65.21521466 | W32: 32.09940423 | X32: 38.46613625 | Y32: 26.96714179 | Z32: 7.036970175 | BB32: No | BC32: N/A | BD32: N/A | BE32: N/A | BF32: N/A | BG32: N/A | BH32: N/A | BI32: N/A | BJ32: N/A | BK32: N/A | BL32: N/A | BM32: N/A | BN32: N/A | BO32: N/A | BP32: N/A | BQ32: N/A | BR32: N/A | BS32: N/A | BT32: N/A | BU32: N/A | BV32: N/A | BW32: N/A | BX32: N/A | BY32: N/A | BZ32: N/A
A33: Piped water into dwelling | B33: Yes | C33: N/A | D33: N/A | E33: N/A | F33: N/A | G33: N/A | H33: N/A | I33: N/A | J33: N/A | K33: N/A | L33: N/A | M33: N/A | N33: N/A | O33: N/A | P33: N/A | Q33: N/A | R33: N/A | S33: N/A | T33: N/A | U33: N/A | V33: N/A | W33: N/A | X33: N/A | Y33: N/A | Z33: N/A | BA33: Piped water into dwelling | BB33: Yes | BC33: N/A | BD33: N/A | BE33: N/A | BF33: N/A | BG33: N/A | BH33: N/A | BI33: N/A | BJ33: N/A | BK33: N/A | BL33: N/A | BM33: N/A | BN33: N/A | BO33: N/A | BP33: N/A | BQ33: N/A | BR33: N/A | BS33: N/A | BT33: N/A | BU33: N/A | BV33: N/A | BW33: N/A | BX33: N/A | BY33: N/A | BZ33: N/A
B34: No | C34: N/A | D34: N/A | E34: N/A | F34: N/A | G34: N/A | H34: N/A | I34: N/A | J34: N/A | K34: N/A | L34: N/A | M34: N/A | N34: N/A | O34: N/A | P34: N/A | Q34: N/A | R34: N/A | S34: N/A | T34: N/A | U34: N/A | V34: N/A | W34: N/A | X34: N/A | Y34: N/A | Z34: N/A | BB34: No | BC34: N/A | BD34: N/A | BE34: N/A | BF34: N/A | BG34: N/A | BH34: N/A | BI34: N/A | BJ34: N/A | BK34: N/A | BL34: N/A | BM34: N/A | BN34: N/A | BO34: N/A | BP34: N/A | BQ34: N/A | BR34: N/A | BS34: N/A | BT34: N/A | BU34: N/A | BV34: N/A | BW34: N/A | BX34: N/A | BY34: N/A | BZ34: N/A
A35: Water source on premises | B35: 1 Yes | C35: 34.63003422 | D35: 67.65668758 | E35: 85.76336998 | F35: 95.52154971 | G35: 99.5227789 | H35: 70.64339777 | I35: 93.12755979 | J35: 98.21897549 | K35: 99.55683235 | L35: 99.80371304 | M35: 15.14053508 | N35: 37.28927605 | O35: 47.19124291 | P35: 67.03873817 | Q35: 81.09330499 | R35: 52.10570233 | S35: 94.37734926 | T35: 91.41786528 | U35: 73.60259094 | V35: 47.18763738 | W35: 78.05625818 | X35: 77.41474974 | Y35: 78.52361284 | Z35: 95.08714303 | BA35: Water source on premises | BB35: Yes | BC35: N/A | BD35: N/A | BE35: N/A | BF35: N/A | BG35: N/A | BH35: N/A | BI35: N/A | BJ35: N/A | BK35: N/A | BL35: N/A | BM35: N/A | BN35: N/A | BO35: N/A | BP35: N/A | BQ35: N/A | BR35: N/A | BS35: N/A | BT35: N/A | BU35: N/A | BV35: N/A | BW35: N/A | BX35: N/A | BY35: N/A | BZ35: N/A
B36: 2 No | C36: 65.36996578 | D36: 32.34331242 | E36: 14.23663002 | F36: 4.478450292 | G36: 0.4772211041 | H36: 29.35660223 | I36: 6.872440213 | J36: 1.781024512 | K36: 0.4431676453 | L36: 0.1962869604 | M36: 84.85946492 | N36: 62.71072395 | O36: 52.80875709 | P36: 32.96126183 | Q36: 18.90669501 | R36: 47.89429767 | S36: 5.622650742 | T36: 8.582134719 | U36: 26.39740906 | V36: 52.81236262 | W36: 21.94374182 | X36: 22.58525026 | Y36: 21.47638716 | Z36: 4.912856972 | BB36: No | BC36: N/A | BD36: N/A | BE36: N/A | BF36: N/A | BG36: N/A | BH36: N/A | BI36: N/A | BJ36: N/A | BK36: N/A | BL36: N/A | BM36: N/A | BN36: N/A | BO36: N/A | BP36: N/A | BQ36: N/A | BR36: N/A | BS36: N/A | BT36: N/A | BU36: N/A | BV36: N/A | BW36: N/A | BX36: N/A | BY36: N/A | BZ36: N/A
A37: Improved Water source on premises | B37: 1 Yes | C37: 45.18625103 | D37: 71.80390192 | E37: 87.66091121 | F37: 95.7224665 | G37: 99.57766729 | H37: 71.51140951 | I37: 93.35526482 | J37: 98.23899717 | K37: 99.5908284 | L37: 99.80371304 | M37: 27.29418231 | N37: 46.02727155 | O37: 53.22694447 | P37: 71.56110243 | Q37: 82.5828699 | R37: 70.25092217 | S37: 94.4552861 | T37: 91.41786528 | U37: 81.928811 | V37: 50.82123781 | W37: 81.89340105 | X37: 77.49086945 | Y37: 78.87330898 | Z37: 95.285631 | BA37: Improved water source on premises | BB37: Yes | BC37: N/A | BD37: N/A | BE37: N/A | BF37: N/A | BG37: N/A | BH37: N/A | BI37: N/A | BJ37: N/A | BK37: N/A | BL37: N/A | BM37: N/A | BN37: N/A | BO37: N/A | BP37: N/A | BQ37: N/A | BR37: N/A | BS37: N/A | BT37: N/A | BU37: N/A | BV37: N/A | BW37: N/A | BX37: N/A | BY37: N/A | BZ37: N/A
B38: 2 No | C38: 54.81374897 | D38: 28.19609808 | E38: 12.33908879 | F38: 4.277533501 | G38: 0.4223327051 | H38: 28.48859049 | I38: 6.644735175 | J38: 1.761002834 | K38: 0.4091716024 | L38: 0.1962869604 | M38: 72.70581769 | N38: 53.97272845 | O38: 46.77305553 | P38: 28.43889757 | Q38: 17.4171301 | R38: 29.74907783 | S38: 5.544713903 | T38: 8.582134719 | U38: 18.071189 | V38: 49.17876219 | W38: 18.10659895 | X38: 22.50913055 | Y38: 21.12669102 | Z38: 4.714369 | BB38: No | BC38: N/A | BD38: N/A | BE38: N/A | BF38: N/A | BG38: N/A | BH38: N/A | BI38: N/A | BJ38: N/A | BK38: N/A | BL38: N/A | BM38: N/A | BN38: N/A | BO38: N/A | BP38: N/A | BQ38: N/A | BR38: N/A | BS38: N/A | BT38: N/A | BU38: N/A | BV38: N/A | BW38: N/A | BX38: N/A | BY38: N/A | BZ38: N/A
A39: Piped water on premises available when needed | B39: Yes | C39: N/A | D39: N/A | E39: N/A | F39: N/A | G39: N/A | H39: N/A | I39: N/A | J39: N/A | K39: N/A | L39: N/A | M39: N/A | N39: N/A | O39: N/A | P39: N/A | Q39: N/A | R39: N/A | S39: N/A | T39: N/A | U39: N/A | V39: N/A | W39: N/A | X39: N/A | Y39: N/A | Z39: N/A | BA39: Piped water on premises available when needed | BB39: Yes | BC39: N/A | BD39: N/A | BE39: N/A | BF39: N/A | BG39: N/A | BH39: N/A | BI39: N/A | BJ39: N/A | BK39: N/A | BL39: N/A | BM39: N/A | BN39: N/A | BO39: N/A | BP39: N/A | BQ39: N/A | BR39: N/A | BS39: N/A | BT39: N/A | BU39: N/A | BV39: N/A | BW39: N/A | BX39: N/A | BY39: N/A | BZ39: N/A
B40: No | C40: N/A | D40: N/A | E40: N/A | F40: N/A | G40: N/A | H40: N/A | I40: N/A | J40: N/A | K40: N/A | L40: N/A | M40: N/A | N40: N/A | O40: N/A | P40: N/A | Q40: N/A | R40: N/A | S40: N/A | T40: N/A | U40: N/A | V40: N/A | W40: N/A | X40: N/A | Y40: N/A | Z40: N/A | BB40: No | BC40: N/A | BD40: N/A | BE40: N/A | BF40: N/A | BG40: N/A | BH40: N/A | BI40: N/A | BJ40: N/A | BK40: N/A | BL40: N/A | BM40: N/A | BN40: N/A | BO40: N/A | BP40: N/A | BQ40: N/A | BR40: N/A | BS40: N/A | BT40: N/A | BU40: N/A | BV40: N/A | BW40: N/A | BX40: N/A | BY40: N/A | BZ40: N/A
A41: Water point at more than 30 minutes | B41: 1 Yes | C41: 19.91331156 | D41: 6.219905919 | E41: 2.346565416 | F41: 0.3811143444 | G41: 0.1589225745 | H41: 3.719098157 | I41: 0.1239907401 | J41: 0.1954337726 | K41: 0 | L41: 0.1893962102 | M41: 32.19602107 | N41: 18.79074149 | O41: 10.84472698 | P41: 7.92064755 | Q41: 2.156495585 | R41: 17.40346531 | S41: 1.040476136 | T41: 0.5023196728 | U41: 6.002673781 | V41: 15.16584076 | W41: 5.223531273 | X41: 3.202310166 | Y41: 1.382706905 | Z41: 0 | BA41: Water point at more than 30 minutes | BB41: Yes | BC41: N/A | BD41: N/A | BE41: N/A | BF41: N/A | BG41: N/A | BH41: N/A | BI41: N/A | BJ41: N/A | BK41: N/A | BL41: N/A | BM41: N/A | BN41: N/A | BO41: N/A | BP41: N/A | BQ41: N/A | BR41: N/A | BS41: N/A | BT41: N/A | BU41: N/A | BV41: N/A | BW41: N/A | BX41: N/A | BY41: N/A | BZ41: N/A
B42: 2 No | C42: 80.08668844 | D42: 93.78009408 | E42: 97.65343458 | F42: 99.61888566 | G42: 99.84107743 | H42: 96.28090184 | I42: 99.87600926 | J42: 99.80456623 | K42: 100 | L42: 99.81060379 | M42: 67.80397893 | N42: 81.20925851 | O42: 89.15527302 | P42: 92.07935245 | Q42: 97.84350442 | R42: 82.59653469 | S42: 98.95952386 | T42: 99.49768033 | U42: 93.99732622 | V42: 84.83415924 | W42: 94.77646873 | X42: 96.79768983 | Y42: 98.61729309 | Z42: 100 | BB42: No | BC42: N/A | BD42: N/A | BE42: N/A | BF42: N/A | BG42: N/A | BH42: N/A | BI42: N/A | BJ42: N/A | BK42: N/A | BL42: N/A | BM42: N/A | BN42: N/A | BO42: N/A | BP42: N/A | BQ42: N/A | BR42: N/A | BS42: N/A | BT42: N/A | BU42: N/A | BV42: N/A | BW42: N/A | BX42: N/A | BY42: N/A | BZ42: N/A
A43: Water source available when needed | B43: 1 Yes | C43: 50.71087759 | D43: 53.57925293 | E43: 63.9521762 | F43: 73.33017444 | G43: 83.02889702 | H43: 62.46077529 | I43: 72.91000228 | J43: 76.75862419 | K43: 79.55418208 | L43: 85.64365607 | M43: 42.56611009 | N43: 36.22840845 | O43: 39.88718322 | P43: 47.82912691 | Q43: 52.9451199 | R43: 58.75405277 | S43: 71.62101641 | T43: 82.00066483 | U43: 46.6120119 | V43: 44.73279241 | W43: 48.00730202 | X43: 66.20579596 | Y43: 77.08743514 | Z43: 90.13397666 | BA43: Water source available when needed | BB43: Yes | BC43: N/A | BD43: N/A | BE43: N/A | BF43: N/A | BG43: N/A | BH43: N/A | BI43: N/A | BJ43: N/A | BK43: N/A | BL43: N/A | BM43: N/A | BN43: N/A | BO43: N/A | BP43: N/A | BQ43: N/A | BR43: N/A | BS43: N/A | BT43: N/A | BU43: N/A | BV43: N/A | BW43: N/A | BX43: N/A | BY43: N/A | BZ43: N/A
B44: 2 No | C44: 49.28912241 | D44: 46.42074707 | E44: 36.0478238 | F44: 26.66982556 | G44: 16.97110298 | H44: 37.53922471 | I44: 27.08999772 | J44: 23.24137581 | K44: 20.44581792 | L44: 14.35634393 | M44: 57.43388991 | N44: 63.77159155 | O44: 60.11281678 | P44: 52.17087309 | Q44: 47.0548801 | R44: 41.24594723 | S44: 28.37898359 | T44: 17.99933517 | U44: 53.3879881 | V44: 55.26720759 | W44: 51.99269798 | X44: 33.79420404 | Y44: 22.91256486 | Z44: 9.866023344 | BB44: No | BC44: N/A | BD44: N/A | BE44: N/A | BF44: N/A | BG44: N/A | BH44: N/A | BI44: N/A | BJ44: N/A | BK44: N/A | BL44: N/A | BM44: N/A | BN44: N/A | BO44: N/A | BP44: N/A | BQ44: N/A | BR44: N/A | BS44: N/A | BT44: N/A | BU44: N/A | BV44: N/A | BW44: N/A | BX44: N/A | BY44: N/A | BZ44: N/A
A45: Improved water source available when needed | B45: 1 Yes | C45: 50.71087759 | D45: 53.57925293 | E45: 63.9521762 | F45: 73.33017444 | G45: 83.02889702 | H45: 62.46077529 | I45: 72.91000228 | J45: 76.75862419 | K45: 79.55418208 | L45: 85.64365607 | M45: 42.56611009 | N45: 36.22840845 | O45: 39.88718322 | P45: 47.82912691 | Q45: 52.9451199 | R45: 58.75405277 | S45: 71.62101641 | T45: 82.00066483 | U45: 46.6120119 | V45: 44.73279241 | W45: 48.00730202 | X45: 66.20579596 | Y45: 77.08743514 | Z45: 90.13397666 | BA45: Improved water source available when needed | BB45: Yes | BC45: N/A | BD45: N/A | BE45: N/A | BF45: N/A | BG45: N/A | BH45: N/A | BI45: N/A | BJ45: N/A | BK45: N/A | BL45: N/A | BM45: N/A | BN45: N/A | BO45: N/A | BP45: N/A | BQ45: N/A | BR45: N/A | BS45: N/A | BT45: N/A | BU45: N/A | BV45: N/A | BW45: N/A | BX45: N/A | BY45: N/A | BZ45: N/A
B46: 2 No | C46: 49.28912241 | D46: 46.42074707 | E46: 36.0478238 | F46: 26.66982556 | G46: 16.97110298 | H46: 37.53922471 | I46: 27.08999772 | J46: 23.24137581 | K46: 20.44581792 | L46: 14.35634393 | M46: 57.43388991 | N46: 63.77159155 | O46: 60.11281678 | P46: 52.17087309 | Q46: 47.0548801 | R46: 41.24594723 | S46: 28.37898359 | T46: 17.99933517 | U46: 53.3879881 | V46: 55.26720759 | W46: 51.99269798 | X46: 33.79420404 | Y46: 22.91256486 | Z46: 9.866023344 | BB46: No | BC46: N/A | BD46: N/A | BE46: N/A | BF46: N/A | BG46: N/A | BH46: N/A | BI46: N/A | BJ46: N/A | BK46: N/A | BL46: N/A | BM46: N/A | BN46: N/A | BO46: N/A | BP46: N/A | BQ46: N/A | BR46: N/A | BS46: N/A | BT46: N/A | BU46: N/A | BV46: N/A | BW46: N/A | BX46: N/A | BY46: N/A | BZ46: N/A
A47: Microbiological quality at point of collection | B47: Not contaminated (No E. coli in 100 mL) | C47: N/A | D47: N/A | E47: N/A | F47: N/A | G47: N/A | H47: N/A | I47: N/A | J47: N/A | K47: N/A | L47: N/A | M47: N/A | N47: N/A | O47: N/A | P47: N/A | Q47: N/A | R47: N/A | S47: N/A | T47: N/A | U47: N/A | V47: N/A | W47: N/A | X47: N/A | Y47: N/A | Z47: N/A | BA47: Microbiological quality at point of collection | BB47: Not contaminated (No E. coli in 100 mL) | BC47: N/A | BD47: N/A | BE47: N/A | BF47: N/A | BG47: N/A | BH47: N/A | BI47: N/A | BJ47: N/A | BK47: N/A | BL47: N/A | BM47: N/A | BN47: N/A | BO47: N/A | BP47: N/A | BQ47: N/A | BR47: N/A | BS47: N/A | BT47: N/A | BU47: N/A | BV47: N/A | BW47: N/A | BX47: N/A | BY47: N/A | BZ47: N/A
B48: Contaminated (E. coli detected in 100 mL) | C48: N/A | D48: N/A | E48: N/A | F48: N/A | G48: N/A | H48: N/A | I48: N/A | J48: N/A | K48: N/A | L48: N/A | M48: N/A | N48: N/A | O48: N/A | P48: N/A | Q48: N/A | R48: N/A | S48: N/A | T48: N/A | U48: N/A | V48: N/A | W48: N/A | X48: N/A | Y48: N/A | Z48: N/A | BB48: Contaminated (E. coli detected in 100 mL) | BC48: N/A | BD48: N/A | BE48: N/A | BF48: N/A | BG48: N/A | BH48: N/A | BI48: N/A | BJ48: N/A | BK48: N/A | BL48: N/A | BM48: N/A | BN48: N/A | BO48: N/A | BP48: N/A | BQ48: N/A | BR48: N/A | BS48: N/A | BT48: N/A | BU48: N/A | BV48: N/A | BW48: N/A | BX48: N/A | BY48: N/A | BZ48: N/A
B49: Highly contaminated (>100 CFU/100 mL) | C49: N/A | D49: N/A | E49: N/A | F49: N/A | G49: N/A | H49: N/A | I49: N/A | J49: N/A | K49: N/A | L49: N/A | M49: N/A | N49: N/A | O49: N/A | P49: N/A | Q49: N/A | R49: N/A | S49: N/A | T49: N/A | U49: N/A | V49: N/A | W49: N/A | X49: N/A | Y49: N/A | Z49: N/A | BB49: Highly contaminated (>100 CFU/100 mL) | BC49: N/A | BD49: N/A | BE49: N/A | BF49: N/A | BG49: N/A | BH49: N/A | BI49: N/A | BJ49: N/A | BK49: N/A | BL49: N/A | BM49: N/A | BN49: N/A | BO49: N/A | BP49: N/A | BQ49: N/A | BR49: N/A | BS49: N/A | BT49: N/A | BU49: N/A | BV49: N/A | BW49: N/A | BX49: N/A | BY49: N/A | BZ49: N/A
A50: Microbiological quality of improved water sources at point of collection | B50: Not contaminated (No E. coli in 100 mL) | C50: N/A | D50: N/A | E50: N/A | F50: N/A | G50: N/A | H50: N/A | I50: N/A | J50: N/A | K50: N/A | L50: N/A | M50: N/A | N50: N/A | O50: N/A | P50: N/A | Q50: N/A | R50: N/A | S50: N/A | T50: N/A | U50: N/A | V50: N/A | W50: N/A | X50: N/A | Y50: N/A | Z50: N/A | BA50: Microbiological quality of improved water sources at point of collection | BB50: Not contaminated (No E. coli in 100 mL) | BC50: N/A | BD50: N/A | BE50: N/A | BF50: N/A | BG50: N/A | BH50: N/A | BI50: N/A | BJ50: N/A | BK50: N/A | BL50: N/A | BM50: N/A | BN50: N/A | BO50: N/A | BP50: N/A | BQ50: N/A | BR50: N/A | BS50: N/A | BT50: N/A | BU50: N/A | BV50: N/A | BW50: N/A | BX50: N/A | BY50: N/A | BZ50: N/A
B51: Contaminated (E. coli detected in 100 mL) | C51: N/A | D51: N/A | E51: N/A | F51: N/A | G51: N/A | H51: N/A | I51: N/A | J51: N/A | K51: N/A | L51: N/A | M51: N/A | N51: N/A | O51: N/A | P51: N/A | Q51: N/A | R51: N/A | S51: N/A | T51: N/A | U51: N/A | V51: N/A | W51: N/A | X51: N/A | Y51: N/A | Z51: N/A | BB51: Contaminated (E. coli detected in 100 mL) | BC51: N/A | BD51: N/A | BE51: N/A | BF51: N/A | BG51: N/A | BH51: N/A | BI51: N/A | BJ51: N/A | BK51: N/A | BL51: N/A | BM51: N/A | BN51: N/A | BO51: N/A | BP51: N/A | BQ51: N/A | BR51: N/A | BS51: N/A | BT51: N/A | BU51: N/A | BV51: N/A | BW51: N/A | BX51: N/A | BY51: N/A | BZ51: N/A
B52: Highly contaminated (>100 CFU/100 mL) | C52: N/A | D52: N/A | E52: N/A | F52: N/A | G52: N/A | H52: N/A | I52: N/A | J52: N/A | K52: N/A | L52: N/A | M52: N/A | N52: N/A | O52: N/A | P52: N/A | Q52: N/A | R52: N/A | S52: N/A | T52: N/A | U52: N/A | V52: N/A | W52: N/A | X52: N/A | Y52: N/A | Z52: N/A | BB52: Highly contaminated (>100 CFU/100 mL) | BC52: N/A | BD52: N/A | BE52: N/A | BF52: N/A | BG52: N/A | BH52: N/A | BI52: N/A | BJ52: N/A | BK52: N/A | BL52: N/A | BM52: N/A | BN52: N/A | BO52: N/A | BP52: N/A | BQ52: N/A | BR52: N/A | BS52: N/A | BT52: N/A | BU52: N/A | BV52: N/A | BW52: N/A | BX52: N/A | BY52: N/A | BZ52: N/A
A53: Microbiological quality of piped on premises at point of collection | B53: Not contaminated (No E. coli in 100 mL) | C53: N/A | D53: N/A | E53: N/A | F53: N/A | G53: N/A | H53: N/A | I53: N/A | J53: N/A | K53: N/A | L53: N/A | M53: N/A | N53: N/A | O53: N/A | P53: N/A | Q53: N/A | R53: N/A | S53: N/A | T53: N/A | U53: N/A | V53: N/A | W53: N/A | X53: N/A | Y53: N/A | Z53: N/A | BA53: Microbiological quality of piped on premises at point of collection | BB53: Not contaminated (No E. coli in 100 mL) | BC53: N/A | BD53: N/A | BE53: N/A | BF53: N/A | BG53: N/A | BH53: N/A | BI53: N/A | BJ53: N/A | BK53: N/A | BL53: N/A | BM53: N/A | BN53: N/A | BO53: N/A | BP53: N/A | BQ53: N/A | BR53: N/A | BS53: N/A | BT53: N/A | BU53: N/A | BV53: N/A | BW53: N/A | BX53: N/A | BY53: N/A | BZ53: N/A
B54: Contaminated (E. coli detected in 100 mL) | C54: N/A | D54: N/A | E54: N/A | F54: N/A | G54: N/A | H54: N/A | I54: N/A | J54: N/A | K54: N/A | L54: N/A | M54: N/A | N54: N/A | O54: N/A | P54: N/A | Q54: N/A | R54: N/A | S54: N/A | T54: N/A | U54: N/A | V54: N/A | W54: N/A | X54: N/A | Y54: N/A | Z54: N/A | BB54: Contaminated (E. coli detected in 100 mL) | BC54: N/A | BD54: N/A | BE54: N/A | BF54: N/A | BG54: N/A | BH54: N/A | BI54: N/A | BJ54: N/A | BK54: N/A | BL54: N/A | BM54: N/A | BN54: N/A | BO54: N/A | BP54: N/A | BQ54: N/A | BR54: N/A | BS54: N/A | BT54: N/A | BU54: N/A | BV54: N/A | BW54: N/A | BX54: N/A | BY54: N/A | BZ54: N/A
B55: Highly contaminated (>100 CFU/100 mL) | C55: N/A | D55: N/A | E55: N/A | F55: N/A | G55: N/A | H55: N/A | I55: N/A | J55: N/A | K55: N/A | L55: N/A | M55: N/A | N55: N/A | O55: N/A | P55: N/A | Q55: N/A | R55: N/A | S55: N/A | T55: N/A | U55: N/A | V55: N/A | W55: N/A | X55: N/A | Y55: N/A | Z55: N/A | BB55: Highly contaminated (>100 CFU/100 mL) | BC55: N/A | BD55: N/A | BE55: N/A | BF55: N/A | BG55: N/A | BH55: N/A | BI55: N/A | BJ55: N/A | BK55: N/A | BL55: N/A | BM55: N/A | BN55: N/A | BO55: N/A | BP55: N/A | BQ55: N/A | BR55: N/A | BS55: N/A | BT55: N/A | BU55: N/A | BV55: N/A | BW55: N/A | BX55: N/A | BY55: N/A | BZ55: N/A
C56: NATIONAL wealth index quintile | H56: URBAN wealth index quintile | M56: RURAL wealth index quintile | R56: SUB-REGIONS: | BA56: Raw numbers of respondents: | BB56: Use of drinking water sources | BC56: NATIONAL wealth index quintile | BH56: URBAN wealth index quintile | BM56: RURAL wealth index quintile | BR56: SUB-REGIONS:
A57: Percentage based on weighted population | C57: Poorest | D57: Poor | E57: Middle | F57: Rich | G57: Richest | H57: 1 Poorest | I57: 2 Poor | J57: 3 Middle | K57: 4 Rich | L57: 5 Richest | M57: 1 Poorest | N57: 2 Poor | O57: 3 Middle | P57: 4 Rich | Q57: 5 Richest | R57: 2 Eastern Cape | S57: 4 Free State | T57: 7 Gauteng | U57: 5 Kwazulu-Natal | V57: 9 Limpopo | W57: 8 Mpumalanga | X57: 6 North West | Y57: 3 Northern Cape | Z57: 1 Western Cape | BA57: Water data, raw numbers (weighted) | BC57: Poorest | BD57: Poor | BE57: Middle | BF57: Rich | BG57: Richest | BH57: Poorest | BI57: Poor | BJ57: Middle | BK57: Rich | BL57: Richest | BM57: Poorest | BN57: Poor | BO57: Middle | BP57: Rich | BQ57: Richest | BR57: 2 Eastern Cape | BS57: 4 Free State | BT57: 7 Gauteng | BU57: 5 Kwazulu-Natal | BV57: 9 Limpopo | BW57: 8 Mpumalanga | BX57: 6 North West | BY57: 3 Northern Cape | BZ57: 1 Western Cape
A58: Source of drinking water | B58: 11 Piped into dwelling | C58: 5.673059608 | D58: 17.76052489 | E58: 39.39747617 | F58: 72.16504604 | G58: 91.54911182 | H58: 21.14810062 | I58: 50.85723812 | J58: 76.52269178 | K58: 90.43859007 | L58: 93.95698676 | M58: 0.8169939464 | N58: 2.674698751 | O58: 5.697742288 | P58: 11.44367787 | Q58: 21.94807157 | R58: 28.73037953 | S58: 65.1235973 | T58: 63.87811372 | U58: 34.89565959 | V58: 12.61195201 | W58: 27.66727526 | X58: 26.03576088 | Y58: 50.86396386 | Z58: 87.00979732
B59: 12 Piped to yard/plot | C59: 19.49100131 | D59: 39.6358035 | E59: 37.11073393 | F59: 19.21471302 | G59: 4.859716958 | H59: 41.13595894 | I59: 38.1307845 | J59: 20.70679829 | K59: 7.89393261 | L59: 2.601975785 | M59: 6.961353683 | N59: 24.69963351 | O59: 28.1260781 | P59: 37.85448285 | Q59: 39.66723859 | R59: 14.07220501 | S59: 26.9901089 | T59: 23.87986841 | U59: 31.9535768 | V59: 22.17283333 | W59: 39.67737716 | X59: 34.59608491 | Y59: 21.06470687 | Z59: 5.356371301
B60: 13 Piped to neighbor | C60: 4.142284929 | D60: 5.324014064 | E60: 3.489135184 | F60: 1.033155802 | G60: 0 | H60: 4.240502547 | I60: 2.164668901 | J60: 0.3341557794 | K60: 0.0579063119 | L60: 0 | M60: 3.646778539 | N60: 2.831769046 | O60: 5.829911697 | P60: 8.729940434 | Q60: 5.391648187 | R60: 1.249014978 | S60: 1.304831519 | T60: 0.7922671666 | U60: 4.241259893 | V60: 3.284973284 | W60: 6.828611102 | X60: 9.348881115 | Y60: 1.122734731 | Z60: 0.1203553417
B61: 14 Public tap/standpipe | C61: 33.53511245 | D61: 22.00481387 | E61: 10.09485102 | F61: 2.840672857 | G61: 0.1972141761 | H61: 28.23319786 | I61: 7.02037952 | J61: 1.141262554 | K61: 0.07076507327 | L61: 0.1056271476 | M61: 27.21737676 | N61: 33.55975233 | O61: 31.1467432 | P61: 20.45519813 | Q61: 11.78533924 | R61: 20.27013517 | S61: 3.043650646 | T61: 9.02808952 | U61: 12.18602084 | V61: 30.86157354 | W61: 8.711316529 | X61: 19.46574897 | Y61: 23.46497195 | Z61: 6.11168389
B62: 21 Tube well or borehole | C62: 3.440472855 | D62: 4.460775748 | E62: 3.794745969 | F62: 1.885054744 | G62: 0.7631088409 | H62: 0.13278308 | I62: 0.4073587727 | J62: 0.2297083223 | K62: 0.1972750614 | L62: 0.151427365 | M62: 5.006919506 | N62: 5.597714107 | O62: 8.054497182 | P62: 8.158621452 | Q62: 10.40490121 | R62: 0.8589424447 | S62: 0.6031536743 | T62: 0.08025352229 | U62: 1.593880549 | V62: 14.50591868 | W62: 5.978462169 | X62: 5.0318789 | Y62: 1.736411321 | Z62: 0.07757272545
B63: 31 Protected well | C63: 0.4652638274 | D63: 0.1631977555 | E63: 0.2044383852 | F63: 0.03872719678 | G63: 0.01163170233 | H63: 0.01742230653 | I63: 0.03478898584 | J63: 0.01836600322 | K63: 0 | L63: 0.0183658979 | M63: 1.064214198 | N63: 0.2067463842 | O63: 0.2861561312 | P63: 0.344634972 | Q63: 0.3569687678 | R63: 0.6759986473 | S63: 0 | T63: 0 | U63: 0.1471779987 | V63: 0.3083148136 | W63: 0 | X63: 0.3570873822 | Y63: 0 | Z63: 0.05000500383
B64: 32 Unprotected well | C64: 7.026896369 | D64: 1.858789314 | E64: 0.2294030226 | F64: 0 | G64: 0 | H64: 0.02628130956 | I64: 0.02623935311 | J64: 0 | K64: 0 | L64: 0 | M64: 12.74944548 | N64: 6.820695838 | O64: 4.011686584 | P64: 0.8452549928 | Q64: 0.3629056837 | R64: 9.191516694 | S64: 0 | T64: 0 | U64: 1.68806333 | V64: 1.979256922 | W64: 1.495776148 | X64: 0 | Y64: 0 | Z64: 0
B65: 41 Protected spring | C65: 1.284182336 | D65: 0.2983325245 | E65: 0.1909602427 | F65: 0.1933553868 | G65: 0 | H65: 0 | I65: 0.1049574124 | J65: 0 | K65: 0.2100367119 | L65: 0 | M65: 3.100692438 | N65: 0.4489328242 | O65: 0.4369821133 | P65: 0.6763628136 | Q65: 0.164078003 | R65: 1.09585119 | S65: 0.1005036926 | T65: 0 | U65: 0.968766691 | V65: 0.2009103656 | W65: 0.4827169373 | X65: 0.1032632279 | Y65: 0 | Z65: 0
B66: 42 Unprotected spring | C66: 4.062714727 | D66: 0.8809973744 | E66: 0.7258858606 | F66: 0.06135511905 | G66: 0.03338522793 | H66: 0.1576878574 | I66: 0.1574361186 | J66: 0.007848966417 | K66: 0 | L66: 0 | M66: 8.06132194 | N66: 3.190190441 | O66: 1.309501334 | P66: 1.872486073 | Q66: 0.748875631 | R66: 3.604955413 | S66: 0 | T66: 0 | U66: 3.143181489 | V66: 0.2731141828 | W66: 0.8642098496 | X66: 0 | Y66: 0.04725032357 | Z66: 0.06163691064
B67: 43 River/dam/lake/ponds/stream/canal/irrigation channel | C67: 12.81393033 | D67: 2.805258547 | E67: 1.190458638 | F67: 0.09907502408 | G67: 0 | H67: 0.8290744519 | I67: 0 | J67: 0.0205212779 | K67: 0 | L67: 0 | M67: 25.23494513 | N67: 9.629361615 | O67: 5.571021908 | P67: 3.582763076 | Q67: 0.6825431642 | R67: 13.1381748 | S67: 0 | T67: 0 | U67: 5.597203242 | V67: 4.632437066 | W67: 1.966223896 | X67: 0 | Y67: 0.374120552 | Z67: 0
B68: 51 Rainwater | C68: 0.9187145739 | D68: 0.7993345912 | E68: 0.6990545986 | F68: 0.1432020598 | G68: 0.02164318267 | H68: 0.03254019614 | I68: 0 | J68: 0 | K68: 0.0103105182 | L68: 0 | M68: 1.494570254 | N68: 1.225906554 | O68: 1.694119097 | P68: 1.312449939 | Q68: 1.248012798 | R68: 3.779425332 | S68: 0 | T68: 0 | U68: 0.03825181229 | V68: 0.03604551264 | W68: 0.2427575019 | X68: 0 | Y68: 0.06213683978 | Z68: 0
B69: 61 Tanker truck | C69: 5.130365087 | D69: 2.305606438 | E69: 1.374904073 | F69: 1.047852499 | G69: 0.1211504094 | H69: 3.628263083 | I69: 0.5981778614 | J69: 0.5687807597 | K69: 0.148673783 | L69: 0 | M69: 3.447851076 | N69: 4.987529892 | O69: 4.621993121 | P69: 1.931262221 | Q69: 3.69708255 | R69: 1.716023957 | S69: 2.480215335 | T69: 1.161930772 | U69: 2.472167061 | V69: 4.149991306 | W69: 3.678793286 | X69: 2.180596875 | Y69: 0.0552681981 | Z69: 0.07836926606
B70: 62 Cart with small tank | C70: 1.456133358 | D70: 1.013222772 | E70: 1.217349425 | F70: 0.5113391815 | G70: 0.07536285429 | H70: 0.08462849987 | I70: 0.03123282097 | J70: 0.06634082341 | K70: 0 | L70: 0 | M70: 1.10447043 | N70: 2.96822399 | O70: 2.08737583 | P70: 2.602587271 | Q70: 2.587180352 | R70: 0.3195400862 | S70: 0.2347102382 | T70: 0.05202153797 | U70: 0.4755675832 | V70: 4.530676523 | W70: 1.190187643 | X70: 1.799196329 | Y70: 0.02234777797 | Z70: 0
B71: 71 Bottled water | C71: 0.279662068 | D71: 0.2116435992 | E71: 0.1534179929 | F71: 0.5672188621 | G71: 2.345938865 | H71: 0.132794128 | I71: 0.0660445517 | J71: 0.3835254347 | K71: 0.9024721724 | L71: 3.165617048 | M71: 0 | N71: 0.5675219251 | O71: 0.4565940978 | P71: 0.1711976555 | Q71: 0.4735474241 | R71: 1.010854864 | S71: 0.03671679939 | T71: 1.12745535 | U71: 0.3952930243 | V71: 0.01486255217 | W71: 0.8569687612 | X71: 0.9832708616 | Y71: 1.104187474 | Z71: 0.5968612073
B72: 96 Other | C72: 0.2802061768 | D72: 0.4776850102 | E72: 0.1271854911 | F72: 0.1992322026 | G72: 0.02173596596 | H72: 0.2007651238 | I72: 0.4006930888 | J72: 0 | K72: 0.07003768544 | L72: 0 | M72: 0.09306661967 | N72: 0.5913227965 | O72: 0.6695973177 | P72: 0.01908025253 | Q72: 0.4816068204 | R72: 0.2869818748 | S72: 0.08251188769 | T72: 0 | U72: 0.2039300906 | V72: 0.4371399043 | W72: 0.3593237572 | X72: 0.0982305531 | Y72: 0.08190009409 | Z72: 0.537347037
A108: =A1026 -> South Africa
A109: =A1034 -> 2016
A110: Use of sanitation facilities
A111: by wealth quintile and sub-national region
A112: Notes:
A113: WHO/UNICEF JMP customised wealth index excludes water,
A114: sanitation and hygiene assets.
A115: Survey used for analysis: | B115: =A1025 -> DHS16
A116: Improved latrines without pipe: | B116: JMP SAGE08 Ratio
A117: =B1029 -> 
A120: Use of sanitation facilities | C120: NATIONAL wealth index quintile | H120: URBAN wealth index quintile | M120: RURAL wealth index quintile | R120: SUB-REGIONS: | BA120: Raw numbers of respondents: | BB120: Use of sanitation facilities | BC120: NATIONAL wealth index quintile | BH120: URBAN wealth index quintile | BM120: RURAL wealth index quintile | BR120: SUB-REGIONS:
A121: Weighted percentage (used in graphs) | C121: Poorest | D121: Poor | E121: Middle | F121: Rich | G121: Richest | H121: 1 Poorest | I121: 2 Poor | J121: 3 Middle | K121: 4 Rich | L121: 5 Richest | M121: 1 Poorest | N121: 2 Poor | O121: 3 Middle | P121: 4 Rich | Q121: 5 Richest | R121: 2 Eastern Cape | S121: 4 Free State | T121: 7 Gauteng | U121: 5 Kwazulu-Natal | V121: 9 Limpopo | W121: 8 Mpumalanga | X121: 6 North West | Y121: 3 Northern Cape | Z121: 1 Western Cape | BA121: Sanitation data, raw numbers (weighted) | BC121: Poorest | BD121: Poor | BE121: Middle | BF121: Rich | BG121: Richest | BH121: Poorest | BI121: Poor | BJ121: Middle | BK121: Rich | BL121: Richest | BM121: Poorest | BN121: Poor | BO121: Middle | BP121: Rich | BQ121: Richest | BR121: 2 Eastern Cape | BS121: 4 Free State | BT121: 7 Gauteng | BU121: 5 Kwazulu-Natal | BV121: 9 Limpopo | BW121: 8 Mpumalanga | BX121: 6 North West | BY121: 3 Northern Cape | BZ121: 1 Western Cape
A122: Sanitation | B122: 1 Improved | C122: =C153+C154+C155+C157+C158+C159+C160*0.64+C162+C164 -> 75.48317586 | D122: =D153+D154+D155+D157+D158+D159+D160*0.64+D162+D164 -> 82.99249261 | E122: 88.74521889 | F122: 95.3987425 | G122: 99.6694375 | H122: =H153+H154+H155+H157+H158+H159+H160*0.62+H162+H164 -> 77.50558809 | I122: =I153+I154+I155+I157+I158+I159+I160*0.62+I162+I164 -> 94.7565755 | J122: 98.38018397 | K122: 99.32162658 | L122: 99.97618096 | M122: 76.61188566 | N122: 77.64586286 | O122: 80.06260735 | P122: 77.69923516 | Q122: 80.93245916 | R122: 89.26070945 | S122: 91.06577803 | T122: 94.94046243 | U122: 87.64938848 | V122: 79.57482612 | W122: 75.11798427 | X122: 82.0135892 | Y122: 89.40251698 | Z122: 95.38596604 | BA122: Sanitation | BB122: Improved | BC122: 3892.995784 | BD122: 4743.333869 | BE122: 5520.936655 | BF122: 6803.344462 | BG122: 7534.89094 | BH122: 2824.150092 | BI122: 4306.829974 | BJ122: 4654.247721 | BK122: 4739.06843 | BL122: 4813.858644 | BM122: 1555.145876 | BN122: 1381.735849 | BO122: 1417.798212 | BP122: 1305.59597 | BQ122: 1497.070942 | BR122: 4018.913137 | BS122: 1653.858049 | BT122: 8258.245766 | BU122: 5027.984804 | BV122: 1998.744722 | BW122: 1389.464059 | BX122: 1553.295354 | BY122: 667.066704 | BZ122: 3927.929115
B123: 2 Not Improved | C123: =100-C122 -> 24.51682414 | D123: =100-D122 -> 17.00750739 | E123: 11.25478111 | F123: 4.601257496 | G123: 0.3305625005 | H123: 22.49441191 | I123: 5.243424504 | J123: 1.619816029 | K123: 0.6783734177 | L123: 0.02381903805 | M123: 23.38811434 | N123: 22.35413714 | O123: 19.93739265 | P123: 22.30076484 | Q123: 19.06754084 | R123: 10.73929055 | S123: 8.93422197 | T123: 5.059537568 | U123: 12.35061152 | V123: 20.42517388 | W123: 24.88201573 | X123: 17.9864108 | Y123: 10.59748302 | Z123: 4.614033962 | BB123: Not Improved | BC123: 3708.425156 | BD123: 2849.129621 | BE123: 2094.467364 | BF123: 797.234059 | BG123: 67.770947 | BH123: 1991.211171 | BI123: 516.231002 | BJ123: 160.7302 | BK123: 81.19366 | BL123: 1.146888 | BM123: 1226.132749 | BN123: 1408.10738 | BO123: 1366.550307 | BP123: 1476.432199 | BQ123: 1289.291591 | BR123: 853.5904 | BS123: 348.898216 | BT123: 1169.926087 | BU123: 2034.535474 | BV123: 2018.384995 | BW123: 1696.273741 | BX123: 1072.644253 | BY123: 132.771205 | BZ123: 190.002776
A124: Sanitation ladder | B124: 1 Basic | C124: =C122*C129/100 -> 58.58541201 | D124: =D122*D129/100 -> 56.82034215 | E124: 68.72668265 | F124: 86.15819015 | G124: 96.76544359 | H124: 32.31572108 | I124: 63.06058251 | J124: 85.41395659 | K124: 94.80426668 | L124: 97.82941192 | M124: 72.6730342 | N124: 75.43713595 | O124: 73.38498874 | P124: 68.26737981 | Q124: 76.84296052 | R124: 82.19276641 | S124: 81.98058809 | T124: 69.40322489 | U124: 78.06406196 | V124: 73.21620711 | W124: 62.80673779 | X124: 66.82537734 | Y124: 85.47556181 | Z124: 82.45636149 | BA124: Sanitation ladder | BB124: Basic | BC124: 3021.504585 | BD124: 3247.49679 | BE124: 4275.561728 | BF124: 6144.356104 | BG124: 7315.352454 | BH124: 1177.520859 | BI124: 2866.199053 | BJ124: 4040.831159 | BK124: 4523.525467 | BL124: 4710.491596 | BM124: 1475.191068 | BN124: 1342.430765 | BO124: 1299.546808 | BP124: 1147.110596 | BQ124: 1421.42429 | BR124: 3700.682985 | BS124: 1488.860672 | BT124: 6036.929602 | BU124: 4478.124994 | BV124: 1839.030189 | BW124: 1161.741834 | BX124: 1265.638404 | BY124: 637.766175 | BZ124: 3395.496806
B125: 2 Limited | C125: =C122*C128/100 -> 16.89776385 | D125: =D122*D128/100 -> 26.17215047 | E125: 20.01853624 | F125: 9.240552353 | G125: 2.903993911 | H125: 45.18986701 | I125: 31.69599298 | J125: 12.96622738 | K125: 4.517359899 | L125: 2.146769039 | M125: 3.938851463 | N125: 2.208726917 | O125: 6.677618611 | P125: 9.431855358 | Q125: 4.089498635 | R125: 7.067943041 | S125: 9.08518994 | T125: 25.53723754 | U125: 9.585326523 | V125: 6.358619013 | W125: 12.31124649 | X125: 15.18821187 | Y125: 3.926955169 | Z125: 12.92960455 | BB125: Limited | BC125: 871.491199 | BD125: 1495.837079 | BE125: 1245.374927 | BF125: 658.988358 | BG125: 219.538486 | BH125: 1646.629233 | BI125: 1440.630921 | BJ125: 613.416562 | BK125: 215.542963 | BL125: 103.367048 | BM125: 79.954808 | BN125: 39.305084 | BO125: 118.251404 | BP125: 158.485374 | BQ125: 75.646652 | BR125: 318.230152 | BS125: 164.997377 | BT125: 2221.316164 | BU125: 549.85981 | BV125: 159.714533 | BW125: 227.722225 | BX125: 287.65695 | BY125: 29.300529 | BZ125: 532.432309
B126: 3 Other unimproved | C126: =100-(C124+C125+C127) -> 16.83964591 | D126: =100-(D124+D125+D127) -> 14.58740552 | E126: 10.42262869 | F126: 4.33571288 | G126: 0.3305625005 | H126: 19.15055465 | I126: 5.162900164 | J126: 1.478626015 | K126: 0.6783734177 | L126: 0.02381903805 | M126: 12.2701021 | N126: 16.90536935 | O126: 16.92459571 | P126: 18.51513555 | Q126: 18.03627339 | R126: 5.357248378 | S126: 8.483772499 | T126: 4.51369983 | U126: 10.70907455 | V126: 17.08044034 | W126: 21.73672749 | X126: 13.54480461 | Y126: 6.360008575 | Z126: 3.878902256 | BB126: Unimproved | BC126: 3124.850523 | BD126: 2665.38427 | BE126: 2031.095595 | BF126: 777.051132 | BG126: 67.770947 | BH126: 1830.192364 | BI126: 512.347264 | BJ126: 153.931932 | BK126: 81.19366 | BL126: 1.146888 | BM126: 916.909851 | BN126: 1256.095301 | BO126: 1282.66354 | BP126: 1371.114926 | BQ126: 1260.556741 | BR126: 591.350205 | BS126: 339.876811 | BT126: 1118.463567 | BU126: 1918.601593 | BV126: 1884.02271 | BW126: 1599.218393 | BX126: 956.010357 | BY126: 98.878278 | BZ126: 159.730553
B127: 4 Open defecation | C127: =C161 -> 7.677178222 | D127: =D161 -> 2.420101871 | E127: 0.8321524221 | F127: 0.2655446154 | G127: 0 | H127: 3.343857256 | I127: 0.08052433961 | J127: 0.141190014 | K127: 0 | L127: 0 | M127: 11.11801224 | N127: 5.448767781 | O127: 3.012796941 | P127: 3.785629282 | Q127: 1.031267456 | R127: 5.382042168 | S127: 0.4504494709 | T127: 0.5458377382 | U127: 1.641536965 | V127: 3.34473354 | W127: 3.145288235 | X127: 4.441606185 | Y127: 4.237474446 | Z127: 0.7351317069 | BB127: Open defecation | BC127: 583.574633 | BD127: 183.745351 | BE127: 63.371769 | BF127: 20.182927 | BG127: 0 | BH127: 161.018807 | BI127: 3.883738 | BJ127: 6.798268 | BK127: 0 | BL127: 0 | BM127: 309.222898 | BN127: 152.012079 | BO127: 83.886767 | BP127: 105.317273 | BQ127: 28.73485 | BR127: 262.240195 | BS127: 9.021405 | BT127: 51.46252 | BU127: 115.933881 | BV127: 134.362285 | BW127: 97.055348 | BX127: 116.633896 | BY127: 33.892927 | BZ127: 30.272223
A128: Shared among Improved Sanitation | B128: 1 Yes | C128: 22.38613262 | D128: 31.53556381 | E128: 22.55731237 | F128: 9.686241255 | G128: 2.913625263 | H128: 58.30530175 | I128: 33.44991397 | J128: 13.17971451 | K128: 4.548213772 | L128: 2.147280501 | M128: 5.141305985 | N128: 2.844616359 | O128: 8.340496059 | P128: 12.13892947 | Q128: 5.052977109 | R128: 7.918313762 | S128: 9.976513831 | T128: 26.89816006 | U128: 10.9359879 | V128: 7.990741951 | W128: 16.38921306 | X128: 18.51914057 | Y128: 4.392443638 | Z128: 13.55503863 | BA128: Shared among improved sanitation facilities | BB128: Yes | BC128: N/A | BD128: N/A | BE128: N/A | BF128: N/A | BG128: N/A | BH128: N/A | BI128: N/A | BJ128: N/A | BK128: N/A | BL128: N/A | BM128: N/A | BN128: N/A | BO128: N/A | BP128: N/A | BQ128: N/A | BR128: N/A | BS128: N/A | BT128: N/A | BU128: N/A | BV128: N/A | BW128: N/A | BX128: N/A | BY128: N/A | BZ128: N/A
B129: 2 No | C129: 77.61386738 | D129: 68.46443619 | E129: 77.44268763 | F129: 90.31375874 | G129: 97.08637474 | H129: 41.69469825 | I129: 66.55008603 | J129: 86.82028549 | K129: 95.45178623 | L129: 97.8527195 | M129: 94.85869401 | N129: 97.15538364 | O129: 91.65950394 | P129: 87.86107053 | Q129: 94.94702289 | R129: 92.08168624 | S129: 90.02348617 | T129: 73.10183994 | U129: 89.0640121 | V129: 92.00925805 | W129: 83.61078694 | X129: 81.48085943 | Y129: 95.60755636 | Z129: 86.44496137 | BB129: No | BC129: N/A | BD129: N/A | BE129: N/A | BF129: N/A | BG129: N/A | BH129: N/A | BI129: N/A | BJ129: N/A | BK129: N/A | BL129: N/A | BM129: N/A | BN129: N/A | BO129: N/A | BP129: N/A | BQ129: N/A | BR129: N/A | BS129: N/A | BT129: N/A | BU129: N/A | BV129: N/A | BW129: N/A | BX129: N/A | BY129: N/A | BZ129: N/A
A130: Manually calculated ratios | B130: Improved latrines | C130: =(C158+C159)/(C158+C159+C160)*100 -> 50.06239005 | D130: =(D158+D159)/(D158+D159+D160)*100 -> 44.83604343 | E130: 38.15423233 | F130: 35.55244878 | G130: 22.05357778 | H130: 20.35460785 | I130: 34.93076879 | J130: 48.30627633 | K130: 22.89109651 | L130: 50 | M130: 62.35192516 | N130: 51.77472722 | O130: 49.49735094 | P130: 43.51915045 | Q130: 34.95409742 | R130: 79.18836934 | S130: 38.0461924 | T130: 22.85357378 | U130: 51.63264359 | V130: 40.04262029 | W130: 19.13300714 | X130: 26.9035802 | Y130: 65.21527076
B131: Other
B132: Other
C133: NATIONAL wealth index quintile | H133: URBAN wealth index quintile | M133: RURAL wealth index quintile | R133: SUB-REGIONS: | BA133: Raw numbers of respondents: | BB133: Use of sanitation facilities | BC133: NATIONAL wealth index quintile | BH133: URBAN wealth index quintile | BM133: RURAL wealth index quintile | BR133: SUB-REGIONS:
A134: Percentage based on weighted population | C134: Poorest | D134: Poor | E134: Middle | F134: Rich | G134: Richest | H134: 1 Poorest | I134: 2 Poor | J134: 3 Middle | K134: 4 Rich | L134: 5 Richest | M134: 1 Poorest | N134: 2 Poor | O134: 3 Middle | P134: 4 Rich | Q134: 5 Richest | R134: 2 Eastern Cape | S134: 4 Free State | T134: 7 Gauteng | U134: 5 Kwazulu-Natal | V134: 9 Limpopo | W134: 8 Mpumalanga | X134: 6 North West | Y134: 3 Northern Cape | Z134: 1 Western Cape | BA134: Sanitation data, raw numbers (weighted) | BC134: Poorest | BD134: Poor | BE134: Middle | BF134: Rich | BG134: Richest | BH134: Poorest | BI134: Poor | BJ134: Middle | BK134: Rich | BL134: Richest | BM134: Poorest | BN134: Poor | BO134: Middle | BP134: Rich | BQ134: Richest | BR134: 2 Eastern Cape | BS134: 4 Free State | BT134: 7 Gauteng | BU134: 5 Kwazulu-Natal | BV134: 9 Limpopo | BW134: 8 Mpumalanga | BX134: 6 North West | BY134: 3 Northern Cape | BZ134: 1 Western Cape
A135: Sanitation type | B135: 1 Sewer connection | C135: 9.114660226 | D135: 30.78096478 | E135: 52.3808313 | F135: 81.19858753 | G135: 97.32544111 | H135: 39.88549062 | I135: 80.08849538 | J135: 92.88850099 | K135: 95.34197791 | L135: 99.49549647 | M135: 2.010290393 | N135: 1.265544086 | O135: 2.76934843 | P135: 5.70242515 | Q135: 22.26741024 | R135: 37.55127675 | S135: 74.01634162 | T135: 79.73765492 | U135: 37.17868194 | V135: 17.17767791 | W135: 32.17720981 | X135: 42.65564368 | Y135: 62.17337155 | Z135: 93.10049307 | BA135: Sanitation type | BB135: Sewer connection | BC135: N/A | BD135: N/A | BE135: N/A | BF135: N/A | BG135: N/A | BH135: N/A | BI135: N/A | BJ135: N/A | BK135: N/A | BL135: N/A | BM135: N/A | BN135: N/A | BO135: N/A | BP135: N/A | BQ135: N/A | BR135: N/A | BS135: N/A | BT135: N/A | BU135: N/A | BV135: N/A | BW135: N/A | BX135: N/A | BY135: N/A | BZ135: N/A
B136: 2 Septic tank connection | C136: 0.7570405777 | D136: 1.200466069 | E136: 1.9945783 | F136: 1.839697605 | G136: 1.206499294 | H136: 2.088994294 | I136: 1.755349361 | J136: 0.8788875815 | K136: 1.884701253 | L136: 0.3113160286 | M136: 0.03078573259 | N136: 0.3768613552 | O136: 0.6954028157 | P136: 1.849499102 | Q136: 4.182648368 | R136: 2.852592121 | S136: 0.3249020419 | T136: 0.4311217661 | U136: 2.508573017 | V136: 1.217968088 | W136: 0.5525502199 | X136: 2.768352281 | Y136: 1.903017953 | Z136: 0.3625789448 | BB136: Septic tank connection | BC136: N/A | BD136: N/A | BE136: N/A | BF136: N/A | BG136: N/A | BH136: N/A | BI136: N/A | BJ136: N/A | BK136: N/A | BL136: N/A | BM136: N/A | BN136: N/A | BO136: N/A | BP136: N/A | BQ136: N/A | BR136: N/A | BS136: N/A | BT136: N/A | BU136: N/A | BV136: N/A | BW136: N/A | BX136: N/A | BY136: N/A | BZ136: N/A
B137: 3 Improved latrines | C137: 41.34235266 | D137: 30.49280923 | E137: 18.12155368 | F137: 6.472591483 | G137: 0.5766488192 | H137: 16.67428384 | I137: 7.45276576 | J137: 2.894481891 | K137: 1.088896662 | L137: 0.1693684658 | M137: 53.87370573 | N137: 47.88495992 | O137: 47.45553414 | P137: 39.3777217 | Q137: 27.27844672 | R137: 42.07761331 | S137: 8.237853846 | T137: 7.422390458 | U137: 31.50524582 | V137: 31.35989746 | W137: 12.29882468 | X137: 13.7279872 | Y137: 19.32384653 | Z137: 1.922894018 | BB137: Improved latrines | BC137: N/A | BD137: N/A | BE137: N/A | BF137: N/A | BG137: N/A | BH137: N/A | BI137: N/A | BJ137: N/A | BK137: N/A | BL137: N/A | BM137: N/A | BN137: N/A | BO137: N/A | BP137: N/A | BQ137: N/A | BR137: N/A | BS137: N/A | BT137: N/A | BU137: N/A | BV137: N/A | BW137: N/A | BX137: N/A | BY137: N/A | BZ137: N/A
B138: 4 Unimproved facilities | C138: 41.10876832 | D138: 35.10565805 | E138: 26.6708843 | F138: 10.22357877 | G138: 0.8914107717 | H138: 38.00737399 | I138: 10.62286516 | J138: 3.196939519 | K138: 1.684424176 | L138: 0.02381903805 | M138: 32.9672059 | N138: 45.02386686 | O138: 46.06691767 | P138: 49.28472477 | Q138: 45.24022722 | R138: 12.13647564 | S138: 16.97045302 | T138: 11.86299512 | U138: 27.16596226 | V138: 46.899723 | W138: 51.82612706 | X138: 36.40641066 | Y138: 12.36228952 | Z138: 3.878902256 | BB138: Unimproved facilities | BC138: N/A | BD138: N/A | BE138: N/A | BF138: N/A | BG138: N/A | BH138: N/A | BI138: N/A | BJ138: N/A | BK138: N/A | BL138: N/A | BM138: N/A | BN138: N/A | BO138: N/A | BP138: N/A | BQ138: N/A | BR138: N/A | BS138: N/A | BT138: N/A | BU138: N/A | BV138: N/A | BW138: N/A | BX138: N/A | BY138: N/A | BZ138: N/A
B139: 5 Open defecation | C139: 7.677178222 | D139: 2.420101871 | E139: 0.8321524221 | F139: 0.2655446154 | G139: 0 | H139: 3.343857256 | I139: 0.08052433961 | J139: 0.141190014 | K139: 0 | L139: 0 | M139: 11.11801224 | N139: 5.448767781 | O139: 3.012796941 | P139: 3.785629282 | Q139: 1.031267456 | R139: 5.382042168 | S139: 0.4504494709 | T139: 0.5458377382 | U139: 1.641536965 | V139: 3.34473354 | W139: 3.145288235 | X139: 4.441606185 | Y139: 4.237474446 | Z139: 0.7351317069 | BB139: Open defecation | BC139: N/A | BD139: N/A | BE139: N/A | BF139: N/A | BG139: N/A | BH139: N/A | BI139: N/A | BJ139: N/A | BK139: N/A | BL139: N/A | BM139: N/A | BN139: N/A | BO139: N/A | BP139: N/A | BQ139: N/A | BR139: N/A | BS139: N/A | BT139: N/A | BU139: N/A | BV139: N/A | BW139: N/A | BX139: N/A | BY139: N/A | BZ139: N/A
A140: Septic tank emptying practices | B140: Not emptied/treated and disposed in situ | C140: N/A | D140: N/A | E140: N/A | F140: N/A | G140: N/A | H140: N/A | I140: N/A | J140: N/A | K140: N/A | L140: N/A | M140: N/A | N140: N/A | O140: N/A | P140: N/A | Q140: N/A | R140: N/A | S140: N/A | T140: N/A | U140: N/A | V140: N/A | W140: N/A | X140: N/A | Y140: N/A | Z140: N/A | BA140: Septic tank emptying practices | BB140: Not emptied/treated and disposed in situ | BC140: N/A | BD140: N/A | BE140: N/A | BF140: N/A | BG140: N/A | BH140: N/A | BI140: N/A | BJ140: N/A | BK140: N/A | BL140: N/A | BM140: N/A | BN140: N/A | BO140: N/A | BP140: N/A | BQ140: N/A | BR140: N/A | BS140: N/A | BT140: N/A | BU140: N/A | BV140: N/A | BW140: N/A | BX140: N/A | BY140: N/A | BZ140: N/A
B141: Emptied and buried on site | C141: N/A | D141: N/A | E141: N/A | F141: N/A | G141: N/A | H141: N/A | I141: N/A | J141: N/A | K141: N/A | L141: N/A | M141: N/A | N141: N/A | O141: N/A | P141: N/A | Q141: N/A | R141: N/A | S141: N/A | T141: N/A | U141: N/A | V141: N/A | W141: N/A | X141: N/A | Y141: N/A | Z141: N/A | BB141: Emptied and buried on site | BC141: N/A | BD141: N/A | BE141: N/A | BF141: N/A | BG141: N/A | BH141: N/A | BI141: N/A | BJ141: N/A | BK141: N/A | BL141: N/A | BM141: N/A | BN141: N/A | BO141: N/A | BP141: N/A | BQ141: N/A | BR141: N/A | BS141: N/A | BT141: N/A | BU141: N/A | BV141: N/A | BW141: N/A | BX141: N/A | BY141: N/A | BZ141: N/A
B142: Emptied and discharged locally | C142: N/A | D142: N/A | E142: N/A | F142: N/A | G142: N/A | H142: N/A | I142: N/A | J142: N/A | K142: N/A | L142: N/A | M142: N/A | N142: N/A | O142: N/A | P142: N/A | Q142: N/A | R142: N/A | S142: N/A | T142: N/A | U142: N/A | V142: N/A | W142: N/A | X142: N/A | Y142: N/A | Z142: N/A | BB142: Emptied and discharged locally | BC142: N/A | BD142: N/A | BE142: N/A | BF142: N/A | BG142: N/A | BH142: N/A | BI142: N/A | BJ142: N/A | BK142: N/A | BL142: N/A | BM142: N/A | BN142: N/A | BO142: N/A | BP142: N/A | BQ142: N/A | BR142: N/A | BS142: N/A | BT142: N/A | BU142: N/A | BV142: N/A | BW142: N/A | BX142: N/A | BY142: N/A | BZ142: N/A
B143: Emptied and removed offsite | C143: N/A | D143: N/A | E143: N/A | F143: N/A | G143: N/A | H143: N/A | I143: N/A | J143: N/A | K143: N/A | L143: N/A | M143: N/A | N143: N/A | O143: N/A | P143: N/A | Q143: N/A | R143: N/A | S143: N/A | T143: N/A | U143: N/A | V143: N/A | W143: N/A | X143: N/A | Y143: N/A | Z143: N/A | BB143: Emptied and removed offsite | BC143: N/A | BD143: N/A | BE143: N/A | BF143: N/A | BG143: N/A | BH143: N/A | BI143: N/A | BJ143: N/A | BK143: N/A | BL143: N/A | BM143: N/A | BN143: N/A | BO143: N/A | BP143: N/A | BQ143: N/A | BR143: N/A | BS143: N/A | BT143: N/A | BU143: N/A | BV143: N/A | BW143: N/A | BX143: N/A | BY143: N/A | BZ143: N/A
A144: Latrine emptying practices | B144: Not emptied/treated and disposed in situ | C144: N/A | D144: N/A | E144: N/A | F144: N/A | G144: N/A | H144: N/A | I144: N/A | J144: N/A | K144: N/A | L144: N/A | M144: N/A | N144: N/A | O144: N/A | P144: N/A | Q144: N/A | R144: N/A | S144: N/A | T144: N/A | U144: N/A | V144: N/A | W144: N/A | X144: N/A | Y144: N/A | Z144: N/A | BA144: Latrine emptying practices | BB144: Not emptied/treated and disposed in situ | BC144: N/A | BD144: N/A | BE144: N/A | BF144: N/A | BG144: N/A | BH144: N/A | BI144: N/A | BJ144: N/A | BK144: N/A | BL144: N/A | BM144: N/A | BN144: N/A | BO144: N/A | BP144: N/A | BQ144: N/A | BR144: N/A | BS144: N/A | BT144: N/A | BU144: N/A | BV144: N/A | BW144: N/A | BX144: N/A | BY144: N/A | BZ144: N/A
B145: Emptied and buried on site | C145: N/A | D145: N/A | E145: N/A | F145: N/A | G145: N/A | H145: N/A | I145: N/A | J145: N/A | K145: N/A | L145: N/A | M145: N/A | N145: N/A | O145: N/A | P145: N/A | Q145: N/A | R145: N/A | S145: N/A | T145: N/A | U145: N/A | V145: N/A | W145: N/A | X145: N/A | Y145: N/A | Z145: N/A | BB145: Emptied and buried on site | BC145: N/A | BD145: N/A | BE145: N/A | BF145: N/A | BG145: N/A | BH145: N/A | BI145: N/A | BJ145: N/A | BK145: N/A | BL145: N/A | BM145: N/A | BN145: N/A | BO145: N/A | BP145: N/A | BQ145: N/A | BR145: N/A | BS145: N/A | BT145: N/A | BU145: N/A | BV145: N/A | BW145: N/A | BX145: N/A | BY145: N/A | BZ145: N/A
B146: Emptied and discharged locally | C146: N/A | D146: N/A | E146: N/A | F146: N/A | G146: N/A | H146: N/A | I146: N/A | J146: N/A | K146: N/A | L146: N/A | M146: N/A | N146: N/A | O146: N/A | P146: N/A | Q146: N/A | R146: N/A | S146: N/A | T146: N/A | U146: N/A | V146: N/A | W146: N/A | X146: N/A | Y146: N/A | Z146: N/A | BB146: Emptied and discharged locally | BC146: N/A | BD146: N/A | BE146: N/A | BF146: N/A | BG146: N/A | BH146: N/A | BI146: N/A | BJ146: N/A | BK146: N/A | BL146: N/A | BM146: N/A | BN146: N/A | BO146: N/A | BP146: N/A | BQ146: N/A | BR146: N/A | BS146: N/A | BT146: N/A | BU146: N/A | BV146: N/A | BW146: N/A | BX146: N/A | BY146: N/A | BZ146: N/A
B147: Emptied and removed offsite | C147: N/A | D147: N/A | E147: N/A | F147: N/A | G147: N/A | H147: N/A | I147: N/A | J147: N/A | K147: N/A | L147: N/A | M147: N/A | N147: N/A | O147: N/A | P147: N/A | Q147: N/A | R147: N/A | S147: N/A | T147: N/A | U147: N/A | V147: N/A | W147: N/A | X147: N/A | Y147: N/A | Z147: N/A | BB147: Emptied and removed offsite | BC147: N/A | BD147: N/A | BE147: N/A | BF147: N/A | BG147: N/A | BH147: N/A | BI147: N/A | BJ147: N/A | BK147: N/A | BL147: N/A | BM147: N/A | BN147: N/A | BO147: N/A | BP147: N/A | BQ147: N/A | BR147: N/A | BS147: N/A | BT147: N/A | BU147: N/A | BV147: N/A | BW147: N/A | BX147: N/A | BY147: N/A | BZ147: N/A
A148: Shared among improved sanitation facilities | B148: Yes | C148: 11.46484593 | D148: 19.70160385 | E148: 16.35336646 | F148: 8.670239458 | G148: 2.887652894 | H148: 34.1953416 | I148: 29.86963939 | J148: 12.73975856 | K148: 4.47160256 | L148: 2.146769039 | M148: 2.874750026 | N148: 1.408863537 | O148: 4.247004396 | P148: 5.696756624 | Q148: 2.714889075 | R148: 6.531142555 | S148: 8.238515085 | T148: 23.56041233 | U148: 7.785603274 | V148: 3.975837084 | W148: 7.379830684 | X148: 10.95443891 | Y148: 3.663308362 | Z148: 12.92960455 | BA148: Shared among improved sanitation facilities | BB148: Yes | BC148: N/A | BD148: N/A | BE148: N/A | BF148: N/A | BG148: N/A | BH148: N/A | BI148: N/A | BJ148: N/A | BK148: N/A | BL148: N/A | BM148: N/A | BN148: N/A | BO148: N/A | BP148: N/A | BQ148: N/A | BR148: N/A | BS148: N/A | BT148: N/A | BU148: N/A | BV148: N/A | BW148: N/A | BX148: N/A | BY148: N/A | BZ148: N/A
B149: No | C149: 39.74920753 | D149: 42.77263624 | E149: 56.14359681 | F149: 80.84063716 | G149: 96.22093633 | H149: 24.45342716 | I149: 59.42697111 | J149: 83.9221119 | K149: 93.84397326 | L149: 97.82941192 | M149: 53.04003183 | N149: 48.11850182 | O149: 46.67328099 | P149: 41.23288933 | Q149: 51.01361625 | R149: 75.95033963 | S149: 74.34058243 | T149: 64.03075481 | U149: 63.40689751 | V149: 45.77970637 | W149: 37.64875402 | X149: 48.19754425 | Y149: 79.73692767 | Z149: 82.45636149 | BB149: No | BC149: N/A | BD149: N/A | BE149: N/A | BF149: N/A | BG149: N/A | BH149: N/A | BI149: N/A | BJ149: N/A | BK149: N/A | BL149: N/A | BM149: N/A | BN149: N/A | BO149: N/A | BP149: N/A | BQ149: N/A | BR149: N/A | BS149: N/A | BT149: N/A | BU149: N/A | BV149: N/A | BW149: N/A | BX149: N/A | BY149: N/A | BZ149: N/A
B150: DK/missing | C150: 48.78594654 | D150: 37.52575992 | E150: 27.50303672 | F150: 10.48912338 | G150: 0.8914107717 | H150: 41.35123124 | I150: 10.7033895 | J150: 3.338129533 | K150: 1.684424176 | L150: 0.02381903805 | M150: 44.08521814 | N150: 50.47263464 | O150: 49.07971461 | P150: 53.07035405 | Q150: 46.27149467 | R150: 17.51851781 | S150: 17.42090249 | T150: 12.40883286 | U150: 28.80749922 | V150: 50.24445654 | W150: 54.9714153 | X150: 40.84801684 | Y150: 16.59976397 | Z150: 4.614033962 | BB150: DK/missing | BC150: N/A | BD150: N/A | BE150: N/A | BF150: N/A | BG150: N/A | BH150: N/A | BI150: N/A | BJ150: N/A | BK150: N/A | BL150: N/A | BM150: N/A | BN150: N/A | BO150: N/A | BP150: N/A | BQ150: N/A | BR150: N/A | BS150: N/A | BT150: N/A | BU150: N/A | BV150: N/A | BW150: N/A | BX150: N/A | BY150: N/A | BZ150: N/A
A151: Shared among all sanitation facilities | B151: Yes | C151: 23.24796778 | D151: 27.10293497 | E151: 19.69632179 | F151: 9.055110007 | G151: 2.986602684 | H151: 53.38918409 | I151: 32.67645368 | J151: 12.93116233 | K151: 4.668170855 | L151: 2.146769039 | M151: 6.973644126 | N151: 4.912905172 | O151: 10.1500273 | P151: 11.49122371 | Q151: 5.329670786 | R151: 8.826582449 | S151: 10.17504068 | T151: 28.54122563 | U151: 12.63816667 | V151: 6.965884095 | W151: 14.65996455 | X151: 18.80909277 | Y151: 5.896000635 | Z151: 15.91977339 | BA151: Shared among all sanitation facilities | BB151: Yes | BC151: N/A | BD151: N/A | BE151: N/A | BF151: N/A | BG151: N/A | BH151: N/A | BI151: N/A | BJ151: N/A | BK151: N/A | BL151: N/A | BM151: N/A | BN151: N/A | BO151: N/A | BP151: N/A | BQ151: N/A | BR151: N/A | BS151: N/A | BT151: N/A | BU151: N/A | BV151: N/A | BW151: N/A | BX151: N/A | BY151: N/A | BZ151: N/A
B152: No | C152: 76.75203222 | D152: 72.89706503 | E152: 80.30367821 | F152: 90.94488999 | G152: 97.01339732 | H152: 46.61081591 | I152: 67.32354632 | J152: 87.06883767 | K152: 95.33182915 | L152: 97.85323096 | M152: 93.02635587 | N152: 95.08709483 | O152: 89.8499727 | P152: 88.50877629 | Q152: 94.67032921 | R152: 91.17341755 | S152: 89.82495932 | T152: 71.45877437 | U152: 87.36183333 | V152: 93.0341159 | W152: 85.34003545 | X152: 81.19090723 | Y152: 94.10399937 | Z152: 84.08022661 | BB152: No | BC152: N/A | BD152: N/A | BE152: N/A | BF152: N/A | BG152: N/A | BH152: N/A | BI152: N/A | BJ152: N/A | BK152: N/A | BL152: N/A | BM152: N/A | BN152: N/A | BO152: N/A | BP152: N/A | BQ152: N/A | BR152: N/A | BS152: N/A | BT152: N/A | BU152: N/A | BV152: N/A | BW152: N/A | BX152: N/A | BY152: N/A | BZ152: N/A
A153: Type of toilet facility | B153: 11 Flush to piped sewer system | C153: 9.114660226 | D153: 30.78096478 | E153: 52.3808313 | F153: 81.19858753 | G153: 97.32544111 | H153: 39.88549062 | I153: 80.08849538 | J153: 92.88850099 | K153: 95.34197791 | L153: 99.49549647 | M153: 2.010290393 | N153: 1.265544086 | O153: 2.76934843 | P153: 5.70242515 | Q153: 22.26741024 | R153: 37.55127675 | S153: 74.01634162 | T153: 79.73765492 | U153: 37.17868194 | V153: 17.17767791 | W153: 32.17720981 | X153: 42.65564368 | Y153: 62.17337155 | Z153: 93.10049307 | BA153: Type of toilet facility | BB153: 11 Flush to piped sewer system | BC153: 692.843691 | BD153: 2337.033513 | BE153: 3989.011932 | BF153: 6171.562403 | BG153: 7399.324218 | BH153: 1920.630465 | BI153: 3862.716967 | BJ153: 4472.560814 | BK153: 4595.733217 | BL153: 4790.713659 | BM153: 55.911777 | BN153: 35.306696 | BO153: 77.108312 | BP153: 158.643074 | BQ153: 620.450776 | BR153: 1829.687288 | BS153: 1482.366919 | BT153: 7517.803137 | BU153: 2625.751951 | BV153: 690.049604 | BW153: 992.904326 | BX153: 1120.111442 | BY153: 497.286195 | BZ153: 3833.814895
B154: 12 Flush to septic tank | C154: 0.7570405777 | D154: 1.200466069 | E154: 1.9945783 | F154: 1.839697605 | G154: 1.206499294 | H154: 2.088994294 | I154: 1.755349361 | J154: 0.8788875815 | K154: 1.884701253 | L154: 0.3113160286 | M154: 0.03078573259 | N154: 0.3768613552 | O154: 0.6954028157 | P154: 1.849499102 | Q154: 4.182648368 | R154: 2.852592121 | S154: 0.3249020419 | T154: 0.4311217661 | U154: 2.508573017 | V154: 1.217968088 | W154: 0.5525502199 | X154: 2.768352281 | Y154: 1.903017953 | Z154: 0.3625789448 | BB154: 12 Flush to septic tank | BC154: 57.545841 | BD154: 91.144948 | BE154: 151.895196 | BF154: 139.827661 | BG154: 91.726062 | BH154: 100.592622 | BI154: 84.66157 | BJ154: 42.318243 | BK154: 90.84754 | BL154: 14.989884 | BM154: 0.856237 | BN154: 10.513841 | BO154: 19.362438 | BP154: 51.453586 | BQ154: 116.543747 | BR154: 138.992652 | BS154: 6.506996 | BT154: 40.646901 | BU154: 177.168478 | BV154: 48.927358 | BW154: 17.050251 | BX154: 72.695259 | BY154: 15.221059 | BZ154: 14.930754
B155: 13 Flush to pit latrine | C155: 0.6924248429 | D155: 2.011395421 | E155: 1.098552471 | F155: 0.5033549735 | G155: 0.3030920004 | H155: 2.840851278 | I155: 1.735503541 | J155: 0.2431684255 | K155: 0.4370751135 | L155: 0.1414907201 | M155: 0.07283840539 | N155: 0.2180876308 | O155: 0.8920303917 | P155: 0.6068220009 | Q155: 1.449499429 | R155: 0.856184027 | S155: 0.06906511911 | T155: 2.14650172 | U155: 0.54405676 | V155: 0.09763759889 | W155: 1.175221498 | X155: 0.4979652603 | Y155: 1.495647164 | Z155: 0.02871472942 | BB155: 13 Flush to pit latrine | BC155: 52.634127 | BD155: 152.714463 | BE155: 83.659209 | BF155: 38.25789 | BG155: 23.04306 | BH155: 136.797252 | BI155: 83.704394 | BJ155: 11.708506 | BK155: 21.068166 | BL155: 6.812786 | BM155: 2.025839 | BN155: 6.084303 | BO155: 24.837235 | BP155: 16.881959 | BQ155: 40.388309 | BR155: 41.717597 | BS155: 1.383206 | BT155: 202.375871 | BU155: 38.424119 | BV155: 3.922229 | BW155: 36.264254 | BX155: 13.076267 | BY155: 11.962753 | BZ155: 1.182453
B156: 14 Flush to somewhere else | C156: 0.3877921935 | D156: 0.7644587962 | E156: 0.2864976296 | F156: 0.3502598115 | G156: 0 | H156: 1.529172911 | I156: 0.326581772 | J156: 0.1984492589 | K156: 0.01417553625 | L156: 0 | M156: 0.07436097849 | N156: 0.2192920354 | O156: 0.07379230675 | P156: 0.06549915706 | Q156: 0.8710547071 | R156: 0.6833737061 | S156: 0.2758822976 | T156: 0 | U156: 0.449037932 | V156: 0.3070938423 | W156: 0.2033006174 | X156: 0.3611213668 | Y156: 0 | Z156: 0.9065262124 | BB156: 14 Flush to somewhere else | BC156: 29.477717 | BD156: 58.041255 | BE156: 21.817952 | BF156: 26.621772 | BG156: 0 | BH156: 73.6352 | BI156: 15.751238 | BJ156: 9.555288 | BK156: 0.683298 | BL156: 0 | BM156: 2.068186 | BN156: 6.117904 | BO156: 2.054635 | BP156: 1.822205 | BQ156: 24.270742 | BR156: 33.297408 | BS156: 5.52525 | BT156: 0 | BU156: 31.713395 | BV156: 12.336358 | BW156: 6.273324 | BX156: 9.482829 | BY156: 0 | BZ156: 37.330132
B157: 15 Flush, don't know where | C157: 0.07041817632 | D157: 0.02073304669 | E157: 0.1734594904 | F157: 0.1400980461 | G157: 0.02561585704 | H157: 0.1055925552 | I157: 0.1279072778 | J157: 0.05085560184 | K157: 0.170106435 | L157: 0.02787774575 | M157: 0 | N157: 0.009610540019 | O157: 0.05653563084 | P157: 0.09122930631 | Q157: 0.1833121835 | R157: 0.4419805719 | S157: 0 | T157: 0 | U157: 0.1087294719 | V157: 0.02106887404 | W157: 0 | X157: 0 | Y157: 0.1091834971 | Z157: 0.04366526809 | BB157: 15 Flush, don't know where | BC157: 5.352782 | BD157: 1.574149 | BE157: 13.209641 | BF157: 10.648262 | BG157: 1.947487 | BH157: 5.084663 | BI157: 6.169046 | BJ157: 2.448686 | BK157: 8.199576 | BL157: 1.342315 | BM157: 0 | BN157: 0.268119 | BO157: 1.574149 | BP157: 2.538025 | BQ157: 5.107742 | BR157: 21.535519 | BS157: 0 | BT157: 0 | BU157: 7.679041 | BV157: 0.846364 | BW157: 0 | BX157: 0 | BY157: 0.873291 | BZ157: 1.798106
B158: 21 Ventilated Improved Pit latrine (VIP) | C158: 17.322388 | D158: 9.272485142 | E158: 6.387153075 | F158: 2.415051637 | G158: 0 | H158: 3.892625408 | I158: 1.62010446 | J158: 1.027566664 | K158: 0.238928004 | L158: 0 | M158: 27.8186944 | N158: 17.33017888 | O158: 16.58619612 | P158: 14.42844316 | Q158: 8.747079216 | R158: 24.72218099 | S158: 3.538845502 | T158: 1.48702072 | U158: 8.949297547 | V158: 12.25262746 | W158: 1.708062785 | X158: 1.11860779 | Y158: 8.593044444 | Z158: 0 | BB158: 21 Ventilated Improved Pit latrine (VIP) | BC158: 1316.747629 | BD158: 704.010049 | BE158: 486.407512 | BF158: 183.557896 | BG158: 0 | BH158: 187.443976 | BI158: 78.138626 | BJ158: 49.477108 | BK158: 11.516956 | BL158: 0 | BM158: 773.715401 | BN158: 483.484822 | BO158: 461.817506 | BP158: 401.403353 | BQ158: 243.725338 | BR158: 1204.589143 | BS158: 70.87445 | BT158: 140.198869 | BU158: 632.045954 | BV158: 492.203939 | BW158: 52.706339 | BX158: 29.373965 | BY158: 68.730427 | BZ158: 0
B159: 22 Pit latrine with ventilation pipe but no gauze/mesh | C159: 20.69286847 | D159: 16.78498627 | E159: 9.275289942 | F159: 2.660006649 | G159: 0.2479409617 | H159: 3.880198614 | I159: 3.10738574 | J159: 1.56229435 | K159: 0.2427871095 | L159: 0 | M159: 25.74082829 | N159: 29.83866844 | O159: 28.04227153 | P159: 22.6158159 | Q159: 14.09471439 | R159: 15.582502 | S159: 4.604466535 | T159: 1.914742135 | U159: 18.50053769 | V159: 18.86432539 | W159: 9.415540394 | X159: 12.02881819 | Y159: 8.990119272 | Z159: 0 | BB159: 22 Pit latrine with ventilation pipe but no gauze/mesh | BC159: 1572.952037 | BD159: 1274.393954 | BE159: 706.350803 | BF159: 202.175894 | BG159: 18.850113 | BH159: 186.845581 | BI159: 149.871109 | BJ159: 75.224128 | BK159: 11.702975 | BL159: 0 | BM159: 715.924155 | BN159: 832.452071 | BO159: 780.794572 | BP159: 629.178369 | BQ159: 392.729841 | BR159: 759.257961 | BS159: 92.216242 | BT159: 180.525179 | BU159: 1306.604226 | BV159: 757.804421 | BW159: 290.538889 | BX159: 315.869501 | BY159: 71.906382 | BZ159: 0
B160: 23 Pit latrine without ventilation pipe | C160: 37.92050376 | D160: 32.05976958 | E160: 25.3878994 | F160: 9.199790451 | G160: 0.8763254238 | H160: 30.41422473 | I160: 8.806395153 | J160: 2.771473394 | K160: 1.622662514 | L160: 0 | M160: 32.3392247 | N160: 43.93515235 | O160: 45.53487806 | P160: 48.07748314 | Q160: 42.50617786 | R160: 10.5925426 | S160: 13.26043831 | T160: 11.48327389 | U160: 25.71388703 | V160: 46.59262916 | W160: 47.01468683 | X160: 35.72125945 | Y160: 9.378563976 | Z160: 0 | BB160: 23 Pit latrine without ventilation pipe | BC160: 2882.497113 | BD160: 2434.1263 | BE160: 1933.391111 | BF160: 699.237297 | BG160: 66.624059 | BH160: 1464.554796 | BI160: 424.737808 | BJ160: 133.445832 | BK160: 78.216586 | BL160: 0 | BM160: 899.443944 | BN160: 1225.721873 | BO160: 1267.849703 | BP160: 1337.529124 | BQ160: 1184.376214 | BR160: 516.122013 | BS160: 265.574259 | BT160: 1082.662797 | BU160: 1816.048486 | BV160: 1871.686352 | BW160: 1450.749963 | BX160: 938.0187 | BY160: 75.01331 | BZ160: 0
B161: 31 No facility/bush/field | C161: 7.677178222 | D161: 2.420101871 | E161: 0.8321524221 | F161: 0.2655446154 | G161: 0 | H161: 3.343857256 | I161: 0.08052433961 | J161: 0.141190014 | K161: 0 | L161: 0 | M161: 11.11801224 | N161: 5.448767781 | O161: 3.012796941 | P161: 3.785629282 | Q161: 1.031267456 | R161: 5.382042168 | S161: 0.4504494709 | T161: 0.5458377382 | U161: 1.641536965 | V161: 3.34473354 | W161: 3.145288235 | X161: 4.441606185 | Y161: 4.237474446 | Z161: 0.7351317069 | BB161: 31 No facility/bush/field | BC161: 583.574633 | BD161: 183.745351 | BE161: 63.371769 | BF161: 20.182927 | BG161: 0 | BH161: 161.018807 | BI161: 3.883738 | BJ161: 6.798268 | BK161: 0 | BL161: 0 | BM161: 309.222898 | BN161: 152.012079 | BO161: 83.886767 | BP161: 105.317273 | BQ161: 28.73485 | BR161: 262.240195 | BS161: 9.021405 | BT161: 51.46252 | BU161: 115.933881 | BV161: 134.362285 | BW161: 97.055348 | BX161: 116.633896 | BY161: 33.892927 | BZ161: 30.272223
B162: 41 Composting toilet | C162: 1.291644546 | D162: 1.944803096 | E162: 1.00692227 | F162: 0.7540801775 | G162: 0 | H162: 3.391124032 | I162: 0.4798963794 | J162: 0 | K162: 0 | L162: 0 | M162: 0.2060753981 | N162: 0.4884144334 | O162: 1.847228199 | P162: 1.615975334 | Q162: 2.786758797 | R162: 0.4747657303 | S162: 0 | T162: 0.8572030428 | U162: 3.378660784 | V162: 0.06136493401 | W162: 0 | X162: 0.02688447206 | Y162: 0 | Z162: 0.827993879 | BB162: 41 Composting toilet | BC162: 98.183339 | BD162: 147.658465 | BE162: 76.681199 | BF162: 57.314456 | BG162: 0 | BH162: 163.294873 | BI162: 23.145695 | BJ162: 0 | BK162: 0 | BL162: 0 | BM162: 5.731531 | BN162: 13.625997 | BO162: 51.433271 | BP162: 44.956889 | BQ162: 77.649203 | BR162: 23.132977 | BS162: 0 | BT162: 80.818576 | BU162: 238.618603 | BV162: 2.465109 | BW162: 0 | BX162: 0.70597 | BY162: 0 | BZ162: 34.096224
B163: 42 Bucket toilet | C163: 2.725897364 | D163: 2.2674788 | E163: 0.9964872751 | F163: 0.6735285065 | G163: 0.01508534796 | H163: 6.011687747 | I163: 1.489888234 | J163: 0.2270168665 | K163: 0.04758612617 | L163: 0.02381903805 | M163: 0.5536202257 | N163: 0.7185147105 | O163: 0.4582473032 | P163: 1.141742465 | Q163: 1.862994653 | R163: 0.7741542662 | S163: 3.361299284 | T163: 0.3797212287 | U163: 1.00303729 | V163: 0 | W163: 4.608139616 | X163: 0.3240298435 | Y163: 2.851296837 | Z163: 2.972376043 | BB163: 42 Bucket toilet | BC163: 207.206933 | BD163: 172.1575 | BE163: 75.886532 | BF163: 51.192063 | BG163: 1.146888 | BH163: 289.484483 | BI163: 71.858218 | BJ163: 10.930812 | BK163: 2.293776 | BL163: 1.146888 | BM163: 15.397721 | BN163: 20.045434 | BO163: 12.759202 | BP163: 31.763597 | BQ163: 51.909785 | BR163: 37.720694 | BS163: 67.318632 | BT163: 35.80077 | BU163: 70.839712 | BV163: 0 | BW163: 142.195106 | BX163: 8.508828 | BY163: 22.805753 | BZ163: 122.400421
B164: 44 Chemical toilet | C164: 1.272608618 | D164: 0.458406261 | E164: 0.1801764288 | F164: 0 | G164: 0 | H164: 2.563891954 | I164: 0.3819683618 | J164: 0.01059685025 | K164: 0 | L164: 0 | M164: 0.03526924599 | N164: 0 | O164: 0.03127227048 | P164: 0.01943600018 | Q164: 0.01708270171 | R164: 0 | S164: 0.02547668975 | T164: 1.01692284 | U164: 0.02396357013 | V164: 0.06287319997 | W164: 0 | X164: 0.05571148689 | Y164: 0.1358521505 | Z164: 1.022520142 | BB164: 44 Chemical toilet | BC164: 96.736338 | BD164: 34.804328 | BE164: 13.721163 | BF164: 0 | BG164: 0 | BH164: 123.46066 | BI164: 18.422567 | BJ164: 0.510236 | BK164: 0 | BL164: 0 | BM164: 0.980936 | BN164: 0 | BO164: 0.870729 | BP164: 0.540715 | BQ164: 0.475986 | BR164: 0 | BS164: 0.510236 | BT164: 95.877233 | BU164: 1.692432 | BV164: 2.525698 | BW164: 0 | BX164: 1.46295 | BY164: 1.086597 | BZ164: 42.106683
B165: 96 Other | C165: 0.07457500439 | D165: 0.0139508738 | E165: 0 | F165: 0 | G165: 0 | H165: 0.05228860022 | I165: 0 | J165: 0 | K165: 0 | L165: 0 | M165: 0 | N165: 0.1509077627 | O165: 0 | P165: 0 | Q165: 0 | R165: 0.08640506811 | S165: 0.0728331263 | T165: 0 | U165: 0 | V165: 0 | W165: 0 | X165: 0 | Y165: 0.1324287069 | Z165: 0 | BB165: 96 Other | BC165: 5.66876 | BD165: 1.059215 | BE165: 0 | BF165: 0 | BG165: 0 | BH165: 2.517885 | BI165: 0 | BJ165: 0 | BK165: 0 | BL165: 0 | BM165: 0 | BN165: 4.21009 | BO165: 0 | BP165: 0 | BQ165: 0 | BR165: 4.21009 | BS165: 1.45867 | BT165: 0 | BU165: 0 | BV165: 0 | BW165: 0 | BX165: 0 | BY165: 1.059215 | BZ165: 0
BB166: Total | BC166: 7601.42094 | BD166: 7592.46349 | BE166: 7615.404019 | BF166: 7600.578521 | BG166: 7602.661887 | BH166: 4815.361263 | BI166: 4823.060976 | BJ166: 4814.977921 | BK166: 4820.26209 | BL166: 4815.005532 | BM166: 2781.278625 | BN166: 2789.843229 | BO166: 2784.348519 | BP166: 2782.028169 | BQ166: 2786.362533 | BR166: 4872.503537 | BS166: 2002.756265 | BT166: 9428.171853 | BU166: 7062.520278 | BV166: 4017.129717 | BW166: 3085.7378 | BX166: 2625.939607 | BY166: 799.837909 | BZ166: 4117.931891
A208: =A1026 -> South Africa
A209: =A1034 -> 2016
A210: Access to hygiene facilities
A211: by wealth quintile and sub-national region
A212: Notes:
A213: WHO/UNICEF JMP customised wealth index excludes water,
A214: sanitation and hygiene assets.
A215: Survey used for analysis: | B215: =A1025 -> DHS16
A220: Access to handwashing | C220: NATIONAL wealth index quintile | H220: URBAN wealth index quintile | M220: RURAL wealth index quintile | R220: SUB-REGIONS: | BA220: Raw numbers of respondents: | BB220: Access to handwashing | BC220: NATIONAL wealth index quintile | BH220: URBAN wealth index quintile | BM220: RURAL wealth index quintile | BR220: SUB-REGIONS:
A221: Weighted percentage (used in graphs) | C221: Poorest | D221: Poor | E221: Middle | F221: Rich | G221: Richest | H221: 1 Poorest | I221: 2 Poor | J221: 3 Middle | K221: 4 Rich | L221: 5 Richest | M221: 1 Poorest | N221: 2 Poor | O221: 3 Middle | P221: 4 Rich | Q221: 5 Richest | R221: 2 Eastern Cape | S221: 4 Free State | T221: 7 Gauteng | U221: 5 Kwazulu-Natal | V221: 9 Limpopo | W221: 8 Mpumalanga | X221: 6 North West | Y221: 3 Northern Cape | Z221: 1 Western Cape | BA221: Hygiene data, raw numbers (weighted) | BC221: Poorest | BD221: Poor | BE221: Middle | BF221: Rich | BG221: Richest | BH221: Poorest | BI221: Poor | BJ221: Middle | BK221: Rich | BL221: Richest | BM221: Poorest | BN221: Poor | BO221: Middle | BP221: Rich | BQ221: Richest | BR221: 2 Eastern Cape | BS221: 4 Free State | BT221: 7 Gauteng | BU221: 5 Kwazulu-Natal | BV221: 9 Limpopo | BW221: 8 Mpumalanga | BX221: 6 North West | BY221: 3 Northern Cape | BZ221: 1 Western Cape
A222: Hygiene ladder | B222: 1,00 Basic | C222: 4.343950332 | D222: 9.740770519 | E222: 21.93905579 | F222: 50.53708058 | G222: 79.81592802 | H222: 7.28488203 | I222: 27.71170504 | J222: 44.68719343 | K222: 70.5551851 | L222: 84.26280228 | M222: 4.653189564 | N222: 4.009345344 | O222: 3.88107311 | P222: 7.894257243 | Q222: 28.33077477 | R222: 22.57411679 | S222: 27.79355087 | T222: 38.92356922 | U222: 32.37326794 | V222: 11.26120927 | W222: 22.75479397 | X222: 21.17103006 | Y222: 41.71845271 | Z222: 73.87272361 | BA222: Hygiene ladder | BB222: Basic | BC222: 324.785506 | BD222: 724.342093 | BE222: 1640.741194 | BF222: 3797.96607 | BG222: 6020.730954 | BH222: 347.062046 | BI222: 1300.905638 | BJ222: 2133.097846 | BK222: 3369.623992 | BL222: 4018.423126 | BM222: 126.913882 | BN222: 110.053845 | BO222: 105.668713 | BP222: 214.465314 | BQ222: 782.351415 | BR222: 1095.906756 | BS222: 547.945166 | BT222: 3592.374242 | BU222: 2223.5406 | BV222: 449.137503 | BW222: 689.086657 | BX222: 554.676547 | BY222: 332.22807 | BZ222: 3023.670276
B223: 2,00 Limited | C223: 67.22311192 | D223: 73.3783537 | E223: 67.68149266 | F223: 44.83600711 | G223: 17.72639407 | H223: 66.07432609 | I223: 61.3629343 | J223: 48.89721815 | K223: 26.81720058 | L223: 13.58356304 | M223: 61.80317324 | N223: 76.12711397 | O223: 82.59627581 | P223: 80.81921983 | Q223: 63.01289522 | R223: 57.85323804 | S223: 59.87794043 | T223: 45.64542827 | U223: 49.60966984 | V223: 84.14994672 | W223: 70.19825162 | X223: 75.32088388 | Y223: 49.85846641 | Z223: 19.28223468 | BB223: Limited | BC223: 5026.091633 | BD223: 5456.552969 | BE223: 5061.649605 | BF223: 3369.518614 | BG223: 1337.149766 | BH223: 3147.874009 | BI223: 2880.637878 | BJ223: 2334.059105 | BK223: 1280.754665 | BL223: 647.788851 | BM223: 1685.656801 | BN223: 2089.638303 | BO223: 2248.821889 | BP223: 2195.636502 | BQ223: 1740.094584 | BR223: 2808.603987 | BS223: 1180.483493 | BT223: 4212.754998 | BU223: 3407.413649 | BV223: 3356.202343 | BW223: 2125.823622 | BX223: 1973.391359 | BY223: 397.051688 | BZ223: 789.237448
B224: 3,00 No facility | C224: 28.43293775 | D224: 16.88087579 | E224: 10.37945155 | F224: 4.626912306 | G224: 2.457677917 | H224: 26.64079188 | I224: 10.92536066 | J224: 6.41558842 | K224: 2.627614325 | L224: 2.153634681 | M224: 33.5436372 | N224: 19.86354069 | O224: 13.52265108 | P224: 11.28652292 | Q224: 8.656330014 | R224: 19.57264517 | S224: 12.3285087 | T224: 15.43100251 | U224: 18.01706222 | V224: 4.588844005 | W224: 7.046954408 | X224: 3.508086062 | Y224: 8.423080881 | Z224: 6.845041713 | BB224: No facility | BC224: 2125.854434 | BD224: 1255.293806 | BE224: 776.24096 | BF224: 347.722024 | BG224: 185.389281 | BH224: 1269.204868 | BI224: 512.883031 | BJ224: 306.241605 | BK224: 125.491447 | BL224: 102.705051 | BM224: 914.889272 | BN224: 545.240891 | BO224: 368.176815 | BP224: 306.623867 | BQ224: 239.043658 | BR224: 950.194166 | BS224: 243.054469 | BT224: 1424.174017 | BU224: 1237.492286 | BV224: 183.019593 | BW224: 213.403921 | BX224: 91.911119 | BY224: 67.077845 | BZ224: 280.173089
A225: Place where household members wash their hands | B225: 1 Observed, fixed place | C225: 17.74677078 | D225: 30.80961841 | E225: 51.56768408 | F225: 76.86982805 | G225: 93.09742154 | H225: 30.57320863 | I225: 59.80077323 | J225: 75.55353469 | K225: 91.33822935 | L225: 94.12056678 | M225: 14.14046433 | N225: 15.93547119 | O225: 19.62048581 | P225: 27.70918953 | Q225: 52.10089415 | R225: 41.00058586 | S225: 64.54952221 | T225: 64.89465199 | U225: 53.33812491 | V225: 20.04508497 | W225: 44.90127823 | X225: 46.26528656 | Y225: 66.82142706 | Z225: 83.04369801 | BA225: Observed handwashing place | BB225: Fixed | BC225: N/A | BD225: N/A | BE225: N/A | BF225: N/A | BG225: N/A | BH225: N/A | BI225: N/A | BJ225: N/A | BK225: N/A | BL225: N/A | BM225: N/A | BN225: N/A | BO225: N/A | BP225: N/A | BQ225: N/A | BR225: N/A | BS225: N/A | BT225: N/A | BU225: N/A | BV225: N/A | BW225: N/A | BX225: N/A | BY225: N/A | BZ225: N/A
B226: 2 Observed, mobile place | C226: 52.64634626 | D226: 50.59867641 | E226: 36.44328398 | F226: 17.43200258 | G226: 3.68290132 | H226: 42.00568762 | I226: 26.89818282 | J226: 17.22273603 | K226: 5.137409738 | L226: 2.789227948 | M226: 51.02994566 | N226: 62.91097169 | O226: 64.94114812 | P226: 58.92191805 | Q226: 38.4273831 | R226: 39.1329782 | S226: 21.75297447 | T226: 17.89053014 | U226: 26.39197181 | V226: 74.68274595 | W226: 46.32197084 | X226: 50.00760179 | Y226: 24.35701669 | Z226: 9.549084599 | BB226: Mobile | BC226: N/A | BD226: N/A | BE226: N/A | BF226: N/A | BG226: N/A | BH226: N/A | BI226: N/A | BJ226: N/A | BK226: N/A | BL226: N/A | BM226: N/A | BN226: N/A | BO226: N/A | BP226: N/A | BQ226: N/A | BR226: N/A | BS226: N/A | BT226: N/A | BU226: N/A | BV226: N/A | BW226: N/A | BX226: N/A | BY226: N/A | BZ226: N/A
B227: 3 Not observed: not in dwelling | C227: 15.76054412 | D227: 9.950935055 | E227: 5.912141311 | F227: 2.123544432 | G227: 1.070186945 | H227: 16.46837287 | I227: 5.794049513 | J227: 2.805308627 | K227: 1.205194011 | L227: 0.7347304124 | M227: 15.29209602 | N227: 12.66768327 | O227: 8.055033214 | P227: 6.157618205 | Q227: 6.145110013 | R227: 8.065196239 | S227: 3.374780805 | T227: 8.411032344 | U227: 11.70148807 | V227: 3.766272753 | W227: 5.397850265 | X227: 1.718151662 | Y227: 5.618544519 | Z227: 3.852312768 | BA227: Water / Soap | BB227: Water and soap | BC227: N/A | BD227: N/A | BE227: N/A | BF227: N/A | BG227: N/A | BH227: N/A | BI227: N/A | BJ227: N/A | BK227: N/A | BL227: N/A | BM227: N/A | BN227: N/A | BO227: N/A | BP227: N/A | BQ227: N/A | BR227: N/A | BS227: N/A | BT227: N/A | BU227: N/A | BV227: N/A | BW227: N/A | BX227: N/A | BY227: N/A | BZ227: N/A
B228: 4 Not observed: no permission to see | C228: 1.640342878 | D228: 2.058286118 | E228: 1.795994798 | F228: 1.123227828 | G228: 0.7811985707 | H228: 1.06368634 | I228: 2.667070345 | J228: 0.8635421737 | K228: 0.9209454833 | L228: 0.9571848608 | M228: 1.935033388 | N228: 1.609774683 | O228: 2.215279502 | P228: 2.3472978 | Q228: 0.892664745 | R228: 0.3652871232 | S228: 1.561504889 | T228: 2.109301772 | U228: 2.747938914 | V228: 0.7161899173 | W228: 1.860935819 | X228: 0.2269885409 | Y228: 0.4351264126 | Z228: 0.6034844349 | BB228: Water only | BC228: N/A | BD228: N/A | BE228: N/A | BF228: N/A | BG228: N/A | BH228: N/A | BI228: N/A | BJ228: N/A | BK228: N/A | BL228: N/A | BM228: N/A | BN228: N/A | BO228: N/A | BP228: N/A | BQ228: N/A | BR228: N/A | BS228: N/A | BT228: N/A | BU228: N/A | BV228: N/A | BW228: N/A | BX228: N/A | BY228: N/A | BZ228: N/A
B229: 5 Not observed: other reason | C229: 12.20599596 | D229: 6.582484007 | E229: 4.280895829 | F229: 2.451397107 | G229: 1.368291627 | H229: 9.889044539 | I229: 4.839924089 | J229: 3.554878481 | K229: 1.398221419 | L229: 1.398290003 | M229: 17.60246059 | N229: 6.876099166 | O229: 5.168053353 | P229: 4.863976415 | Q229: 2.433947995 | R229: 11.43595258 | S229: 8.761217631 | T229: 6.694483754 | U229: 5.820476286 | V229: 0.7897064132 | W229: 1.517964845 | X229: 1.781971447 | Y229: 2.767885312 | Z229: 2.951420184 | BB229: Soap only | BC229: N/A | BD229: N/A | BE229: N/A | BF229: N/A | BG229: N/A | BH229: N/A | BI229: N/A | BJ229: N/A | BK229: N/A | BL229: N/A | BM229: N/A | BN229: N/A | BO229: N/A | BP229: N/A | BQ229: N/A | BR229: N/A | BS229: N/A | BT229: N/A | BU229: N/A | BV229: N/A | BW229: N/A | BX229: N/A | BY229: N/A | BZ229: N/A
BB230: Neither | BC230: N/A | BD230: N/A | BE230: N/A | BF230: N/A | BG230: N/A | BH230: N/A | BI230: N/A | BJ230: N/A | BK230: N/A | BL230: N/A | BM230: N/A | BN230: N/A | BO230: N/A | BP230: N/A | BQ230: N/A | BR230: N/A | BS230: N/A | BT230: N/A | BU230: N/A | BV230: N/A | BW230: N/A | BX230: N/A | BY230: N/A | BZ230: N/A
BA231: Place where household members wash their hands | BB231: 1 Observed, fixed place | BC231: 1349.00675 | BD231: 2339.209029 | BE231: 3927.087486 | BF231: 5842.55164 | BG231: 7077.882185 | BH231: 1472.210445 | BI231: 2884.227757 | BJ231: 3637.886014 | BK231: 4402.742043 | BL231: 4531.910497 | BM231: 393.285712 | BN231: 444.574664 | BO231: 546.302706 | BP231: 770.877458 | BQ231: 1451.719794 | BR231: 1997.754996 | BS231: 1292.7696 | BT231: 6118.379313 | BU231: 3767.015888 | BV231: 805.237065 | BW231: 1385.535715 | BX231: 1214.898484 | BY231: 534.463105 | BZ231: 3419.682924
BB232: 2 Observed, mobile place | BC232: 4001.870389 | BD232: 3841.686033 | BE232: 2775.303313 | BF232: 1324.933044 | BG232: 279.998535 | BH232: 2022.72561 | BI232: 1297.315759 | BJ232: 829.270937 | BK232: 247.636614 | BL232: 134.30148 | BM232: 1419.284971 | BN232: 1755.117484 | BO232: 1808.187896 | BP232: 1639.224358 | BQ232: 1070.726205 | BR232: 1906.755747 | BS232: 435.659059 | BT232: 1686.749927 | BU232: 1863.938361 | BV232: 3000.102781 | BW232: 1429.374564 | BX232: 1313.169422 | BY232: 194.816653 | BZ232: 393.2248
BB233: 3 Not observed: not in dwelling | BC233: 1198.025301 | BD233: 755.521111 | BE233: 450.233447 | BF233: 161.401662 | BG233: 81.362695 | BH233: 793.011648 | BI233: 279.450541 | BJ233: 135.074991 | BK233: 58.09351 | BL233: 35.37731 | BM233: 425.315798 | BN233: 353.408504 | BO233: 224.280198 | BP233: 171.306673 | BQ233: 171.225043 | BR233: 392.976972 | BS233: 67.588634 | BT233: 793.006584 | BU233: 826.419968 | BV233: 151.296062 | BW233: 166.563506 | BX233: 45.117625 | BY233: 44.939249 | BZ233: 158.635616
BB234: 4 Not observed: no permission to see | BC234: 124.689367 | BD234: 156.274622 | BE234: 136.77226 | BF234: 85.371813 | BG234: 59.391886 | BH234: 51.22034 | BI234: 128.634429 | BJ234: 41.579365 | BK234: 44.391986 | BL234: 46.088504 | BM234: 53.81867 | BN234: 44.91019 | BO234: 61.681102 | BP234: 65.302486 | BQ234: 24.872876 | BR234: 17.798628 | BS234: 31.273137 | BT234: 198.868596 | BU234: 194.073743 | BV234: 28.770278 | BW234: 57.4236 | BX234: 5.960582 | BY234: 3.480306 | BZ234: 24.851078
BB235: 5 Not observed: other reason | BC235: 927.829133 | BD235: 499.772695 | BE235: 326.007513 | BF235: 186.320362 | BG235: 104.026586 | BH235: 476.19322 | BI235: 233.43249 | BJ235: 171.166614 | BK235: 67.397937 | BL235: 67.327741 | BM235: 489.573474 | BN235: 191.832387 | BO235: 143.896617 | BP235: 135.317194 | BQ235: 67.818615 | BR235: 557.217194 | BS235: 175.465835 | BT235: 631.167433 | BU235: 411.072318 | BV235: 31.723531 | BW235: 46.840415 | BX235: 46.793494 | BY235: 22.138596 | BZ235: 121.537473
BB236: Total | BC236: 7601.42094 | BD236: 7592.46349 | BE236: 7615.404019 | BF236: 7600.578521 | BG236: 7602.661887 | BH236: 4815.361263 | BI236: 4823.060976 | BJ236: 4814.977921 | BK236: 4820.26209 | BL236: 4815.005532 | BM236: 2781.278625 | BN236: 2789.843229 | BO236: 2784.348519 | BP236: 2782.028169 | BQ236: 2786.362533 | BR236: 4872.503537 | BS236: 2002.756265 | BT236: 9428.171853 | BU236: 7062.520278 | BV236: 4017.129717 | BW236: 3085.7378 | BX236: 2625.939607 | BY236: 799.837909 | BZ236: 4117.931891
BA259: Raw numbers of respondents: | BB259: Menstrual health and hygiene | BC259: NATIONAL wealth index quintile | BH259: URBAN wealth index quintile | BM259: RURAL wealth index quintile | BR259: SUB-REGIONS:
BA260: MHH data, raw numbers (weighted) | BC260: Poorest | BD260: Poor | BE260: Middle | BF260: Rich | BG260: Richest | BH260: Poorest | BI260: Poor | BJ260: Middle | BK260: Rich | BL260: Richest | BM260: Poorest | BN260: Poor | BO260: Middle | BP260: Rich | BQ260: Richest | BR260: 2 Eastern Cape | BS260: 4 Free State | BT260: 7 Gauteng | BU260: 5 Kwazulu-Natal | BV260: 9 Limpopo | BW260: 8 Mpumalanga | BX260: 6 North West | BY260: 3 Northern Cape | BZ260: 1 Western Cape
BA261: Private place to wash and change | BB261: Yes | BC261: N/A | BD261: N/A | BE261: N/A | BF261: N/A | BG261: N/A | BH261: N/A | BI261: N/A | BJ261: N/A | BK261: N/A | BL261: N/A | BM261: N/A | BN261: N/A | BO261: N/A | BP261: N/A | BQ261: N/A | BR261: N/A | BS261: N/A | BT261: N/A | BU261: N/A | BV261: N/A | BW261: N/A | BX261: N/A | BY261: N/A | BZ261: N/A
BB262: No | BC262: N/A | BD262: N/A | BE262: N/A | BF262: N/A | BG262: N/A | BH262: N/A | BI262: N/A | BJ262: N/A | BK262: N/A | BL262: N/A | BM262: N/A | BN262: N/A | BO262: N/A | BP262: N/A | BQ262: N/A | BR262: N/A | BS262: N/A | BT262: N/A | BU262: N/A | BV262: N/A | BW262: N/A | BX262: N/A | BY262: N/A | BZ262: N/A
BB263: DK/not sure/missing | BC263: N/A | BD263: N/A | BE263: N/A | BF263: N/A | BG263: N/A | BH263: N/A | BI263: N/A | BJ263: N/A | BK263: N/A | BL263: N/A | BM263: N/A | BN263: N/A | BO263: N/A | BP263: N/A | BQ263: N/A | BR263: N/A | BS263: N/A | BT263: N/A | BU263: N/A | BV263: N/A | BW263: N/A | BX263: N/A | BY263: N/A | BZ263: N/A
BA264: Use of menstrual materials | BB264: Materials reusable | BC264: N/A | BD264: N/A | BE264: N/A | BF264: N/A | BG264: N/A | BH264: N/A | BI264: N/A | BJ264: N/A | BK264: N/A | BL264: N/A | BM264: N/A | BN264: N/A | BO264: N/A | BP264: N/A | BQ264: N/A | BR264: N/A | BS264: N/A | BT264: N/A | BU264: N/A | BV264: N/A | BW264: N/A | BX264: N/A | BY264: N/A | BZ264: N/A
BB265: Materials not reusable | BC265: N/A | BD265: N/A | BE265: N/A | BF265: N/A | BG265: N/A | BH265: N/A | BI265: N/A | BJ265: N/A | BK265: N/A | BL265: N/A | BM265: N/A | BN265: N/A | BO265: N/A | BP265: N/A | BQ265: N/A | BR265: N/A | BS265: N/A | BT265: N/A | BU265: N/A | BV265: N/A | BW265: N/A | BX265: N/A | BY265: N/A | BZ265: N/A
BB266: No materials used | BC266: N/A | BD266: N/A | BE266: N/A | BF266: N/A | BG266: N/A | BH266: N/A | BI266: N/A | BJ266: N/A | BK266: N/A | BL266: N/A | BM266: N/A | BN266: N/A | BO266: N/A | BP266: N/A | BQ266: N/A | BR266: N/A | BS266: N/A | BT266: N/A | BU266: N/A | BV266: N/A | BW266: N/A | BX266: N/A | BY266: N/A | BZ266: N/A
BB267: DK/not sure/missing | BC267: N/A | BD267: N/A | BE267: N/A | BF267: N/A | BG267: N/A | BH267: N/A | BI267: N/A | BJ267: N/A | BK267: N/A | BL267: N/A | BM267: N/A | BN267: N/A | BO267: N/A | BP267: N/A | BQ267: N/A | BR267: N/A | BS267: N/A | BT267: N/A | BU267: N/A | BV267: N/A | BW267: N/A | BX267: N/A | BY267: N/A | BZ267: N/A
BA268: Use of menstrual materials with private place to wash and change | BB268: Materials reusable | BC268: N/A | BD268: N/A | BE268: N/A | BF268: N/A | BG268: N/A | BH268: N/A | BI268: N/A | BJ268: N/A | BK268: N/A | BL268: N/A | BM268: N/A | BN268: N/A | BO268: N/A | BP268: N/A | BQ268: N/A | BR268: N/A | BS268: N/A | BT268: N/A | BU268: N/A | BV268: N/A | BW268: N/A | BX268: N/A | BY268: N/A | BZ268: N/A
BB269: Materials not reusable | BC269: N/A | BD269: N/A | BE269: N/A | BF269: N/A | BG269: N/A | BH269: N/A | BI269: N/A | BJ269: N/A | BK269: N/A | BL269: N/A | BM269: N/A | BN269: N/A | BO269: N/A | BP269: N/A | BQ269: N/A | BR269: N/A | BS269: N/A | BT269: N/A | BU269: N/A | BV269: N/A | BW269: N/A | BX269: N/A | BY269: N/A | BZ269: N/A
BB270: No materials used | BC270: N/A | BD270: N/A | BE270: N/A | BF270: N/A | BG270: N/A | BH270: N/A | BI270: N/A | BJ270: N/A | BK270: N/A | BL270: N/A | BM270: N/A | BN270: N/A | BO270: N/A | BP270: N/A | BQ270: N/A | BR270: N/A | BS270: N/A | BT270: N/A | BU270: N/A | BV270: N/A | BW270: N/A | BX270: N/A | BY270: N/A | BZ270: N/A
BA271: Awareness of menstruation before menarche | BB271: Yes | BC271: N/A | BD271: N/A | BE271: N/A | BF271: N/A | BG271: N/A | BH271: N/A | BI271: N/A | BJ271: N/A | BK271: N/A | BL271: N/A | BM271: N/A | BN271: N/A | BO271: N/A | BP271: N/A | BQ271: N/A | BR271: N/A | BS271: N/A | BT271: N/A | BU271: N/A | BV271: N/A | BW271: N/A | BX271: N/A | BY271: N/A | BZ271: N/A
BB272: No | BC272: N/A | BD272: N/A | BE272: N/A | BF272: N/A | BG272: N/A | BH272: N/A | BI272: N/A | BJ272: N/A | BK272: N/A | BL272: N/A | BM272: N/A | BN272: N/A | BO272: N/A | BP272: N/A | BQ272: N/A | BR272: N/A | BS272: N/A | BT272: N/A | BU272: N/A | BV272: N/A | BW272: N/A | BX272: N/A | BY272: N/A | BZ272: N/A
BB273: DK/not sure/missing | BC273: N/A | BD273: N/A | BE273: N/A | BF273: N/A | BG273: N/A | BH273: N/A | BI273: N/A | BJ273: N/A | BK273: N/A | BL273: N/A | BM273: N/A | BN273: N/A | BO273: N/A | BP273: N/A | BQ273: N/A | BR273: N/A | BS273: N/A | BT273: N/A | BU273: N/A | BV273: N/A | BW273: N/A | BX273: N/A | BY273: N/A | BZ273: N/A
BA274: Participation in (all) activities during menstruation | BB274: Yes | BC274: N/A | BD274: N/A | BE274: N/A | BF274: N/A | BG274: N/A | BH274: N/A | BI274: N/A | BJ274: N/A | BK274: N/A | BL274: N/A | BM274: N/A | BN274: N/A | BO274: N/A | BP274: N/A | BQ274: N/A | BR274: N/A | BS274: N/A | BT274: N/A | BU274: N/A | BV274: N/A | BW274: N/A | BX274: N/A | BY274: N/A | BZ274: N/A
BB275: No | BC275: N/A | BD275: N/A | BE275: N/A | BF275: N/A | BG275: N/A | BH275: N/A | BI275: N/A | BJ275: N/A | BK275: N/A | BL275: N/A | BM275: N/A | BN275: N/A | BO275: N/A | BP275: N/A | BQ275: N/A | BR275: N/A | BS275: N/A | BT275: N/A | BU275: N/A | BV275: N/A | BW275: N/A | BX275: N/A | BY275: N/A | BZ275: N/A
BB276: DK/not sure/missing/no such activity | BC276: N/A | BD276: N/A | BE276: N/A | BF276: N/A | BG276: N/A | BH276: N/A | BI276: N/A | BJ276: N/A | BK276: N/A | BL276: N/A | BM276: N/A | BN276: N/A | BO276: N/A | BP276: N/A | BQ276: N/A | BR276: N/A | BS276: N/A | BT276: N/A | BU276: N/A | BV276: N/A | BW276: N/A | BX276: N/A | BY276: N/A | BZ276: N/A
BA277: Participation in specific activities during menstruation | BB277: Did not go to school (amongst those usually attending school) | BC277: N/A | BD277: N/A | BE277: N/A | BF277: N/A | BG277: N/A | BH277: N/A | BI277: N/A | BJ277: N/A | BK277: N/A | BL277: N/A | BM277: N/A | BN277: N/A | BO277: N/A | BP277: N/A | BQ277: N/A | BR277: N/A | BS277: N/A | BT277: N/A | BU277: N/A | BV277: N/A | BW277: N/A | BX277: N/A | BY277: N/A | BZ277: N/A
BB278: Did not go to work (amongst those who usually work) | BC278: N/A | BD278: N/A | BE278: N/A | BF278: N/A | BG278: N/A | BH278: N/A | BI278: N/A | BJ278: N/A | BK278: N/A | BL278: N/A | BM278: N/A | BN278: N/A | BO278: N/A | BP278: N/A | BQ278: N/A | BR278: N/A | BS278: N/A | BT278: N/A | BU278: N/A | BV278: N/A | BW278: N/A | BX278: N/A | BY278: N/A | BZ278: N/A
BB279: Did not participate in social activities | BC279: N/A | BD279: N/A | BE279: N/A | BF279: N/A | BG279: N/A | BH279: N/A | BI279: N/A | BJ279: N/A | BK279: N/A | BL279: N/A | BM279: N/A | BN279: N/A | BO279: N/A | BP279: N/A | BQ279: N/A | BR279: N/A | BS279: N/A | BT279: N/A | BU279: N/A | BV279: N/A | BW279: N/A | BX279: N/A | BY279: N/A | BZ279: N/A
BB280: Did not cook food | BC280: N/A | BD280: N/A | BE280: N/A | BF280: N/A | BG280: N/A | BH280: N/A | BI280: N/A | BJ280: N/A | BK280: N/A | BL280: N/A | BM280: N/A | BN280: N/A | BO280: N/A | BP280: N/A | BQ280: N/A | BR280: N/A | BS280: N/A | BT280: N/A | BU280: N/A | BV280: N/A | BW280: N/A | BX280: N/A | BY280: N/A | BZ280: N/A
BB281: Did not eat with others | BC281: N/A | BD281: N/A | BE281: N/A | BF281: N/A | BG281: N/A | BH281: N/A | BI281: N/A | BJ281: N/A | BK281: N/A | BL281: N/A | BM281: N/A | BN281: N/A | BO281: N/A | BP281: N/A | BQ281: N/A | BR281: N/A | BS281: N/A | BT281: N/A | BU281: N/A | BV281: N/A | BW281: N/A | BX281: N/A | BY281: N/A | BZ281: N/A
BB282: Did not bathe in regular place | BC282: N/A | BD282: N/A | BE282: N/A | BF282: N/A | BG282: N/A | BH282: N/A | BI282: N/A | BJ282: N/A | BK282: N/A | BL282: N/A | BM282: N/A | BN282: N/A | BO282: N/A | BP282: N/A | BQ282: N/A | BR282: N/A | BS282: N/A | BT282: N/A | BU282: N/A | BV282: N/A | BW282: N/A | BX282: N/A | BY282: N/A | BZ282: N/A
BB283: Did not participate in other activities | BC283: N/A | BD283: N/A | BE283: N/A | BF283: N/A | BG283: N/A | BH283: N/A | BI283: N/A | BJ283: N/A | BK283: N/A | BL283: N/A | BM283: N/A | BN283: N/A | BO283: N/A | BP283: N/A | BQ283: N/A | BR283: N/A | BS283: N/A | BT283: N/A | BU283: N/A | BV283: N/A | BW283: N/A | BX283: N/A | BY283: N/A | BZ283: N/A
BB284: DK/not sure/missing/no such activity | BC284: N/A | BD284: N/A | BE284: N/A | BF284: N/A | BG284: N/A | BH284: N/A | BI284: N/A | BJ284: N/A | BK284: N/A | BL284: N/A | BM284: N/A | BN284: N/A | BO284: N/A | BP284: N/A | BQ284: N/A | BR284: N/A | BS284: N/A | BT284: N/A | BU284: N/A | BV284: N/A | BW284: N/A | BX284: N/A | BY284: N/A | BZ284: N/A
BA339: Raw numbers of respondents: | BB339: Basic water, sanitation and hygiene | BC339: NATIONAL wealth index quintile | BH339: URBAN wealth index quintile | BM339: RURAL wealth index quintile | BR339: SUB-REGIONS:
BA340: WatSan data, raw numbers (weighted) | BC340: Poorest | BD340: Poor | BE340: Middle | BF340: Rich | BG340: Richest | BH340: Poorest | BI340: Poor | BJ340: Middle | BK340: Rich | BL340: Richest | BM340: Poorest | BN340: Poor | BO340: Middle | BP340: Rich | BQ340: Richest | BR340: 2 Eastern Cape | BS340: 4 Free State | BT340: 7 Gauteng | BU340: 5 Kwazulu-Natal | BV340: 9 Limpopo | BW340: 8 Mpumalanga | BX340: 6 North West | BY340: 3 Northern Cape | BZ340: 1 Western Cape
BA341: Use of Basic Water Sanitation and Hygiene | BB341: Yes | BC341: N/A | BD341: N/A | BE341: N/A | BF341: N/A | BG341: N/A | BH341: N/A | BI341: N/A | BJ341: N/A | BK341: N/A | BL341: N/A | BM341: N/A | BN341: N/A | BO341: N/A | BP341: N/A | BQ341: N/A | BR341: N/A | BS341: N/A | BT341: N/A | BU341: N/A | BV341: N/A | BW341: N/A | BX341: N/A | BY341: N/A | BZ341: N/A
BB342: No | BC342: N/A | BD342: N/A | BE342: N/A | BF342: N/A | BG342: N/A | BH342: N/A | BI342: N/A | BJ342: N/A | BK342: N/A | BL342: N/A | BM342: N/A | BN342: N/A | BO342: N/A | BP342: N/A | BQ342: N/A | BR342: N/A | BS342: N/A | BT342: N/A | BU342: N/A | BV342: N/A | BW342: N/A | BX342: N/A | BY342: N/A | BZ342: N/A
BA343: Use of Basic Water and Sanitation | BB343: Yes | BC343: N/A | BD343: N/A | BE343: N/A | BF343: N/A | BG343: N/A | BH343: N/A | BI343: N/A | BJ343: N/A | BK343: N/A | BL343: N/A | BM343: N/A | BN343: N/A | BO343: N/A | BP343: N/A | BQ343: N/A | BR343: N/A | BS343: N/A | BT343: N/A | BU343: N/A | BV343: N/A | BW343: N/A | BX343: N/A | BY343: N/A | BZ343: N/A
BB344: No | BC344: N/A | BD344: N/A | BE344: N/A | BF344: N/A | BG344: N/A | BH344: N/A | BI344: N/A | BJ344: N/A | BK344: N/A | BL344: N/A | BM344: N/A | BN344: N/A | BO344: N/A | BP344: N/A | BQ344: N/A | BR344: N/A | BS344: N/A | BT344: N/A | BU344: N/A | BV344: N/A | BW344: N/A | BX344: N/A | BY344: N/A | BZ344: N/A
BA345: Use of Basic Water and Hygiene | BB345: Yes | BC345: N/A | BD345: N/A | BE345: N/A | BF345: N/A | BG345: N/A | BH345: N/A | BI345: N/A | BJ345: N/A | BK345: N/A | BL345: N/A | BM345: N/A | BN345: N/A | BO345: N/A | BP345: N/A | BQ345: N/A | BR345: N/A | BS345: N/A | BT345: N/A | BU345: N/A | BV345: N/A | BW345: N/A | BX345: N/A | BY345: N/A | BZ345: N/A
BB346: No | BC346: N/A | BD346: N/A | BE346: N/A | BF346: N/A | BG346: N/A | BH346: N/A | BI346: N/A | BJ346: N/A | BK346: N/A | BL346: N/A | BM346: N/A | BN346: N/A | BO346: N/A | BP346: N/A | BQ346: N/A | BR346: N/A | BS346: N/A | BT346: N/A | BU346: N/A | BV346: N/A | BW346: N/A | BX346: N/A | BY346: N/A | BZ346: N/A
BA347: Use of Basic Sanitation and Hygiene | BB347: Yes | BC347: N/A | BD347: N/A | BE347: N/A | BF347: N/A | BG347: N/A | BH347: N/A | BI347: N/A | BJ347: N/A | BK347: N/A | BL347: N/A | BM347: N/A | BN347: N/A | BO347: N/A | BP347: N/A | BQ347: N/A | BR347: N/A | BS347: N/A | BT347: N/A | BU347: N/A | BV347: N/A | BW347: N/A | BX347: N/A | BY347: N/A | BZ347: N/A
BB348: No | BC348: N/A | BD348: N/A | BE348: N/A | BF348: N/A | BG348: N/A | BH348: N/A | BI348: N/A | BJ348: N/A | BK348: N/A | BL348: N/A | BM348: N/A | BN348: N/A | BO348: N/A | BP348: N/A | BQ348: N/A | BR348: N/A | BS348: N/A | BT348: N/A | BU348: N/A | BV348: N/A | BW348: N/A | BX348: N/A | BY348: N/A | BZ348: N/A
BA349: Use of Basic Water | BB349: Yes | BC349: N/A | BD349: N/A | BE349: N/A | BF349: N/A | BG349: N/A | BH349: N/A | BI349: N/A | BJ349: N/A | BK349: N/A | BL349: N/A | BM349: N/A | BN349: N/A | BO349: N/A | BP349: N/A | BQ349: N/A | BR349: N/A | BS349: N/A | BT349: N/A | BU349: N/A | BV349: N/A | BW349: N/A | BX349: N/A | BY349: N/A | BZ349: N/A
BB350: No | BC350: N/A | BD350: N/A | BE350: N/A | BF350: N/A | BG350: N/A | BH350: N/A | BI350: N/A | BJ350: N/A | BK350: N/A | BL350: N/A | BM350: N/A | BN350: N/A | BO350: N/A | BP350: N/A | BQ350: N/A | BR350: N/A | BS350: N/A | BT350: N/A | BU350: N/A | BV350: N/A | BW350: N/A | BX350: N/A | BY350: N/A | BZ350: N/A
BA351: Use of Basic Sanitation | BB351: Yes | BC351: N/A | BD351: N/A | BE351: N/A | BF351: N/A | BG351: N/A | BH351: N/A | BI351: N/A | BJ351: N/A | BK351: N/A | BL351: N/A | BM351: N/A | BN351: N/A | BO351: N/A | BP351: N/A | BQ351: N/A | BR351: N/A | BS351: N/A | BT351: N/A | BU351: N/A | BV351: N/A | BW351: N/A | BX351: N/A | BY351: N/A | BZ351: N/A
BB352: No | BC352: N/A | BD352: N/A | BE352: N/A | BF352: N/A | BG352: N/A | BH352: N/A | BI352: N/A | BJ352: N/A | BK352: N/A | BL352: N/A | BM352: N/A | BN352: N/A | BO352: N/A | BP352: N/A | BQ352: N/A | BR352: N/A | BS352: N/A | BT352: N/A | BU352: N/A | BV352: N/A | BW352: N/A | BX352: N/A | BY352: N/A | BZ352: N/A
BA353: Access to Basic Hygiene | BB353: Yes | BC353: N/A | BD353: N/A | BE353: N/A | BF353: N/A | BG353: N/A | BH353: N/A | BI353: N/A | BJ353: N/A | BK353: N/A | BL353: N/A | BM353: N/A | BN353: N/A | BO353: N/A | BP353: N/A | BQ353: N/A | BR353: N/A | BS353: N/A | BT353: N/A | BU353: N/A | BV353: N/A | BW353: N/A | BX353: N/A | BY353: N/A | BZ353: N/A
BB354: No | BC354: N/A | BD354: N/A | BE354: N/A | BF354: N/A | BG354: N/A | BH354: N/A | BI354: N/A | BJ354: N/A | BK354: N/A | BL354: N/A | BM354: N/A | BN354: N/A | BO354: N/A | BP354: N/A | BQ354: N/A | BR354: N/A | BS354: N/A | BT354: N/A | BU354: N/A | BV354: N/A | BW354: N/A | BX354: N/A | BY354: N/A | BZ354: N/A
C399: INITIAL (national) Wealth Index | H399: URBAN Wealth Index | M399: RURAL Wealth Index
C400: Matrice des composantes | H400: Matrice des composantes | M400: Matrice des composantes
E401: Composante | J401: Composante | O401: Composante
B402: Note: The INITIAL (national) Wealth Index is based on the first component of the Principal Component Analysis (PCA) which has been obtained at national level. The final national-level (NATIONAL) Wealth Index is based on the URBAN and RURAL specific wealth indexes. Regression procedures are used to establish the relationships between the two sets of scores (urban and rural) and the initial (national) wealth factors. This allows best use of the available information for each area and a better precision of the FINAL (NATIONAL) Wealth Index. For dependency reasons, all WASH variables (contained in the generic MICS and DHS scripts) have been excluded from the sets of asset variables used in the PCAs. The PCA can extracts as many components as there are asset variables in the input. Only the first of the components is used to represent the Wealth Index. The scores represent the weights of the asset variables on the Wealth Index (correlations between the variables and the component). The communalities are the proportion of each variable's variance that can be explained by the component. Proportion of explained variance is the part of the model's total variance that is explained by the component. For more information on the procedure used: The DHS Wealth Index, DHS Comparative Reports No. 6, Shea Oscar Rutstein, Kiersten Johnson, ORC Macro International Inc., 2004. The DHS Wealth Index: Approaches for Rural and Urban Areas, Shea O. Rutstein, ORC Macro International Inc., 2008. MICS Methodological Paper No. 4, Review of options for reporting water, sanitation and hygiene coverage by wealth quintile, UNICEF, 2016. | E402: 1 | J402: 1 | O402: 1
C403: SH121H Microwave oven | E403: 0.6759828114 | H403: SH121A Electricity connected to the mains | J403: 0.7273813975 | M403: HV206 Has electricity | O403: 0.6828691892
C404: SH121A Electricity connected to the mains | E404: 0.6747335318 | H404: HV206 Has electricity | J404: 0.7232982906 | M404: SH121A Electricity connected to the mains | O404: 0.6828182743
C405: HV206 Has electricity | E405: 0.6734418269 | H405: HV209 Has refrigerator | J405: 0.6989973094 | M405: cookelec Electricity for cooking | O405: 0.6405280032
... 419 more rows

Sheet data_summary
A1: iso3 | B1: year | C1: data_source | D1: row | E1: var1 | F1: var2 | G1: varname | H1: total_q1 | I1: total_q2 | J1: total_q3 | K1: total_q4 | L1: total_q5 | M1: urban_q1 | N1: urban_q2 | O1: urban_q3 | P1: urban_q4 | Q1: urban_q5 | R1: rural_q1 | S1: rural_q2 | T1: rural_q3 | U1: rural_q4 | V1: rural_q5 | W1: region_1_name | X1: region_2_name | Y1: region_3_name | Z1: region_4_name | AA1: region_5_name | AB1: region_6_name | AC1: region_7_name | AD1: region_8_name | AE1: region_9_name | AF1: region_1 | AG1: region_2 | AH1: region_3 | AI1: region_4 | AJ1: region_5 | AK1: region_6 | AL1: region_7 | AM1: region_8 | AN1: region_9 | AO1: n_total_q1 | AP1: n_total_q2 | AQ1: n_total_q3 | AR1: n_total_q4 | AS1: n_total_q5 | AT1: n_urban_q1 | AU1: n_urban_q2 | AV1: n_urban_q3 | AW1: n_urban_q4 | AX1: n_urban_q5 | AY1: n_rural_q1 | AZ1: n_rural_q2 | BA1: n_rural_q3 | BB1: n_rural_q4 | BC1: n_rural_q5 | BD1: n_region_1 | BE1: n_region_2 | BF1: n_region_3 | BG1: n_region_4 | BH1: n_region_5 | BI1: n_region_6 | BJ1: n_region_7 | BK1: n_region_8 | BL1: n_region_9
A2: ZAF | B2: 2003 | C2: ZAF_2003_WHS | D2: 16 | E2: Water | F2: Improved | G2: w_imp | H2: 77.94436029 | I2: 87.73269101 | J2: 88.39482325 | K2: 94.5768225 | L2: 96.16820928 | M2: 93.60627731 | N2: 89.60238792 | O2: 88.15925556 | P2: 95.41766498 | Q2: 97.16658555 | R2: 63.18048796 | S2: 80.77909337 | T2: 85.7225632 | U2: 87.10818675 | V2: 96.71389327
A3: ZAF | B3: 2003 | C3: ZAF_2003_WHS | D3: 17 | E3: Water | F3: Not Improved | H3: 22.05563971 | I3: 12.26730899 | J3: 11.60517675 | K3: 5.423177505 | L3: 3.831790718 | M3: 6.393722693 | N3: 10.39761208 | O3: 11.84074444 | P3: 4.582335023 | Q3: 2.833414453 | R3: 36.81951204 | S3: 19.22090663 | T3: 14.2774368 | U3: 12.89181325 | V3: 3.286106727
A4: ZAF | B4: 2003 | C4: ZAF_2003_WHS | D4: 18 | E4: Water ladder | F4: Basic | G4: w_bas | H4: 64.57606565 | I4: 82.85070601 | J4: 82.83756306 | K4: 85.89383947 | L4: 96.16820928 | M4: 86.20477694 | N4: 83.75299468 | O4: 88.15925556 | P4: 95.41766498 | Q4: 97.16658555 | R4: 50.25833669 | S4: 68.31762903 | T4: 78.8014302 | U4: 79.66459322 | V4: 82.2599511
A5: ZAF | B5: 2003 | C5: ZAF_2003_WHS | D5: 19 | E5: Water ladder | F5: Limited | G5: w_lim | H5: 13.36829464 | I5: 4.881984998 | J5: 5.557260192 | K5: 8.682983024 | L5: 0 | M5: 7.401500368 | N5: 5.849393237 | O5: 0 | P5: 0 | Q5: 0 | R5: 12.92215127 | S5: 12.46146434 | T5: 6.921133006 | U5: 7.443593526 | V5: 14.45394217
A6: ZAF | B6: 2003 | C6: ZAF_2003_WHS | D6: 20 | E6: Water ladder | F6: Unimproved | G6: w_unimp | H6: 10.82971758 | I6: 10.94889077 | J6: 9.775147019 | K6: 5.423177505 | L6: 3.831790718 | M6: 6.393722693 | N6: 10.39761208 | O6: 11.84074444 | P6: 4.582335023 | Q6: 2.833414453 | R6: 14.81036308 | S6: 15.54604559 | T6: 11.88540393 | U6: 7.887752247 | V6: 3.286106727
A7: ZAF | B7: 2003 | C7: ZAF_2003_WHS | D7: 21 | E7: Water ladder | F7: Surface water | G7: w_sur | H7: 11.22592213 | I7: 1.318418215 | J7: 1.830029733 | K7: 0 | L7: 0 | M7: 0 | N7: 0 | O7: 0 | P7: 0 | Q7: 0 | R7: 22.00914896 | S7: 3.674861046 | T7: 2.392032866 | U7: 5.004061007 | V7: 0
A8: ZAF | B8: 2003 | C8: ZAF_2003_WHS | D8: 22 | E8: Improved water point at more than 30 minutes | F8: Yes | H8: 17.15107365 | I8: 5.564613306 | J8: 6.286861592 | K8: 9.180878354 | L8: 0 | M8: 7.907055574 | N8: 6.528166685 | O8: 0 | P8: 0 | Q8: 0 | R8: 20.45275637 | S8: 15.42659594 | T8: 8.073875474 | U8: 8.545228416 | V8: 14.94505255
A9: ZAF | B9: 2003 | C9: ZAF_2003_WHS | D9: 23 | E9: Improved water point at more than 30 minutes | F9: No | H9: 82.84892635 | I9: 94.43538669 | J9: 93.71313841 | K9: 90.81912165 | L9: 100 | M9: 92.09294443 | N9: 93.47183332 | O9: 100 | P9: 100 | Q9: 100 | R9: 79.54724363 | S9: 84.57340406 | T9: 91.92612453 | U9: 91.45477158 | V9: 85.05494745
A10: ZAF | B10: 2003 | C10: ZAF_2003_WHS | D10: 29 | E10: Piped water | F10: Yes | G10: w_pip | H10: 63.21646071 | I10: 81.4267436 | J10: 85.64057055 | K10: 93.6677119 | L10: 95.97186598 | M10: 91.18292053 | N10: 89.60238792 | O10: 87.58639703 | P10: 95.41766498 | Q10: 97.16658555 | R10: 44.9798617 | S10: 63.66989202 | T10: 73.69973825 | U10: 76.97754854 | V10: 93.42054076
A11: ZAF | B11: 2003 | C11: ZAF_2003_WHS | D11: 30 | E11: Piped water | F11: No | H11: 36.78353929 | I11: 18.5732564 | J11: 14.35942945 | K11: 6.332288101 | L11: 4.028134019 | M11: 8.817079473 | N11: 10.39761208 | O11: 12.41360297 | P11: 4.582335023 | Q11: 2.833414453 | R11: 55.0201383 | S11: 36.33010798 | T11: 26.30026175 | U11: 23.02245146 | V11: 6.579459241
A12: ZAF | B12: 2003 | C12: ZAF_2003_WHS | D12: 31 | E12: Piped water on premises | F12: Yes | G12: w_pop | H12: 25.97202451 | I12: 58.68927606 | J12: 65.40022939 | K12: 89.38376576 | L12: 95.55835178 | M12: 65.14245653 | N12: 66.8093635 | O12: 79.68233559 | P12: 95.24324584 | Q12: 97.16658555 | R12: 10.72835312 | S12: 30.49692897 | T12: 36.2325399 | U12: 61.49997407 | V12: 83.08273251
A13: ZAF | B13: 2003 | C13: ZAF_2003_WHS | D13: 32 | E13: Piped water on premises | F13: No | H13: 74.02797549 | I13: 41.31072394 | J13: 34.59977061 | K13: 10.61623424 | L13: 4.441648224 | M13: 34.85754347 | N13: 33.1906365 | O13: 20.31766441 | P13: 4.75675416 | Q13: 2.833414453 | R13: 89.27164688 | S13: 69.50307103 | T13: 63.7674601 | U13: 38.50002593 | V13: 16.91726749
A14: ZAF | B14: 2003 | C14: ZAF_2003_WHS | D14: 41 | E14: Water point at more than 30 minutes | F14: Yes | H14: 26.08747648 | I14: 12.01175668 | J14: 7.577056032 | K14: 9.615286009 | L14: 0.5350959338 | M14: 8.116963833 | N14: 6.528166685 | O14: 0 | P14: 0 | Q14: 0 | R14: 37.9807094 | S14: 16.44306442 | T14: 17.30782521 | U14: 13.81490309 | V14: 15.84580747
A15: ZAF | B15: 2003 | C15: ZAF_2003_WHS | D15: 42 | E15: Water point at more than 30 minutes | F15: No | G15: w_30min | H15: 73.91252352 | I15: 87.98824332 | J15: 92.42294397 | K15: 90.38471399 | L15: 99.46490407 | M15: 91.88303617 | N15: 93.47183332 | O15: 100 | P15: 100 | Q15: 100 | R15: 62.0192906 | S15: 83.55693558 | T15: 82.69217479 | U15: 86.18509691 | V15: 84.15419253
A16: ZAF | B16: 2003 | C16: ZAF_2003_WHS | D16: 58 | E16: main source of drinking water | F16: Piped water through house connection or yard | H16: 27.62401046 | I16: 64.3819065 | J16: 73.14257466 | K16: 94.3595849 | L16: 99.31663679 | M16: 69.46696732 | N16: 74.56203462 | O16: 90.38453771 | P16: 99.81720456 | Q16: 100 | R16: 10.88965635 | S16: 35.05752771 | T16: 39.19165061 | U16: 66.37587193 | V16: 85.44655933
A17: ZAF | B17: 2003 | C17: ZAF_2003_WHS | D17: 59 | E17: main source of drinking water | F17: Public standpipe | H17: 39.61341923 | I17: 24.94291304 | J17: 22.6364751 | K17: 4.522425024 | L17: 0.4297776105 | M17: 27.76917172 | N17: 25.43796538 | O17: 8.965662646 | P17: 0.1827954363 | Q17: 0 | R17: 34.76648779 | S17: 38.13374365 | T17: 40.52714359 | U17: 16.70468185 | V17: 10.63193421
A18: ZAF | B18: 2003 | C18: ZAF_2003_WHS | D18: 60 | E18: main source of drinking water | F18: Protected tube well or bore hole | H18: 7.509492649 | I18: 3.392629618 | J18: 2.233944991 | K18: 0.5883434488 | L18: 0.2040654316 | M18: 0.7430395994 | N18: 0 | O18: 0.4331997651 | P18: 0 | Q18: 0 | R18: 6.186637442 | S18: 12.47580463 | T18: 6.912638849 | U18: 7.511982883 | V18: 2.038700363
A19: ZAF | B19: 2003 | C19: ZAF_2003_WHS | D19: 61 | E19: main source of drinking water | F19: Protected dug well or protected spring | H19: 4.716196364 | I19: 0.7754143807 | J19: 0.5657200481 | K19: 0.1251761108 | L19: 0 | M19: 0 | N19: 0 | O19: 0.2165998825 | P19: 0 | Q19: 0 | R19: 8.570206964 | S19: 3.202204357 | T19: 1.759539268 | U19: 1.432062282 | V19: 0.7173118028
A20: ZAF | B20: 2003 | C20: ZAF_2003_WHS | D20: 62 | E20: main source of drinking water | F20: Unprotected dug well or spring | H20: 7.517137174 | I20: 3.051361586 | J20: 0.365286971 | K20: 0.15827107 | L20: 0.04952016896 | M20: 0.1796285622 | N20: 0 | O20: 0 | P20: 0 | Q20: 0 | R20: 15.26201595 | S20: 3.763441962 | T20: 5.432917312 | U20: 3.493647751 | V20: 0.534453187
A21: ZAF | B21: 2003 | C21: ZAF_2003_WHS | D21: 63 | E21: main source of drinking water | F21: Rainwater (into tank or cistern ) | H21: 0.8367496971 | I21: 2.286177754 | J21: 0.2806473006 | K21: 0.07034269655 | L21: 0 | M21: 1.841192793 | N21: 0 | O21: 0 | P21: 0 | Q21: 0 | R21: 1.189884539 | S21: 0 | T21: 2.602433637 | U21: 1.989779674 | V21: 0.1802974549
A22: ZAF | B22: 2003 | C22: ZAF_2003_WHS | D22: 64 | E22: main source of drinking water | F22: Water taken directly from pond-water or stream | H22: 9.580745466 | I22: 0.7062192049 | J22: 0.7753509297 | K22: 0 | L22: 0 | M22: 0 | N22: 0 | O22: 0 | P22: 0 | Q22: 0 | R22: 20.6075631 | S22: 3.377526003 | T22: 1.843559682 | U22: 2.491973634 | V22: 0
A23: ZAF | B23: 2003 | C23: ZAF_2003_WHS | D23: 65 | E23: main source of drinking water | F23: Tanker-truck, vendor | H23: 2.602248956 | I23: 0.463377915 | J23: 0 | K23: 0.1758567468 | L23: 0 | M23: 0 | N23: 0 | O23: 0 | P23: 0 | Q23: 0 | R23: 2.527547872 | S23: 3.98975169 | T23: 1.730117046 | U23: 0 | V23: 0.4507436513
A24: ZAF | B24: 2003 | C24: ZAF_2003_WHS | D24: 122 | E24: Sanitation | F24: Improved | G24: s_imp | H24: 50.55476425 | I24: 82.42119936 | J24: 92.88478362 | K24: 95.89281634 | L24: 98.9454032 | M24: 90.96888321 | N24: 97.52778347 | O24: 98.10465826 | P24: 99.77407839 | Q24: 98.91415844 | R24: 42.22053991 | S24: 41.0060433 | T24: 66.63768153 | U24: 76.52441291 | V24: 88.07865124 | AO24: 1350325.136 | AP24: 1955158.954 | AQ24: 2098003.198 | AR24: 2242191.406 | AS24: 2293624.802 | AT24: 1303654.195 | AU24: 1312267.547 | AV24: 1304096.372 | AW24: 1410284.432 | AX24: 1432484.571 | AY24: 433217.2749 | AZ24: 436912.0775 | BA24: 670487.2067 | BB24: 766266.3768 | BC24: 869633.4442
A25: ZAF | B25: 2003 | C25: ZAF_2003_WHS | D25: 123 | E25: Sanitation | F25: Not Improved | H25: 49.44523575 | I25: 17.57880064 | J25: 7.115216376 | K25: 4.107183661 | L25: 1.054596795 | M25: 9.031116795 | N25: 2.472216527 | O25: 1.895341736 | P25: 0.2259216063 | Q25: 1.085841561 | R25: 57.77946009 | S25: 58.9939567 | T25: 33.36231847 | U25: 23.47558709 | V25: 11.92134876 | AO25: 1006635.497 | AP25: 412543.6964 | AQ25: 254785.0156 | AR25: 120624.105 | AS25: 66661.50134 | AT25: 166121.7206 | AU25: 148234.5803 | AV25: 163132.1546 | AW25: 60465.33063 | AX25: 27341.8064 | AY25: 462160.8284 | AZ25: 458195.4016 | BA25: 223845.6315 | BB25: 123304.4841 | BC25: 28447.87689
A26: ZAF | B26: 2003 | C26: ZAF_2003_WHS | D26: 124 | E26: Sanitation ladder | F26: Basic | G26: s_bas | H26: 31.17861798 | I26: 53.99999298 | J26: 44.7482855 | K26: 80.33563694 | L26: 91.62718117 | M26: 50.37333896 | N26: 40.66216331 | O26: 73.17667063 | P26: 87.89824047 | Q26: 93.40766595 | R26: 27.14368128 | S26: 28.02096706 | T26: 45.45681813 | U26: 56.74872553 | V26: 68.23065818 | AO26: 812346.1492 | AP26: 1250235.11 | AQ26: 1002525.909 | AR26: 1831299.957 | AS26: 2069435.369 | AT26: 691914.4218 | AU26: 546035.1237 | AV26: 948978.5304 | AW26: 1221878.221 | AX26: 1311397.442 | AY26: 281069.4246 | AZ26: 297312.6796 | BA26: 456429.8717 | BB26: 560680.05 | BC26: 650146.7294
A27: ZAF | B27: 2003 | C27: ZAF_2003_WHS | D27: 125 | E27: Sanitation ladder | F27: Limited | G27: s_lim | H27: 19.37614627 | I27: 28.42120638 | J27: 48.13649812 | K27: 15.5571794 | L27: 7.318222035 | M27: 40.59554425 | N27: 56.86562017 | O27: 24.92798764 | P27: 11.87583792 | Q27: 5.506492488 | R27: 15.07685863 | S27: 12.98507624 | T27: 21.1808634 | U27: 19.77568738 | V27: 19.84799307 | AO27: 510852.3057 | AP27: 674509.4307 | AQ27: 1080294.234 | AR27: 357203.9922 | AS27: 165783.3569 | AT27: 572849.6162 | AU27: 761225.0142 | AV27: 329940.9193 | AW27: 165086.6688 | AX27: 77676.35522 | AY27: 143257.032 | AZ27: 134719.3384 | BA27: 214057.335 | BB27: 200706.2672 | BC27: 189124.7736
A28: ZAF | B28: 2003 | C28: ZAF_2003_WHS | D28: 126 | E28: Sanitation ladder | F28: Unimproved | G28: s_unimp | H28: 28.23242328 | I28: 14.28059211 | J28: 6.129357742 | K28: 4.107183661 | L28: 1.054596795 | M28: 8.128109301 | N28: 2.176161803 | O28: 1.471953001 | P28: 0.2259216063 | Q28: 1.085841561 | R28: 26.83639512 | S28: 36.807785 | T28: 24.48629849 | U28: 21.98203969 | V28: 10.8617788 | AO28: 521791.3246 | AP28: 340570.7125 | AQ28: 233550.7896 | AR28: 120624.105 | AS28: 66661.50134 | AT28: 153552.0922 | AU28: 144305.9934 | AV28: 157528.7254 | AW28: 60465.33063 | AX28: 27341.8064 | AY28: 191426.1204 | AZ28: 269340.4296 | BA28: 149289.7972 | BB28: 110896.0032 | BC28: 19052.1347
A29: ZAF | B29: 2003 | C29: ZAF_2003_WHS | D29: 127 | E29: Sanitation ladder | F29: Open defecation | G29: s_od | H29: 21.21281247 | I29: 3.298208534 | J29: 0.9858586338 | K29: 0 | L29: 0 | M29: 0.9030074935 | N29: 0.2960547236 | O29: 0.4233887349 | P29: 0 | Q29: 0 | R29: 30.94306497 | S29: 22.18617169 | T29: 8.876019988 | U29: 1.493547405 | V29: 1.059569958 | AO29: 484844.172 | AP29: 71972.98389 | AQ29: 21234.22601 | AR29: 0 | AS29: 0 | AT29: 12569.62842 | AU29: 3928.586914 | AV29: 5603.429199 | AW29: 0 | AX29: 0 | AY29: 270734.708 | AZ29: 188854.972 | BA29: 74555.83423 | BB29: 12408.4809 | BC29: 9395.742188
A30: ZAF | B30: 2003 | C30: ZAF_2003_WHS | D30: 128 | E30: Shared among Improved Sanitation | F30: Yes | G30: s_shared | H30: 38.32704308 | I30: 34.48288377 | J30: 51.82387927 | K30: 16.2235087 | L30: 7.396222359 | M30: 44.62574764 | N30: 58.30709788 | O30: 25.40958613 | P30: 11.90272876 | Q30: 5.566940644 | R30: 35.70977221 | S30: 31.66625013 | T30: 31.78511453 | U30: 25.84232485 | V30: 22.53439714
A31: ZAF | B31: 2003 | C31: ZAF_2003_WHS | D31: 129 | E31: Shared among Improved Sanitation | F31: No | H31: 61.67295692 | I31: 65.51711623 | J31: 48.17612073 | K31: 83.7764913 | L31: 92.60377764 | M31: 55.37425236 | N31: 41.69290212 | O31: 74.59041387 | P31: 88.09727124 | Q31: 94.43305936 | R31: 64.29022779 | S31: 68.33374987 | T31: 68.21488547 | U31: 74.15767515 | V31: 77.46560286
A32: ZAF | B32: 2003 | C32: ZAF_2003_WHS | D32: 135 | E32: Sanitation type | F32: Sewer connection | G32: s_sew | H32: 16.45604259 | I32: 54.82027719 | J32: 76.08703667 | K32: 84.69342229 | L32: 94.69217152 | M32: 72.9887377 | N32: 85.16370512 | O32: 87.47153804 | P32: 95.14430169 | Q32: 95.97029733 | R32: 2.80100661 | S32: 9.710492729 | T32: 26.35111527 | U32: 39.98183829 | V32: 67.75593792
A33: ZAF | B33: 2003 | C33: ZAF_2003_WHS | D33: 136 | E33: Sanitation type | F33: Septic tank connection | G33: s_sep | H33: 0.6883255352 | I33: 1.338435625 | J33: 0.4087027096 | K33: 0.3049763216 | L33: 0.1956680727 | M33: 2.150149402 | N33: 0.4899669706 | O33: 0.167658351 | P33: 0.174419137 | Q33: 0.2085113373 | R33: 0 | S33: 0 | T33: 1.530450488 | U33: 0.2949779996 | V33: 0.6920511385
A34: ZAF | B34: 2003 | C34: ZAF_2003_WHS | D34: 137 | E34: Sanitation type | F34: Improved latrines | G34: s_lat | H34: 40.14658181 | I34: 26.41749048 | J34: 12.67519347 | K34: 9.896500953 | L34: 2.287863146 | M34: 13.55859263 | N34: 4.19676513 | O34: 1.242416004 | P34: 0.5700882571 | Q34: 1.948242138 | R34: 45.58271791 | S34: 39.10063752 | T34: 47.08909148 | U34: 45.86206376 | V34: 28.38438278
A35: ZAF | B35: 2003 | C35: ZAF_2003_WHS | D35: 138 | E35: Sanitation type | F35: Unimproved facilities | H35: 22.13831311 | I35: 14.38401534 | J35: 9.926553874 | K35: 5.105100439 | L35: 2.824297258 | M35: 10.44731313 | N35: 9.880573998 | O35: 10.73648191 | P35: 4.111190916 | Q35: 1.872949195 | R35: 21.37936137 | S35: 30.09028925 | T35: 16.69286767 | U35: 12.46623603 | V35: 2.121426452
A36: ZAF | B36: 2003 | C36: ZAF_2003_WHS | D36: 139 | E36: Sanitation type | F36: Open defecation | H36: 20.57073696 | I36: 3.039781362 | J36: 0.9025132773 | K36: 0 | L36: 0 | M36: 0.8552071295 | N36: 0.2689887841 | O36: 0.381905688 | P36: 0 | Q36: 0 | R36: 30.23691411 | S36: 21.0985805 | T36: 8.336475085 | U36: 1.39488392 | V36: 1.046201715
A37: ZAF | B37: 2003 | C37: ZAF_2003_WHS | D37: 148 | E37: Shared among improved sanitation facilities | F37: Yes | H37: 25.89535354 | I37: 29.61441871 | J37: 46.18476989 | K37: 15.11772673 | L37: 7.023866413 | M37: 40.44920715 | N37: 52.28506899 | O37: 22.48735717 | P37: 11.22466058 | Q37: 5.320931064 | R37: 21.5535606 | S37: 19.23029245 | T37: 25.87581356 | U37: 23.00461198 | V37: 21.05875817
A38: ZAF | B38: 2003 | C38: ZAF_2003_WHS | D38: 149 | E38: Shared among improved sanitation facilities | F38: No | H38: 41.66882951 | I38: 56.26708385 | J38: 42.93393474 | K38: 78.06634962 | L38: 87.94172646 | M38: 50.19175528 | N38: 37.38680783 | O38: 66.01214478 | P38: 83.07859385 | Q38: 90.25995268 | R38: 38.80403696 | S38: 41.49774568 | T38: 55.53277641 | U38: 66.01451501 | V38: 72.39285732
A39: ZAF | B39: 2003 | C39: ZAF_2003_WHS | D39: 150 | E39: Shared among improved sanitation facilities | F39: DK/missing | H39: 32.43581694 | I39: 14.11849744 | J39: 10.88129537 | K39: 6.815923647 | L39: 5.034407128 | M39: 9.359037566 | N39: 10.32812318 | O39: 11.50049805 | P39: 5.696745572 | Q39: 4.41911626 | R39: 39.64240245 | S39: 39.27196186 | T39: 18.59141003 | U39: 10.98087301 | V39: 6.548384511
A40: ZAF | B40: 2003 | C40: ZAF_2003_WHS | D40: 151 | E40: Shared among all sanitation facilities | F40: Yes | H40: 62.2931781 | I40: 66.35311062 | J40: 49.18963716 | K40: 84.9792408 | L40: 92.57143099 | M40: 53.9503616 | N40: 42.34887761 | O40: 74.8741738 | P40: 88.260514 | Q40: 94.43305936 | R40: 64.23873859 | S40: 73.27902799 | T40: 71.79831995 | U40: 77.89907083 | V40: 79.21300489
A41: ZAF | B41: 2003 | C41: ZAF_2003_WHS | D41: 152 | E41: Shared among all sanitation facilities | F41: No | H41: 37.7068219 | I41: 33.64688938 | J41: 50.81036284 | K41: 15.0207592 | L41: 7.428569009 | M41: 46.0496384 | N41: 57.65112239 | O41: 25.1258262 | P41: 11.739486 | Q41: 5.566940644 | R41: 35.76126141 | S41: 26.72097201 | T41: 28.20168005 | U41: 22.10092917 | V41: 20.78699511
A42: ZAF | B42: 2003 | C42: ZAF_2003_WHS | D42: 153 | E42: What type of toilet facilities | F42: Flush to piped sewage system | H42: 16.96968592 | I42: 59.48082592 | J42: 83.11352743 | K42: 88.79855527 | L42: 97.24082624 | M42: 77.06832042 | N42: 93.73296831 | O42: 96.97279981 | P42: 99.22357218 | Q42: 97.47552144 | R42: 2.86642113 | S42: 10.21104993 | T42: 28.05658548 | U42: 42.8098496 | V42: 68.62171534 | AO42: 387862.4454 | AP42: 1297981.156 | AQ42: 1790166.831 | AR42: 2001149.319 | AS42: 2235006.355 | AT42: 1072770.888 | AU42: 1243817.725 | AV42: 1283407.359 | AW42: 1399334.591 | AX42: 1400999.715 | AY42: 25079.59985 | AZ42: 86919.34668 | BA42: 235666.6771 | BB42: 355666.7831 | BC42: 608503.4223
A43: ZAF | B43: 2003 | C43: ZAF_2003_WHS | D43: 154 | E43: What type of toilet facilities | F43: Flush to septic tank | H43: 0.709810277 | I43: 1.4522228 | J43: 0.4464456148 | K43: 0.319758678 | L43: 0.2009345097 | M43: 2.270328385 | N43: 0.5392679718 | O43: 0.185869599 | P43: 0.1818972815 | Q43: 0.2117816856 | R43: 0 | S43: 0 | T43: 1.629502756 | U43: 0.3158425009 | V43: 0.7008940867 | AO43: 16223.56189 | AP43: 31690.17578 | AQ43: 9615.90918 | AR43: 7206.027832 | AS43: 4618.326721 | AT43: 31602.37805 | AU43: 7155.978027 | AV43: 2459.931152 | AW43: 2565.269043 | AX43: 3043.903503 | AY43: 0 | AZ43: 0 | BA43: 13687.32129 | BB43: 2624.03833 | BC43: 6215.182007
A44: ZAF | B44: 2003 | C44: ZAF_2003_WHS | D44: 155 | E44: What type of toilet facilities | F44: Pour flush latrine | H44: 0.9833457105 | I44: 1.159568104 | J44: 0.4873134348 | K44: 0.2165466791 | L44: 0 | M44: 1.005528608 | N44: 0 | O44: 0 | P44: 0 | Q44: 0 | R44: 0.9664802743 | S44: 0.4415145592 | T44: 1.98676718 | U44: 1.376994874 | V44: 0.9942048997 | AO44: 22475.54102 | AP44: 25303.91138 | AQ44: 10496.15356 | AR44: 4880.05957 | AS44: 0 | AT44: 13996.69556 | AU44: 0 | AV44: 0 | AW44: 0 | AX44: 0 | AY44: 8456.167969 | AZ44: 3758.296875 | BA44: 16688.23242 | BB44: 11440.15552 | BC44: 8816.117188
A45: ZAF | B45: 2003 | C45: ZAF_2003_WHS | D45: 156 | E45: What type of toilet facilities | F45: Covered dry latrine (with privacy) | H45: 40.4163335 | I45: 27.50380671 | J45: 13.35840965 | K45: 10.15964268 | L45: 2.349441343 | M45: 13.31089875 | N45: 4.619048131 | O45: 1.377368698 | P45: 0.5945305428 | Q45: 1.978798895 | R45: 45.68077337 | S45: 40.67468553 | T45: 48.14997682 | U45: 47.72900264 | V45: 27.75287019 | AO45: 923763.5876 | AP45: 600183.7109 | AQ45: 287724.3043 | AR45: 228956 | AS45: 54000.12048 | AT45: 185284.2335 | AU45: 61293.84399 | AV45: 18229.08203 | AW45: 8384.571686 | AX45: 28440.95264 | AY45: 399681.5071 | AZ45: 346234.434 | BA45: 404444.9759 | BB45: 396535.3999 | BC45: 246098.7227
A46: ZAF | B46: 2003 | C46: ZAF_2003_WHS | D46: 157 | E46: What type of toilet facilities | F46: Uncovered dry latrine (without privacy) | H46: 9.41479515 | I46: 4.259603494 | J46: 0.4501796418 | K46: 0.08716312144 | L46: 0 | M46: 3.825723494 | N46: 0.6318344307 | O46: 0.1484197787 | P46: 0 | Q46: 0 | R46: 14.29991179 | S46: 6.75262512 | T46: 6.482563978 | U46: 2.304944131 | V46: 0 | AO46: 215186.391 | AP46: 92952.39233 | AQ46: 9696.335693 | AR46: 1964.293457 | AS46: 0 | AT46: 53253.07166 | AU46: 8384.316406 | AV46: 1964.293457 | AW46: 0 | AX46: 0 | AY46: 125116.3208 | AZ46: 57480.25598 | BA46: 54451.54089 | BB46: 19149.61328 | BC46: 0
A47: ZAF | B47: 2003 | C47: ZAF_2003_WHS | D47: 158 | E47: What type of toilet facilities | F47: Bucket latrine (where fresh excreta are manually removed) | H47: 0.8848147354 | I47: 0.4030806433 | J47: 0.3758229406 | K47: 0 | L47: 0.208797912 | M47: 1.383599287 | N47: 0.1808264294 | O47: 0.1329225749 | P47: 0 | Q47: 0.3338979813 | R47: 0 | S47: 1.146592418 | T47: 0 | U47: 0.473763766 | V47: 0 | AO47: 20223.49786 | AP47: 8795.961914 | AQ47: 8094.780518 | AR47: 0 | AS47: 4799.061035 | AT47: 19259.34064 | AU47: 2399.530518 | AV47: 1759.192383 | AW47: 0 | AX47: 4799.061035 | AY47: 0 | AZ47: 9760.119141 | BA47: 0 | BB47: 3936.057617 | BC47: 0
A48: ZAF | B48: 2003 | C48: ZAF_2003_WHS | D48: 159 | E48: What type of toilet facilities | F48: No facilities (open defecation) | H48: 21.21281247 | I48: 3.298208534 | J48: 0.9858586338 | K48: 0 | L48: 0 | M48: 0.9030074935 | N48: 0.2960547236 | O48: 0.4233887349 | P48: 0 | Q48: 0 | R48: 30.94306497 | S48: 22.18617169 | T48: 8.876019988 | U48: 1.493547405 | V48: 1.059569958 | AO48: 484844.172 | AP48: 71972.98389 | AQ48: 21234.22601 | AR48: 0 | AS48: 0 | AT48: 12569.62842 | AU48: 3928.586914 | AV48: 5603.429199 | AW48: 0 | AX48: 0 | AY48: 270734.708 | AZ48: 188854.972 | BA48: 74555.83423 | BB48: 12408.4809 | BC48: 9395.742188
A49: ZAF | B49: 2003 | C49: ZAF_2003_WHS | D49: 160 | E49: What type of toilet facilities | F49: Other | H49: 9.408402226 | I49: 2.442683795 | J49: 0.7824426578 | K49: 0.4183335738 | L49: 0 | M49: 0.2325935605 | N49: 0 | O49: 0.7592308048 | P49: 0 | Q49: 0 | R49: 5.243348463 | S49: 18.58736075 | T49: 4.8185838 | U49: 3.496055082 | V49: 0.8707455301 | AO49: 215040.2731 | AP49: 53303.85864 | AQ49: 16852.88708 | AR49: 9427.495117 | AS49: 0 | AT49: 3237.641602 | AU49: 0 | AV49: 10048.20325 | AW49: 0 | AX49: 0 | AY49: 45876.39966 | AZ49: 158220.8749 | BA49: 40474.61987 | BB49: 29045.43408 | BC49: 7721.340576
A50: ZAF | B50: 2016 | C50: ZAF_2016_DHS | D50: 16 | E50: Water | F50: 1 Improved | G50: w_imp | H50: 75.8162524 | I50: 93.97726975 | J50: 97.72706699 | K50: 99.64033765 | L50: 99.94487881 | M50: 98.78619126 | N50: 99.41563144 | O50: 99.97162976 | P50: 99.92996231 | Q50: 100 | R50: 53.86122083 | S50: 79.76842931 | T50: 88.43819286 | U50: 93.68041561 | V50: 97.7240687 | W50: 2 Eastern Cape | X50: 4 Free State | Y50: 7 Gauteng | Z50: 5 Kwazulu-Natal | AA50: 9 Limpopo | AB50: 8 Mpumalanga | AC50: 6 North West | AD50: 3 Northern Cape | AE50: 1 Western Cape | AF50: 73.77837122 | AG50: 99.91748811 | AH50: 100 | AI50: 89.36762185 | AJ50: 92.67805192 | AK50: 95.31446635 | AL50: 99.90176945 | AM50: 99.49672903 | AN50: 99.40101605
A51: ZAF | B51: 2016 | C51: ZAF_2016_DHS | D51: 17 | E51: Water | F51: 2 Not Improved | H51: 24.1837476 | I51: 6.022730246 | J51: 2.272933013 | K51: 0.3596623458 | L51: 0.0551211939 | M51: 1.213808743 | N51: 0.5843685606 | O51: 0.02837024432 | P51: 0.07003768544 | Q51: 0 | R51: 46.13877917 | S51: 20.23157069 | T51: 11.56180714 | U51: 6.319584394 | V51: 2.275931299 | W51: 2 Eastern Cape | X51: 4 Free State | Y51: 7 Gauteng | Z51: 5 Kwazulu-Natal | AA51: 9 Limpopo | AB51: 8 Mpumalanga | AC51: 6 North West | AD51: 3 Northern Cape | AE51: 1 Western Cape | AF51: 26.22162878 | AG51: 0.08251188769 | AH51: 0 | AI51: 10.63237815 | AJ51: 7.321948075 | AK51: 4.685533651 | AL51: 0.0982305531 | AM51: 0.5032709696 | AN51: 0.5989839476
A52: ZAF | B52: 2016 | C52: ZAF_2016_DHS | D52: 18 | E52: Water ladder | F52: 1 Basic | G52: w_bas | H52: 67.97430574 | I52: 89.86117739 | J52: 96.14981482 | K52: 99.31509464 | L52: 99.78595623 | M52: 95.60060385 | N52: 99.31049613 | O52: 99.79671726 | P52: 99.92996231 | Q52: 99.81060379 | R52: 45.41128417 | S52: 70.06382809 | T52: 81.18467313 | U52: 88.7666457 | V52: 96.10568217 | W52: 2 Eastern Cape | X52: 4 Free State | Y52: 7 Gauteng | Z52: 5 Kwazulu-Natal | AA52: 9 Limpopo | AB52: 8 Mpumalanga | AC52: 6 North West | AD52: 3 Northern Cape | AE52: 1 Western Cape | AF52: 71.28404894 | AG52: 98.87701198 | AH52: 99.49768033 | AI52: 86.77634811 | AJ52: 81.1718197 | AK52: 90.92602959 | AL52: 96.69945928 | AM52: 98.11402212 | AN52: 99.40101605
A53: ZAF | B53: 2016 | C53: ZAF_2016_DHS | D53: 19 | E53: Water ladder | F53: 2 Limited | G53: w_lim | H53: 7.841946666 | I53: 4.116092365 | J53: 1.577252168 | K53: 0.3252430184 | L53: 0.1589225745 | M53: 3.185587407 | N53: 0.1051353077 | O53: 0.1749124947 | P53: 0 | Q53: 0.1893962102 | R53: 8.449936655 | S53: 9.704601219 | T53: 7.253519724 | U53: 4.913769908 | V53: 1.618386533 | W53: 2 Eastern Cape | X53: 4 Free State | Y53: 7 Gauteng | Z53: 5 Kwazulu-Natal | AA53: 9 Limpopo | AB53: 8 Mpumalanga | AC53: 6 North West | AD53: 3 Northern Cape | AE53: 1 Western Cape | AF53: 2.494322273 | AG53: 1.040476136 | AH53: 0.5023196728 | AI53: 2.591273735 | AJ53: 11.50623222 | AK53: 4.388436762 | AL53: 3.202310166 | AM53: 1.382706905 | AN53: 0
A54: ZAF | B54: 2016 | C54: ZAF_2016_DHS | D54: 20 | E54: Water ladder | F54: 3 Other unimproved | G54: w_unimp | H54: 11.36981727 | I54: 3.217471698 | J54: 1.082474374 | K54: 0.2605873217 | L54: 0.0551211939 | M54: 0.3847342907 | N54: 0.5843685606 | O54: 0.007848966417 | P54: 0.07003768544 | Q54: 0 | R54: 20.90383404 | S54: 10.60220907 | T54: 5.990785236 | U54: 2.736821318 | V54: 1.593388135 | W54: 2 Eastern Cape | X54: 4 Free State | Y54: 7 Gauteng | Z54: 5 Kwazulu-Natal | AA54: 9 Limpopo | AB54: 8 Mpumalanga | AC54: 6 North West | AD54: 3 Northern Cape | AE54: 1 Western Cape | AF54: 13.08345398 | AG54: 0.08251188769 | AH54: 0 | AI54: 5.035174909 | AJ54: 2.689511009 | AK54: 2.719309755 | AL54: 0.0982305531 | AM54: 0.1291504177 | AN54: 0.5989839476
A55: ZAF | B55: 2016 | C55: ZAF_2016_DHS | D55: 21 | E55: Water ladder | F55: 4 Surface water | G55: w_sur | H55: 12.81393033 | I55: 2.805258547 | J55: 1.190458638 | K55: 0.09907502408 | L55: 0 | M55: 0.8290744519 | N55: 0 | O55: 0.0205212779 | P55: 0 | Q55: 0 | R55: 25.23494513 | S55: 9.629361615 | T55: 5.571021908 | U55: 3.582763076 | V55: 0.6825431642 | W55: 2 Eastern Cape | X55: 4 Free State | Y55: 7 Gauteng | Z55: 5 Kwazulu-Natal | AA55: 9 Limpopo | AB55: 8 Mpumalanga | AC55: 6 North West | AD55: 3 Northern Cape | AE55: 1 Western Cape | AF55: 13.1381748 | AG55: 0 | AH55: 0 | AI55: 5.597203242 | AJ55: 4.632437066 | AK55: 1.966223896 | AL55: 0 | AM55: 0.374120552 | AN55: 0
A56: ZAF | B56: 2016 | C56: ZAF_2016_DHS | D56: 22 | E56: Improved water point at more than 30 minutes | F56: 1 Yes | H56: 10.34335834 | I56: 4.379880768 | J56: 1.613935849 | K56: 0.3264170175 | L56: 0.1590102228 | M56: 3.224729455 | N56: 0.1057532968 | O56: 0.1749621319 | P56: 0 | Q56: 0.1893962102 | R56: 15.68834966 | S56: 12.16596754 | T56: 8.201795502 | U56: 5.245247767 | V56: 1.656077724 | W56: 2 Eastern Cape | X56: 4 Free State | Y56: 7 Gauteng | Z56: 5 Kwazulu-Natal | AA56: 9 Limpopo | AB56: 8 Mpumalanga | AC56: 6 North West | AD56: 3 Northern Cape | AE56: 1 Western Cape | AF56: 3.380831309 | AG56: 1.041335361 | AH56: 0.5023196728 | AI56: 2.899566623 | AJ56: 12.41527199 | AK56: 4.604166535 | AL56: 3.205458906 | AM56: 1.389700866 | AN56: 0
A57: ZAF | B57: 2016 | C57: ZAF_2016_DHS | D57: 23 | E57: Improved water point at more than 30 minutes | F57: 2 No | H57: 89.65664166 | I57: 95.62011923 | J57: 98.38606415 | K57: 99.67358298 | L57: 99.84098978 | M57: 96.77527054 | N57: 99.8942467 | O57: 99.82503787 | P57: 100 | Q57: 99.81060379 | R57: 84.31165034 | S57: 87.83403246 | T57: 91.7982045 | U57: 94.75475223 | V57: 98.34392228 | W57: 2 Eastern Cape | X57: 4 Free State | Y57: 7 Gauteng | Z57: 5 Kwazulu-Natal | AA57: 9 Limpopo | AB57: 8 Mpumalanga | AC57: 6 North West | AD57: 3 Northern Cape | AE57: 1 Western Cape | AF57: 96.61916869 | AG57: 98.95866464 | AH57: 99.49768033 | AI57: 97.10043338 | AJ57: 87.58472801 | AK57: 95.39583347 | AL57: 96.79454109 | AM57: 98.61029913 | AN57: 100
A58: ZAF | B58: 2016 | C58: ZAF_2016_DHS | D58: 29 | E58: Piped water | F58: 1 Yes | G58: w_pip | H58: 62.91068654 | I58: 84.8037188 | J58: 90.18410017 | K58: 95.7794685 | L58: 98.76615868 | M58: 94.85726427 | N58: 98.18923285 | O58: 99.08843385 | P58: 99.36366624 | Q58: 99.64081053 | R58: 38.64250292 | S58: 63.81747073 | T58: 70.89417889 | U58: 78.65449694 | V58: 78.89156942 | W58: 2 Eastern Cape | X58: 4 Free State | Y58: 7 Gauteng | Z58: 5 Kwazulu-Natal | AA58: 9 Limpopo | AB58: 8 Mpumalanga | AC58: 6 North West | AD58: 3 Northern Cape | AE58: 1 Western Cape | AF58: 65.1336648 | AG58: 96.49890517 | AH58: 98.70579417 | AI58: 83.29882837 | AJ58: 68.93133217 | AK58: 83.4405234 | AL58: 90.34849384 | AM58: 97.62056489 | AN58: 99.19506906
A59: ZAF | B59: 2016 | C59: ZAF_2016_DHS | D59: 30 | E59: Piped water | F59: 2 No | H59: 37.08931346 | I59: 15.1962812 | J59: 9.815899828 | K59: 4.220531504 | L59: 1.233841323 | M59: 5.142735726 | N59: 1.810767155 | O59: 0.911566153 | P59: 0.63633376 | Q59: 0.3591894731 | R59: 61.35749708 | S59: 36.18252927 | T59: 29.10582111 | U59: 21.34550306 | V59: 21.10843058 | W59: 2 Eastern Cape | X59: 4 Free State | Y59: 7 Gauteng | Z59: 5 Kwazulu-Natal | AA59: 9 Limpopo | AB59: 8 Mpumalanga | AC59: 6 North West | AD59: 3 Northern Cape | AE59: 1 Western Cape | AF59: 34.8663352 | AG59: 3.501094827 | AH59: 1.294205832 | AI59: 16.70117163 | AJ59: 31.06866783 | AK59: 16.5594766 | AL59: 9.651506163 | AM59: 2.379435106 | AN59: 0.8049309429
A60: ZAF | B60: 2016 | C60: ZAF_2016_DHS | D60: 31 | E60: Piped water on premises | F60: Yes | G60: w_pop | H60: 25.19267904 | I60: 57.47489087 | J60: 76.60011397 | K60: 91.90563984 | L60: 98.5689445 | M60: 62.31945765 | N60: 89.00418442 | O60: 97.61301551 | P60: 99.23499485 | Q60: 99.53518338 | R60: 7.77834763 | S60: 27.42594935 | T60: 33.91752399 | U60: 49.46935837 | V60: 61.71458199 | W60: 2 Eastern Cape | X60: 4 Free State | Y60: 7 Gauteng | Z60: 5 Kwazulu-Natal | AA60: 9 Limpopo | AB60: 8 Mpumalanga | AC60: 6 North West | AD60: 3 Northern Cape | AE60: 1 Western Cape | AF60: 43.55116024 | AG60: 92.15042301 | AH60: 88.88543748 | AI60: 66.87154764 | AJ60: 34.78478534 | AK60: 67.90059577 | AL60: 61.53386375 | AM60: 73.03285821 | AN60: 92.96302982
A61: ZAF | B61: 2016 | C61: ZAF_2016_DHS | D61: 32 | E61: Piped water on premises | F61: No | H61: 74.80732096 | I61: 42.52510913 | J61: 23.39988603 | K61: 8.094360164 | L61: 1.431055499 | M61: 37.68054235 | N61: 10.99581558 | O61: 2.386984486 | P61: 0.7650051452 | Q61: 0.4648166207 | R61: 92.22165237 | S61: 72.57405065 | T61: 66.08247601 | U61: 50.53064163 | V61: 38.28541801 | W61: 2 Eastern Cape | X61: 4 Free State | Y61: 7 Gauteng | Z61: 5 Kwazulu-Natal | AA61: 9 Limpopo | AB61: 8 Mpumalanga | AC61: 6 North West | AD61: 3 Northern Cape | AE61: 1 Western Cape | AF61: 56.44883976 | AG61: 7.849576993 | AH61: 11.11456252 | AI61: 33.12845236 | AJ61: 65.21521466 | AK61: 32.09940423 | AL61: 38.46613625 | AM61: 26.96714179 | AN61: 7.036970175
A62: ZAF | B62: 2016 | C62: ZAF_2016_DHS | D62: 35 | E62: Water source on premises | F62: 1 Yes | H62: 34.63003422 | I62: 67.65668758 | J62: 85.76336998 | K62: 95.52154971 | L62: 99.5227789 | M62: 70.64339777 | N62: 93.12755979 | O62: 98.21897549 | P62: 99.55683235 | Q62: 99.80371304 | R62: 15.14053508 | S62: 37.28927605 | T62: 47.19124291 | U62: 67.03873817 | V62: 81.09330499 | W62: 2 Eastern Cape | X62: 4 Free State | Y62: 7 Gauteng | Z62: 5 Kwazulu-Natal | AA62: 9 Limpopo | AB62: 8 Mpumalanga | AC62: 6 North West | AD62: 3 Northern Cape | AE62: 1 Western Cape | AF62: 52.10570233 | AG62: 94.37734926 | AH62: 91.41786528 | AI62: 73.60259094 | AJ62: 47.18763738 | AK62: 78.05625818 | AL62: 77.41474974 | AM62: 78.52361284 | AN62: 95.08714303
A63: ZAF | B63: 2016 | C63: ZAF_2016_DHS | D63: 36 | E63: Water source on premises | F63: 2 No | H63: 65.36996578 | I63: 32.34331242 | J63: 14.23663002 | K63: 4.478450292 | L63: 0.4772211041 | M63: 29.35660223 | N63: 6.872440213 | O63: 1.781024512 | P63: 0.4431676453 | Q63: 0.1962869604 | R63: 84.85946492 | S63: 62.71072395 | T63: 52.80875709 | U63: 32.96126183 | V63: 18.90669501 | W63: 2 Eastern Cape | X63: 4 Free State | Y63: 7 Gauteng | Z63: 5 Kwazulu-Natal | AA63: 9 Limpopo | AB63: 8 Mpumalanga | AC63: 6 North West | AD63: 3 Northern Cape | AE63: 1 Western Cape | AF63: 47.89429767 | AG63: 5.622650742 | AH63: 8.582134719 | AI63: 26.39740906 | AJ63: 52.81236262 | AK63: 21.94374182 | AL63: 22.58525026 | AM63: 21.47638716 | AN63: 4.912856972
